Workbook

Sheet HELP
A1: Beam Calculator Help:
A2: 1) | B2: You must Enable Macros in order for the spreadsheet "Beam Calculator" to work.
B3: If the buttons on the worksheets don't work the Macros are not enabled.
B4: If you are not prompted as to whether or not you want to enable macros when you open Beam Calculator, there are two possible reasons.
B5: First, Excel's macro security may be too high. To correct this, select "Tools" from the menu bar, then select "Macros", then "Security".
B6: The "Security" form will open. Choose the "Medium" or "Low" setting on the "Security Level" tab. Close then re-open Beam Calculator.
B8: If the program still does not work, the second reason macros may not work is that some anti-virus software will identify the macros in this spreadsheet
B9: as a virus and remove or disable them from the file. If this happens, the spreadsheet will not function properly. Contact your computer
B10: administrator for help in correcting these problems.
A12: 2) | B12: If you are getting errors while running Beam Calculator such as "Path not Found" or "Can't find Project or Library"
B13: Set the Error Trapping Option in Excel's Visual Basic Editor to "Break on Unhandled Errors"
B14: To do this go to the "Tools" menu, select "Macro" then "Visual Basic Editor". The Visual Basic Editor window will open.
B15: You can also use Alt-F11 to open the window.
B17: Select "Tools" from the menu bar at the top, then select "Options". The "Options" form will open.
B18: Go to the "General" tab. Select "Break on Unhandled Errors" from the "Error Trapping" options.

Sheet Main

Sheet Instructions
A1: Beam Calculator Instructions
A2: 1) | B2: You must Enable Macros in order for the spreadsheet "Beam Calculator" to work.
B3: If the buttons on the worksheets don't work the Macros are not enabled.
B4: If you are not prompted as to whether or not you want to enable macros when you open Beam Calculator, there are two possible reasons.
B5: First, Excel's macro security may be too high. To correct this, select "Tools" from the menu bar, then select "Macros", then "Security".
B6: The "Security" form will open. Choose the "Medium" or "Low" setting on the "Security Level" tab. Close then re-open Beam Calculator.
B8: If the program still does not work, the second reason macros may not work is that some anti-virus software will identify the macros in this spreadsheet
B9: as a virus and remove or disable them from the file. If this happens, the spreadsheet will not function properly. Contact your computer
B10: administrator for help in correcting these problems.
A12: 2) | B12: If you are getting errors while running Beam Calculator such as "Path not Found" or "Can't find Project or Library"
B13: Set the Error Trapping Option in Excel's Visual Basic Editor to "Break on Unhandled Errors"
B14: To do this go to the "Tools" menu, select "Macro" then "Visual Basic Editor". The Visual Basic Editor window will open.
B15: You can also use Alt-F11 to open the window.
B17: Select "Tools" from the menu bar at the top, then select "Options". The "Options" form will open.
B18: Go to the "General" tab. Select "Break on Unhandled Errors" from the "Error Trapping" options.

Sheet Definitions
A1: Beam Calculator Definitions
A2: 1) | B2: The use of an underscore in the windows indicates a subscript. For exampe b_f corresponds to bf.
B3: The notation used in Beam Calculator follows that used in the AISC Specification, using the method above to indicate subscripts
B4: Lambda is used in place of the Grek symbol l.
B5: Lambda_f = slenderness ratio for the compression flange
B6: Lambda_w = slenderness ratio for the web

Sheet Quick Check (hidden)
S1: 10 | T1: 0
E6: W27X161 | G6: W27X114 | I6: W27X84 | K6: W24X335 | M6: W24X279 | O6: W24X117 | Q6: W24X104 | S6: W24X68 | U6: W21X182 | W6: W6X8.5 | Y6: W6X8.5 | AA6: W6X8.5 | AC6: W6X8.5 | AE6: W6X8.5 | AG6: W12X65 | AI6: W10X112 | AK6: W10X100 | AM6: W14X68 | AO6: W14X48 | AQ6: W14X38 | AS6: W12X136 | AU6: W12X87 | AW6: W12X79 | AY6: W12X65 | BA6: W12X58
E7: Lb (ft) | F7: Mn
D8: Lp,Mp | E8: 11.41666698 | F8: 1931.25 | G8: 7.75 | H8: 1286.25 | I8: 7.333333492 | J8: 915 | K8: 11.41666698 | L8: 3825 | M8: 11.25 | N8: 3131.25 | O8: 10.41666698 | P8: 815.8682251 | Q8: 10.33333302 | R8: 721.0578613 | S8: 6.666666508 | T8: 441.6167603 | U8: 10.66666698 | V8: 1187.624756 | W8: 3.583333254 | X8: 20.971632 | Y8: 3.583333254 | Z8: 20.971632 | AA8: 3.583333254 | AB8: 20.971632 | AC8: 3.583333254 | AD8: 20.971632 | AE8: 3.583333254 | AF8: 20.971632 | AG8: 10.66724725 | AH8: 362.9999904 | AI8: 9.466298885 | AJ8: 551.2499854 | AK8: 9.360332853 | AL8: 487.4999871 | AM8: 8.689214648 | AN8: 431.25 | AO8: 6.746504056 | AP8: 294 | AQ8: 5.474911668 | AR8: 230.625 | AS8: 11.1617554 | AT8: 802.5 | AU8: 10.8438573 | AV8: 495 | AW8: 10.77321328 | AX8: 446.25 | AY8: 10.66724725 | AZ8: 363 | BA8: 8.865824702 | BB8: 324
D9: Lr,Mr | E9: 36.31805929 | F9: 1325.624965 | G9: 23.10325623 | H9: 784.8749792 | I9: 69.15895589 | J9: 2512.124933 | K9: 48.65119934 | L9: 1690.499955 | M9: 48.65119934 | N9: 1690.499955 | O9: 7.738412857 | P9: 39.11249896 | Q9: 21.83014679 | R9: 643.124983 | S9: 21.21015358 | T9: 582.7499846 | U9: 19.50965309 | V9: 461.9999878 | W9: 46.63927841 | X9: 343.8749909 | Y9: 46.63927841 | Z9: 343.8749909 | AA9: 46.63927841 | AB9: 343.8749909 | AC9: 41.35693543 | AD9: 392.9999896 | AE9: 35.68088602 | AF9: 320.9999915 | AG9: 31.70046268 | AH9: 263.699993 | AI9: 56.52064884 | AJ9: 377.99999 | AK9: 50.77354416 | AL9: 335.9999911 | AM9: 26.41201225 | AN9: 309 | AO9: 19.17888256 | AP9: 210.6 | AQ9: 14.94754833 | AR9: 163.8 | AS9: 55.69091984 | AT9: 558 | AU9: 38.38021157 | AV9: 354 | AW9: 35.68088602 | AX9: 321 | AY9: 31.70046268 | AZ9: 263.7 | BA9: 27.0102773 | BB9: 234
E10: 0 | F10: 1931.249949 | G10: 0 | H10: 1286.249966 | I10: 0 | J10: 914.9999758 | K10: 0 | L10: 3824.999899 | M10: 0 | N10: 3131.249917 | O10: 0 | P10: 815.8682533 | Q10: 0 | R10: 721.0578752 | S10: 0 | T10: 441.6167609 | U10: 0 | V10: 1187.624736 | W10: 0 | X10: 20.97163183 | Y10: 0 | Z10: 20.97163183 | AA10: 0 | AB10: 20.97163183 | AC10: 0 | AD10: 20.97163183 | AE10: 0 | AF10: 20.97163183 | AG10: 0 | AH10: 362.9999904 | AI10: 0 | AJ10: 551.2499854 | AK10: 0 | AL10: 487.4999871 | AM10: 0 | AN10: 431.25 | AO10: 0 | AP10: 294 | AQ10: 0 | AR10: 230.625 | AS10: 0 | AT10: 802.5 | AU10: 0 | AV10: 495 | AW10: 0 | AX10: 446.25 | AY10: 0 | AZ10: 363 | BA10: 0 | BB10: 324
E11: 0.7611111403 | F11: 1931.249949 | G11: 0.7611111403 | H11: 1286.249966 | I11: 0.7611111403 | J11: 914.9999758 | K11: 0.7611111403 | L11: 3824.999899 | M11: 0.7611111403 | N11: 3131.249917 | O11: 0.7555555105 | P11: 815.8682533 | Q11: 0.7555555105 | R11: 721.0578752 | S11: 0.7555555105 | T11: 441.6167609 | U11: 0.7555555105 | V11: 1187.624736 | W11: 0.7611111403 | X11: 20.97163183 | Y11: 0.7611111403 | Z11: 20.97163183 | AA11: 0.7611111403 | AB11: 20.97163183 | AC11: 0.7611111403 | AD11: 20.97163183 | AE11: 0.7666666508 | AF11: 20.97163183 | AG11: 1.585023165 | AH11: 362.9999904 | AI11: 2.8260324 | AJ11: 551.2499854 | AK11: 2.538677216 | AL11: 487.4999871 | AM11: 1.320600629 | AN11: 431.25 | AO11: 0.9589441419 | AP11: 294 | AQ11: 0.7473773956 | AR11: 230.625 | AS11: 2.784545898 | AT11: 802.5 | AU11: 1.91901052 | AV11: 495 | AW11: 1.784044266 | AX11: 446.25 | AY11: 1.585023165 | AZ11: 363 | BA11: 1.350513816 | BB11: 324
E12: 1.522222281 | F12: 1931.249949 | G12: 1.522222281 | H12: 1286.249966 | I12: 1.522222281 | J12: 914.9999758 | K12: 1.522222281 | L12: 3824.999899 | M12: 1.522222281 | N12: 3131.249917 | O12: 1.511111021 | P12: 815.8682533 | Q12: 1.511111021 | R12: 721.0578752 | S12: 1.511111021 | T12: 441.6167609 | U12: 1.511111021 | V12: 1187.624736 | W12: 1.522222281 | X12: 20.97163183 | Y12: 1.522222281 | Z12: 20.97163183 | AA12: 1.522222281 | AB12: 20.97163183 | AC12: 1.522222281 | AD12: 20.97163183 | AE12: 1.533333302 | AF12: 20.97163183 | AG12: 3.170046329 | AH12: 362.9999904 | AI12: 5.6520648 | AJ12: 551.2499854 | AK12: 5.077354431 | AL12: 487.4999871 | AM12: 2.641201258 | AN12: 431.25 | AO12: 1.917888284 | AP12: 294 | AQ12: 1.494754791 | AR12: 230.625 | AS12: 5.569091797 | AT12: 802.5 | AU12: 3.83802104 | AV12: 495 | AW12: 3.568088531 | AX12: 446.25 | AY12: 3.170046329 | AZ12: 363 | BA12: 2.701027632 | BB12: 324
E13: 2.283333302 | F13: 1931.249949 | G13: 2.283333302 | H13: 1286.249966 | I13: 2.283333302 | J13: 914.9999758 | K13: 2.283333302 | L13: 3824.999899 | M13: 2.283333302 | N13: 3131.249917 | O13: 2.266666651 | P13: 815.8682533 | Q13: 2.266666651 | R13: 721.0578752 | S13: 2.266666651 | T13: 441.6167609 | U13: 2.266666651 | V13: 1187.624736 | W13: 2.283333302 | X13: 20.97163183 | Y13: 2.283333302 | Z13: 20.97163183 | AA13: 2.283333302 | AB13: 20.97163183 | AC13: 2.283333302 | AD13: 20.97163183 | AE13: 2.299999952 | AF13: 20.97163183 | AG13: 4.755069256 | AH13: 362.9999904 | AI13: 8.478096962 | AJ13: 551.2499854 | AK13: 7.616031647 | AL13: 487.4999871 | AM13: 3.961801767 | AN13: 431.25 | AO13: 2.876832485 | AP13: 294 | AQ13: 2.242132187 | AR13: 230.625 | AS13: 8.353637695 | AT13: 802.5 | AU13: 5.757031918 | AV13: 495 | AW13: 5.352132797 | AX13: 446.25 | AY13: 4.755069256 | AZ13: 363 | BA13: 4.051541805 | BB13: 324
E14: 3.044444561 | F14: 1931.249949 | G14: 3.044444561 | H14: 1286.249966 | I14: 3.044444561 | J14: 914.9999758 | K14: 3.044444561 | L14: 3824.999899 | M14: 3.044444561 | N14: 3131.249917 | O14: 3.022222042 | P14: 815.8682533 | Q14: 3.022222042 | R14: 721.0578752 | S14: 3.022222042 | T14: 441.6167609 | U14: 3.022222042 | V14: 1187.624736 | W14: 3.044444561 | X14: 20.97163183 | Y14: 3.044444561 | Z14: 20.97163183 | AA14: 3.044444561 | AB14: 20.97163183 | AC14: 3.044444561 | AD14: 20.97163183 | AE14: 3.066666603 | AF14: 20.97163183 | AG14: 6.340092659 | AH14: 362.9999904 | AI14: 11.3041296 | AJ14: 544.4832548 | AK14: 10.15470886 | AL14: 484.5939588 | AM14: 5.282402515 | AN14: 431.25 | AO14: 3.835776567 | AP14: 294 | AQ14: 2.989509583 | AR14: 230.625 | AS14: 11.13818359 | AT14: 802.5 | AU14: 7.67604208 | AV14: 495 | AW14: 7.136177063 | AX14: 446.25 | AY14: 6.340092659 | AZ14: 363 | BA14: 5.402055264 | BB14: 324
E15: 3.805555582 | F15: 1931.249949 | G15: 3.805555582 | H15: 1286.249966 | I15: 3.805555582 | J15: 914.9999758 | K15: 3.805555582 | L15: 3824.999899 | M15: 3.805555582 | N15: 3131.249917 | O15: 3.777777672 | P15: 815.8682533 | Q15: 3.777777672 | R15: 721.0578752 | S15: 3.777777672 | T15: 441.6167609 | U15: 3.777777672 | V15: 1187.624736 | W15: 3.805555582 | X15: 20.64065497 | Y15: 3.805555582 | Z15: 20.64065497 | AA15: 3.805555582 | AB15: 20.64065497 | AC15: 3.805555582 | AD15: 20.64065497 | AE15: 3.833333254 | AF15: 20.60511649 | AG15: 7.925115585 | AH15: 362.9999904 | AI15: 14.13016224 | AJ15: 534.0780478 | AK15: 12.69338608 | AL15: 475.3068358 | AM15: 6.603003025 | AN15: 431.25 | AO15: 4.79472065 | AP15: 294 | AQ15: 3.736886978 | AR15: 230.625 | AS15: 13.92272949 | AT15: 787.3400891 | AU15: 9.595052719 | AV15: 495 | AW15: 8.920221329 | AX15: 446.25 | AY15: 7.925115585 | AZ15: 363 | BA15: 6.752569199 | BB15: 324
E16: 4.566666603 | F16: 1931.249949 | G16: 4.566666603 | H16: 1286.249966 | I16: 4.566666603 | J16: 914.9999758 | K16: 4.566666603 | L16: 3824.999899 | M16: 4.566666603 | N16: 3131.249917 | O16: 4.533333302 | P16: 815.8682533 | Q16: 4.533333302 | R16: 721.0578752 | S16: 4.533333302 | T16: 441.6167609 | U16: 4.533333302 | V16: 1187.624736 | W16: 4.566666603 | X16: 19.66687494 | Y16: 4.566666603 | Z16: 19.66687494 | AA16: 4.566666603 | AB16: 19.66687494 | AC16: 4.566666603 | AD16: 19.66687494 | AE16: 4.599999905 | AF16: 19.62422739 | AG16: 9.510138512 | AH16: 362.9999904 | AI16: 16.95619392 | AJ16: 523.6728455 | AK16: 15.23206329 | AL16: 466.0197128 | AM16: 7.923603535 | AN16: 431.25 | AO16: 5.75366497 | AP16: 294 | AQ16: 4.484264374 | AR16: 230.625 | AS16: 16.70727539 | AT16: 772.0507505 | AU16: 11.51406384 | AV16: 491.5682067 | AW16: 10.70426559 | AX16: 446.25 | AY16: 9.510138512 | AZ16: 363 | BA16: 8.103083611 | BB16: 324
E17: 5.327777863 | F17: 1931.249949 | G17: 5.327777863 | H17: 1286.249966 | I17: 5.327777863 | J17: 914.9999758 | K17: 5.327777863 | L17: 3824.999899 | M17: 5.327777863 | N17: 3131.249917 | O17: 5.288888931 | P17: 815.8682533 | Q17: 5.288888931 | R17: 721.0578752 | S17: 5.288888931 | T17: 441.6167609 | U17: 5.288888931 | V17: 1187.624736 | W17: 5.327777863 | X17: 18.6930949 | Y17: 5.327777863 | Z17: 18.6930949 | AA17: 5.327777863 | AB17: 18.6930949 | AC17: 5.327777863 | AD17: 18.6930949 | AE17: 5.366666794 | AF17: 18.64333943 | AG17: 11.09516239 | AH17: 360.979757 | AI17: 19.78222656 | AJ17: 513.2676432 | AK17: 17.77074051 | AL17: 456.7325898 | AM17: 9.244204521 | AN17: 427.4217402 | AO17: 6.712608814 | AP17: 294 | AQ17: 5.231641769 | AR17: 230.625 | AS17: 19.49182129 | AT17: 756.7614119 | AU17: 13.433074 | AV17: 481.7419083 | AW17: 12.48830986 | AX17: 437.6255183 | AY17: 11.09516239 | AZ17: 360.9797666 | BA17: 9.453597069 | BB17: 321.0845368
E18: 6.088889122 | F18: 1931.249949 | G18: 6.088889122 | H18: 1286.249966 | I18: 6.088889122 | J18: 914.9999758 | K18: 6.088889122 | L18: 3824.999899 | M18: 6.088889122 | N18: 3131.249917 | O18: 6.044444084 | P18: 815.8682533 | Q18: 6.044444084 | R18: 721.0578752 | S18: 6.044444084 | T18: 441.6167609 | U18: 6.044444084 | V18: 1187.624736 | W18: 6.088889122 | X18: 17.71931372 | Y18: 6.088889122 | Z18: 17.71931372 | AA18: 6.088889122 | AB18: 17.71931372 | AC18: 6.088889122 | AD18: 17.71931372 | AE18: 6.133333206 | AF18: 17.66245032 | AG18: 12.68018532 | AH18: 353.4966974 | AI18: 22.6082592 | AJ18: 502.8624409 | AK18: 20.30941772 | AL18: 447.4454668 | AM18: 10.56480503 | AN18: 418.312372 | AO18: 7.671553135 | AP18: 287.7945015 | AQ18: 5.979019165 | AR18: 227.0687585 | AS18: 22.27636719 | AT18: 741.4720733 | AU18: 15.35208416 | AV18: 471.91561 | AW18: 14.27235413 | AX18: 428.6543219 | AY18: 12.68018532 | AZ18: 353.4967068 | BA18: 10.80411053 | BB18: 314.3857284
E19: 6.850000381 | F19: 1931.249949 | G19: 6.850000381 | H19: 1286.249966 | I19: 6.850000381 | J19: 914.9999758 | K19: 6.850000381 | L19: 3824.999899 | M19: 6.850000381 | N19: 3131.249917 | O19: 6.799999714 | P19: 815.8682533 | Q19: 6.799999714 | R19: 721.0578752 | S19: 6.799999714 | T19: 438.8716165 | U19: 6.799999714 | V19: 1187.624736 | W19: 6.850000381 | X19: 16.74553255 | Y19: 6.850000381 | Z19: 16.74553255 | AA19: 6.850000381 | AB19: 16.74553255 | AC19: 6.850000381 | AD19: 16.74553255 | AE19: 6.900000095 | AF19: 16.68156236 | AG19: 14.26520824 | AH19: 346.0136439 | AI19: 25.43429184 | AJ19: 492.4572385 | AK19: 22.84809494 | AL19: 438.1583484 | AM19: 11.88540554 | AN19: 409.2030125 | AO19: 8.630496979 | AP19: 281.3616292 | AQ19: 6.726396561 | AR19: 221.7963622 | AS19: 25.06091309 | AT19: 726.1827347 | AU19: 17.27109528 | AV19: 462.0893051 | AW19: 16.05639839 | AX19: 419.6831255 | AY19: 14.26520824 | AZ19: 346.013653 | BA19: 12.15462494 | BB19: 307.6869137
E20: 7.611111164 | F20: 1931.249949 | G20: 7.611111164 | H20: 1286.249966 | I20: 7.611111164 | J20: 907.0900394 | K20: 7.611111164 | L20: 3824.999899 | M20: 7.611111164 | N20: 3131.249917 | O20: 7.555555344 | P20: 815.8682533 | Q20: 7.555555344 | R20: 721.0578752 | S20: 7.555555344 | T20: 428.2233331 | U20: 7.555555344 | V20: 1187.624736 | W20: 7.611111164 | X20: 15.77175251 | Y20: 7.611111164 | Z20: 15.77175251 | AA20: 7.611111164 | AB20: 15.77175251 | AC20: 7.611111164 | AD20: 15.77175251 | AE20: 7.666666508 | AF20: 15.70067326 | AG20: 15.85023117 | AH20: 338.5305843 | AI20: 28.26032448 | AJ20: 482.0520268 | AK20: 25.38677216 | AL20: 428.8712207 | AM20: 13.20600605 | AN20: 400.0936442 | AO20: 9.589441299 | AP20: 274.9287526 | AQ20: 7.473773956 | AR20: 216.5239659 | AS20: 27.84545898 | AT20: 710.8933962 | AU20: 19.19010544 | AV20: 452.2630067 | AW20: 17.84044266 | AX20: 410.7119355 | AY20: 15.85023117 | AZ20: 338.5305933 | BA20: 13.5051384 | BB20: 300.9881053
E21: 8.3722229 | F21: 1931.249949 | G21: 8.3722229 | H21: 1264.375308 | I21: 8.3722229 | J21: 886.9856454 | K21: 8.3722229 | L21: 3824.999899 | M21: 8.3722229 | N21: 3131.249917 | O21: 8.311110497 | P21: 815.8682533 | Q21: 8.311110497 | R21: 721.0578752 | S21: 8.311110497 | T21: 417.5750985 | U21: 8.311110497 | V21: 1187.624736 | W21: 8.3722229 | X21: 14.79797133 | Y21: 8.3722229 | Z21: 14.79797133 | AA21: 8.3722229 | AB21: 14.79797133 | AC21: 8.3722229 | AD21: 14.79797133 | AE21: 8.433333397 | AF21: 14.7197853 | AG21: 17.43525505 | AH21: 331.0475247 | AI21: 31.08635712 | AJ21: 471.6468245 | AK21: 27.92544937 | AL21: 419.5840931 | AM21: 14.52660656 | AN21: 390.9842847 | AO21: 10.54838562 | AP21: 268.4958761 | AQ21: 8.221151352 | AR21: 211.2515696 | AS21: 30.63000679 | AT21: 695.6040436 | AU21: 21.1091156 | AV21: 442.4367084 | AW21: 19.62448692 | AX21: 401.7407455 | AY21: 17.43525505 | AZ21: 331.0475335 | BA21: 14.85565281 | BB21: 294.2892906
E22: 9.133333206 | F22: 1931.249949 | G22: 9.133333206 | H22: 1239.600993 | I22: 9.133333206 | J22: 866.8812514 | K22: 9.133333206 | L22: 3824.999899 | M22: 9.133333206 | N22: 3131.249917 | O22: 9.066666603 | P22: 815.8682533 | Q22: 9.066666603 | R22: 721.0578752 | S22: 9.066666603 | T22: 406.9268151 | U22: 9.066666603 | V22: 1187.624736 | W22: 9.133333206 | X22: 13.8241913 | Y22: 9.133333206 | Z22: 13.8241913 | AA22: 9.133333206 | AB22: 13.8241913 | AC22: 9.133333206 | AD22: 13.8241913 | AE22: 9.199999809 | AF22: 13.73889734 | AG22: 19.02027702 | AH22: 323.5644712 | AI22: 33.91238785 | AJ22: 461.2416222 | AK22: 30.46412659 | AL22: 410.2969747 | AM22: 15.84720707 | AN22: 381.8749164 | AO22: 11.50732994 | AP22: 262.0630038 | AQ22: 8.968528748 | AR22: 205.9791733 | AS22: 33.41455078 | AT22: 680.314719 | AU22: 23.02812767 | AV22: 432.6104035 | AW22: 21.40853119 | AX22: 392.7695491 | AY22: 19.02027702 | AZ22: 323.5644797 | BA22: 16.20616722 | BB22: 287.5904822
E23: 9.894444466 | F23: 1931.249949 | G23: 9.894444466 | H23: 1214.826457 | I23: 9.894444466 | J23: 846.7768575 | K23: 9.894444466 | L23: 3824.999899 | M23: 9.894444466 | N23: 3131.249917 | O23: 9.822221756 | P23: 815.8682533 | Q23: 9.822221756 | R23: 721.0578752 | S23: 9.822221756 | T23: 396.2785561 | U23: 9.822221756 | V23: 1187.624736 | W23: 9.894444466 | X23: 12.5453301 | Y23: 9.894444466 | Z23: 12.5453301 | AA23: 9.894444466 | AB23: 12.5453301 | AC23: 9.894444466 | AD23: 12.5453301 | AE23: 9.966666222 | AF23: 12.41270109 | AG23: 20.6053009 | AH23: 316.0814056 | AI23: 36.73842239 | AJ23: 450.8364105 | AK23: 33.0028038 | AL23: 401.0098563 | AM23: 17.16780853 | AN23: 372.7655482 | AO23: 12.46627331 | AP23: 255.6301315 | AQ23: 9.715906143 | AR23: 200.706777 | AS23: 36.19909668 | AT23: 665.0253804 | AU23: 24.94713783 | AV23: 422.7840986 | AW23: 23.19257545 | AX23: 383.7983527 | AY23: 20.6053009 | AZ23: 316.081414 | BA23: 17.55668068 | BB23: 280.8916675
E24: 10.65555573 | F24: 1931.249949 | G24: 10.65555573 | H24: 1190.052068 | I24: 10.65555573 | J24: 826.6724635 | K24: 10.65555573 | L24: 3824.999899 | M24: 10.65555573 | N24: 3131.249917 | O24: 10.57777786 | P24: 812.9065498 | Q24: 10.57777786 | R24: 716.7821006 | S24: 10.57777786 | T24: 385.6302727 | U24: 10.57777786 | V24: 1187.624736 | W24: 10.65555573 | X24: 11.27144822 | Y24: 10.65555573 | Z24: 11.27144822 | AA24: 10.65555573 | AB24: 11.27144822 | AC24: 10.65555573 | AD24: 11.27144822 | AE24: 10.73333359 | AF24: 11.15524949 | AG24: 22.19032478 | AH24: 308.59834 | AI24: 39.56445312 | AJ24: 440.4312175 | AK24: 35.54148102 | AL24: 391.7227287 | AM24: 18.48840904 | AN24: 363.6561887 | AO24: 13.42521763 | AP24: 249.1972506 | AQ24: 10.46328354 | AR24: 195.4343807 | AS24: 38.98364258 | AT24: 649.7360418 | AU24: 26.86614799 | AV24: 412.9578068 | AW24: 24.97661972 | AX24: 374.8271691 | AY24: 22.19032478 | AZ24: 308.5983482 | BA24: 18.90719414 | BB24: 274.1928654
E25: 11.41666698 | F25: 1931.0103 | G25: 11.41666698 | H25: 1165.277606 | I25: 11.41666698 | J25: 806.5680695 | K25: 11.41666698 | L25: 3824.769332 | M25: 11.41666698 | N25: 3124.761831 | O25: 11.33333302 | P25: 801.318593 | Q25: 11.33333302 | R25: 705.980072 | S25: 11.33333302 | T25: 374.9820137 | U25: 11.33333302 | V25: 1177.05408 | W25: 11.41666698 | X25: 10.22669994 | Y25: 11.41666698 | Z25: 10.22669994 | AA25: 11.41666698 | AB25: 10.22669994 | AC25: 11.41666698 | AD25: 10.22669994 | AE25: 11.5 | AF25: 10.123726 | AG25: 23.77534676 | AH25: 301.1152864 | AI25: 42.39048767 | AJ25: 430.0260059 | AK25: 38.08015823 | AL25: 382.435601 | AM25: 19.80900955 | AN25: 354.5468204 | AO25: 14.38416195 | AP25: 242.7643783 | AQ25: 11.21066093 | AR25: 190.1619889 | AS25: 41.76818848 | AT25: 634.4467032 | AU25: 28.78515816 | AV25: 403.1315019 | AW25: 26.76066399 | AX25: 365.8559727 | AY25: 23.77534676 | AZ25: 301.1152944 | BA25: 20.2577076 | BB25: 267.4940508
E26: 12.17777824 | F26: 1907.188573 | G26: 12.17777824 | H26: 1140.503144 | I26: 12.17777824 | J26: 786.4636755 | K26: 12.17777824 | L26: 3801.839255 | M26: 12.17777824 | N26: 3102.272965 | O26: 12.08888817 | P26: 789.730685 | Q26: 12.08888817 | R26: 695.1780921 | S26: 12.08888817 | T26: 364.3337547 | U26: 12.08888817 | V26: 1166.213262 | W26: 12.17777824 | X26: 9.356464329 | Y26: 12.17777824 | Z26: 9.356464329 | AA26: 12.17777824 | AB26: 9.356464329 | AC26: 12.17777824 | AD26: 9.356464329 | AE26: 12.26666641 | AF26: 9.264292472 | AG26: 25.36037064 | AH26: 293.6322209 | AI26: 45.2165184 | AJ26: 419.6208129 | AK26: 40.61883545 | AL26: 373.1484826 | AM26: 21.12961006 | AN26: 345.4374521 | AO26: 15.34310627 | AP26: 236.3314975 | AQ26: 11.95803833 | AR26: 184.8895881 | AS26: 44.55273438 | AT26: 619.1573646 | AU26: 30.70416832 | AV26: 393.30521 | AW26: 28.54470825 | AX26: 356.8847763 | AY26: 25.36037064 | AZ26: 293.6322286 | BA26: 21.60822105 | BB26: 260.7952487
E27: 12.9388895 | F27: 1883.366845 | G27: 12.9388895 | H27: 1115.728681 | I27: 12.9388895 | J27: 766.3592815 | K27: 12.9388895 | L27: 3778.909177 | M27: 12.9388895 | N27: 3079.784391 | O27: 12.84444427 | P27: 778.1426795 | Q27: 12.84444427 | R27: 684.3760635 | S27: 12.84444427 | T27: 353.6854713 | U27: 12.84444427 | V27: 1155.372444 | W27: 12.9388895 | X27: 8.621688996 | Y27: 12.9388895 | Z27: 8.621688996 | AA27: 12.9388895 | AB27: 8.621688996 | AC27: 12.9388895 | AD27: 8.621688996 | AE27: 13.03333378 | AF27: 8.53846184 | AG27: 26.94539261 | AH27: 286.1491673 | AI27: 48.04255295 | AJ27: 409.2156012 | AK27: 43.15751266 | AL27: 363.8613643 | AM27: 22.45021057 | AN27: 336.3280927 | AO27: 16.30204964 | AP27: 229.8986252 | AQ27: 12.70541573 | AR27: 179.6171874 | AS27: 47.33728027 | AT27: 603.868026 | AU27: 32.62318039 | AV27: 383.4789051 | AW27: 30.32875252 | AX27: 347.91358 | AY27: 26.94539261 | AZ27: 286.1491749 | BA27: 22.95873642 | BB27: 254.096434
E28: 13.70000076 | F28: 1859.545263 | G28: 13.70000076 | H28: 1090.954292 | I28: 13.70000076 | J28: 746.2548875 | K28: 13.70000076 | L28: 3755.9791 | M28: 13.70000076 | N28: 3057.295817 | O28: 13.59999943 | P28: 766.5547715 | Q28: 13.59999943 | R28: 673.5740349 | S28: 13.59999943 | T28: 343.0372123 | U28: 13.59999943 | V28: 1144.531723 | W28: 13.70000076 | X28: 7.993845537 | Y28: 13.70000076 | Z28: 7.993845537 | AA28: 13.70000076 | AB28: 7.993845537 | AC28: 13.70000076 | AD28: 7.993845537 | AE28: 13.80000019 | AF28: 7.918114262 | AG28: 28.53041649 | AH28: 278.6661137 | AI28: 50.86858368 | AJ28: 398.8104083 | AK28: 45.69618988 | AL28: 354.5742459 | AM28: 23.77081108 | AN28: 327.2187332 | AO28: 17.26099396 | AP28: 223.4657529 | AQ28: 13.45279312 | AR28: 174.3447955 | AS28: 50.12182617 | AT28: 588.5786874 | AU28: 34.54219055 | AV28: 373.6526003 | AW28: 32.11279678 | AX28: 338.9423836 | AY28: 28.53041649 | AZ28: 278.6661211 | BA28: 24.30924988 | BB28: 247.3976193
E29: 14.46111107 | F29: 1835.723535 | G29: 14.46111107 | H29: 1066.179903 | I29: 14.46111107 | J29: 726.1505667 | K29: 14.46111107 | L29: 3733.049315 | M29: 14.46111107 | N29: 3034.807244 | O29: 14.35555553 | P29: 754.9668147 | Q29: 14.35555553 | R29: 662.7720063 | S29: 14.35555553 | T29: 332.3889533 | U29: 14.35555553 | V29: 1133.690905 | W29: 14.46111107 | X29: 7.451682275 | Y29: 14.46111107 | Z29: 7.451682275 | AA29: 14.46111107 | AB29: 7.451682275 | AC29: 14.46111107 | AD29: 7.451682275 | AE29: 14.5666666 | AF29: 7.382299609 | AG29: 30.11544037 | AH29: 271.1830482 | AI29: 53.69461823 | AJ29: 388.4051778 | AK29: 48.2348671 | AL29: 345.2871089 | AM29: 25.09141159 | AN29: 318.1093737 | AO29: 18.21993828 | AP29: 217.0328806 | AQ29: 14.20017052 | AR29: 169.0724037 | AS29: 52.90637207 | AT29: 573.2893489 | AU29: 36.46120071 | AV29: 363.8262954 | AW29: 33.89684296 | AX29: 329.9711872 | AY29: 30.11544037 | AZ29: 271.1830553 | BA29: 25.65976334 | BB29: 240.6988046
E30: 15.22222233 | F30: 1811.901807 | G30: 15.22222233 | H30: 1041.405441 | I30: 15.22222233 | J30: 706.0460995 | K30: 15.22222233 | L30: 3710.119238 | M30: 15.22222233 | N30: 3012.31867 | O30: 15.11111069 | P30: 743.378858 | Q30: 15.11111069 | R30: 651.9699776 | S30: 15.11111069 | T30: 321.7406943 | U30: 15.11111069 | V30: 1122.850087 | W30: 15.22222233 | X30: 6.979093367 | Y30: 15.22222233 | Z30: 6.979093367 | AA30: 15.22222233 | AB30: 6.979093367 | AC30: 15.22222233 | AD30: 6.979093367 | AE30: 15.33333302 | AF30: 6.915142639 | AG30: 31.70046234 | AH30: 263.6999946 | AI30: 56.52064896 | AJ30: 377.9999849 | AK30: 50.77354431 | AL30: 335.9999906 | AM30: 26.4120121 | AN30: 308.9999966 | AO30: 19.1788826 | AP30: 210.5999998 | AQ30: 14.94754791 | AR30: 163.800003 | AS30: 55.69091797 | AT30: 558.0000103 | AU30: 38.38021088 | AV30: 354.0000035 | AW30: 35.68088531 | AX30: 321.0000035 | AY30: 31.70046234 | AZ30: 263.7000016 | BA30: 27.01027679 | BB30: 234.0000025
E31: 15.98333359 | F31: 1788.080226 | G31: 15.98333359 | H31: 1016.630979 | I31: 15.98333359 | J31: 685.9417787 | K31: 15.98333359 | L31: 3687.18916 | M31: 15.98333359 | N31: 2989.830097 | O31: 15.86666584 | P31: 731.7909012 | Q31: 15.86666584 | R31: 641.1679978 | S31: 15.86666584 | T31: 311.0924353 | U31: 15.86666584 | V31: 1112.009268 | W31: 15.98333359 | X31: 6.563686578 | Y31: 15.98333359 | Z31: 6.563686578 | AA31: 15.98333359 | AB31: 6.563686578 | AC31: 15.98333359 | AD31: 6.563686578 | AE31: 16.10000038 | AF31: 6.50442049 | AG31: 33.28548431 | AH31: 247.3902753 | AI31: 59.34667969 | AJ31: 359.636572 | AK31: 53.31222153 | AL31: 319.5319018 | AM31: 27.73261261 | AN31: 289.9694694 | AO31: 20.13782692 | AP31: 196.5505755 | AQ31: 15.69492531 | AR31: 151.9418916 | AS31: 58.47546768 | AT31: 530.3517381 | AU31: 40.29922104 | AV31: 334.5647992 | AW31: 37.46493149 | AX31: 302.7203996 | AY31: 33.28548431 | AZ31: 247.3902819 | BA31: 28.36079025 | BB31: 219.7956254
E32: 16.7444458 | F32: 1764.258498 | G32: 16.7444458 | H32: 991.8565167 | I32: 16.7444458 | J32: 665.8373115 | K32: 16.7444458 | L32: 3664.259083 | M32: 16.7444458 | N32: 2967.34123 | O32: 16.62222099 | P32: 720.2029445 | Q32: 16.62222099 | R32: 630.3659691 | S32: 16.62222099 | T32: 300.4441762 | U32: 16.62222099 | V32: 1101.168548 | W32: 16.7444458 | X32: 6.195787075 | Y32: 16.7444458 | Z32: 6.195787075 | AA32: 16.7444458 | AB32: 6.195787075 | AC32: 16.7444458 | AD32: 6.195787075 | AE32: 16.86666679 | AF32: 6.14059966 | AG32: 34.8705101 | AH32: 232.9959506 | AI32: 62.17271423 | AJ32: 342.988472 | AK32: 55.85089874 | AL32: 304.6198869 | AM32: 29.05321312 | AN32: 273.1676772 | AO32: 21.09677124 | AP32: 184.2250928 | AQ32: 16.4423027 | AR32: 141.5922173 | AS32: 61.26001358 | AT32: 505.3522446 | AU32: 42.2182312 | AV32: 317.2088473 | AW32: 39.24897385 | AX32: 286.4603038 | AY32: 34.8705101 | AZ32: 232.9959567 | BA32: 29.71130562 | BB32: 207.2385442
E33: 17.50555611 | F33: 1740.43677 | G33: 17.50555611 | H33: 967.0820545 | I33: 17.50555611 | J33: 645.7329175 | K33: 17.50555611 | L33: 3641.329005 | M33: 17.50555611 | N33: 2944.852656 | O33: 17.3777771 | P33: 708.6149877 | Q33: 17.3777771 | R33: 619.5639405 | S33: 17.3777771 | T33: 289.7958929 | U33: 17.3777771 | V33: 1090.327729 | W33: 17.50555611 | X33: 5.867750775 | Y33: 17.50555611 | Z33: 5.867750775 | AA33: 17.50555611 | AB33: 5.867750775 | AC33: 17.50555611 | AD33: 5.867750775 | AE33: 17.63333321 | AF33: 5.816135062 | AG33: 36.45553207 | AH33: 220.2039818 | AI33: 64.99874878 | AJ33: 327.824555 | AK33: 58.38957596 | AL33: 291.051536 | AM33: 30.37381363 | AN33: 258.2308508 | AO33: 22.05571556 | AP33: 173.3356627 | AQ33: 17.1896801 | AR33: 132.495841 | AS33: 64.04455566 | AT33: 482.6343501 | AU33: 44.13724518 | AV33: 301.6128107 | AW33: 41.03302002 | AX33: 271.9019975 | AY33: 36.45553207 | AZ33: 220.2039876 | BA33: 31.06181908 | BB33: 196.061497
E34: 18.26666641 | F34: 1716.615189 | G34: 18.26666641 | H34: 942.3076655 | I34: 18.26666641 | J34: 625.6285967 | K34: 18.26666641 | L34: 3618.399221 | M34: 18.26666641 | N34: 2922.364083 | O34: 18.13333321 | P34: 697.0269822 | Q34: 18.13333321 | R34: 608.7619119 | S34: 18.13333321 | T34: 279.1476095 | U34: 18.13333321 | V34: 1079.486911 | W34: 18.26666641 | X34: 5.573463102 | Y34: 18.26666641 | Z34: 5.573463102 | AA34: 18.26666641 | AB34: 5.573463102 | AC34: 18.26666641 | AD34: 5.573463102 | AE34: 18.39999962 | AF34: 5.524999091 | AG34: 38.04055405 | AH34: 208.7644911 | AI34: 67.8247757 | AJ34: 313.9536497 | AK34: 60.92825317 | AL34: 278.651595 | AM34: 31.69441414 | AN34: 244.8687175 | AO34: 23.01465988 | AP34: 163.6530649 | AQ34: 17.9370575 | AR34: 124.4497497 | AS34: 66.82910156 | AT34: 461.8961623 | AU34: 46.05625534 | AV34: 287.519556 | AW34: 42.81706238 | AX34: 258.7906761 | AY34: 38.04055405 | AZ34: 208.7644966 | BA34: 32.41233444 | BB34: 186.0508625
E35: 19.02777863 | F35: 1692.793461 | G35: 19.02777863 | H35: 917.5332032 | I35: 19.02777863 | J35: 605.5242027 | K35: 19.02777863 | L35: 3595.469143 | M35: 19.02777863 | N35: 2899.875509 | O35: 18.88888931 | P35: 685.4390255 | Q35: 18.88888931 | R35: 597.9598833 | S35: 18.88888931 | T35: 267.7966543 | U35: 18.88888931 | V35: 1068.646093 | W35: 19.02777863 | X35: 5.30798135 | Y35: 19.02777863 | Z35: 5.30798135 | AA35: 19.02777863 | AB35: 5.30798135 | AC35: 19.02777863 | AD35: 5.30798135 | AE35: 19.16666603 | AF35: 5.26231542 | AG35: 39.62557983 | AH35: 198.4759524 | AI35: 70.65081024 | AJ35: 301.216183 | AK35: 63.46693039 | AL35: 267.2742292 | AM35: 33.01501465 | AN35: 232.8470619 | AO35: 23.97360229 | AP35: 154.9929008 | AQ35: 18.68443489 | AR35: 117.2908025 | AS35: 69.61364746 | AT35: 442.8872832 | AU35: 47.9752655 | AV35: 274.7195014 | AW35: 44.60110855 | AX35: 246.9195433 | AY35: 39.62557983 | AZ35: 198.4759576 | BA35: 33.7628479 | BB35: 177.0342764
E36: 19.78888893 | F36: 1668.971733 | G36: 19.78888893 | H36: 892.7588142 | I36: 19.78888893 | J36: 585.4198087 | K36: 19.78888893 | L36: 3572.539066 | M36: 19.78888893 | N36: 2877.386935 | O36: 19.64444351 | P36: 673.8511174 | Q36: 19.64444351 | R36: 587.1579034 | S36: 19.64444351 | T36: 250.4519981 | U36: 19.64444351 | V36: 1057.805372 | W36: 19.78888893 | X36: 5.067273769 | Y36: 19.78888893 | Z36: 5.067273769 | AA36: 19.78888893 | AB36: 5.067273769 | AC36: 19.78888893 | AD36: 5.067273769 | AE36: 19.93333244 | AF36: 5.024106083 | AG36: 41.21060181 | AH36: 189.1743591 | AI36: 73.47684479 | AJ36: 289.4779053 | AK36: 66.0056076 | AL36: 256.7970497 | AM36: 34.33561707 | AN36: 221.9751323 | AO36: 24.93254662 | AP36: 147.2054246 | AQ36: 19.43181229 | AR36: 110.8866621 | AS36: 72.39819336 | AT36: 425.3981022 | AU36: 49.89427567 | AV36: 263.040461 | AW36: 46.38515091 | AX36: 236.1193601 | AY36: 41.21060181 | AZ36: 189.1743642 | BA36: 35.11336136 | BB36: 168.8712268
E37: 20.55000114 | F37: 1645.150152 | G37: 20.55000114 | H37: 867.984352 | I37: 20.55000114 | J37: 565.3154147 | K37: 20.55000114 | L37: 3549.608988 | M37: 20.55000114 | N37: 2854.898362 | O37: 20.39999962 | P37: 662.2631607 | Q37: 20.39999962 | R37: 576.3558748 | S37: 20.39999962 | T37: 234.9668553 | U37: 20.39999962 | V37: 1046.964554 | W37: 20.55000114 | X37: 4.848019853 | Y37: 20.55000114 | Z37: 4.848019853 | AA37: 20.55000114 | AB37: 4.848019853 | AC37: 20.55000114 | AD37: 4.848019853 | AE37: 20.70000076 | AF37: 4.807092921 | AG37: 42.79562378 | AH37: 180.7248813 | AI37: 76.30287933 | AJ37: 278.62517 | AK37: 68.54428101 | AL37: 247.116562 | AM37: 35.65621567 | AN37: 212.0962552 | AO37: 25.89149094 | AP37: 140.1679687 | AQ37: 20.17918968 | AR37: 105.129044 | AS37: 75.18273926 | AT37: 409.2518022 | AU37: 51.81328583 | AV37: 252.3395847 | AW37: 48.16919708 | AX37: 226.2501455 | AY37: 42.79562378 | AZ37: 180.7248861 | BA37: 36.46387482 | BB37: 161.4461664
E38: 21.31111145 | F38: 1621.328424 | G38: 21.31111145 | H38: 843.209963 | I38: 21.31111145 | J38: 534.8381694 | K38: 21.31111145 | L38: 3526.679203 | M38: 21.31111145 | N38: 2832.409788 | O38: 21.15555573 | P38: 650.6751552 | Q38: 21.15555573 | R38: 565.5538462 | S38: 21.15555573 | T38: 221.0803463 | U38: 21.15555573 | V38: 1036.123736 | W38: 21.31111145 | X38: 4.647461291 | Y38: 21.31111145 | Z38: 4.647461291 | AA38: 21.31111145 | AB38: 4.647461291 | AC38: 21.31111145 | AD38: 4.647461291 | AE38: 21.46666718 | AF38: 4.608556244 | AG38: 44.38064957 | AH38: 173.0158359 | AI38: 79.12890625 | AJ38: 268.5609047 | AK38: 71.08296204 | AL38: 238.1446215 | AM38: 36.97681808 | AN38: 203.0804919 | AO38: 26.85043526 | AP38: 133.7792176 | AQ38: 20.92656708 | AR38: 99.92866467 | AS38: 77.96728516 | AT38: 394.2981561 | AU38: 53.73229599 | AV38: 242.4973078 | AW38: 49.95323944 | AX38: 217.195385 | AY38: 44.38064957 | AZ38: 173.0158405 | BA38: 37.81438828 | BB38: 154.6632501
E39: 22.07222366 | F39: 1597.506696 | G39: 22.07222366 | H39: 818.4354275 | I39: 22.07222366 | J39: 503.7343006 | K39: 22.07222366 | L39: 3503.749126 | M39: 22.07222366 | N39: 2809.920922 | O39: 21.91110992 | P39: 639.0872472 | Q39: 21.91110992 | R39: 554.7518663 | S39: 21.91110992 | T39: 208.5758389 | U39: 21.91110992 | V39: 1025.283015 | W39: 22.07222366 | X39: 4.463290382 | Y39: 22.07222366 | Z39: 4.463290382 | AA39: 22.07222366 | AB39: 4.463290382 | AC39: 22.07222366 | AD39: 4.463290382 | AE39: 22.23333359 | AF39: 4.426218679 | AG39: 45.96567154 | AH39: 165.9540675 | AI39: 81.9549408 | AJ39: 259.201798 | AK39: 73.62163544 | AL39: 229.8057572 | AM39: 38.29741669 | AN39: 194.8194717 | AO39: 27.80937958 | AP39: 127.954923 | AQ39: 21.67394447 | AR39: 95.21138332 | AS39: 80.75183105 | AT39: 380.408684 | AU39: 55.65130615 | AV39: 233.4129395 | AW39: 51.73728561 | AX39: 208.8570676 | AY39: 45.96567154 | AZ39: 165.9540719 | BA39: 39.16490173 | BB39: 148.4423869
E40: 22.83333397 | F40: 1573.685115 | G40: 22.83333397 | H40: 793.6610385 | I40: 22.83333397 | J40: 475.6376461 | K40: 22.83333397 | L40: 3480.819048 | M40: 22.83333397 | N40: 2787.432348 | O40: 22.66666603 | P40: 627.4992417 | Q40: 22.66666603 | R40: 543.9498376 | S40: 22.66666603 | T40: 197.2721159 | U40: 22.66666603 | V40: 1014.442197 | W40: 22.83333397 | X40: 4.293565064 | Y40: 22.83333397 | Z40: 4.293565064 | AA40: 22.83333397 | AB40: 4.293565064 | AC40: 22.83333397 | AD40: 4.293565064 | AE40: 23 | AF40: 4.258158762 | AG40: 47.55069351 | AH40: 159.4611945 | AI40: 84.78097534 | AJ40: 250.4759519 | AK40: 76.16031647 | AL40: 222.0347834 | AM40: 39.6180191 | AN40: 187.2219889 | AO40: 28.7683239 | AP40: 122.6244518 | AQ40: 22.42132187 | AR40: 90.91520478 | AS40: 83.53637695 | AT40: 367.4728365 | AU40: 57.57031631 | AV40: 225.0009983 | AW40: 53.52132797 | AX40: 201.1524666 | AY40: 47.55069351 | AZ40: 159.4611988 | BA40: 40.51541519 | BB40: 142.7161924
E41: 23.59444427 | F41: 1549.863387 | G41: 23.59444427 | H41: 758.7858197 | I41: 23.59444427 | J41: 450.1661746 | K41: 23.59444427 | L41: 3457.889264 | M41: 23.59444427 | N41: 2764.943774 | O41: 23.42222214 | P41: 615.9113337 | Q41: 23.42222214 | R41: 533.147809 | S41: 23.42222214 | T41: 187.0169306 | U41: 23.42222214 | V41: 1003.601378 | W41: 23.59444427 | X41: 4.136633668 | Y41: 23.59444427 | Z41: 4.136633668 | AA41: 23.59444427 | AB41: 4.136633668 | AC41: 23.59444427 | AD41: 4.136633668 | AE41: 23.76666641 | AF41: 4.10274943 | AG41: 49.13571548 | AH41: 153.4709063 | AI41: 87.60700226 | AJ41: 242.3209568 | AK41: 78.69898987 | AL41: 214.7753649 | AM41: 40.93861771 | AN41: 180.2108955 | AO41: 29.72726822 | AP41: 117.7282406 | AQ41: 23.16869926 | AR41: 86.98791434 | AS41: 86.32092285 | AT41: 355.394957 | AU41: 59.48932648 | AV41: 217.1884642 | AW41: 55.30537415 | AX41: 194.01105 | AY41: 49.13571548 | AZ41: 153.4709104 | BA41: 41.86592865 | BB41: 137.4275744
E42: 24.35555649 | F42: 1526.041805 | G42: 24.35555649 | H42: 722.6096732 | I42: 24.35555649 | J42: 426.9968515 | K42: 24.35555649 | L42: 3434.959186 | M42: 24.35555649 | N42: 2742.455201 | O42: 24.17777634 | P42: 604.3233769 | Q42: 24.17777634 | R42: 522.3458291 | S42: 24.17777634 | T42: 177.6813173 | U42: 24.17777634 | V42: 992.7606576 | W42: 24.35555649 | X42: 3.991088857 | Y42: 24.35555649 | Z42: 3.991088857 | AA42: 24.35555649 | AB42: 3.991088857 | AC42: 24.35555649 | AD42: 3.991088857 | AE42: 24.53333282 | AF42: 3.958600225 | AG42: 50.72074127 | AH42: 147.9267197 | AI42: 90.4330368 | AJ42: 234.6823453 | AK42: 81.2376709 | AL42: 207.9782691 | AM42: 42.25922012 | AN42: 173.7204285 | AO42: 30.68621254 | AP42: 113.2157868 | AQ42: 23.91607666 | AR42: 83.38534708 | AS42: 89.10546875 | AT42: 344.0918433 | AU42: 61.40833664 | AV42: 209.9126052 | AW42: 57.0894165 | AX42: 187.3724837 | AY42: 50.72074127 | AZ42: 147.9267236 | BA42: 43.21644211 | BB42: 132.527842
E43: 25.11666679 | F43: 1502.220077 | G43: 25.11666679 | H43: 689.5238343 | I43: 25.11666679 | J43: 405.8549819 | K43: 25.11666679 | L43: 3412.029109 | M43: 25.11666679 | N43: 2719.966627 | O43: 24.93333244 | P43: 592.7354202 | Q43: 24.93333244 | R43: 511.5438005 | S43: 24.93333244 | T43: 169.1556319 | U43: 24.93333244 | V43: 981.9198394 | W43: 25.11666679 | X43: 3.855721562 | Y43: 25.11666679 | Z43: 3.855721562 | AA43: 25.11666679 | AB43: 3.855721562 | AC43: 25.11666679 | AD43: 3.855721562 | AE43: 25.29999924 | AF43: 3.824516672 | AG43: 52.30576324 | AH43: 142.780308 | AI43: 93.25907135 | AJ43: 227.5123762 | AK43: 83.7763443 | AL43: 201.6005118 | AM43: 43.57981873 | AN43: 167.6943085 | AO43: 31.64515686 | AP43: 109.0439582 | AQ43: 24.66345406 | AR43: 80.06989096 | AS43: 91.89001465 | AT43: 333.4907753 | AU43: 63.32735062 | AV43: 203.1191375 | AW43: 58.87346268 | AX43: 181.1847209 | AY43: 52.30576324 | AZ43: 142.7803118 | BA43: 44.56695938 | BB43: 127.9752298
E44: 25.87777901 | F44: 1478.39835 | G44: 25.87777901 | H44: 659.1719064 | I44: 25.87777901 | J44: 386.505605 | K44: 25.87777901 | L44: 3389.099031 | M44: 25.87777901 | N44: 2697.478054 | O44: 25.68888855 | P44: 581.1474147 | Q44: 25.68888855 | R44: 500.7417719 | S44: 25.68888855 | T44: 161.3462021 | U44: 25.68888855 | V44: 971.0790212 | W44: 25.87777901 | X44: 3.729488083 | Y44: 25.87777901 | Z44: 3.729488083 | AA44: 25.87777901 | AB44: 3.729488083 | AC44: 25.87777901 | AD44: 3.729488083 | AE44: 26.06666756 | AF44: 3.699466798 | AG44: 53.89078522 | AH44: 137.9900056 | AI44: 96.0851059 | AJ44: 220.7691063 | AK44: 86.31502533 | AL44: 195.6042534 | AM44: 44.90042114 | AN44: 162.0839807 | AO44: 32.60409927 | AP44: 105.1757609 | AQ44: 25.41083145 | AR44: 77.0093572 | AS44: 94.67456055 | AT44: 323.5279072 | AU44: 65.24636078 | AV44: 196.761026 | AW44: 60.65750504 | AX44: 175.4027555 | AY44: 53.89078522 | AZ44: 137.9900093 | BA44: 45.91747284 | BB44: 123.7338111
E45: 26.63888931 | F45: 1454.576622 | G45: 26.63888931 | H45: 631.2481034 | I45: 26.63888931 | J45: 368.7470117 | K45: 26.63888931 | L45: 3366.168954 | M45: 26.63888931 | N45: 2674.989187 | O45: 26.44444275 | P45: 569.5595067 | Q45: 26.44444275 | R45: 489.9397433 | S45: 26.44444275 | T45: 154.172549 | U45: 26.44444275 | V45: 960.238203 | W45: 26.63888931 | X45: 3.611483478 | Y45: 26.63888931 | Z45: 3.611483478 | AA45: 26.63888931 | AB45: 3.611483478 | AC45: 26.63888931 | AD45: 3.611483478 | AE45: 26.83333397 | AF45: 3.582558537 | AG45: 55.475811 | AH45: 133.5197647 | AI45: 98.91113281 | AJ45: 214.4154014 | AK45: 88.85369873 | AL45: 189.9561038 | AM45: 46.22101974 | AN45: 156.8474915 | AO45: 33.5630455 | AP45: 101.5792941 | AQ45: 26.15820885 | AR45: 74.17607107 | AS45: 97.45910645 | AT45: 314.1469478 | AU45: 67.16536713 | AV45: 190.7971122 | AW45: 62.44155121 | AX45: 169.9873673 | AY45: 55.475811 | AZ45: 133.5197682 | BA45: 47.2679863 | BB45: 119.7723535
E46: 27.40000153 | F46: 1430.75504 | G46: 27.40000153 | H46: 605.4882408 | I46: 27.40000153 | J46: 352.4050688 | K46: 27.40000153 | L46: 3343.239169 | M46: 27.40000153 | N46: 2652.500613 | O46: 27.19999886 | P46: 557.9715012 | Q46: 27.19999886 | R46: 479.1377147 | S46: 27.19999886 | T46: 147.5651705 | U46: 27.19999886 | V46: 949.3973847 | W46: 27.40000153 | X46: 3.500918105 | Y46: 27.40000153 | Z46: 3.500918105 | AA46: 27.40000153 | AB46: 3.500918105 | AC46: 27.40000153 | AD46: 3.500918105 | AE46: 27.60000038 | AF46: 3.473010257 | AG46: 57.06083298 | AH46: 129.3382339 | AI46: 101.7371674 | AJ46: 208.4183479 | AK46: 91.39237976 | AL46: 184.6264744 | AM46: 47.54162216 | AN46: 151.9482664 | AO46: 34.52198792 | AP46: 98.22691776 | AQ46: 26.90558624 | AR46: 71.5460923 | AS46: 100.2436523 | AT46: 305.2980705 | AU46: 69.0843811 | AV46: 185.1913076 | AW46: 64.22559357 | AX46: 164.9042622 | AY46: 57.06083298 | AZ46: 129.3382373 | BA46: 48.61849976 | BB46: 116.0637235
E47: 28.16111183 | F47: 1406.933312 | G47: 28.16111183 | H47: 581.6636931 | I47: 28.16111183 | J47: 337.3288607 | K47: 28.16111183 | L47: 3320.309092 | M47: 28.16111183 | N47: 2630.01204 | O47: 27.95555496 | P47: 546.3835444 | Q47: 27.95555496 | R47: 468.335686 | S47: 27.95555496 | T47: 141.463921 | U47: 27.95555496 | V47: 938.556664 | W47: 28.16111183 | X47: 3.397100454 | Y47: 28.16111183 | Z47: 3.397100454 | AA47: 28.16111183 | AB47: 3.397100454 | AC47: 28.16111183 | AD47: 3.397100454 | AE47: 28.36666679 | AF47: 3.370139033 | AG47: 58.64585495 | AH47: 125.4180234 | AI47: 104.5632019 | AJ47: 202.7486289 | AK47: 93.93105316 | AL47: 179.5890498 | AM47: 48.86222076 | AN47: 147.3544001 | AO47: 35.48093414 | AP47: 95.09456688 | AQ47: 27.65296364 | AR47: 69.0986699 | AS47: 103.0281982 | AT47: 296.937007 | AU47: 71.00339508 | AV47: 179.9118879 | AW47: 66.00963593 | AX47: 160.1233753 | AY47: 58.64585495 | AZ47: 125.4180267 | BA47: 49.96901321 | BB47: 112.5841756
E48: 28.92222214 | F48: 1383.111731 | G48: 28.92222214 | H48: 559.5754246 | I48: 28.92222214 | J48: 323.3872839 | K48: 28.92222214 | L48: 3297.379014 | M48: 28.92222214 | N48: 2607.523466 | O48: 28.71111107 | P48: 534.7955877 | Q48: 28.71111107 | R48: 457.5337061 | S48: 28.71111107 | T48: 135.8164757 | U48: 28.71111107 | V48: 927.7158457 | W48: 28.92222214 | X48: 3.299423416 | Y48: 28.92222214 | Z48: 3.299423416 | AA48: 28.92222214 | AB48: 3.299423416 | AC48: 28.92222214 | AD48: 3.299423416 | AE48: 29.13333321 | AF48: 3.273344335 | AG48: 60.23088074 | AH48: 121.7350903 | AI48: 107.3892365 | AJ48: 197.3801007 | AK48: 96.46973419 | AL48: 174.8203281 | AM48: 50.18282318 | AN48: 143.037891 | AO48: 36.43987656 | AP48: 92.16123799 | AQ48: 28.40034103 | AR48: 66.81571751 | AS48: 105.8127441 | AT48: 289.0242905 | AU48: 72.92240143 | AV48: 174.9307995 | AW48: 67.79368591 | AX48: 155.6180877 | AY48: 60.23088074 | AZ48: 121.7350936 | BA48: 51.31952667 | BB48: 109.3128536
E49: 29.68333435 | F49: 1359.290003 | G49: 29.68333435 | H49: 539.0495219 | I49: 29.68333435 | J49: 310.4655313 | K49: 29.68333435 | L49: 3274.448937 | M49: 29.68333435 | N49: 2585.034892 | O49: 29.46666527 | P49: 523.2076796 | Q49: 29.46666527 | R49: 443.4261305 | S49: 29.46666527 | T49: 130.577101 | U49: 29.46666527 | V49: 916.8750275 | W49: 29.68333435 | X49: 3.207349692 | Y49: 29.68333435 | Z49: 3.207349692 | AA49: 29.68333435 | AB49: 3.207349692 | AC49: 29.68333435 | AD49: 3.207349692 | AE49: 29.89999962 | AF49: 3.182096302 | AG49: 61.81590271 | AH49: 118.268289 | AI49: 110.2152634 | AJ49: 192.2893567 | AK49: 99.00840759 | AL49: 170.2993407 | AM49: 51.5034256 | AN49: 138.9740039 | AO49: 37.39882278 | AP49: 89.4084387 | AQ49: 29.14771843 | AR49: 64.68138763 | AS49: 108.59729 | AT49: 281.524619 | AU49: 74.84141541 | AV49: 170.2230803 | AW49: 69.57772827 | AX49: 151.3649578 | AY49: 61.81590271 | AZ49: 118.2682921 | BA49: 52.67004013 | BB49: 106.2313769
E50: 30.44444466 | F50: 1335.468275 | G50: 30.44444466 | H50: 519.9338241 | I50: 30.44444466 | J50: 298.4633344 | K50: 30.44444466 | L50: 3251.519152 | M50: 30.44444466 | N50: 2562.546319 | O50: 30.22222137 | P50: 511.6197229 | Q50: 30.22222137 | R50: 425.8341662 | S50: 30.22222137 | T50: 125.7057159 | U50: 30.22222137 | V50: 906.0343067 | W50: 30.44444466 | X50: 3.120404352 | Y50: 30.44444466 | Z50: 3.120404352 | AA50: 30.44444466 | AB50: 3.120404352 | AC50: 30.44444466 | AD50: 3.120404352 | AE50: 30.66666603 | AF50: 3.095923723 | AG50: 63.40092468 | AH50: 114.9988879 | AI50: 113.0412979 | AJ50: 187.4552581 | AK50: 101.5470886 | AL50: 166.007136 | AM50: 52.8240242 | AN50: 135.1409669 | AO50: 38.3577652 | AP50: 86.81995518 | AQ50: 29.89509583 | AR50: 62.68178314 | AS50: 111.3818359 | AT50: 274.4063182 | AU50: 76.76042175 | AV50: 165.7665584 | AW50: 71.36177063 | AX50: 147.3430717 | AY50: 63.40092468 | AZ50: 114.9988909 | BA50: 54.02055359 | BB50: 103.3234424
E51: 31.20555687 | F51: 1311.646694 | G51: 31.20555687 | H51: 502.0943715 | I51: 31.20555687 | J51: 287.292363 | K51: 31.20555687 | L51: 3228.589075 | M51: 31.20555687 | N51: 2540.057745 | O51: 30.97777748 | P51: 494.2731662 | Q51: 30.97777748 | R51: 409.4711405 | S51: 30.97777748 | T51: 121.1671369 | U51: 30.97777748 | V51: 895.1934885 | W51: 31.20555687 | X51: 3.038163963 | Y51: 31.20555687 | Z51: 3.038163963 | AA51: 31.20555687 | AB51: 3.038163963 | AC51: 31.20555687 | AD51: 3.038163963 | AE51: 31.43333244 | AF51: 3.014409748 | AG51: 64.98594666 | AH51: 111.9102748 | AI51: 115.8673325 | AJ51: 182.858876 | AK51: 104.085762 | AL51: 161.9267646 | AM51: 54.14462662 | AN51: 131.5193529 | AO51: 39.31670761 | AP51: 84.38139023 | AQ51: 30.64247322 | AR51: 60.80464743 | AS51: 114.1663895 | AT51: 267.640861 | AU51: 78.67943573 | AV51: 161.5413734 | AW51: 73.14581299 | AX51: 143.533805 | AY51: 64.98594666 | AZ51: 111.9102778 | BA51: 55.37106705 | BB51: 100.5745999
E52: 31.96666718 | F52: 1287.824966 | G52: 31.96666718 | H52: 485.4129144 | I52: 31.96666718 | J52: 276.8747058 | K52: 31.96666718 | L52: 3205.658997 | M52: 31.96666718 | N52: 2517.569172 | O52: 31.73333168 | P52: 476.4521678 | Q52: 31.73333168 | R52: 394.2216592 | S52: 31.73333168 | T52: 116.9303103 | U52: 31.73333168 | V52: 884.3526703 | W52: 31.96666718 | X52: 2.96025173 | Y52: 31.96666718 | Z52: 2.96025173 | AA52: 31.96666718 | AB52: 2.96025173 | AC52: 31.96666718 | AD52: 2.96025173 | AE52: 32.20000076 | AF52: 2.937179869 | AG52: 66.57096863 | AH52: 108.9876569 | AI52: 118.6933594 | AJ52: 178.4830408 | AK52: 106.6244431 | AL52: 158.0428558 | AM52: 55.46522522 | AN52: 128.0919275 | AO52: 40.27565384 | AP52: 82.0799724 | AQ52: 31.38985062 | AR52: 59.03914008 | AS52: 116.9509354 | AT52: 261.2025768 | AU52: 80.59844208 | AV52: 157.5297636 | AW52: 74.92986298 | AX52: 139.9204874 | AY52: 66.57096863 | AZ52: 108.9876598 | BA52: 56.72158051 | BB52: 97.97196794
E53: 32.72777939 | F53: 1264.003238 | G53: 32.72777939 | H53: 469.7848997 | I53: 32.72777939 | J53: 267.1414419 | K53: 32.72777939 | L53: 3182.72892 | M53: 32.72777939 | N53: 2495.080305 | O53: 32.48888779 | P53: 459.7994383 | Q53: 32.48888779 | R53: 379.9836559 | S53: 32.48888779 | T53: 112.9677155 | U53: 32.48888779 | V53: 873.5119495 | W53: 32.72777939 | X53: 2.886329479 | Y53: 32.72777939 | Z53: 2.886329479 | AA53: 32.72777939 | AB53: 2.886329479 | AC53: 32.72777939 | AD53: 2.886329479 | AE53: 32.96666718 | AF53: 2.863901062 | AG53: 68.15599823 | AH53: 106.2178103 | AI53: 121.5193939 | AJ53: 174.3122158 | AK53: 109.1631165 | AL53: 154.3415095 | AM53: 56.78582764 | AN53: 124.8432393 | AO53: 41.23459625 | AP53: 79.90438556 | AQ53: 32.13722992 | AR53: 57.37564208 | AS53: 119.7354813 | AT53: 255.0681703 | AU53: 82.51745605 | AV53: 153.7157068 | AW53: 76.71390533 | AX53: 136.48818 | AY53: 68.15599823 | AZ53: 106.2178131 | BA53: 58.07209778 | BB53: 95.50399069
E54: 33.4888916 | F54: 1240.18151 | G54: 33.4888916 | H54: 455.1174196 | I54: 33.4888916 | J54: 258.0313958 | K54: 33.4888916 | L54: 3159.798842 | M54: 33.4888916 | N54: 2472.591731 | O54: 33.24444199 | P54: 444.2104992 | Q54: 33.24444199 | R54: 366.6664915 | S54: 33.24444199 | T54: 109.2549628 | U54: 33.24444199 | V54: 862.6711313 | W54: 33.4888916 | X54: 2.816093656 | Y54: 33.4888916 | Z54: 2.816093656 | AA54: 33.4888916 | AB54: 2.816093656 | AC54: 33.4888916 | AD54: 2.816093656 | AE54: 33.73333359 | AF54: 2.794273207 | AG54: 69.7410202 | AH54: 103.5889106 | AI54: 124.3454285 | AJ54: 170.3322789 | AK54: 111.7017975 | AL54: 150.8100968 | AM54: 58.10642624 | AN54: 121.7594885 | AO54: 42.19354248 | AP54: 77.84446309 | AQ54: 32.88460541 | AR54: 55.80559686 | AS54: 122.5200272 | AT54: 249.2165355 | AU54: 84.4364624 | AV54: 150.0848235 | AW54: 78.49794769 | AX54: 133.223447 | AY54: 69.7410202 | AZ54: 103.5889133 | BA54: 59.42261124 | BB54: 93.16035744
E55: 34.25 | F55: 1216.359929 | G55: 34.25 | H55: 441.3280034 | I55: 34.25 | J55: 249.490185 | K55: 34.25 | L55: 3136.869058 | M55: 34.25 | N55: 2450.103158 | O55: 34 | P55: 429.5925186 | Q55: 34 | R55: 354.1893951 | S55: 34 | T55: 105.7703184 | U55: 34 | V55: 851.8303131 | W55: 34.25 | X55: 2.749272178 | Y55: 34.25 | Z55: 2.749272178 | AA55: 34.25 | AB55: 2.749272178 | AC55: 34.25 | AD55: 2.749272178 | AE55: 34.5 | AF55: 2.72802565 | AG55: 71.32604218 | AH55: 101.0903058 | AI55: 127.171463 | AJ55: 166.5304055 | AK55: 114.2404709 | AL55: 147.4371831 | AM55: 59.42702866 | AN55: 118.8282238 | AO55: 43.15248489 | AP55: 75.89114299 | AQ55: 33.63198471 | AR55: 54.32135048 | AS55: 125.3045731 | AT55: 243.6284843 | AU55: 86.35547638 | AV55: 146.6240368 | AW55: 80.28199005 | AX55: 130.1141096 | AY55: 71.32604218 | AZ55: 101.0903085 | BA55: 60.77312469 | BB55: 90.93176625
E56: 35.01111221 | F56: 1185.503728 | G56: 35.01111221 | H56: 428.3426766 | I56: 35.01111221 | J56: 241.4691586 | K56: 35.01111221 | L56: 3113.93898 | M56: 35.01111221 | N56: 2427.614584 | O56: 34.7555542 | P56: 415.8627517 | Q56: 34.7555542 | R56: 342.480635 | S56: 34.7555542 | T56: 102.4944361 | U56: 34.7555542 | V56: 840.9894948 | W56: 35.01111221 | X56: 2.68561728 | Y56: 35.01111221 | Z56: 2.68561728 | AA56: 35.01111221 | AB56: 2.68561728 | AC56: 35.01111221 | AD56: 2.68561728 | AE56: 35.26666641 | AF56: 2.664914919 | AG56: 72.91106415 | AH56: 98.71240477 | AI56: 129.9974976 | AJ56: 162.8948966 | AK56: 116.7791519 | AL56: 144.2122518 | AM56: 60.74762726 | AN56: 116.0382555 | AO56: 44.11143112 | AP56: 74.03626565 | AQ56: 34.3793602 | AR56: 52.91607044 | AS56: 128.0891113 | AT56: 238.2865511 | AU56: 88.27449036 | AV56: 143.3215475 | AW56: 82.06604004 | AX56: 127.1492006 | AY56: 72.91106415 | AZ56: 98.71240739 | BA56: 62.12363815 | BB56: 88.80981108
E57: 35.77222443 | F57: 1149.074091 | G57: 35.77222443 | H57: 416.0955212 | I57: 35.77222443 | J57: 233.9249206 | K57: 35.77222443 | L57: 3091.008902 | M57: 35.77222443 | N57: 2405.125864 | O57: 35.5111084 | P57: 402.9470306 | Q57: 35.5111084 | R57: 331.475765 | S57: 35.5111084 | T57: 99.40998006 | U57: 35.5111084 | V57: 830.1487741 | W57: 35.77222443 | X57: 2.624906661 | Y57: 35.77222443 | Z57: 2.624906661 | AA57: 35.77222443 | AB57: 2.624906661 | AC57: 35.77222443 | AD57: 2.624906661 | AE57: 36.03333282 | AF57: 2.604720428 | AG57: 74.49608612 | AH57: 96.44654062 | AI57: 132.8235321 | AJ57: 159.4150336 | AK57: 119.3178253 | AL57: 141.1257832 | AM57: 62.06822968 | AN57: 113.3794694 | AO57: 45.07037354 | AP57: 72.27248786 | AQ57: 35.1267395 | AR57: 51.58360027 | AS57: 130.8736572 | AT57: 233.1747307 | AU57: 90.1934967 | AV57: 140.166632 | AW57: 83.8500824 | AX57: 124.3187624 | AY57: 74.49608612 | AZ57: 96.44654317 | BA57: 63.47415161 | BB57: 86.78691346
E58: 36.53333282 | F58: 1114.742915 | G58: 36.53333282 | H58: 404.5272842 | I58: 36.53333282 | J58: 226.8185609 | K58: 36.53333282 | L58: 3068.079118 | M58: 36.53333282 | N58: 2382.637437 | O58: 36.26666641 | P58: 390.7788134 | Q58: 36.26666641 | R58: 321.1170149 | S58: 36.26666641 | T58: 96.50136861 | U58: 36.26666641 | V58: 819.3078584 | W58: 36.53333282 | X58: 2.56693776 | Y58: 36.53333282 | Z58: 2.56693776 | AA58: 36.53333282 | AB58: 2.56693776 | AC58: 36.53333282 | AD58: 2.56693776 | AE58: 36.79999924 | AF58: 2.547241334 | AG58: 76.08110809 | AH58: 94.2848624 | AI58: 135.6495514 | AJ58: 156.0810125 | AK58: 121.8565063 | AL58: 138.1690129 | AM58: 63.38882828 | AN58: 110.8426723 | AO58: 46.02931976 | AP58: 70.59317941 | AQ58: 35.87411499 | AR58: 50.31842984 | AS58: 133.6582031 | AT58: 228.2784331 | AU58: 92.11251068 | AV58: 137.1494907 | AW58: 85.63412476 | AX58: 121.6137249 | AY58: 76.08110809 | AZ58: 94.28486489 | BA58: 64.82466888 | BB58: 84.85619467
E59: 37.29444504 | F59: 1082.342623 | G59: 37.29444504 | H59: 393.584682 | I59: 37.29444504 | J59: 220.11496 | K59: 37.29444504 | L59: 3045.14904 | M59: 37.29444504 | N59: 2360.148717 | O59: 37.02222061 | P59: 379.2985027 | Q59: 37.02222061 | R59: 311.3526083 | S59: 37.02222061 | T59: 93.75467697 | U59: 37.02222061 | V59: 808.4671376 | W59: 37.29444504 | X59: 2.511525755 | Y59: 37.29444504 | Z59: 2.511525755 | AA59: 37.29444504 | AB59: 2.511525755 | AC59: 37.29444504 | AD59: 2.511525755 | AE59: 37.56666565 | AF59: 2.49229539 | AG59: 77.66613007 | AH59: 92.220241 | AI59: 138.4755859 | AJ59: 152.8838373 | AK59: 124.3951797 | AL59: 135.3339138 | AM59: 64.70942688 | AN59: 108.4195527 | AO59: 46.98826218 | AP59: 68.99233912 | AQ59: 36.62149429 | AR59: 49.11555403 | AS59: 136.442749 | AT59: 223.5842634 | AU59: 94.03151703 | AV59: 134.2611952 | AW59: 87.41816711 | AX59: 119.0258229 | AY59: 77.66613007 | AZ59: 92.22024344 | BA59: 66.17517853 | BB59: 83.01140339
E60: 38.05555725 | F60: 1051.722335 | G60: 38.05555725 | H60: 383.2195943 | I60: 38.05555725 | J60: 213.7826054 | K60: 38.05555725 | L60: 3022.218963 | M60: 38.05555725 | N60: 2337.660143 | O60: 37.77777863 | P60: 368.4522267 | Q60: 37.77777863 | R60: 302.1357637 | S60: 37.77777863 | T60: 91.15727781 | U60: 37.77777863 | V60: 797.6263194 | W60: 38.05555725 | X60: 2.45850299 | Y60: 38.05555725 | Z60: 2.45850299 | AA60: 38.05555725 | AB60: 2.45850299 | AC60: 38.05555725 | AD60: 2.45850299 | AE60: 38.33333206 | AF60: 2.439716656 | AG60: 79.25115967 | AH60: 90.24617556 | AI60: 141.3016205 | AJ60: 149.815238 | AK60: 126.9338608 | AL60: 132.613109 | AM60: 66.0300293 | AN60: 106.1025082 | AO60: 47.94720459 | AP60: 67.46452225 | AQ60: 37.36886978 | AR60: 47.97047823 | AS60: 139.2272949 | AT60: 219.0799176 | AU60: 95.95053101 | AV60: 131.4935636 | AW60: 89.2022171 | AX60: 116.5475221 | AY60: 79.25115967 | AZ60: 90.24617795 | BA60: 67.5256958 | BB60: 81.24684551
E61: 38.81666946 | F61: 1022.745969 | G61: 38.81666946 | H61: 373.3887718 | I61: 38.81666946 | J61: 207.7930426 | K61: 38.81666946 | L61: 2999.288885 | M61: 38.81666946 | N61: 2315.171423 | O61: 38.53333282 | P61: 358.1913764 | Q61: 38.53333282 | R61: 293.4243293 | S61: 38.53333282 | T61: 88.69782297 | U61: 38.53333282 | V61: 786.7855499 | W61: 38.81666946 | X61: 2.407716115 | Y61: 38.81666946 | Z61: 2.407716115 | AA61: 38.81666946 | AB61: 2.407716115 | AC61: 38.81666946 | AD61: 2.407716115 | AE61: 39.09999847 | AF61: 2.389352926 | AG61: 80.83618164 | AH61: 88.35677298 | AI61: 144.127655 | AJ61: 146.8675886 | AK61: 129.4725342 | AL61: 129.9998078 | AM61: 67.35063171 | AN61: 103.8846297 | AO61: 48.90615082 | AP61: 66.00477776 | AQ61: 38.11624908 | AR61: 46.87910141 | AS61: 142.0118408 | AT61: 214.7540735 | AU61: 97.86953735 | AV61: 128.8391397 | AW61: 90.98625946 | AX61: 114.171933 | AY61: 80.83618164 | AZ61: 88.35677532 | BA61: 68.87620544 | BB61: 79.55732949
E62: 39.57777786 | F62: 995.2907695 | G62: 39.57777786 | H62: 364.0528834 | I62: 39.57777786 | J62: 202.1205452 | K62: 39.57777786 | L62: 2976.359101 | M62: 39.57777786 | N62: 2292.682849 | O62: 39.28888702 | P62: 348.4720213 | Q62: 39.28888702 | R62: 285.1801488 | S62: 39.28888702 | T62: 86.36601201 | U62: 39.28888702 | V62: 775.9447804 | W62: 39.57777786 | X62: 2.359025225 | Y62: 39.57777786 | Z62: 2.359025225 | AA62: 39.57777786 | AB62: 2.359025225 | AC62: 39.57777786 | AD62: 2.359025225 | AE62: 39.86666489 | AF62: 2.341065726 | AG62: 82.42120361 | AH62: 86.54661061 | AI62: 146.9536896 | AJ62: 144.0338753 | AK62: 132.0112152 | AL62: 127.487748 | AM62: 68.67123413 | AN62: 101.7595923 | AO62: 49.86509323 | AP62: 64.60859374 | AQ62: 38.86362457 | AR62: 45.83771633 | AS62: 144.7963867 | AT62: 210.5962943 | AU62: 99.78855133 | AV62: 126.2910209 | AW62: 92.77030182 | AX62: 111.8926983 | AY62: 82.42120361 | AZ62: 86.54661291 | BA62: 70.22672272 | BB62: 77.93808206
E63: 40.33889008 | F63: 969.2446032 | G63: 40.33889008 | H63: 355.17637 | I63: 40.33889008 | J63: 196.7416757 | K63: 40.33889008 | L63: 2953.429023 | M63: 40.33889008 | N63: 2270.194276 | O63: 40.04444504 | P63: 339.2542996 | Q63: 40.04444504 | R63: 277.3686235 | S63: 40.04444504 | T63: 84.15251301 | U63: 40.04444504 | V63: 765.1039622 | W63: 40.33889008 | X63: 2.312300716 | Y63: 40.33889008 | Z63: 2.312300716 | AA63: 40.33889008 | AB63: 2.312300716 | AC63: 40.33889008 | AD63: 2.312300716 | AE63: 40.63333511 | AF63: 2.294726597 | AG63: 84.00622559 | AH63: 84.81073376 | AI63: 149.7797241 | AJ63: 141.3076171 | AK63: 134.5498962 | AL63: 125.071136 | AM63: 69.99182892 | AN63: 99.72160954 | AO63: 50.82403946 | AP63: 63.271843 | AQ63: 39.61100388 | AR63: 44.84293416 | AS63: 147.5809326 | AT63: 206.5969434 | AU63: 101.7075577 | AV63: 123.8429099 | AW63: 94.55434418 | AX63: 109.7040284 | AY63: 84.00622559 | AZ63: 84.81073601 | BA63: 71.57723236 | BB63: 76.38477558
E64: 41.10000229 | F64: 944.5061029 | G64: 41.10000229 | H64: 346.726712 | I64: 41.10000229 | J64: 191.6352855 | K64: 41.10000229 | L64: 2930.498946 | M64: 41.10000229 | N64: 2247.705702 | O64: 40.79999924 | P64: 330.5020289 | Q64: 40.79999924 | R64: 269.9583465 | S64: 40.79999924 | T64: 82.04887729 | U64: 40.79999924 | V64: 754.2631927 | W64: 41.10000229 | X64: 2.267424428 | Y64: 41.10000229 | Z64: 2.267424428 | AA64: 41.10000229 | AB64: 2.267424428 | AC64: 41.10000229 | AD64: 2.267424428 | AE64: 41.40000153 | AF64: 2.250219524 | AG64: 85.59124756 | AH64: 83.14459574 | AI64: 152.6057587 | AJ64: 138.6827977 | AK64: 137.088562 | AL64: 122.7446495 | AM64: 71.31243134 | AN64: 97.76535551 | AO64: 51.78298187 | AP64: 61.99077622 | AQ64: 40.35837936 | AR64: 43.8916768 | AS64: 150.3654785 | AT64: 202.7471095 | AU64: 103.6265717 | AV64: 121.4889641 | AW64: 96.33839417 | AX64: 107.6005334 | AY64: 85.59124756 | AZ64: 83.14459795 | BA64: 72.92774963 | BB64: 74.89337318
E65: 41.86111069 | F65: 920.9832764 | G65: 41.86111069 | H65: 338.6745394 | I65: 41.86111069 | J65: 186.7820385 | K65: 41.86111069 | L65: 2907.569161 | M65: 41.86111069 | N65: 2225.217129 | O65: 41.55555344 | P65: 322.1822915 | Q65: 41.55555344 | R65: 262.9207616 | S65: 41.55555344 | T65: 80.04736886 | U65: 41.55555344 | V65: 743.4224232 | W65: 41.86111069 | X65: 2.224287499 | Y65: 41.86111069 | Z65: 2.224287499 | AA65: 41.86111069 | AB65: 2.224287499 | AC65: 41.86111069 | AD65: 2.224287499 | AE65: 42.16666794 | AF65: 2.207436074 | AG65: 87.17626953 | AH65: 81.5440166 | AI65: 155.431778 | AJ65: 136.153851 | AK65: 139.627243 | AL65: 120.5033025 | AM65: 72.63303375 | AN65: 95.8859265 | AO65: 52.7419281 | AP65: 60.76190986 | AQ65: 41.10575867 | AR65: 42.9811152 | AS65: 153.1500244 | AT65: 199.0385386 | AU65: 105.545578 | AV65: 119.2238026 | AW65: 98.12243652 | AX65: 105.5773255 | AY65: 87.17626953 | AZ65: 81.54401876 | BA65: 74.27825928 | BB65: 73.46022185
E66: 42.6222229 | F66: 898.5915289 | G66: 42.6222229 | H66: 330.9928257 | I66: 42.6222229 | J66: 182.1643567 | K66: 42.6222229 | L66: 2884.639084 | M66: 42.6222229 | N66: 2202.728408 | O66: 42.31111145 | P66: 314.2650207 | Q66: 42.31111145 | R66: 256.2297736 | S66: 42.31111145 | T66: 78.14095222 | U66: 42.31111145 | V66: 732.5815562 | W66: 42.6222229 | X66: 2.182789077 | Y66: 42.6222229 | Z66: 2.182789077 | AA66: 42.6222229 | AB66: 2.182789077 | AC66: 42.6222229 | AD66: 2.182789077 | AE66: 42.93333435 | AF66: 2.166276398 | AG66: 88.76129913 | AH66: 80.005137 | AI66: 158.2578125 | AJ66: 133.7156115 | AK66: 142.1659241 | AL66: 118.3424964 | AM66: 73.95363617 | AN66: 94.07884766 | AO66: 53.70087051 | AP66: 59.58208935 | AQ66: 41.85313416 | AR66: 42.10867985 | AS66: 155.9345703 | AT66: 195.4635751 | AU66: 107.464592 | AV66: 117.0424387 | AW66: 99.90647888 | AX66: 103.6298218 | AY66: 88.76129913 | AZ66: 80.00513912 | BA66: 75.62877655 | BB66: 72.08191233
E67: 43.38333511 | F67: 877.2543225 | G67: 43.38333511 | H67: 323.6570349 | I67: 43.38333511 | J67: 177.7661635 | K67: 43.38333511 | L67: 2861.709006 | M67: 43.38333511 | N67: 2180.239688 | O67: 43.06666565 | P67: 306.7229029 | Q67: 43.06666565 | R67: 249.8616992 | S67: 43.06666565 | T67: 76.32323149 | U67: 43.06666565 | V67: 718.9764424 | W67: 43.38333511 | X67: 2.142836752 | Y67: 43.38333511 | Z67: 2.142836752 | AA67: 43.38333511 | AB67: 2.142836752 | AC67: 43.38333511 | AD67: 2.142836752 | AE67: 43.70000076 | AF67: 2.126649085 | AG67: 90.34632111 | AH67: 78.52442526 | AI67: 161.083847 | AJ67: 131.3632787 | AK67: 144.7046051 | AL67: 116.2579666 | AM67: 75.27423859 | AN67: 92.33993557 | AO67: 54.65981674 | AP67: 58.4483872 | AQ67: 42.60051346 | AR67: 41.27199032 | AS67: 158.7191162 | AT67: 192.0151081 | AU67: 109.383606 | AV67: 114.9402765 | AW67: 101.6905289 | AX67: 101.7537845 | AY67: 90.34632111 | AZ67: 78.52442734 | BA67: 76.97929382 | BB67: 70.75531327
E68: 44.14444733 | F68: 856.9013445 | G68: 44.14444733 | H68: 316.6446816 | I68: 44.14444733 | J68: 173.572792 | K68: 44.14444733 | L68: 2838.778929 | M68: 44.14444733 | N68: 2157.751115 | O68: 43.82221985 | P68: 299.5308418 | Q68: 43.82221985 | R68: 243.7947073 | S68: 43.82221985 | T68: 74.58832242 | U68: 43.82221985 | V68: 704.82267 | W68: 44.14444733 | X68: 2.104344122 | Y68: 44.14444733 | Z68: 2.104344122 | AA68: 44.14444733 | AB68: 2.104344122 | AC68: 44.14444733 | AD68: 2.104344122 | AE68: 44.46666718 | AF68: 2.088468878 | AG68: 91.93134308 | AH68: 77.09858964 | AI68: 163.9098816 | AJ68: 129.0923774 | AK68: 147.2432709 | AL68: 114.2457609 | AM68: 76.59483337 | AN68: 90.66538294 | AO68: 55.61875916 | AP68: 57.35811143 | AQ68: 43.34788895 | AR68: 40.4688814 | AS68: 161.5036621 | AT68: 188.6865236 | AU68: 111.3026123 | AV68: 112.9130527 | AW68: 103.4745712 | AX68: 99.94534945 | AY68: 91.93134308 | AZ68: 77.09859168 | BA68: 78.32980347 | BB68: 69.47754355
E69: 44.90555573 | F69: 837.4682884 | G69: 44.90555573 | H69: 309.9351114 | I69: 44.90555573 | J69: 169.5707841 | K69: 44.90555573 | L69: 2815.848851 | M69: 44.90555573 | N69: 2135.262541 | O69: 44.57777786 | P69: 292.6657878 | Q69: 44.57777786 | R69: 238.0089401 | S69: 44.57777786 | T69: 72.93082201 | U69: 44.57777786 | V69: 691.2316394 | W69: 44.90555573 | X69: 2.067232506 | Y69: 44.90555573 | Z69: 2.067232506 | AA69: 44.90555573 | AB69: 2.067232506 | AC69: 44.90555573 | AD69: 2.067232506 | AE69: 45.23333359 | AF69: 2.051656955 | AG69: 93.51636505 | AH69: 75.72459296 | AI69: 166.7359161 | AJ69: 126.8987536 | AK69: 149.7819519 | AL69: 112.3021268 | AM69: 77.91543579 | AN69: 89.05160238 | AO69: 56.57770538 | AP69: 56.30877146 | AQ69: 44.09526825 | AR69: 39.6973437 | AS69: 164.288208 | AT69: 185.471662 | AU69: 113.2216263 | AV69: 110.9567764 | AW69: 105.2586136 | AX69: 98.20086021 | AY69: 93.51636505 | AZ69: 75.72459496 | BA69: 79.68032074 | BB69: 68.2459068
E70: 45.66666794 | F70: 818.8959744 | G70: 45.66666794 | H70: 303.5093364 | I70: 45.66666794 | J70: 165.7477983 | K70: 45.66666794 | L70: 2792.919067 | M70: 45.66666794 | N70: 2112.773967 | O70: 45.33333206 | P70: 286.1067867 | Q70: 45.33333206 | R70: 232.4860991 | S70: 45.33333206 | T70: 71.34581456 | U70: 45.33333206 | V70: 678.1704572 | W70: 45.66666794 | X70: 2.03142752 | Y70: 45.66666794 | Z70: 2.03142752 | AA70: 45.66666794 | AB70: 2.03142752 | AC70: 45.66666794 | AD70: 2.03142752 | AE70: 46 | AF70: 2.016139931 | AG70: 95.10138702 | AH70: 74.39962009 | AI70: 169.5619507 | AJ70: 124.7785317 | AK70: 152.3206329 | AL70: 110.4236342 | AM70: 79.23603821 | AN70: 87.49531167 | AO70: 57.5366478 | AP70: 55.29808588 | AQ70: 44.84264374 | AR70: 38.95552995 | AS70: 167.0727539 | AT70: 182.3647795 | AU70: 115.1406326 | AV70: 109.0677761 | AW70: 107.0426559 | AX70: 96.51696851 | AY70: 95.10138702 | AZ70: 74.39962206 | BA70: 81.03083038 | BB70: 67.05792087

Sheet Qucik Design (hidden)
A1: 17 | B1: 17
E6: W18x311 | G6: W24X335 | I6: W24X370 | K6: W14X730 | M6: W27X84 | O6: W24X84 | Q6: W27X94 | S6: W24X94
A7: Cb | B7: Lb_des | C7: Mu | E7: Lb (ft) | F7: Mn
A8: 1 | B8: 500 | C8: 240 | D8: Lp,Mp | E8: 10.5 | F8: 2827.5 | G8: 11.41666698 | H8: 3825 | I8: 11.58333302 | J8: 4237.5 | K8: 16.58333397 | L8: 6225 | M8: 7.333333492 | N8: 915 | O8: 6.916666508 | P8: 840 | Q8: 7.5 | R8: 1042.5 | S8: 7 | T8: 952.5
D9: Lr,Mr | E9: 16.55285772 | F9: 162.7500065 | G9: 13.89517339 | H9: 199.5000079 | I9: 17.40196355 | J9: 192.5000076 | K9: 17.53840001 | L9: 172.0250068 | M9: 14.31003189 | N9: 194.2500077 | O9: 18.29669571 | P9: 161.3500064 | Q9: 29.93152873 | R9: 136.5000054 | S9: 18.19178772 | T9: 189.0000075
E10: 0 | F10: 2827.499925 | G10: 0 | H10: 3824.999899 | I10: 0 | J10: 4237.499888 | K10: 0 | L10: 6224.999835 | M10: 0 | N10: 914.9999758 | O10: 0 | P10: 839.9999777 | Q10: 0 | R10: 1042.499972 | S10: 0 | T10: 952.4999748
E11: 10.41666667 | F11: 2827.499925 | G11: 10.41666667 | H11: 3824.999899 | I11: 10.41666667 | J11: 4237.499888 | K11: 10.41666667 | L11: 6224.999835 | M11: 0 | N11: 914.9999758 | O11: 0 | P11: 839.9999777 | Q11: 0 | R11: 1042.499972 | S11: 0 | T11: 952.4999748
E12: 20.83333333 | F12: 2652.560672 | G12: 20.83333333 | H12: 3541.073051 | I12: 20.83333333 | J12: 3959.473723 | K12: 20.83333333 | L12: 6177.777375 | M12: 0 | N12: 914.9999758 | O12: 0 | P12: 839.9999777 | Q12: 0 | R12: 1042.499972 | S12: 0 | T12: 952.4999748
E13: 31.25 | F13: 2477.565462 | G13: 31.25 | H13: 3227.250207 | I13: 31.25 | J13: 3647.495411 | K13: 31.25 | L13: 6062.505894 | M13: 0 | N13: 914.9999758 | O13: 0 | P13: 839.9999777 | Q13: 0 | R13: 1042.499972 | S13: 0 | T13: 952.4999748
E14: 41.66666667 | F14: 2302.570252 | G14: 41.66666667 | H14: 2913.427071 | I14: 41.66666667 | J14: 3335.516806 | K14: 41.66666667 | L14: 5947.234413 | M14: 0 | N14: 914.9999758 | O14: 0 | P14: 839.9999777 | Q14: 0 | R14: 1042.499972 | S14: 0 | T14: 952.4999748
E15: 52.08333333 | F15: 2127.575041 | G15: 52.08333333 | H15: 2599.603935 | I15: 52.08333333 | J15: 3023.538494 | K15: 52.08333333 | L15: 5831.962931 | M15: 0 | N15: 914.9999758 | O15: 0 | P15: 839.9999777 | Q15: 0 | R15: 1042.499972 | S15: 0 | T15: 952.4999748
E16: 62.5 | F16: 1952.579831 | G16: 62.5 | H16: 2285.780945 | I16: 62.5 | J16: 2711.560182 | K16: 62.5 | L16: 5716.69145 | M16: 0 | N16: 914.9999758 | O16: 0 | P16: 839.9999777 | Q16: 0 | R16: 1042.499972 | S16: 0 | T16: 952.4999748
E17: 72.91666667 | F17: 1777.584621 | G17: 72.91666667 | H17: 1950.141452 | I17: 72.91666667 | J17: 2377.476207 | K17: 72.91666667 | L17: 5601.419969 | M17: 0 | N17: 914.9999758 | O17: 0 | P17: 839.9999777 | Q17: 0 | R17: 1042.499972 | S17: 0 | T17: 952.4999748
E18: 83.33333333 | F18: 1595.341218 | G18: 83.33333333 | H18: 1699.505521 | I18: 83.33333333 | J18: 2072.963617 | K18: 83.33333333 | L18: 5486.148487 | M18: 0 | N18: 914.9999758 | O18: 0 | P18: 839.9999777 | Q18: 0 | R18: 1042.499972 | S18: 0 | T18: 952.4999748
E19: 93.75 | F19: 1416.447912 | G19: 93.75 | H19: 1506.47164 | I19: 93.75 | J19: 1838.155029 | K19: 93.75 | L19: 5370.877006 | M19: 0 | N19: 914.9999758 | O19: 0 | P19: 839.9999777 | Q19: 0 | R19: 1042.499972 | S19: 0 | T19: 952.4999748
E20: 104.1666667 | F20: 1273.750748 | G20: 104.1666667 | H20: 1353.114222 | I20: 104.1666667 | J20: 1651.449859 | K20: 104.1666667 | L20: 5255.605525 | M20: 0 | N20: 914.9999758 | O20: 0 | P20: 839.9999777 | Q20: 0 | R20: 1042.499972 | S20: 0 | T20: 952.4999748
E21: 114.5833333 | F21: 1157.24682 | G21: 114.5833333 | H21: 1228.277677 | I21: 114.5833333 | J21: 1499.371396 | K21: 114.5833333 | L21: 5140.334044 | M21: 0 | N21: 914.9999758 | O21: 0 | P21: 839.9999777 | Q21: 0 | R21: 1042.499972 | S21: 0 | T21: 952.4999748
E22: 125 | F22: 1060.315475 | G22: 125 | H22: 1124.646357 | I22: 125 | J22: 1373.0651 | K22: 125 | L22: 5025.062562 | M22: 0 | N22: 914.9999758 | O22: 0 | P22: 839.9999777 | Q22: 0 | R22: 1042.499972 | S22: 0 | T22: 952.4999748
E23: 135.4166667 | F23: 978.3976792 | G23: 135.4166667 | H23: 1037.218332 | I23: 135.4166667 | J23: 1266.467838 | K23: 135.4166667 | L23: 4909.790788 | M23: 0 | N23: 914.9999758 | O23: 0 | P23: 839.9999777 | Q23: 0 | R23: 1042.499972 | S23: 0 | T23: 952.4999748
E24: 145.8333333 | F24: 908.2503422 | G24: 145.8333333 | H24: 962.4553456 | I24: 145.8333333 | J24: 1175.285491 | K24: 145.8333333 | L24: 4794.519307 | M24: 0 | N24: 914.9999758 | O24: 0 | P24: 839.9999777 | Q24: 0 | R24: 1042.499972 | S24: 0 | T24: 952.4999748
E25: 156.25 | F25: 847.5032002 | G25: 156.25 | H25: 897.7823493 | I25: 156.25 | J25: 1096.390547 | K25: 156.25 | L25: 4679.247825 | M25: 0 | N25: 914.9999758 | O25: 0 | P25: 839.9999777 | Q25: 0 | R25: 1042.499972 | S25: 0 | T25: 952.4999748
E26: 166.6666667 | F26: 794.3829868 | G26: 166.6666667 | H26: 841.2798849 | I26: 166.6666667 | J26: 1027.449582 | K26: 166.6666667 | L26: 4563.976344 | M26: 0 | N26: 914.9999758 | O26: 0 | P26: 839.9999777 | Q26: 0 | R26: 1042.499972 | S26: 0 | T26: 952.4999748
E27: 177.0833333 | F27: 747.5365525 | G27: 177.0833333 | H27: 791.4877232 | I27: 177.0833333 | J27: 966.6863269 | K27: 177.0833333 | L27: 4448.704863 | M27: 0 | N27: 914.9999758 | O27: 0 | P27: 839.9999777 | Q27: 0 | R27: 1042.499972 | S27: 0 | T27: 952.4999748
E28: 187.5 | F28: 705.9133114 | G28: 187.5 | H28: 747.2746384 | I28: 187.5 | J28: 912.7241946 | K28: 187.5 | L28: 4333.433088 | M28: 0 | N28: 914.9999758 | O28: 0 | P28: 839.9999777 | Q28: 0 | R28: 1042.499972 | S28: 0 | T28: 952.4999748
E29: 197.9166667 | F29: 668.6850409 | G29: 197.9166667 | H29: 707.7506648 | I29: 197.9166667 | J29: 864.4797134 | K29: 197.9166667 | L29: 4218.161607 | M29: 0 | N29: 914.9999758 | O29: 0 | P29: 839.9999777 | Q29: 0 | R29: 1042.499972 | S29: 0 | T29: 952.4999748
E30: 208.3333333 | F30: 635.1899978 | G30: 208.3333333 | H30: 672.2059392 | I30: 208.3333333 | J30: 821.0882595 | K30: 208.3333333 | L30: 4102.890126 | M30: 0 | N30: 914.9999758 | O30: 0 | P30: 839.9999777 | Q30: 0 | R30: 1042.499972 | S30: 0 | T30: 952.4999748
E31: 218.75 | F31: 604.8930748 | G31: 218.75 | H31: 640.0672682 | I31: 218.75 | J31: 781.851615 | K31: 218.75 | L31: 3987.618644 | M31: 0 | N31: 914.9999758 | O31: 0 | P31: 839.9999777 | Q31: 0 | R31: 1042.499972 | S31: 0 | T31: 952.4999748
E32: 229.1666667 | F32: 577.356723 | G32: 229.1666667 | H32: 610.8666708 | I32: 229.1666667 | J32: 746.1992966 | K32: 229.1666667 | L32: 3872.347163 | M32: 0 | N32: 914.9999758 | O32: 0 | P32: 839.9999777 | Q32: 0 | R32: 1042.499972 | S32: 0 | T32: 952.4999748
E33: 239.5833333 | F33: 552.2198584 | G33: 239.5833333 | H33: 584.2183073 | I33: 239.5833333 | J33: 713.6610895 | K33: 239.5833333 | L33: 3757.075682 | M33: 0 | N33: 914.9999758 | O33: 0 | P33: 839.9999777 | Q33: 0 | R33: 1042.499972 | S33: 0 | T33: 952.4999748
E34: 250 | F34: 529.1817487 | G34: 250 | H34: 559.8010106 | I34: 250 | J34: 683.8455141 | K34: 250 | L34: 3641.8042 | M34: 0 | N34: 914.9999758 | O34: 0 | P34: 839.9999777 | Q34: 0 | R34: 1042.499972 | S34: 0 | T34: 952.4999748
E35: 260.4166667 | F35: 507.9900012 | G35: 260.4166667 | H35: 537.3455058 | I35: 260.4166667 | J35: 656.4240793 | K35: 260.4166667 | L35: 3526.532719 | M35: 0 | N35: 914.9999758 | O35: 0 | P35: 839.9999777 | Q35: 0 | R35: 1042.499972 | S35: 0 | T35: 952.4999748
E36: 270.8333333 | F36: 488.4310417 | G36: 270.8333333 | H36: 516.6243027 | I36: 270.8333333 | J36: 631.1194169 | K36: 270.8333333 | L36: 3411.260945 | M36: 0 | N36: 914.9999758 | O36: 0 | P36: 839.9999777 | Q36: 0 | R36: 1042.499972 | S36: 0 | T36: 952.4999748
E37: 281.25 | F37: 470.3230466 | G37: 281.25 | H37: 497.4436758 | I37: 281.25 | J37: 607.6951743 | K37: 281.25 | L37: 3289.319737 | M37: 0 | N37: 914.9999758 | O37: 0 | P37: 839.9999777 | Q37: 0 | R37: 1042.499972 | S37: 0 | T37: 952.4999748
E38: 291.6666667 | F38: 453.5103029 | G38: 291.6666667 | H38: 479.6377314 | I38: 291.6666667 | J38: 585.9491666 | K38: 291.6666667 | L38: 3171.781557 | M38: 0 | N38: 914.9999758 | O38: 0 | P38: 839.9999777 | Q38: 0 | R38: 1042.499972 | S38: 0 | T38: 952.4999748
E39: 302.0833333 | F39: 437.8585944 | G39: 302.0833333 | H39: 463.0637939 | I39: 302.0833333 | J39: 565.7070041 | K39: 302.0833333 | L39: 3062.355681 | M39: 0 | N39: 914.9999758 | O39: 0 | P39: 839.9999777 | Q39: 0 | R39: 1042.499972 | S39: 0 | T39: 952.4999748
E40: 312.5 | F40: 423.2516489 | G40: 312.5 | H40: 447.5980472 | I40: 312.5 | J40: 546.8178444 | K40: 312.5 | L40: 2960.23 | M40: 0 | N40: 914.9999758 | O40: 0 | P40: 839.9999777 | Q40: 0 | R40: 1042.499972 | S40: 0 | T40: 952.4999748
E41: 322.9166667 | F41: 409.5880995 | G41: 322.9166667 | H41: 433.1328987 | I41: 322.9166667 | J41: 529.1503278 | K41: 322.9166667 | L41: 2864.69758 | M41: 0 | N41: 914.9999758 | O41: 0 | P41: 839.9999777 | Q41: 0 | R41: 1042.499972 | S41: 0 | T41: 952.4999748
E42: 333.3333333 | F42: 396.7794695 | G42: 333.3333333 | H42: 419.5741588 | I42: 333.3333333 | J42: 512.5895372 | K42: 333.3333333 | L42: 2775.13938 | M42: 0 | N42: 914.9999758 | O42: 0 | P42: 839.9999777 | Q42: 0 | R42: 1042.499972 | S42: 0 | T42: 952.4999748
E43: 343.75 | F43: 384.7479024 | G43: 343.75 | H43: 406.8392104 | I43: 343.75 | J43: 497.0345816 | K43: 343.75 | L43: 2691.01194 | M43: 0 | N43: 914.9999758 | O43: 0 | P43: 839.9999777 | Q43: 0 | R43: 1042.499972 | S43: 0 | T43: 952.4999748
E44: 354.1666667 | F44: 373.4246971 | G44: 354.1666667 | H44: 394.8551043 | I44: 354.1666667 | J44: 482.3965082 | K44: 354.1666667 | L44: 2611.836259 | M44: 0 | N44: 914.9999758 | O44: 0 | P44: 839.9999777 | Q44: 0 | R44: 1042.499972 | S44: 0 | T44: 952.4999748
E45: 364.5833333 | F45: 362.7491725 | G45: 364.5833333 | H45: 383.5572774 | I45: 364.5833333 | J45: 468.596472 | K45: 364.5833333 | L45: 2537.187237 | M45: 0 | N45: 914.9999758 | O45: 0 | P45: 839.9999777 | Q45: 0 | R45: 1042.499972 | S45: 0 | T45: 952.4999748
E46: 375 | F46: 352.6672026 | G46: 375 | H46: 372.8884179 | I46: 375 | J46: 455.5644899 | K46: 375 | L46: 2466.687239 | M46: 0 | N46: 914.9999758 | O46: 0 | P46: 839.9999777 | Q46: 0 | R46: 1042.499972 | S46: 0 | T46: 952.4999748
E47: 385.4166667 | F47: 343.1306672 | G47: 385.4166667 | H47: 362.7974391 | I47: 385.4166667 | J47: 443.238123 | K47: 385.4166667 | L47: 2399.999643 | M47: 0 | N47: 914.9999758 | O47: 0 | P47: 839.9999777 | Q47: 0 | R47: 1042.499972 | S47: 0 | T47: 952.4999748
E48: 395.8333333 | F48: 334.0964267 | G48: 395.8333333 | H48: 353.238455 | I48: 395.8333333 | J48: 431.5615242 | K48: 395.8333333 | L48: 2336.823571 | M48: 0 | N48: 914.9999758 | O48: 0 | P48: 839.9999777 | Q48: 0 | R48: 1042.499972 | S48: 0 | T48: 952.4999748
E49: 406.25 | F49: 325.5257726 | G49: 406.25 | H49: 344.1705964 | I49: 406.25 | J49: 420.4847057 | K49: 406.25 | L49: 2276.888758 | M49: 0 | N49: 914.9999758 | O49: 0 | P49: 839.9999777 | Q49: 0 | R49: 1042.499972 | S49: 0 | T49: 952.4999748
E50: 416.6666667 | F50: 317.3839882 | G50: 416.6666667 | H50: 335.5568393 | I50: 416.6666667 | J50: 409.9625136 | K50: 416.6666667 | L50: 2219.951748 | M50: 0 | N50: 914.9999758 | O50: 0 | P50: 839.9999777 | Q50: 0 | R50: 1042.499972 | S50: 0 | T50: 952.4999748
E51: 427.0833333 | F51: 309.6396158 | G51: 427.0833333 | H51: 327.364005 | I51: 427.0833333 | J51: 399.9543351 | K51: 427.0833333 | L51: 2165.793253 | M51: 0 | N51: 914.9999758 | O51: 0 | P51: 839.9999777 | Q51: 0 | R51: 1042.499972 | S51: 0 | T51: 952.4999748
E52: 437.5 | F52: 302.2642376 | G52: 437.5 | H52: 319.5618446 | I52: 437.5 | J52: 390.4232929 | K52: 437.5 | L52: 2114.214641 | M52: 0 | N52: 914.9999758 | O52: 0 | P52: 839.9999777 | Q52: 0 | R52: 1042.499972 | S52: 0 | T52: 952.4999748
E53: 447.9166667 | F53: 295.2321089 | G53: 447.9166667 | H53: 312.1231118 | I53: 447.9166667 | J53: 381.3361715 | K53: 447.9166667 | L53: 2065.035883 | M53: 0 | N53: 914.9999758 | O53: 0 | P53: 839.9999777 | Q53: 0 | R53: 1042.499972 | S53: 0 | T53: 952.4999748
E54: 458.3333333 | F54: 288.5198105 | G54: 458.3333333 | H54: 305.0229411 | I54: 458.3333333 | J54: 372.6625756 | K54: 458.3333333 | L54: 2018.093208 | M54: 0 | N54: 914.9999758 | O54: 0 | P54: 839.9999777 | Q54: 0 | R54: 1042.499972 | S54: 0 | T54: 952.4999748
E55: 468.75 | F55: 282.105974 | G55: 468.75 | H55: 298.2387738 | I55: 468.75 | J55: 364.3749293 | K55: 468.75 | L55: 1973.237497 | M55: 0 | N55: 914.9999758 | O55: 0 | P55: 839.9999777 | Q55: 0 | R55: 1042.499972 | S55: 0 | T55: 952.4999748
E56: 479.1666667 | F56: 275.9711536 | G56: 479.1666667 | H56: 291.7499373 | I56: 479.1666667 | J56: 356.4480008 | K56: 479.1666667 | L56: 1930.33281 | M56: 0 | N56: 914.9999758 | O56: 0 | P56: 839.9999777 | Q56: 0 | R56: 1042.499972 | S56: 0 | T56: 952.4999748
E57: 489.5833333 | F57: 270.0975148 | G57: 489.5833333 | H57: 285.5375718 | I57: 489.5833333 | J57: 348.8587554 | K57: 489.5833333 | L57: 1889.254198 | M57: 0 | N57: 914.9999758 | O57: 0 | P57: 839.9999777 | Q57: 0 | R57: 1042.499972 | S57: 0 | T57: 952.4999748
E58: 500 | F58: 264.468743 | G58: 500 | H58: 279.5843371 | I58: 500 | J58: 341.5860261 | K58: 500 | L58: 1849.887549 | M58: 0 | N58: 914.9999758 | O58: 0 | P58: 839.9999777 | Q58: 0 | R58: 1042.499972 | S58: 0 | T58: 952.4999748
E59: 510.4166667 | F59: 259.0698051 | G59: 510.4166667 | H59: 273.874358 | I59: 510.4166667 | J59: 334.6104404 | K59: 510.4166667 | L59: 1812.128272 | M59: 0 | N59: 914.9999758 | O59: 0 | P59: 839.9999777 | Q59: 0 | R59: 1042.499972 | S59: 0 | T59: 952.4999748
E60: 520.8333333 | F60: 253.8869318 | G60: 520.8333333 | H60: 268.3930227 | I60: 520.8333333 | J60: 327.9141271 | K60: 520.8333333 | L60: 1775.879689 | M60: 0 | N60: 914.9999758 | O60: 0 | P60: 839.9999777 | Q60: 0 | R60: 1042.499972 | S60: 0 | T60: 952.4999748
E61: 531.25 | F61: 248.9073787 | G61: 531.25 | H61: 263.1268546 | I61: 531.25 | J61: 321.48068 | K61: 531.25 | L61: 1741.05303 | M61: 0 | N61: 914.9999758 | O61: 0 | P61: 839.9999777 | Q61: 0 | R61: 1042.499972 | S61: 0 | T61: 952.4999748
E62: 541.6666667 | F62: 244.1194454 | G62: 541.6666667 | H62: 258.0634575 | I62: 541.6666667 | J62: 315.2948281 | K62: 541.6666667 | L62: 1707.566117 | M62: 0 | N62: 914.9999758 | O62: 0 | P62: 839.9999777 | Q62: 0 | R62: 1042.499972 | S62: 0 | T62: 952.4999748
E63: 552.0833333 | F63: 239.5122373 | G63: 552.0833333 | H63: 253.1912958 | I63: 552.0833333 | J63: 309.3426554 | K63: 552.0833333 | L63: 1675.343217 | M63: 0 | N63: 914.9999758 | O63: 0 | P63: 839.9999777 | Q63: 0 | R63: 1042.499972 | S63: 0 | T63: 952.4999748
E64: 562.5 | F64: 235.0757384 | G64: 562.5 | H64: 248.499731 | I64: 562.5 | J64: 303.6110515 | K64: 562.5 | L64: 1644.313726 | M64: 0 | N64: 914.9999758 | O64: 0 | P64: 839.9999777 | Q64: 0 | R64: 1042.499972 | S64: 0 | T64: 952.4999748
E65: 572.9166667 | F65: 230.8006103 | G65: 572.9166667 | H65: 243.9789303 | I65: 572.9166667 | J65: 298.0880597 | K65: 572.9166667 | L65: 1614.41319 | M65: 0 | N65: 914.9999758 | O65: 0 | P65: 839.9999777 | Q65: 0 | R65: 1042.499972 | S65: 0 | T65: 952.4999748
E66: 583.3333333 | F66: 226.6782289 | G66: 583.3333333 | H66: 239.6197385 | I66: 583.3333333 | J66: 292.7624739 | K66: 583.3333333 | L66: 1585.580524 | M66: 0 | N66: 914.9999758 | O66: 0 | P66: 839.9999777 | Q66: 0 | R66: 1042.499972 | S66: 0 | T66: 952.4999748
E67: 593.75 | F67: 222.7005373 | G67: 593.75 | H67: 235.4136046 | I67: 593.75 | J67: 287.6238754 | K67: 593.75 | L67: 1557.75992 | M67: 0 | N67: 914.9999758 | O67: 0 | P67: 839.9999777 | Q67: 0 | R67: 1042.499972 | S67: 0 | T67: 952.4999748
E68: 604.1666667 | F68: 218.8600833 | G68: 604.1666667 | H68: 231.3526367 | I68: 604.1666667 | J68: 282.662578 | K68: 604.1666667 | L68: 1530.898641 | M68: 0 | N68: 914.9999758 | O68: 0 | P68: 839.9999777 | Q68: 0 | R68: 1042.499972 | S68: 0 | T68: 952.4999748
E69: 614.5833333 | F69: 215.149799 | G69: 614.5833333 | H69: 227.429419 | I69: 614.5833333 | J69: 277.869591 | K69: 614.5833333 | L69: 1504.948056 | M69: 0 | N69: 914.9999758 | O69: 0 | P69: 839.9999777 | Q69: 0 | R69: 1042.499972 | S69: 0 | T69: 952.4999748
C70: =MIN(F70,H70,J70,L70,N70,P70,R70,T70,C8-10) -> 211.5632573 | E70: 625 | F70: 211.5632573 | G70: 625 | H70: 223.6370851 | I70: 625 | J70: 273.2364735 | K70: 625 | L70: 1479.862754 | M70: 0 | N70: 914.9999758 | O70: 0 | P70: 839.9999777 | Q70: 0 | R70: 1042.499972 | S70: 0 | T70: 952.4999748
J73: Lb = | K73: =B8 -> 500 | L73: ft
J74: Mu = | K74: =C8 -> 240 | L74: k*ft
J75: Cb = | K75: =A8 -> 1
K77: fMn @ Lb
J78: =E6 -> W18x311 | K78: =F50 -> 317.3839882 | L78: k*ft
J79: =G6 -> W24X335 | K79: =H50 -> 335.5568393 | L79: k*ft
J80: =I6 -> W24X370 | K80: =J50 -> 409.9625136 | L80: k*ft
J81: =K6 -> W14X730 | K81: =L50 -> 2219.951748 | L81: k*ft
J82: =M6 -> W27X84 | K82: =N50 -> 914.9999758 | L82: k*ft
J83: =O6 -> W24X84 | K83: =P50 -> 839.9999777 | L83: k*ft
J84: =Q6 -> W27X94 | K84: =R50 -> 1042.499972 | L84: k*ft
J85: =S6 -> W24X94 | K85: =T50 -> 952.4999748 | L85: k*ft
J95: Lb = | K95: =B8 -> 500 | L95: ft
J96: Ma = | K96: =C8 -> 240 | L96: k*ft
J97: Cb = | K97: =A8 -> 1
K99: Mn/Wb @ Lb
J100: =E6 -> W18x311 | K100: =F50 -> 317.3839882 | L100: k*ft
J101: =G6 -> W24X335 | K101: =H50 -> 335.5568393 | L101: k*ft
J102: =I6 -> W24X370 | K102: =J50 -> 409.9625136 | L102: k*ft
J103: =K6 -> W14X730 | K103: =L50 -> 2219.951748 | L103: k*ft
J104: =M6 -> W27X84 | K104: =N50 -> 914.9999758 | L104: k*ft
J105: =O6 -> W24X84 | K105: =P50 -> 839.9999777 | L105: k*ft
J106: =Q6 -> W27X94 | K106: =R50 -> 1042.499972 | L106: k*ft
J107: =S6 -> W24X94 | K107: =T50 -> 952.4999748 | L107: k*ft

Sheet Details (hidden)
A1: 1 | B1: 2 | C1: 3 | D1: 4 | E1: 5 | F1: 6 | G1: 7 | H1: 8 | I1: 9 | J1: 10 | K1: 11 | L1: 12 | S1: 0 | T1: 0
E6: W24X55
E7: Lb (ft) | F7: Mn | G7: L_b | H7: line | I7: M_n
D8: Lp,Mp | E8: 4.75 | F8: 502.5 | G8: 59 | H8: 0 | I8: 37.89440918
D9: Lr,Mr | E9: 36.31805929 | F9: 1325.624965 | G9: 59 | H9: =0.05*H11 -> 27.6375
E10: 0 | F10: 502.4999867 | G10: 59 | H10: =0.95*H11 -> 525.1125
E11: 1.180000067 | F11: 502.4999867 | G11: 59 | H11: 552.75
E12: 2.360000134 | F12: 502.4999867
E13: 3.5400002 | F13: 502.4999867
E14: 4.720000267 | F14: 502.4999867
E15: 5.900000095 | F15: 476.6146236
E16: 7.080000401 | F16: 450.4375369
E17: 8.260000229 | F17: 424.2604502
E18: 9.440000534 | F18: 398.0833635
E19: 10.62000084 | F19: 371.9063134
E20: 11.80000019 | F20: 345.7292267
E21: 12.9800005 | F21: 319.55214
E22: 14.1600008 | F22: 289.1285446
E23: 15.34000111 | F23: 251.7592096
E24: 16.52000046 | F24: 221.9981081
E25: 17.70000076 | F25: 197.8849679
E26: 18.88000107 | F26: 178.0530165
E27: 20.06000137 | F27: 161.5257159
E28: 21.24000168 | F28: 147.5904655
E29: 22.42000008 | F29: 135.7174311
E30: 23.60000038 | F30: 125.5060514
E31: 24.78000069 | F31: 116.6490203
E32: 25.96000099 | F32: 108.9073854
E33: 27.1400013 | F33: 102.0930698
E34: 28.3200016 | F34: 96.0564031
E35: 29.50000191 | F35: 90.67709416
E36: 30.68000221 | F36: 85.85752031
E37: 31.86000061 | F37: 81.51782926
E38: 33.04000092 | F38: 77.5921122
E39: 34.22000122 | F39: 74.02564349
E40: 35.40000153 | F40: 70.77263301
E41: 36.58000183 | F41: 67.7945142
E42: 37.76000214 | F42: 65.05863475
E43: 38.94000244 | F43: 62.53717638
E44: 40.12000275 | F44: 60.20630334
E45: 41.30000305 | F45: 58.04552611
E46: 42.48000336 | F46: 56.03710636
E47: 43.66000366 | F47: 54.16564951
E48: 44.84000015 | F48: 52.41772017
E49: 46.02000046 | F49: 50.78156756
E50: 47.20000076 | F50: 49.24683707
E51: 48.38000107 | F51: 47.80442836
E52: 49.56000137 | F52: 46.44624816
E53: 50.74000168 | F53: 45.16514163
E54: 51.92000198 | F54: 43.95470922
E55: 53.10000229 | F55: 42.8092518
E56: 54.28000259 | F56: 41.72364697
E57: 55.4600029 | F57: 40.69331252
E58: 56.6400032 | F58: 39.71408739
E59: 57.82000351 | F59: 38.78224995
E60: 59.00000381 | F60: 37.89440818
E61: 60.18000412 | F61: 37.04748818
E62: 61.36000443 | F62: 36.2387022
E63: 62.54000092 | F63: 35.46551191
E64: 63.72000122 | F64: 34.72558044
E65: 64.90000153 | F65: 34.01678606
E66: 66.08000183 | F66: 33.33718555
E67: 67.26000214 | F67: 32.68498906
E68: 68.44000244 | F68: 32.05854636
E69: 69.62000275 | F69: 31.45634225
E70: 70.80000305 | F70: 30.87698282

Sheet Lists (hidden)
A1: 1 | B1: =A1+1 -> 2 | C1: =B1+1 -> 3 | D1: 4 | E1: 5 | F1: 6 | G1: 7 | H1: 8 | I1: 9 | J1: 10 | K1: 11 | L1: 12 | M1: 13 | N1: 14 | O1: 15 | P1: 16 | Q1: 17 | R1: 18
B2: 3 | E2: 2
B3: P (kips) | C3: a (in) | E3: Rules | Q3: 0 | R3: 0
B4: 10 | C4: 9 | E4: 0 | F4: 0 | G4: 0 | H4: 22 | I4: Min | J4: d | K4: in
B5: 8 | C5: 9 | E5: 1 | F5: 1 | G5: 0 | H5: 29 | I5: Max | J5: d | K5: in
B6: 8 | C6: 9

Sheet Data_2010 (hidden)
A1: 1 | B1: 2 | C1: 3 | D1: 4 | E1: 5 | F1: 6 | G1: 7 | H1: 8 | I1: 9 | J1: 10 | K1: 11 | L1: 12 | M1: 13 | N1: 14 | O1: 15 | P1: 16 | Q1: 17 | R1: 18 | S1: 19 | T1: 20 | U1: 21 | V1: 22 | W1: 23 | X1: 24 | Y1: 25 | Z1: 26 | AA1: 27 | AB1: 28 | AC1: 29 | AD1: 30 | AE1: 31 | AF1: 32 | AG1: 33 | AH1: 34 | AI1: 35 | AJ1: 36 | AK1: 37 | AL1: 38 | AM1: 39 | AN1: 40 | AO1: 41 | AP1: 42 | AQ1: 43 | AR1: 44 | AS1: 45 | AT1: 46 | AU1: 47 | AV1: 48 | AW1: 49 | AX1: 50 | AY1: 51 | AZ1: 52 | BA1: 53 | BB1: 54 | BC1: 55 | BD1: 56 | BE1: 57
A2: 412 | B2: EDI_STD_NOMENCLATURE | C2: AISC_MANUAL_LABEL | D2: Shape Type | E2: T_F | F2: W | G2: A | H2: D | I2: HT | J2: OD | K2: BF | L2: B | M2: ID | N2: TW | O2: TF | P2: T | Q2: TNOM | R2: TDES | S2: KDES | T2: KDET | U2: K1 | V2: X | W2: Y | X2: E0 | Y2: XP | Z2: YP | AA2: BF_2TF | AB2: B_T | AC2: H_TW | AD2: H_T | AE2: D_T | AF2: FY3P | AG2: X1 | AH2: X2 | AI2: IX | AJ2: ZX | AK2: SX | AL2: RX | AM2: IY | AN2: ZY | AO2: SY | AP2: RY | AQ2: RZ | AR2: J | AS2: CW | AT2: C | AU2: WNO | AV2: SW | AW2: QF | AX2: QW | AY2: RO | AZ2: H | BA2: TAN_ALPHA | BB2: QS | BC2: h_o | BD2: position | BE2: Selected
A3: 0 | B3: W44X335 | C3: W44X335 | D3: W | E3: F | F3: 335 | G3: 98.5 | H3: 44 | I3: 0 | J3: 0 | K3: 15.9 | L3: 0 | M3: 0 | N3: 1.03 | O3: 1.77 | P3: 0 | Q3: 0 | R3: 0 | S3: 2.56 | T3: 2.625 | U3: 1.3125 | V3: 0 | W3: 0 | X3: 0 | Y3: 0 | Z3: 0 | AA3: 4.5 | AB3: 0 | AC3: 38 | AD3: 0 | AE3: 0 | AI3: 31100 | AJ3: 1620 | AK3: 1410 | AL3: 17.8 | AM3: 1200 | AN3: 236 | AO3: 150 | AP3: 3.49 | AQ3: 0 | AR3: 74.7 | AS3: 535000 | AT3: 0 | AU3: 168 | AV3: 1180 | AW3: 278 | AX3: 805 | AY3: 0 | AZ3: 0 | BA3: 0 | BB3: 0 | BC3: 42.2 | BD3: 1 | BE3: TRUE
A4: 0 | B4: W44X290 | C4: W44X290 | D4: W | E4: F | F4: 290 | G4: 85.4 | H4: 43.6 | I4: 0 | J4: 0 | K4: 15.8 | L4: 0 | M4: 0 | N4: 0.865 | O4: 1.58 | P4: 0 | Q4: 0 | R4: 0 | S4: 2.36 | T4: 2.4375 | U4: 1.25 | V4: 0 | W4: 0 | X4: 0 | Y4: 0 | Z4: 0 | AA4: 5.02 | AB4: 0 | AC4: 45 | AD4: 0 | AE4: 0 | AI4: 27000 | AJ4: 1410 | AK4: 1240 | AL4: 17.8 | AM4: 1040 | AN4: 205 | AO4: 132 | AP4: 3.49 | AQ4: 0 | AR4: 50.9 | AS4: 461000 | AT4: 0 | AU4: 166 | AV4: 1040 | AW4: 248 | AX4: 701 | AY4: 0 | AZ4: 0 | BA4: 0 | BB4: 0 | BC4: 42 | BD4: 2 | BE4: TRUE
A5: 0 | B5: W44X262 | C5: W44X262 | D5: W | E5: F | F5: 262 | G5: 77.2 | H5: 43.3 | I5: 0 | J5: 0 | K5: 15.8 | L5: 0 | M5: 0 | N5: 0.785 | O5: 1.42 | P5: 0 | Q5: 0 | R5: 0 | S5: 2.2 | T5: 2.25 | U5: 1.1875 | V5: 0 | W5: 0 | X5: 0 | Y5: 0 | Z5: 0 | AA5: 5.57 | AB5: 0 | AC5: 49.6 | AD5: 0 | AE5: 0 | AI5: 24100 | AJ5: 1270 | AK5: 1110 | AL5: 17.7 | AM5: 923 | AN5: 182 | AO5: 117 | AP5: 3.47 | AQ5: 0 | AR5: 37.3 | AS5: 405000 | AT5: 0 | AU5: 165 | AV5: 928 | AW5: 223 | AX5: 630 | AY5: 0 | AZ5: 0 | BA5: 0 | BB5: 0 | BC5: 41.9 | BD5: 3 | BE5: TRUE
A6: 0 | B6: W44X230 | C6: W44X230 | D6: W | E6: F | F6: 230 | G6: 67.8 | H6: 42.9 | I6: 0 | J6: 0 | K6: 15.8 | L6: 0 | M6: 0 | N6: 0.71 | O6: 1.22 | P6: 0 | Q6: 0 | R6: 0 | S6: 2.01 | T6: 2.0625 | U6: 1.1875 | V6: 0 | W6: 0 | X6: 0 | Y6: 0 | Z6: 0 | AA6: 6.45 | AB6: 0 | AC6: 54.8 | AD6: 0 | AE6: 0 | AI6: 20800 | AJ6: 1100 | AK6: 971 | AL6: 17.5 | AM6: 796 | AN6: 157 | AO6: 101 | AP6: 3.43 | AQ6: 0 | AR6: 24.9 | AS6: 346000 | AT6: 0 | AU6: 165 | AV6: 793 | AW6: 192 | AX6: 547 | AY6: 0 | AZ6: 0 | BA6: 0 | BB6: 0 | BC6: 41.7 | BD6: 4 | BE6: TRUE
A7: 0 | B7: W40X593 | C7: W40X593 | D7: W | E7: T | F7: 593 | G7: 174 | H7: 43 | I7: 0 | J7: 0 | K7: 16.7 | L7: 0 | M7: 0 | N7: 1.79 | O7: 3.23 | P7: 0 | Q7: 0 | R7: 0 | S7: 4.41 | T7: 4.5 | U7: 2.125 | V7: 0 | W7: 0 | X7: 0 | Y7: 0 | Z7: 0 | AA7: 2.58 | AB7: 0 | AC7: 19.1 | AD7: 0 | AE7: 0 | AI7: 50400 | AJ7: 2760 | AK7: 2340 | AL7: 17 | AM7: 2520 | AN7: 481 | AO7: 302 | AP7: 3.8 | AQ7: 0 | AR7: 445 | AS7: 997000 | AT7: 0 | AU7: 166 | AV7: 2240 | AW7: 479 | AX7: 1370 | AY7: 0 | AZ7: 0 | BA7: 0 | BB7: 0 | BC7: 39.8 | BD7: 5 | BE7: TRUE
A8: 0 | B8: W40X503 | C8: W40X503 | D8: W | E8: T | F8: 503 | G8: 148 | H8: 42.1 | I8: 0 | J8: 0 | K8: 16.4 | L8: 0 | M8: 0 | N8: 1.54 | O8: 2.76 | P8: 0 | Q8: 0 | R8: 0 | S8: 3.94 | T8: 4 | U8: 2 | V8: 0 | W8: 0 | X8: 0 | Y8: 0 | Z8: 0 | AA8: 2.98 | AB8: 0 | AC8: 22.3 | AD8: 0 | AE8: 0 | AI8: 41600 | AJ8: 2320 | AK8: 1980 | AL8: 16.8 | AM8: 2040 | AN8: 394 | AO8: 249 | AP8: 3.72 | AQ8: 0 | AR8: 277 | AS8: 789000 | AT8: 0 | AU8: 161 | AV8: 1830 | AW8: 403 | AX8: 1150 | AY8: 0 | AZ8: 0 | BA8: 0 | BB8: 0 | BC8: 39.3 | BD8: 6 | BE8: TRUE
A9: 0 | B9: W40X431 | C9: W40X431 | D9: W | E9: T | F9: 431 | G9: 127 | H9: 41.3 | I9: 0 | J9: 0 | K9: 16.2 | L9: 0 | M9: 0 | N9: 1.34 | O9: 2.36 | P9: 0 | Q9: 0 | R9: 0 | S9: 3.54 | T9: 3.625 | U9: 1.875 | V9: 0 | W9: 0 | X9: 0 | Y9: 0 | Z9: 0 | AA9: 3.44 | AB9: 0 | AC9: 25.5 | AD9: 0 | AE9: 0 | AI9: 34800 | AJ9: 1960 | AK9: 1690 | AL9: 16.6 | AM9: 1690 | AN9: 328 | AO9: 208 | AP9: 3.65 | AQ9: 0 | AR9: 177 | AS9: 638000 | AT9: 0 | AU9: 158 | AV9: 1510 | AW9: 341 | AX9: 969 | AY9: 0 | AZ9: 0 | BA9: 0 | BB9: 0 | BC9: 38.9 | BD9: 7 | BE9: TRUE
A10: 0 | B10: W40X397 | C10: W40X397 | D10: W | E10: T | F10: 397 | G10: 117 | H10: 41 | I10: 0 | J10: 0 | K10: 16.1 | L10: 0 | M10: 0 | N10: 1.22 | O10: 2.2 | P10: 0 | Q10: 0 | R10: 0 | S10: 3.38 | T10: 3.5 | U10: 1.8125 | V10: 0 | W10: 0 | X10: 0 | Y10: 0 | Z10: 0 | AA10: 3.66 | AB10: 0 | AC10: 28 | AD10: 0 | AE10: 0 | AI10: 32000 | AJ10: 1800 | AK10: 1560 | AL10: 16.6 | AM10: 1540 | AN10: 300 | AO10: 191 | AP10: 3.64 | AQ10: 0 | AR10: 142 | AS10: 579000 | AT10: 0 | AU10: 156 | AV10: 1380 | AW10: 318 | AX10: 891 | AY10: 0 | AZ10: 0 | BA10: 0 | BB10: 0 | BC10: 38.8 | BD10: 8 | BE10: TRUE
A11: 0 | B11: W40X372 | C11: W40X372 | D11: W | E11: T | F11: 372 | G11: 110 | H11: 40.6 | I11: 0 | J11: 0 | K11: 16.1 | L11: 0 | M11: 0 | N11: 1.16 | O11: 2.05 | P11: 0 | Q11: 0 | R11: 0 | S11: 3.23 | T11: 3.3125 | U11: 1.8125 | V11: 0 | W11: 0 | X11: 0 | Y11: 0 | Z11: 0 | AA11: 3.93 | AB11: 0 | AC11: 29.5 | AD11: 0 | AE11: 0 | AI11: 29600 | AJ11: 1680 | AK11: 1460 | AL11: 16.5 | AM11: 1420 | AN11: 277 | AO11: 177 | AP11: 3.6 | AQ11: 0 | AR11: 116 | AS11: 528000 | AT11: 0 | AU11: 155 | AV11: 1280 | AW11: 295 | AX11: 829 | AY11: 0 | AZ11: 0 | BA11: 0 | BB11: 0 | BC11: 38.6 | BD11: 9 | BE11: TRUE
A12: 0 | B12: W40X362 | C12: W40X362 | D12: W | E12: T | F12: 362 | G12: 106 | H12: 40.6 | I12: 0 | J12: 0 | K12: 16 | L12: 0 | M12: 0 | N12: 1.12 | O12: 2.01 | P12: 0 | Q12: 0 | R12: 0 | S12: 3.19 | T12: 3.25 | U12: 1.75 | V12: 0 | W12: 0 | X12: 0 | Y12: 0 | Z12: 0 | AA12: 3.99 | AB12: 0 | AC12: 30.5 | AD12: 0 | AE12: 0 | AI12: 28900 | AJ12: 1640 | AK12: 1420 | AL12: 16.5 | AM12: 1380 | AN12: 270 | AO12: 173 | AP12: 3.6 | AQ12: 0 | AR12: 109 | AS12: 513000 | AT12: 0 | AU12: 154 | AV12: 1240 | AW12: 289 | AX12: 808 | AY12: 0 | AZ12: 0 | BA12: 0 | BB12: 0 | BC12: 38.6 | BD12: 10 | BE12: TRUE
A13: 0 | B13: W40X324 | C13: W40X324 | D13: W | E13: F | F13: 324 | G13: 95.3 | H13: 40.2 | I13: 0 | J13: 0 | K13: 15.9 | L13: 0 | M13: 0 | N13: 1 | O13: 1.81 | P13: 0 | Q13: 0 | R13: 0 | S13: 2.99 | T13: 3.0625 | U13: 1.6875 | V13: 0 | W13: 0 | X13: 0 | Y13: 0 | Z13: 0 | AA13: 4.4 | AB13: 0 | AC13: 34.2 | AD13: 0 | AE13: 0 | AI13: 25600 | AJ13: 1460 | AK13: 1280 | AL13: 16.4 | AM13: 1220 | AN13: 239 | AO13: 153 | AP13: 3.58 | AQ13: 0 | AR13: 79.4 | AS13: 448000 | AT13: 0 | AU13: 153 | AV13: 1100 | AW13: 259 | AX13: 720 | AY13: 0 | AZ13: 0 | BA13: 0 | BB13: 0 | BC13: 38.4 | BD13: 11 | BE13: TRUE
A14: 0 | B14: W40X297 | C14: W40X297 | D14: W | E14: F | F14: 297 | G14: 87.3 | H14: 39.8 | I14: 0 | J14: 0 | K14: 15.8 | L14: 0 | M14: 0 | N14: 0.93 | O14: 1.65 | P14: 0 | Q14: 0 | R14: 0 | S14: 2.83 | T14: 2.9375 | U14: 1.6875 | V14: 0 | W14: 0 | X14: 0 | Y14: 0 | Z14: 0 | AA14: 4.8 | AB14: 0 | AC14: 36.8 | AD14: 0 | AE14: 0 | AI14: 23200 | AJ14: 1330 | AK14: 1170 | AL14: 16.3 | AM14: 1090 | AN14: 215 | AO14: 138 | AP14: 3.54 | AQ14: 0 | AR14: 61.2 | AS14: 399000 | AT14: 0 | AU14: 151 | AV14: 982 | AW14: 234 | AX14: 652 | AY14: 0 | AZ14: 0 | BA14: 0 | BB14: 0 | BC14: 38.2 | BD14: 12 | BE14: TRUE
A15: 0 | B15: W40X277 | C15: W40X277 | D15: W | E15: F | F15: 277 | G15: 81.5 | H15: 39.7 | I15: 0 | J15: 0 | K15: 15.8 | L15: 0 | M15: 0 | N15: 0.83 | O15: 1.58 | P15: 0 | Q15: 0 | R15: 0 | S15: 2.76 | T15: 2.875 | U15: 1.625 | V15: 0 | W15: 0 | X15: 0 | Y15: 0 | Z15: 0 | AA15: 5.03 | AB15: 0 | AC15: 41.2 | AD15: 0 | AE15: 0 | AI15: 21900 | AJ15: 1250 | AK15: 1100 | AL15: 16.4 | AM15: 1040 | AN15: 204 | AO15: 132 | AP15: 3.58 | AQ15: 0 | AR15: 51.5 | AS15: 379000 | AT15: 0 | AU15: 151 | AV15: 940 | AW15: 225 | AX15: 614 | AY15: 0 | AZ15: 0 | BA15: 0 | BB15: 0 | BC15: 38.1 | BD15: 13 | BE15: TRUE
A16: 0 | B16: W40X249 | C16: W40X249 | D16: W | E16: F | F16: 249 | G16: 73.5 | H16: 39.4 | I16: 0 | J16: 0 | K16: 15.8 | L16: 0 | M16: 0 | N16: 0.75 | O16: 1.42 | P16: 0 | Q16: 0 | R16: 0 | S16: 2.6 | T16: 2.6875 | U16: 1.5625 | V16: 0 | W16: 0 | X16: 0 | Y16: 0 | Z16: 0 | AA16: 5.55 | AB16: 0 | AC16: 45.6 | AD16: 0 | AE16: 0 | AI16: 19600 | AJ16: 1120 | AK16: 993 | AL16: 16.3 | AM16: 926 | AN16: 182 | AO16: 118 | AP16: 3.55 | AQ16: 0 | AR16: 38.1 | AS16: 334000 | AT16: 0 | AU16: 150 | AV16: 841 | AW16: 203 | AX16: 551 | AY16: 0 | AZ16: 0 | BA16: 0 | BB16: 0 | BC16: 38 | BD16: 14 | BE16: TRUE
A17: 0 | B17: W40X215 | C17: W40X215 | D17: W | E17: F | F17: 215 | G17: 63.5 | H17: 39 | I17: 0 | J17: 0 | K17: 15.8 | L17: 0 | M17: 0 | N17: 0.65 | O17: 1.22 | P17: 0 | Q17: 0 | R17: 0 | S17: 2.4 | T17: 2.5 | U17: 1.5625 | V17: 0 | W17: 0 | X17: 0 | Y17: 0 | Z17: 0 | AA17: 6.45 | AB17: 0 | AC17: 52.6 | AD17: 0 | AE17: 0 | AI17: 16700 | AJ17: 964 | AK17: 859 | AL17: 16.2 | AM17: 803 | AN17: 156 | AO17: 101 | AP17: 3.54 | AQ17: 0 | AR17: 24.8 | AS17: 284000 | AT17: 0 | AU17: 149 | AV17: 719 | AW17: 175 | AX17: 473 | AY17: 0 | AZ17: 0 | BA17: 0 | BB17: 0 | BC17: 37.8 | BD17: 15 | BE17: TRUE
A18: 0 | B18: W40X199 | C18: W40X199 | D18: W | E18: F | F18: 199 | G18: 58.8 | H18: 38.7 | I18: 0 | J18: 0 | K18: 15.8 | L18: 0 | M18: 0 | N18: 0.65 | O18: 1.07 | P18: 0 | Q18: 0 | R18: 0 | S18: 2.25 | T18: 2.3125 | U18: 1.5625 | V18: 0 | W18: 0 | X18: 0 | Y18: 0 | Z18: 0 | AA18: 7.39 | AB18: 0 | AC18: 52.6 | AD18: 0 | AE18: 0 | AI18: 14900 | AJ18: 869 | AK18: 770 | AL18: 16 | AM18: 695 | AN18: 137 | AO18: 88.2 | AP18: 3.45 | AQ18: 0 | AR18: 18.3 | AS18: 246000 | AT18: 0 | AU18: 149 | AV18: 628 | AW18: 153 | AX18: 427 | AY18: 0 | AZ18: 0 | BA18: 0 | BB18: 0 | BC18: 37.6 | BD18: 16 | BE18: TRUE
A19: 0 | B19: W40X392 | C19: W40X392 | D19: W | E19: T | F19: 392 | G19: 116 | H19: 41.6 | I19: 0 | J19: 0 | K19: 12.4 | L19: 0 | M19: 0 | N19: 1.42 | O19: 2.52 | P19: 0 | Q19: 0 | R19: 0 | S19: 3.7 | T19: 3.8125 | U19: 1.9375 | V19: 0 | W19: 0 | X19: 0 | Y19: 0 | Z19: 0 | AA19: 2.45 | AB19: 0 | AC19: 24.1 | AD19: 0 | AE19: 0 | AI19: 29900 | AJ19: 1710 | AK19: 1440 | AL19: 16.1 | AM19: 803 | AN19: 212 | AO19: 130 | AP19: 2.64 | AQ19: 0 | AR19: 172 | AS19: 306000 | AT19: 0 | AU19: 121 | AV19: 946 | AW19: 270 | AX19: 848 | AY19: 0 | AZ19: 0 | BA19: 0 | BB19: 0 | BC19: 39.1 | BD19: 17 | BE19: TRUE
A20: 0 | B20: W40X331 | C20: W40X331 | D20: W | E20: T | F20: 331 | G20: 97.7 | H20: 40.8 | I20: 0 | J20: 0 | K20: 12.2 | L20: 0 | M20: 0 | N20: 1.22 | O20: 2.13 | P20: 0 | Q20: 0 | R20: 0 | S20: 3.31 | T20: 3.375 | U20: 1.8125 | V20: 0 | W20: 0 | X20: 0 | Y20: 0 | Z20: 0 | AA20: 2.86 | AB20: 0 | AC20: 28 | AD20: 0 | AE20: 0 | AI20: 24700 | AJ20: 1430 | AK20: 1210 | AL20: 15.9 | AM20: 644 | AN20: 172 | AO20: 106 | AP20: 2.57 | AQ20: 0 | AR20: 105 | AS20: 241000 | AT20: 0 | AU20: 118 | AV20: 766 | AW20: 226 | AX20: 706 | AY20: 0 | AZ20: 0 | BA20: 0 | BB20: 0 | BC20: 38.7 | BD20: 18 | BE20: TRUE
A21: 0 | B21: W40X327 | C21: W40X327 | D21: W | E21: T | F21: 327 | G21: 95.9 | H21: 40.8 | I21: 0 | J21: 0 | K21: 12.1 | L21: 0 | M21: 0 | N21: 1.18 | O21: 2.13 | P21: 0 | Q21: 0 | R21: 0 | S21: 3.31 | T21: 3.375 | U21: 1.8125 | V21: 0 | W21: 0 | X21: 0 | Y21: 0 | Z21: 0 | AA21: 2.85 | AB21: 0 | AC21: 29 | AD21: 0 | AE21: 0 | AI21: 24500 | AJ21: 1410 | AK21: 1200 | AL21: 16 | AM21: 640 | AN21: 170 | AO21: 105 | AP21: 2.58 | AQ21: 0 | AR21: 103 | AS21: 239000 | AT21: 0 | AU21: 117 | AV21: 754 | AW21: 225 | AX21: 695 | AY21: 0 | AZ21: 0 | BA21: 0 | BB21: 0 | BC21: 38.7 | BD21: 19 | BE21: TRUE
A22: 0 | B22: W40X294 | C22: W40X294 | D22: W | E22: F | F22: 294 | G22: 86.2 | H22: 40.4 | I22: 0 | J22: 0 | K22: 12 | L22: 0 | M22: 0 | N22: 1.06 | O22: 1.93 | P22: 0 | Q22: 0 | R22: 0 | S22: 3.11 | T22: 3.1875 | U22: 1.75 | V22: 0 | W22: 0 | X22: 0 | Y22: 0 | Z22: 0 | AA22: 3.11 | AB22: 0 | AC22: 32.2 | AD22: 0 | AE22: 0 | AI22: 21900 | AJ22: 1270 | AK22: 1080 | AL22: 15.9 | AM22: 562 | AN22: 150 | AO22: 93.5 | AP22: 2.55 | AQ22: 0 | AR22: 76.6 | AS22: 208000 | AT22: 0 | AU22: 115 | AV22: 668 | AW22: 203 | AX22: 622 | AY22: 0 | AZ22: 0 | BA22: 0 | BB22: 0 | BC22: 38.5 | BD22: 20 | BE22: TRUE
A23: 0 | B23: W40X278 | C23: W40X278 | D23: W | E23: F | F23: 278 | G23: 82.3 | H23: 40.2 | I23: 0 | J23: 0 | K23: 12 | L23: 0 | M23: 0 | N23: 1.03 | O23: 1.81 | P23: 0 | Q23: 0 | R23: 0 | S23: 2.99 | T23: 3.0625 | U23: 1.75 | V23: 0 | W23: 0 | X23: 0 | Y23: 0 | Z23: 0 | AA23: 3.31 | AB23: 0 | AC23: 33.3 | AD23: 0 | AE23: 0 | AI23: 20500 | AJ23: 1190 | AK23: 1020 | AL23: 15.8 | AM23: 521 | AN23: 140 | AO23: 87.1 | AP23: 2.52 | AQ23: 0 | AR23: 65 | AS23: 192000 | AT23: 0 | AU23: 115 | AV23: 622 | AW23: 190 | AX23: 587 | AY23: 0 | AZ23: 0 | BA23: 0 | BB23: 0 | BC23: 38.4 | BD23: 21 | BE23: TRUE
A24: 0 | B24: W40X264 | C24: W40X264 | D24: W | E24: F | F24: 264 | G24: 77.4 | H24: 40 | I24: 0 | J24: 0 | K24: 11.9 | L24: 0 | M24: 0 | N24: 0.96 | O24: 1.73 | P24: 0 | Q24: 0 | R24: 0 | S24: 2.91 | T24: 3 | U24: 1.6875 | V24: 0 | W24: 0 | X24: 0 | Y24: 0 | Z24: 0 | AA24: 3.45 | AB24: 0 | AC24: 35.6 | AD24: 0 | AE24: 0 | AI24: 19400 | AJ24: 1130 | AK24: 971 | AL24: 15.8 | AM24: 493 | AN24: 132 | AO24: 82.6 | AP24: 2.52 | AQ24: 0 | AR24: 56.1 | AS24: 181000 | AT24: 0 | AU24: 114 | AV24: 589 | AW24: 182 | AX24: 555 | AY24: 0 | AZ24: 0 | BA24: 0 | BB24: 0 | BC24: 38.3 | BD24: 22 | BE24: TRUE
A25: 0 | B25: W40X235 | C25: W40X235 | D25: W | E25: F | F25: 235 | G25: 69.1 | H25: 39.7 | I25: 0 | J25: 0 | K25: 11.9 | L25: 0 | M25: 0 | N25: 0.83 | O25: 1.58 | P25: 0 | Q25: 0 | R25: 0 | S25: 2.76 | T25: 2.875 | U25: 1.625 | V25: 0 | W25: 0 | X25: 0 | Y25: 0 | Z25: 0 | AA25: 3.77 | AB25: 0 | AC25: 41.2 | AD25: 0 | AE25: 0 | AI25: 17400 | AJ25: 1010 | AK25: 875 | AL25: 15.9 | AM25: 444 | AN25: 118 | AO25: 74.6 | AP25: 2.54 | AQ25: 0 | AR25: 41.3 | AS25: 161000 | AT25: 0 | AU25: 113 | AV25: 530 | AW25: 166 | AX25: 495 | AY25: 0 | AZ25: 0 | BA25: 0 | BB25: 0 | BC25: 38.1 | BD25: 23 | BE25: TRUE
A26: 0 | B26: W40X211 | C26: W40X211 | D26: W | E26: F | F26: 211 | G26: 62.1 | H26: 39.4 | I26: 0 | J26: 0 | K26: 11.8 | L26: 0 | M26: 0 | N26: 0.75 | O26: 1.42 | P26: 0 | Q26: 0 | R26: 0 | S26: 2.6 | T26: 2.6875 | U26: 1.5625 | V26: 0 | W26: 0 | X26: 0 | Y26: 0 | Z26: 0 | AA26: 4.17 | AB26: 0 | AC26: 45.6 | AD26: 0 | AE26: 0 | AI26: 15500 | AJ26: 906 | AK26: 786 | AL26: 15.8 | AM26: 390 | AN26: 105 | AO26: 66.1 | AP26: 2.51 | AQ26: 0 | AR26: 30.4 | AS26: 141000 | AT26: 0 | AU26: 112 | AV26: 468 | AW26: 148 | AX26: 442 | AY26: 0 | AZ26: 0 | BA26: 0 | BB26: 0 | BC26: 38 | BD26: 24 | BE26: TRUE
A27: 0 | B27: W40X183 | C27: W40X183 | D27: W | E27: F | F27: 183 | G27: 53.3 | H27: 39 | I27: 0 | J27: 0 | K27: 11.8 | L27: 0 | M27: 0 | N27: 0.65 | O27: 1.2 | P27: 0 | Q27: 0 | R27: 0 | S27: 2.38 | T27: 2.5 | U27: 1.5625 | V27: 0 | W27: 0 | X27: 0 | Y27: 0 | Z27: 0 | AA27: 4.92 | AB27: 0 | AC27: 52.6 | AD27: 0 | AE27: 0 | AI27: 13200 | AJ27: 774 | AK27: 675 | AL27: 15.7 | AM27: 331 | AN27: 88.3 | AO27: 56 | AP27: 2.49 | AQ27: 0 | AR27: 19.3 | AS27: 118000 | AT27: 0 | AU27: 112 | AV27: 395 | AW27: 126 | AX27: 376 | AY27: 0 | AZ27: 0 | BA27: 0 | BB27: 0 | BC27: 37.8 | BD27: 25 | BE27: TRUE
A28: 0 | B28: W40X167 | C28: W40X167 | D28: W | E28: F | F28: 167 | G28: 49.3 | H28: 38.6 | I28: 0 | J28: 0 | K28: 11.8 | L28: 0 | M28: 0 | N28: 0.65 | O28: 1.03 | P28: 0 | Q28: 0 | R28: 0 | S28: 2.21 | T28: 2.3125 | U28: 1.5625 | V28: 0 | W28: 0 | X28: 0 | Y28: 0 | Z28: 0 | AA28: 5.76 | AB28: 0 | AC28: 52.6 | AD28: 0 | AE28: 0 | AI28: 11600 | AJ28: 693 | AK28: 600 | AL28: 15.3 | AM28: 283 | AN28: 76 | AO28: 47.9 | AP28: 2.4 | AQ28: 0 | AR28: 14 | AS28: 99700 | AT28: 0 | AU28: 111 | AV28: 336 | AW28: 107 | AX28: 336 | AY28: 0 | AZ28: 0 | BA28: 0 | BB28: 0 | BC28: 37.6 | BD28: 26 | BE28: TRUE
A29: 0 | B29: W40X149 | C29: W40X149 | D29: W | E29: F | F29: 149 | G29: 43.8 | H29: 38.2 | I29: 0 | J29: 0 | K29: 11.8 | L29: 0 | M29: 0 | N29: 0.63 | O29: 0.83 | P29: 0 | Q29: 0 | R29: 0 | S29: 2.01 | T29: 2.125 | U29: 1.5 | V29: 0 | W29: 0 | X29: 0 | Y29: 0 | Z29: 0 | AA29: 7.11 | AB29: 0 | AC29: 54.3 | AD29: 0 | AE29: 0 | AI29: 9800 | AJ29: 598 | AK29: 513 | AL29: 15 | AM29: 229 | AN29: 62.2 | AO29: 38.8 | AP29: 2.29 | AQ29: 0 | AR29: 9.36 | AS29: 80000 | AT29: 0 | AU29: 110 | AV29: 270 | AW29: 86.7 | AX29: 288 | AY29: 0 | AZ29: 0 | BA29: 0 | BB29: 0 | BC29: 37.4 | BD29: 27 | BE29: TRUE
A30: 0 | B30: W36X652 | C30: W36X652 | D30: W | E30: T | F30: 652 | G30: 192 | H30: 41.1 | I30: 0 | J30: 0 | K30: 17.6 | L30: 0 | M30: 0 | N30: 1.97 | O30: 3.54 | P30: 0 | Q30: 0 | R30: 0 | S30: 4.49 | T30: 4.8125 | U30: 2.1875 | V30: 0 | W30: 0 | X30: 0 | Y30: 0 | Z30: 0 | AA30: 2.48 | AB30: 0 | AC30: 16.3 | AD30: 0 | AE30: 0 | AI30: 50600 | AJ30: 2910 | AK30: 2460 | AL30: 16.2 | AM30: 3230 | AN30: 581 | AO30: 367 | AP30: 4.1 | AQ30: 0 | AR30: 593 | AS30: 1130000 | AT30: 0 | AU30: 165 | AV30: 2560 | AW30: 518 | AX30: 1450 | AY30: 0 | AZ30: 0 | BA30: 0 | BB30: 0 | BC30: 37.6 | BD30: 28 | BE30: TRUE
A31: 0 | B31: W36X529 | C31: W36X529 | D31: W | E31: T | F31: 529 | G31: 156 | H31: 39.8 | I31: 0 | J31: 0 | K31: 17.2 | L31: 0 | M31: 0 | N31: 1.61 | O31: 2.91 | P31: 0 | Q31: 0 | R31: 0 | S31: 3.86 | T31: 4.1875 | U31: 2 | V31: 0 | W31: 0 | X31: 0 | Y31: 0 | Z31: 0 | AA31: 2.96 | AB31: 0 | AC31: 19.9 | AD31: 0 | AE31: 0 | AI31: 39600 | AJ31: 2330 | AK31: 1990 | AL31: 16 | AM31: 2490 | AN31: 454 | AO31: 289 | AP31: 4 | AQ31: 0 | AR31: 327 | AS31: 846000 | AT31: 0 | AU31: 159 | AV31: 1990 | AW31: 419 | AX31: 1160 | AY31: 0 | AZ31: 0 | BA31: 0 | BB31: 0 | BC31: 36.9 | BD31: 29 | BE31: TRUE
A32: 0 | B32: W36X487 | C32: W36X487 | D32: W | E32: T | F32: 487 | G32: 143 | H32: 39.3 | I32: 0 | J32: 0 | K32: 17.1 | L32: 0 | M32: 0 | N32: 1.5 | O32: 2.68 | P32: 0 | Q32: 0 | R32: 0 | S32: 3.63 | T32: 4 | U32: 1.875 | V32: 0 | W32: 0 | X32: 0 | Y32: 0 | Z32: 0 | AA32: 3.19 | AB32: 0 | AC32: 21.4 | AD32: 0 | AE32: 0 | AI32: 36000 | AJ32: 2130 | AK32: 1830 | AL32: 15.8 | AM32: 2250 | AN32: 412 | AO32: 263 | AP32: 3.96 | AQ32: 0 | AR32: 258 | AS32: 754000 | AT32: 0 | AU32: 157 | AV32: 1800 | AW32: 383 | AX32: 1060 | AY32: 0 | AZ32: 0 | BA32: 0 | BB32: 0 | BC32: 36.6 | BD32: 30 | BE32: TRUE
A33: 0 | B33: W36X441 | C33: W36X441 | D33: W | E33: T | F33: 441 | G33: 130 | H33: 38.9 | I33: 0 | J33: 0 | K33: 17 | L33: 0 | M33: 0 | N33: 1.36 | O33: 2.44 | P33: 0 | Q33: 0 | R33: 0 | S33: 3.39 | T33: 3.75 | U33: 1.875 | V33: 0 | W33: 0 | X33: 0 | Y33: 0 | Z33: 0 | AA33: 3.48 | AB33: 0 | AC33: 23.6 | AD33: 0 | AE33: 0 | AI33: 32100 | AJ33: 1910 | AK33: 1650 | AL33: 15.7 | AM33: 1990 | AN33: 368 | AO33: 235 | AP33: 3.92 | AQ33: 0 | AR33: 194 | AS33: 661000 | AT33: 0 | AU33: 154 | AV33: 1600 | AW33: 347 | AX33: 950 | AY33: 0 | AZ33: 0 | BA33: 0 | BB33: 0 | BC33: 36.5 | BD33: 31 | BE33: TRUE
A34: 0 | B34: W36X395 | C34: W36X395 | D34: W | E34: T | F34: 395 | G34: 116 | H34: 38.4 | I34: 0 | J34: 0 | K34: 16.8 | L34: 0 | M34: 0 | N34: 1.22 | O34: 2.2 | P34: 0 | Q34: 0 | R34: 0 | S34: 3.15 | T34: 3.4375 | U34: 1.8125 | V34: 0 | W34: 0 | X34: 0 | Y34: 0 | Z34: 0 | AA34: 3.83 | AB34: 0 | AC34: 26.3 | AD34: 0 | AE34: 0 | AI34: 28500 | AJ34: 1710 | AK34: 1490 | AL34: 15.7 | AM34: 1750 | AN34: 325 | AO34: 208 | AP34: 3.88 | AQ34: 0 | AR34: 142 | AS34: 575000 | AT34: 0 | AU34: 152 | AV34: 1410 | AW34: 311 | AX34: 847 | AY34: 0 | AZ34: 0 | BA34: 0 | BB34: 0 | BC34: 36.2 | BD34: 32 | BE34: TRUE
A35: 0 | B35: W36X361 | C35: W36X361 | D35: W | E35: T | F35: 361 | G35: 106 | H35: 38 | I35: 0 | J35: 0 | K35: 16.7 | L35: 0 | M35: 0 | N35: 1.12 | O35: 2.01 | P35: 0 | Q35: 0 | R35: 0 | S35: 2.96 | T35: 3.3125 | U35: 1.75 | V35: 0 | W35: 0 | X35: 0 | Y35: 0 | Z35: 0 | AA35: 4.16 | AB35: 0 | AC35: 28.6 | AD35: 0 | AE35: 0 | AI35: 25700 | AJ35: 1550 | AK35: 1350 | AL35: 15.6 | AM35: 1570 | AN35: 293 | AO35: 188 | AP35: 3.85 | AQ35: 0 | AR35: 109 | AS35: 509000 | AT35: 0 | AU35: 150 | AV35: 1270 | AW35: 282 | AX35: 767 | AY35: 0 | AZ35: 0 | BA35: 0 | BB35: 0 | BC35: 36 | BD35: 33 | BE35: TRUE
A36: 0 | B36: W36X330 | C36: W36X330 | D36: W | E36: F | F36: 330 | G36: 96.9 | H36: 37.7 | I36: 0 | J36: 0 | K36: 16.6 | L36: 0 | M36: 0 | N36: 1.02 | O36: 1.85 | P36: 0 | Q36: 0 | R36: 0 | S36: 2.8 | T36: 3.125 | U36: 1.75 | V36: 0 | W36: 0 | X36: 0 | Y36: 0 | Z36: 0 | AA36: 4.49 | AB36: 0 | AC36: 31.4 | AD36: 0 | AE36: 0 | AI36: 23300 | AJ36: 1410 | AK36: 1240 | AL36: 15.5 | AM36: 1420 | AN36: 265 | AO36: 171 | AP36: 3.83 | AQ36: 0 | AR36: 84.3 | AS36: 456000 | AT36: 0 | AU36: 149 | AV36: 1150 | AW36: 259 | AX36: 698 | AY36: 0 | AZ36: 0 | BA36: 0 | BB36: 0 | BC36: 35.9 | BD36: 34 | BE36: TRUE
A37: 0 | B37: W36X302 | C37: W36X302 | D37: W | E37: F | F37: 302 | G37: 89 | H37: 37.3 | I37: 0 | J37: 0 | K37: 16.7 | L37: 0 | M37: 0 | N37: 0.945 | O37: 1.68 | P37: 0 | Q37: 0 | R37: 0 | S37: 2.63 | T37: 3 | U37: 1.6875 | V37: 0 | W37: 0 | X37: 0 | Y37: 0 | Z37: 0 | AA37: 4.96 | AB37: 0 | AC37: 33.9 | AD37: 0 | AE37: 0 | AI37: 21100 | AJ37: 1280 | AK37: 1130 | AL37: 15.4 | AM37: 1300 | AN37: 241 | AO37: 156 | AP37: 3.82 | AQ37: 0 | AR37: 64.3 | AS37: 412000 | AT37: 0 | AU37: 148 | AV37: 1040 | AW37: 235 | AX37: 635 | AY37: 0 | AZ37: 0 | BA37: 0 | BB37: 0 | BC37: 35.6 | BD37: 35 | BE37: TRUE
A38: 0 | B38: W36X282 | C38: W36X282 | D38: W | E38: F | F38: 282 | G38: 82.9 | H38: 37.1 | I38: 0 | J38: 0 | K38: 16.6 | L38: 0 | M38: 0 | N38: 0.885 | O38: 1.57 | P38: 0 | Q38: 0 | R38: 0 | S38: 2.52 | T38: 2.875 | U38: 1.625 | V38: 0 | W38: 0 | X38: 0 | Y38: 0 | Z38: 0 | AA38: 5.29 | AB38: 0 | AC38: 36.2 | AD38: 0 | AE38: 0 | AI38: 19600 | AJ38: 1190 | AK38: 1050 | AL38: 15.4 | AM38: 1200 | AN38: 223 | AO38: 144 | AP38: 3.8 | AQ38: 0 | AR38: 52.7 | AS38: 378000 | AT38: 0 | AU38: 147 | AV38: 960 | AW38: 219 | AX38: 591 | AY38: 0 | AZ38: 0 | BA38: 0 | BB38: 0 | BC38: 35.5 | BD38: 36 | BE38: TRUE
A39: 0 | B39: W36X262 | C39: W36X262 | D39: W | E39: F | F39: 262 | G39: 77.2 | H39: 36.9 | I39: 0 | J39: 0 | K39: 16.6 | L39: 0 | M39: 0 | N39: 0.84 | O39: 1.44 | P39: 0 | Q39: 0 | R39: 0 | S39: 2.39 | T39: 2.75 | U39: 1.625 | V39: 0 | W39: 0 | X39: 0 | Y39: 0 | Z39: 0 | AA39: 5.75 | AB39: 0 | AC39: 38.2 | AD39: 0 | AE39: 0 | AI39: 17900 | AJ39: 1100 | AK39: 972 | AL39: 15.3 | AM39: 1090 | AN39: 204 | AO39: 132 | AP39: 3.76 | AQ39: 0 | AR39: 41.6 | AS39: 342000 | AT39: 0 | AU39: 147 | AV39: 873 | AW39: 200 | AX39: 543 | AY39: 0 | AZ39: 0 | BA39: 0 | BB39: 0 | BC39: 35.5 | BD39: 37 | BE39: TRUE
A40: 0 | B40: W36X247 | C40: W36X247 | D40: W | E40: F | F40: 247 | G40: 72.5 | H40: 36.7 | I40: 0 | J40: 0 | K40: 16.5 | L40: 0 | M40: 0 | N40: 0.8 | O40: 1.35 | P40: 0 | Q40: 0 | R40: 0 | S40: 2.3 | T40: 2.625 | U40: 1.625 | V40: 0 | W40: 0 | X40: 0 | Y40: 0 | Z40: 0 | AA40: 6.11 | AB40: 0 | AC40: 40.1 | AD40: 0 | AE40: 0 | AI40: 16700 | AJ40: 1030 | AK40: 913 | AL40: 15.2 | AM40: 1010 | AN40: 190 | AO40: 123 | AP40: 3.74 | AQ40: 0 | AR40: 34.7 | AS40: 316000 | AT40: 0 | AU40: 146 | AV40: 812 | AW40: 187 | AX40: 509 | AY40: 0 | AZ40: 0 | BA40: 0 | BB40: 0 | BC40: 35.4 | BD40: 38 | BE40: TRUE
A41: 0 | B41: W36X231 | C41: W36X231 | D41: W | E41: F | F41: 231 | G41: 68.2 | H41: 36.5 | I41: 0 | J41: 0 | K41: 16.5 | L41: 0 | M41: 0 | N41: 0.76 | O41: 1.26 | P41: 0 | Q41: 0 | R41: 0 | S41: 2.21 | T41: 2.5625 | U41: 1.5625 | V41: 0 | W41: 0 | X41: 0 | Y41: 0 | Z41: 0 | AA41: 6.54 | AB41: 0 | AC41: 42.2 | AD41: 0 | AE41: 0 | AI41: 15600 | AJ41: 963 | AK41: 854 | AL41: 15.1 | AM41: 940 | AN41: 176 | AO41: 114 | AP41: 3.71 | AQ41: 0 | AR41: 28.7 | AS41: 292000 | AT41: 0 | AU41: 145 | AV41: 756 | AW41: 175 | AX41: 476 | AY41: 0 | AZ41: 0 | BA41: 0 | BB41: 0 | BC41: 35.2 | BD41: 39 | BE41: TRUE
A42: 0 | B42: W36X256 | C42: W36X256 | D42: W | E42: F | F42: 256 | G42: 75.3 | H42: 37.4 | I42: 0 | J42: 0 | K42: 12.2 | L42: 0 | M42: 0 | N42: 0.96 | O42: 1.73 | P42: 0 | Q42: 0 | R42: 0 | S42: 2.48 | T42: 2.625 | U42: 1.3125 | V42: 0 | W42: 0 | X42: 0 | Y42: 0 | Z42: 0 | AA42: 3.53 | AB42: 0 | AC42: 33.8 | AD42: 0 | AE42: 0 | AI42: 16800 | AJ42: 1040 | AK42: 895 | AL42: 14.9 | AM42: 528 | AN42: 137 | AO42: 86.5 | AP42: 2.65 | AQ42: 0 | AR42: 52.9 | AS42: 168000 | AT42: 0 | AU42: 109 | AV42: 576 | AW42: 174 | AX42: 516 | AY42: 0 | AZ42: 0 | BA42: 0 | BB42: 0 | BC42: 35.7 | BD42: 40 | BE42: TRUE
A43: 0 | B43: W36X232 | C43: W36X232 | D43: W | E43: F | F43: 232 | G43: 68 | H43: 37.1 | I43: 0 | J43: 0 | K43: 12.1 | L43: 0 | M43: 0 | N43: 0.87 | O43: 1.57 | P43: 0 | Q43: 0 | R43: 0 | S43: 2.32 | T43: 2.4375 | U43: 1.25 | V43: 0 | W43: 0 | X43: 0 | Y43: 0 | Z43: 0 | AA43: 3.86 | AB43: 0 | AC43: 37.3 | AD43: 0 | AE43: 0 | AI43: 15000 | AJ43: 936 | AK43: 809 | AL43: 14.8 | AM43: 468 | AN43: 122 | AO43: 77.2 | AP43: 2.62 | AQ43: 0 | AR43: 39.6 | AS43: 148000 | AT43: 0 | AU43: 108 | AV43: 512 | AW43: 157 | AX43: 464 | AY43: 0 | AZ43: 0 | BA43: 0 | BB43: 0 | BC43: 35.5 | BD43: 41 | BE43: TRUE
A44: 0 | B44: W36X210 | C44: W36X210 | D44: W | E44: F | F44: 210 | G44: 61.9 | H44: 36.7 | I44: 0 | J44: 0 | K44: 12.2 | L44: 0 | M44: 0 | N44: 0.83 | O44: 1.36 | P44: 0 | Q44: 0 | R44: 0 | S44: 2.11 | T44: 2.3125 | U44: 1.25 | V44: 0 | W44: 0 | X44: 0 | Y44: 0 | Z44: 0 | AA44: 4.48 | AB44: 0 | AC44: 39.1 | AD44: 0 | AE44: 0 | AI44: 13200 | AJ44: 833 | AK44: 719 | AL44: 14.6 | AM44: 411 | AN44: 107 | AO44: 67.5 | AP44: 2.58 | AQ44: 0 | AR44: 28 | AS44: 128000 | AT44: 0 | AU44: 108 | AV44: 446 | AW44: 136 | AX44: 412 | AY44: 0 | AZ44: 0 | BA44: 0 | BB44: 0 | BC44: 35.3 | BD44: 42 | BE44: TRUE
A45: 0 | B45: W36X194 | C45: W36X194 | D45: W | E45: F | F45: 194 | G45: 57 | H45: 36.5 | I45: 0 | J45: 0 | K45: 12.1 | L45: 0 | M45: 0 | N45: 0.765 | O45: 1.26 | P45: 0 | Q45: 0 | R45: 0 | S45: 2.01 | T45: 2.1875 | U45: 1.1875 | V45: 0 | W45: 0 | X45: 0 | Y45: 0 | Z45: 0 | AA45: 4.81 | AB45: 0 | AC45: 42.4 | AD45: 0 | AE45: 0 | AI45: 12100 | AJ45: 767 | AK45: 664 | AL45: 14.6 | AM45: 375 | AN45: 97.7 | AO45: 61.9 | AP45: 2.56 | AQ45: 0 | AR45: 22.2 | AS45: 116000 | AT45: 0 | AU45: 107 | AV45: 407 | AW45: 126 | AX45: 379 | AY45: 0 | AZ45: 0 | BA45: 0 | BB45: 0 | BC45: 35.2 | BD45: 43 | BE45: TRUE
A46: 0 | B46: W36X182 | C46: W36X182 | D46: W | E46: F | F46: 182 | G46: 53.6 | H46: 36.3 | I46: 0 | J46: 0 | K46: 12.1 | L46: 0 | M46: 0 | N46: 0.725 | O46: 1.18 | P46: 0 | Q46: 0 | R46: 0 | S46: 1.93 | T46: 2.125 | U46: 1.1875 | V46: 0 | W46: 0 | X46: 0 | Y46: 0 | Z46: 0 | AA46: 5.12 | AB46: 0 | AC46: 44.8 | AD46: 0 | AE46: 0 | AI46: 11300 | AJ46: 718 | AK46: 623 | AL46: 14.5 | AM46: 347 | AN46: 90.7 | AO46: 57.6 | AP46: 2.55 | AQ46: 0 | AR46: 18.5 | AS46: 107000 | AT46: 0 | AU46: 106 | AV46: 378 | AW46: 118 | AX46: 355 | AY46: 0 | AZ46: 0 | BA46: 0 | BB46: 0 | BC46: 35.1 | BD46: 44 | BE46: TRUE
A47: 0 | B47: W36X170 | C47: W36X170 | D47: W | E47: F | F47: 170 | G47: 50 | H47: 36.2 | I47: 0 | J47: 0 | K47: 12 | L47: 0 | M47: 0 | N47: 0.68 | O47: 1.1 | P47: 0 | Q47: 0 | R47: 0 | S47: 1.85 | T47: 2 | U47: 1.1875 | V47: 0 | W47: 0 | X47: 0 | Y47: 0 | Z47: 0 | AA47: 5.47 | AB47: 0 | AC47: 47.7 | AD47: 0 | AE47: 0 | AI47: 10500 | AJ47: 668 | AK47: 581 | AL47: 14.5 | AM47: 320 | AN47: 83.8 | AO47: 53.2 | AP47: 2.53 | AQ47: 0 | AR47: 15.1 | AS47: 98500 | AT47: 0 | AU47: 105 | AV47: 349 | AW47: 109 | AX47: 330 | AY47: 0 | AZ47: 0 | BA47: 0 | BB47: 0 | BC47: 35.1 | BD47: 45 | BE47: TRUE
A48: 0 | B48: W36X160 | C48: W36X160 | D48: W | E48: F | F48: 160 | G48: 47 | H48: 36 | I48: 0 | J48: 0 | K48: 12 | L48: 0 | M48: 0 | N48: 0.65 | O48: 1.02 | P48: 0 | Q48: 0 | R48: 0 | S48: 1.77 | T48: 1.9375 | U48: 1.125 | V48: 0 | W48: 0 | X48: 0 | Y48: 0 | Z48: 0 | AA48: 5.88 | AB48: 0 | AC48: 49.9 | AD48: 0 | AE48: 0 | AI48: 9760 | AJ48: 624 | AK48: 542 | AL48: 14.4 | AM48: 295 | AN48: 77.3 | AO48: 49.1 | AP48: 2.5 | AQ48: 0 | AR48: 12.4 | AS48: 90200 | AT48: 0 | AU48: 105 | AV48: 321 | AW48: 101 | AX48: 308 | AY48: 0 | AZ48: 0 | BA48: 0 | BB48: 0 | BC48: 35 | BD48: 46 | BE48: TRUE
A49: 0 | B49: W36X150 | C49: W36X150 | D49: W | E49: F | F49: 150 | G49: 44.3 | H49: 35.9 | I49: 0 | J49: 0 | K49: 12 | L49: 0 | M49: 0 | N49: 0.625 | O49: 0.94 | P49: 0 | Q49: 0 | R49: 0 | S49: 1.69 | T49: 1.875 | U49: 1.125 | V49: 0 | W49: 0 | X49: 0 | Y49: 0 | Z49: 0 | AA49: 6.37 | AB49: 0 | AC49: 51.9 | AD49: 0 | AE49: 0 | AI49: 9040 | AJ49: 581 | AK49: 504 | AL49: 14.3 | AM49: 270 | AN49: 70.9 | AO49: 45.1 | AP49: 2.47 | AQ49: 0 | AR49: 10.1 | AS49: 82200 | AT49: 0 | AU49: 105 | AV49: 294 | AW49: 93.1 | AX49: 287 | AY49: 0 | AZ49: 0 | BA49: 0 | BB49: 0 | BC49: 35 | BD49: 47 | BE49: TRUE
A50: 0 | B50: W36X135 | C50: W36X135 | D50: W | E50: F | F50: 135 | G50: 39.9 | H50: 35.6 | I50: 0 | J50: 0 | K50: 12 | L50: 0 | M50: 0 | N50: 0.6 | O50: 0.79 | P50: 0 | Q50: 0 | R50: 0 | S50: 1.54 | T50: 1.6875 | U50: 1.125 | V50: 0 | W50: 0 | X50: 0 | Y50: 0 | Z50: 0 | AA50: 7.56 | AB50: 0 | AC50: 54.1 | AD50: 0 | AE50: 0 | AI50: 7800 | AJ50: 509 | AK50: 439 | AL50: 14 | AM50: 225 | AN50: 59.7 | AO50: 37.7 | AP50: 2.38 | AQ50: 0 | AR50: 7 | AS50: 68100 | AT50: 0 | AU50: 104 | AV50: 245 | AW50: 77.9 | AX50: 251 | AY50: 0 | AZ50: 0 | BA50: 0 | BB50: 0 | BC50: 34.8 | BD50: 48 | BE50: TRUE
A51: 0 | B51: W33X387 | C51: W33X387 | D51: W | E51: T | F51: 387 | G51: 114 | H51: 36 | I51: 0 | J51: 0 | K51: 16.2 | L51: 0 | M51: 0 | N51: 1.26 | O51: 2.28 | P51: 0 | Q51: 0 | R51: 0 | S51: 3.07 | T51: 3.1875 | U51: 1.4375 | V51: 0 | W51: 0 | X51: 0 | Y51: 0 | Z51: 0 | AA51: 3.55 | AB51: 0 | AC51: 23.7 | AD51: 0 | AE51: 0 | AI51: 24300 | AJ51: 1560 | AK51: 1350 | AL51: 14.6 | AM51: 1620 | AN51: 312 | AO51: 200 | AP51: 3.77 | AQ51: 0 | AR51: 148 | AS51: 459000 | AT51: 0 | AU51: 137 | AV51: 1260 | AW51: 287 | AX51: 778 | AY51: 0 | AZ51: 0 | BA51: 0 | BB51: 0 | BC51: 33.7 | BD51: 49 | BE51: TRUE
A52: 0 | B52: W33X354 | C52: W33X354 | D52: W | E52: T | F52: 354 | G52: 104 | H52: 35.6 | I52: 0 | J52: 0 | K52: 16.1 | L52: 0 | M52: 0 | N52: 1.16 | O52: 2.09 | P52: 0 | Q52: 0 | R52: 0 | S52: 2.88 | T52: 2.9375 | U52: 1.375 | V52: 0 | W52: 0 | X52: 0 | Y52: 0 | Z52: 0 | AA52: 3.85 | AB52: 0 | AC52: 25.7 | AD52: 0 | AE52: 0 | AI52: 22000 | AJ52: 1420 | AK52: 1240 | AL52: 14.5 | AM52: 1460 | AN52: 282 | AO52: 181 | AP52: 3.74 | AQ52: 0 | AR52: 115 | AS52: 408000 | AT52: 0 | AU52: 135 | AV52: 1130 | AW52: 262 | AX52: 707 | AY52: 0 | AZ52: 0 | BA52: 0 | BB52: 0 | BC52: 33.5 | BD52: 50 | BE52: TRUE
A53: 0 | B53: W33X318 | C53: W33X318 | D53: W | E53: F | F53: 318 | G53: 93.7 | H53: 35.2 | I53: 0 | J53: 0 | K53: 16 | L53: 0 | M53: 0 | N53: 1.04 | O53: 1.89 | P53: 0 | Q53: 0 | R53: 0 | S53: 2.68 | T53: 2.75 | U53: 1.3125 | V53: 0 | W53: 0 | X53: 0 | Y53: 0 | Z53: 0 | AA53: 4.23 | AB53: 0 | AC53: 28.7 | AD53: 0 | AE53: 0 | AI53: 19500 | AJ53: 1270 | AK53: 1110 | AL53: 14.5 | AM53: 1290 | AN53: 250 | AO53: 161 | AP53: 3.71 | AQ53: 0 | AR53: 84.4 | AS53: 357000 | AT53: 0 | AU53: 133 | AV53: 1010 | AW53: 235 | AX53: 632 | AY53: 0 | AZ53: 0 | BA53: 0 | BB53: 0 | BC53: 33.3 | BD53: 51 | BE53: TRUE
A54: 0 | B54: W33X291 | C54: W33X291 | D54: W | E54: F | F54: 291 | G54: 85.6 | H54: 34.8 | I54: 0 | J54: 0 | K54: 15.9 | L54: 0 | M54: 0 | N54: 0.96 | O54: 1.73 | P54: 0 | Q54: 0 | R54: 0 | S54: 2.52 | T54: 2.625 | U54: 1.3125 | V54: 0 | W54: 0 | X54: 0 | Y54: 0 | Z54: 0 | AA54: 4.6 | AB54: 0 | AC54: 31 | AD54: 0 | AE54: 0 | AI54: 17700 | AJ54: 1160 | AK54: 1020 | AL54: 14.4 | AM54: 1160 | AN54: 226 | AO54: 146 | AP54: 3.68 | AQ54: 0 | AR54: 65.1 | AS54: 319000 | AT54: 0 | AU54: 131 | AV54: 904 | AW54: 214 | AX54: 573 | AY54: 0 | AZ54: 0 | BA54: 0 | BB54: 0 | BC54: 33.1 | BD54: 52 | BE54: TRUE
A55: 0 | B55: W33X263 | C55: W33X263 | D55: W | E55: F | F55: 263 | G55: 77.4 | H55: 34.5 | I55: 0 | J55: 0 | K55: 15.8 | L55: 0 | M55: 0 | N55: 0.87 | O55: 1.57 | P55: 0 | Q55: 0 | R55: 0 | S55: 2.36 | T55: 2.4375 | U55: 1.25 | V55: 0 | W55: 0 | X55: 0 | Y55: 0 | Z55: 0 | AA55: 5.03 | AB55: 0 | AC55: 34.3 | AD55: 0 | AE55: 0 | AI55: 15900 | AJ55: 1040 | AK55: 919 | AL55: 14.3 | AM55: 1040 | AN55: 202 | AO55: 131 | AP55: 3.66 | AQ55: 0 | AR55: 48.7 | AS55: 281000 | AT55: 0 | AU55: 130 | AV55: 807 | AW55: 193 | AX55: 515 | AY55: 0 | AZ55: 0 | BA55: 0 | BB55: 0 | BC55: 32.9 | BD55: 53 | BE55: TRUE
A56: 0 | B56: W33X241 | C56: W33X241 | D56: W | E56: F | F56: 241 | G56: 71.1 | H56: 34.2 | I56: 0 | J56: 0 | K56: 15.9 | L56: 0 | M56: 0 | N56: 0.83 | O56: 1.4 | P56: 0 | Q56: 0 | R56: 0 | S56: 2.19 | T56: 2.25 | U56: 1.25 | V56: 0 | W56: 0 | X56: 0 | Y56: 0 | Z56: 0 | AA56: 5.66 | AB56: 0 | AC56: 35.9 | AD56: 0 | AE56: 0 | AI56: 14200 | AJ56: 940 | AK56: 831 | AL56: 14.1 | AM56: 933 | AN56: 182 | AO56: 118 | AP56: 3.62 | AQ56: 0 | AR56: 36.2 | AS56: 251000 | AT56: 0 | AU56: 130 | AV56: 726 | AW56: 173 | AX56: 467 | AY56: 0 | AZ56: 0 | BA56: 0 | BB56: 0 | BC56: 32.8 | BD56: 54 | BE56: TRUE
A57: 0 | B57: W33X221 | C57: W33X221 | D57: W | E57: F | F57: 221 | G57: 65.3 | H57: 33.9 | I57: 0 | J57: 0 | K57: 15.8 | L57: 0 | M57: 0 | N57: 0.775 | O57: 1.28 | P57: 0 | Q57: 0 | R57: 0 | S57: 2.06 | T57: 2.125 | U57: 1.1875 | V57: 0 | W57: 0 | X57: 0 | Y57: 0 | Z57: 0 | AA57: 6.2 | AB57: 0 | AC57: 38.5 | AD57: 0 | AE57: 0 | AI57: 12900 | AJ57: 857 | AK57: 759 | AL57: 14.1 | AM57: 840 | AN57: 164 | AO57: 106 | AP57: 3.59 | AQ57: 0 | AR57: 27.8 | AS57: 224000 | AT57: 0 | AU57: 129 | AV57: 647 | AW57: 156 | AX57: 423 | AY57: 0 | AZ57: 0 | BA57: 0 | BB57: 0 | BC57: 32.6 | BD57: 55 | BE57: TRUE
A58: 0 | B58: W33X201 | C58: W33X201 | D58: W | E58: F | F58: 201 | G58: 59.1 | H58: 33.7 | I58: 0 | J58: 0 | K58: 15.7 | L58: 0 | M58: 0 | N58: 0.715 | O58: 1.15 | P58: 0 | Q58: 0 | R58: 0 | S58: 1.94 | T58: 2 | U58: 1.1875 | V58: 0 | W58: 0 | X58: 0 | Y58: 0 | Z58: 0 | AA58: 6.85 | AB58: 0 | AC58: 41.7 | AD58: 0 | AE58: 0 | AI58: 11600 | AJ58: 773 | AK58: 686 | AL58: 14 | AM58: 749 | AN58: 147 | AO58: 95.2 | AP58: 3.56 | AQ58: 0 | AR58: 20.8 | AS58: 198000 | AT58: 0 | AU58: 128 | AV58: 577 | AW58: 140 | AX58: 382 | AY58: 0 | AZ58: 0 | BA58: 0 | BB58: 0 | BC58: 32.6 | BD58: 56 | BE58: TRUE
A59: 0 | B59: W33X169 | C59: W33X169 | D59: W | E59: F | F59: 169 | G59: 49.5 | H59: 33.8 | I59: 0 | J59: 0 | K59: 11.5 | L59: 0 | M59: 0 | N59: 0.67 | O59: 1.22 | P59: 0 | Q59: 0 | R59: 0 | S59: 1.92 | T59: 2.125 | U59: 1.1875 | V59: 0 | W59: 0 | X59: 0 | Y59: 0 | Z59: 0 | AA59: 4.71 | AB59: 0 | AC59: 44.7 | AD59: 0 | AE59: 0 | AI59: 9290 | AJ59: 629 | AK59: 549 | AL59: 13.7 | AM59: 310 | AN59: 84.4 | AO59: 53.9 | AP59: 2.5 | AQ59: 0 | AR59: 17.7 | AS59: 82400 | AT59: 0 | AU59: 93.7 | AV59: 329 | AW59: 108 | AX59: 311 | AY59: 0 | AZ59: 0 | BA59: 0 | BB59: 0 | BC59: 32.6 | BD59: 57 | BE59: TRUE
A60: 0 | B60: W33X152 | C60: W33X152 | D60: W | E60: F | F60: 152 | G60: 44.9 | H60: 33.5 | I60: 0 | J60: 0 | K60: 11.6 | L60: 0 | M60: 0 | N60: 0.635 | O60: 1.06 | P60: 0 | Q60: 0 | R60: 0 | S60: 1.76 | T60: 1.9375 | U60: 1.125 | V60: 0 | W60: 0 | X60: 0 | Y60: 0 | Z60: 0 | AA60: 5.48 | AB60: 0 | AC60: 47.2 | AD60: 0 | AE60: 0 | AI60: 8160 | AJ60: 559 | AK60: 487 | AL60: 13.5 | AM60: 273 | AN60: 73.9 | AO60: 47.2 | AP60: 2.47 | AQ60: 0 | AR60: 12.4 | AS60: 71700 | AT60: 0 | AU60: 94.1 | AV60: 289 | AW60: 94.3 | AX60: 278 | AY60: 0 | AZ60: 0 | BA60: 0 | BB60: 0 | BC60: 32.4 | BD60: 58 | BE60: TRUE
A61: 0 | B61: W33X141 | C61: W33X141 | D61: W | E61: F | F61: 141 | G61: 41.5 | H61: 33.3 | I61: 0 | J61: 0 | K61: 11.5 | L61: 0 | M61: 0 | N61: 0.605 | O61: 0.96 | P61: 0 | Q61: 0 | R61: 0 | S61: 1.66 | T61: 1.8125 | U61: 1.125 | V61: 0 | W61: 0 | X61: 0 | Y61: 0 | Z61: 0 | AA61: 6.01 | AB61: 0 | AC61: 49.6 | AD61: 0 | AE61: 0 | AI61: 7450 | AJ61: 514 | AK61: 448 | AL61: 13.4 | AM61: 246 | AN61: 66.9 | AO61: 42.7 | AP61: 2.43 | AQ61: 0 | AR61: 9.7 | AS61: 64400 | AT61: 0 | AU61: 93 | AV61: 257 | AW61: 84.6 | AX61: 253 | AY61: 0 | AZ61: 0 | BA61: 0 | BB61: 0 | BC61: 32.3 | BD61: 59 | BE61: TRUE
A62: 0 | B62: W33X130 | C62: W33X130 | D62: W | E62: F | F62: 130 | G62: 38.3 | H62: 33.1 | I62: 0 | J62: 0 | K62: 11.5 | L62: 0 | M62: 0 | N62: 0.58 | O62: 0.855 | P62: 0 | Q62: 0 | R62: 0 | S62: 1.56 | T62: 1.75 | U62: 1.125 | V62: 0 | W62: 0 | X62: 0 | Y62: 0 | Z62: 0 | AA62: 6.73 | AB62: 0 | AC62: 51.7 | AD62: 0 | AE62: 0 | AI62: 6710 | AJ62: 467 | AK62: 406 | AL62: 13.2 | AM62: 218 | AN62: 59.5 | AO62: 37.9 | AP62: 2.39 | AQ62: 0 | AR62: 7.37 | AS62: 56600 | AT62: 0 | AU62: 92.7 | AV62: 228 | AW62: 75.3 | AX62: 230 | AY62: 0 | AZ62: 0 | BA62: 0 | BB62: 0 | BC62: 32.2 | BD62: 60 | BE62: TRUE
A63: 0 | B63: W33X118 | C63: W33X118 | D63: W | E63: F | F63: 118 | G63: 34.7 | H63: 32.9 | I63: 0 | J63: 0 | K63: 11.5 | L63: 0 | M63: 0 | N63: 0.55 | O63: 0.74 | P63: 0 | Q63: 0 | R63: 0 | S63: 1.44 | T63: 1.625 | U63: 1.125 | V63: 0 | W63: 0 | X63: 0 | Y63: 0 | Z63: 0 | AA63: 7.76 | AB63: 0 | AC63: 54.5 | AD63: 0 | AE63: 0 | AI63: 5900 | AJ63: 415 | AK63: 359 | AL63: 13 | AM63: 187 | AN63: 51.3 | AO63: 32.6 | AP63: 2.32 | AQ63: 0 | AR63: 5.3 | AS63: 48300 | AT63: 0 | AU63: 92.5 | AV63: 197 | AW63: 65.1 | AX63: 205 | AY63: 0 | AZ63: 0 | BA63: 0 | BB63: 0 | BC63: 32.2 | BD63: 61 | BE63: TRUE
A64: 0 | B64: W30X391 | C64: W30X391 | D64: W | E64: T | F64: 391 | G64: 115 | H64: 33.2 | I64: 0 | J64: 0 | K64: 15.6 | L64: 0 | M64: 0 | N64: 1.36 | O64: 2.44 | P64: 0 | Q64: 0 | R64: 0 | S64: 3.23 | T64: 3.375 | U64: 1.5 | V64: 0 | W64: 0 | X64: 0 | Y64: 0 | Z64: 0 | AA64: 3.19 | AB64: 0 | AC64: 19.7 | AD64: 0 | AE64: 0 | AI64: 20700 | AJ64: 1450 | AK64: 1250 | AL64: 13.4 | AM64: 1550 | AN64: 310 | AO64: 198 | AP64: 3.67 | AQ64: 0 | AR64: 173 | AS64: 366000 | AT64: 0 | AU64: 120 | AV64: 1140 | AW64: 267 | AX64: 722 | AY64: 0 | AZ64: 0 | BA64: 0 | BB64: 0 | BC64: 30.8 | BD64: 62 | BE64: TRUE
A65: 0 | B65: W30X357 | C65: W30X357 | D65: W | E65: T | F65: 357 | G65: 105 | H65: 32.8 | I65: 0 | J65: 0 | K65: 15.5 | L65: 0 | M65: 0 | N65: 1.24 | O65: 2.24 | P65: 0 | Q65: 0 | R65: 0 | S65: 3.03 | T65: 3.125 | U65: 1.4375 | V65: 0 | W65: 0 | X65: 0 | Y65: 0 | Z65: 0 | AA65: 3.45 | AB65: 0 | AC65: 21.6 | AD65: 0 | AE65: 0 | AI65: 18700 | AJ65: 1320 | AK65: 1140 | AL65: 13.3 | AM65: 1390 | AN65: 279 | AO65: 179 | AP65: 3.64 | AQ65: 0 | AR65: 134 | AS65: 324000 | AT65: 0 | AU65: 118 | AV65: 1030 | AW65: 244 | AX65: 655 | AY65: 0 | AZ65: 0 | BA65: 0 | BB65: 0 | BC65: 30.6 | BD65: 63 | BE65: TRUE
A66: 0 | B66: W30X326 | C66: W30X326 | D66: W | E66: T | F66: 326 | G66: 95.9 | H66: 32.4 | I66: 0 | J66: 0 | K66: 15.4 | L66: 0 | M66: 0 | N66: 1.14 | O66: 2.05 | P66: 0 | Q66: 0 | R66: 0 | S66: 2.84 | T66: 2.9375 | U66: 1.375 | V66: 0 | W66: 0 | X66: 0 | Y66: 0 | Z66: 0 | AA66: 3.75 | AB66: 0 | AC66: 23.4 | AD66: 0 | AE66: 0 | AI66: 16800 | AJ66: 1190 | AK66: 1040 | AL66: 13.2 | AM66: 1240 | AN66: 252 | AO66: 162 | AP66: 3.6 | AQ66: 0 | AR66: 103 | AS66: 287000 | AT66: 0 | AU66: 117 | AV66: 922 | AW66: 222 | AX66: 593 | AY66: 0 | AZ66: 0 | BA66: 0 | BB66: 0 | BC66: 30.4 | BD66: 64 | BE66: TRUE
A67: 0 | B67: W30X292 | C67: W30X292 | D67: W | E67: F | F67: 292 | G67: 86 | H67: 32 | I67: 0 | J67: 0 | K67: 15.3 | L67: 0 | M67: 0 | N67: 1.02 | O67: 1.85 | P67: 0 | Q67: 0 | R67: 0 | S67: 2.64 | T67: 2.75 | U67: 1.3125 | V67: 0 | W67: 0 | X67: 0 | Y67: 0 | Z67: 0 | AA67: 4.12 | AB67: 0 | AC67: 26.2 | AD67: 0 | AE67: 0 | AI67: 14900 | AJ67: 1060 | AK67: 930 | AL67: 13.2 | AM67: 1100 | AN67: 223 | AO67: 144 | AP67: 3.58 | AQ67: 0 | AR67: 75.2 | AS67: 250000 | AT67: 0 | AU67: 115 | AV67: 816 | AW67: 199 | AX67: 529 | AY67: 0 | AZ67: 0 | BA67: 0 | BB67: 0 | BC67: 30.2 | BD67: 65 | BE67: TRUE
A68: 0 | B68: W30X261 | C68: W30X261 | D68: W | E68: F | F68: 261 | G68: 77 | H68: 31.6 | I68: 0 | J68: 0 | K68: 15.2 | L68: 0 | M68: 0 | N68: 0.93 | O68: 1.65 | P68: 0 | Q68: 0 | R68: 0 | S68: 2.44 | T68: 2.5625 | U68: 1.3125 | V68: 0 | W68: 0 | X68: 0 | Y68: 0 | Z68: 0 | AA68: 4.59 | AB68: 0 | AC68: 28.7 | AD68: 0 | AE68: 0 | AI68: 13100 | AJ68: 943 | AK68: 829 | AL68: 13.1 | AM68: 959 | AN68: 196 | AO68: 127 | AP68: 3.53 | AQ68: 0 | AR68: 54.1 | AS68: 215000 | AT68: 0 | AU68: 114 | AV68: 714 | AW68: 176 | AX68: 469 | AY68: 0 | AZ68: 0 | BA68: 0 | BB68: 0 | BC68: 30 | BD68: 66 | BE68: TRUE
A69: 0 | B69: W30X235 | C69: W30X235 | D69: W | E69: F | F69: 235 | G69: 69.3 | H69: 31.3 | I69: 0 | J69: 0 | K69: 15.1 | L69: 0 | M69: 0 | N69: 0.83 | O69: 1.5 | P69: 0 | Q69: 0 | R69: 0 | S69: 2.29 | T69: 2.375 | U69: 1.25 | V69: 0 | W69: 0 | X69: 0 | Y69: 0 | Z69: 0 | AA69: 5.02 | AB69: 0 | AC69: 32.2 | AD69: 0 | AE69: 0 | AI69: 11700 | AJ69: 847 | AK69: 748 | AL69: 13 | AM69: 855 | AN69: 175 | AO69: 114 | AP69: 3.51 | AQ69: 0 | AR69: 40.3 | AS69: 190000 | AT69: 0 | AU69: 112 | AV69: 637 | AW69: 159 | AX69: 421 | AY69: 0 | AZ69: 0 | BA69: 0 | BB69: 0 | BC69: 29.8 | BD69: 67 | BE69: TRUE
A70: 0 | B70: W30X211 | C70: W30X211 | D70: W | E70: F | F70: 211 | G70: 62.3 | H70: 30.9 | I70: 0 | J70: 0 | K70: 15.1 | L70: 0 | M70: 0 | N70: 0.775 | O70: 1.32 | P70: 0 | Q70: 0 | R70: 0 | S70: 2.1 | T70: 2.25 | U70: 1.1875 | V70: 0 | W70: 0 | X70: 0 | Y70: 0 | Z70: 0 | AA70: 5.74 | AB70: 0 | AC70: 34.5 | AD70: 0 | AE70: 0 | AI70: 10300 | AJ70: 751 | AK70: 665 | AL70: 12.9 | AM70: 757 | AN70: 155 | AO70: 100 | AP70: 3.49 | AQ70: 0 | AR70: 28.4 | AS70: 166000 | AT70: 0 | AU70: 112 | AV70: 556 | AW70: 140 | AX70: 372 | AY70: 0 | AZ70: 0 | BA70: 0 | BB70: 0 | BC70: 29.6 | BD70: 68 | BE70: TRUE
A71: 0 | B71: W30X191 | C71: W30X191 | D71: W | E71: F | F71: 191 | G71: 56.1 | H71: 30.7 | I71: 0 | J71: 0 | K71: 15 | L71: 0 | M71: 0 | N71: 0.71 | O71: 1.19 | P71: 0 | Q71: 0 | R71: 0 | S71: 1.97 | T71: 2.0625 | U71: 1.1875 | V71: 0 | W71: 0 | X71: 0 | Y71: 0 | Z71: 0 | AA71: 6.35 | AB71: 0 | AC71: 37.7 | AD71: 0 | AE71: 0 | AI71: 9200 | AJ71: 675 | AK71: 600 | AL71: 12.8 | AM71: 673 | AN71: 138 | AO71: 89.5 | AP71: 3.46 | AQ71: 0 | AR71: 21 | AS71: 146000 | AT71: 0 | AU71: 111 | AV71: 494 | AW71: 125 | AX71: 335 | AY71: 0 | AZ71: 0 | BA71: 0 | BB71: 0 | BC71: 29.5 | BD71: 69 | BE71: TRUE
A72: 0 | B72: W30X173 | C72: W30X173 | D72: W | E72: F | F72: 173 | G72: 50.9 | H72: 30.4 | I72: 0 | J72: 0 | K72: 15 | L72: 0 | M72: 0 | N72: 0.655 | O72: 1.07 | P72: 0 | Q72: 0 | R72: 0 | S72: 1.85 | T72: 2 | U72: 1.125 | V72: 0 | W72: 0 | X72: 0 | Y72: 0 | Z72: 0 | AA72: 7.04 | AB72: 0 | AC72: 40.8 | AD72: 0 | AE72: 0 | AI72: 8230 | AJ72: 607 | AK72: 541 | AL72: 12.7 | AM72: 598 | AN72: 123 | AO72: 79.8 | AP72: 3.42 | AQ72: 0 | AR72: 15.6 | AS72: 129000 | AT72: 0 | AU72: 110 | AV72: 441 | AW72: 113 | AX72: 301 | AY72: 0 | AZ72: 0 | BA72: 0 | BB72: 0 | BC72: 29.3 | BD72: 70 | BE72: TRUE
A73: 0 | B73: W30X148 | C73: W30X148 | D73: W | E73: F | F73: 148 | G73: 43.6 | H73: 30.7 | I73: 0 | J73: 0 | K73: 10.5 | L73: 0 | M73: 0 | N73: 0.65 | O73: 1.18 | P73: 0 | Q73: 0 | R73: 0 | S73: 1.83 | T73: 2.0625 | U73: 1.125 | V73: 0 | W73: 0 | X73: 0 | Y73: 0 | Z73: 0 | AA73: 4.44 | AB73: 0 | AC73: 41.6 | AD73: 0 | AE73: 0 | AI73: 6680 | AJ73: 500 | AK73: 436 | AL73: 12.4 | AM73: 227 | AN73: 68 | AO73: 43.3 | AP73: 2.28 | AQ73: 0 | AR73: 14.5 | AS73: 49400 | AT73: 0 | AU73: 77.5 | AV73: 240 | AW73: 85.8 | AX73: 248 | AY73: 0 | AZ73: 0 | BA73: 0 | BB73: 0 | BC73: 29.5 | BD73: 71 | BE73: TRUE
A74: 0 | B74: W30X132 | C74: W30X132 | D74: W | E74: F | F74: 132 | G74: 38.8 | H74: 30.3 | I74: 0 | J74: 0 | K74: 10.5 | L74: 0 | M74: 0 | N74: 0.615 | O74: 1 | P74: 0 | Q74: 0 | R74: 0 | S74: 1.65 | T74: 1.875 | U74: 1.125 | V74: 0 | W74: 0 | X74: 0 | Y74: 0 | Z74: 0 | AA74: 5.27 | AB74: 0 | AC74: 43.9 | AD74: 0 | AE74: 0 | AI74: 5770 | AJ74: 437 | AK74: 380 | AL74: 12.2 | AM74: 196 | AN74: 58.4 | AO74: 37.2 | AP74: 2.25 | AQ74: 0 | AR74: 9.72 | AS74: 42100 | AT74: 0 | AU74: 76.9 | AV74: 202 | AW74: 72.4 | AX74: 215 | AY74: 0 | AZ74: 0 | BA74: 0 | BB74: 0 | BC74: 29.3 | BD74: 72 | BE74: TRUE
A75: 0 | B75: W30X124 | C75: W30X124 | D75: W | E75: F | F75: 124 | G75: 36.5 | H75: 30.2 | I75: 0 | J75: 0 | K75: 10.5 | L75: 0 | M75: 0 | N75: 0.585 | O75: 0.93 | P75: 0 | Q75: 0 | R75: 0 | S75: 1.58 | T75: 1.8125 | U75: 1.125 | V75: 0 | W75: 0 | X75: 0 | Y75: 0 | Z75: 0 | AA75: 5.65 | AB75: 0 | AC75: 46.2 | AD75: 0 | AE75: 0 | AI75: 5360 | AJ75: 408 | AK75: 355 | AL75: 12.1 | AM75: 181 | AN75: 54 | AO75: 34.4 | AP75: 2.23 | AQ75: 0 | AR75: 7.99 | AS75: 38600 | AT75: 0 | AU75: 76.8 | AV75: 188 | AW75: 67.5 | AX75: 202 | AY75: 0 | AZ75: 0 | BA75: 0 | BB75: 0 | BC75: 29.3 | BD75: 73 | BE75: TRUE
A76: 0 | B76: W30X116 | C76: W30X116 | D76: W | E76: F | F76: 116 | G76: 34.2 | H76: 30 | I76: 0 | J76: 0 | K76: 10.5 | L76: 0 | M76: 0 | N76: 0.565 | O76: 0.85 | P76: 0 | Q76: 0 | R76: 0 | S76: 1.5 | T76: 1.75 | U76: 1.125 | V76: 0 | W76: 0 | X76: 0 | Y76: 0 | Z76: 0 | AA76: 6.17 | AB76: 0 | AC76: 47.8 | AD76: 0 | AE76: 0 | AI76: 4930 | AJ76: 378 | AK76: 329 | AL76: 12 | AM76: 164 | AN76: 49.2 | AO76: 31.3 | AP76: 2.19 | AQ76: 0 | AR76: 6.43 | AS76: 34900 | AT76: 0 | AU76: 76.5 | AV76: 171 | AW76: 61.5 | AX76: 187 | AY76: 0 | AZ76: 0 | BA76: 0 | BB76: 0 | BC76: 29.2 | BD76: 74 | BE76: TRUE
A77: 0 | B77: W30X108 | C77: W30X108 | D77: W | E77: F | F77: 108 | G77: 31.7 | H77: 29.8 | I77: 0 | J77: 0 | K77: 10.5 | L77: 0 | M77: 0 | N77: 0.545 | O77: 0.76 | P77: 0 | Q77: 0 | R77: 0 | S77: 1.41 | T77: 1.6875 | U77: 1.125 | V77: 0 | W77: 0 | X77: 0 | Y77: 0 | Z77: 0 | AA77: 6.89 | AB77: 0 | AC77: 49.6 | AD77: 0 | AE77: 0 | AI77: 4470 | AJ77: 346 | AK77: 299 | AL77: 11.9 | AM77: 146 | AN77: 43.9 | AO77: 27.9 | AP77: 2.15 | AQ77: 0 | AR77: 4.99 | AS77: 30900 | AT77: 0 | AU77: 76.2 | AV77: 152 | AW77: 54.9 | AX77: 170 | AY77: 0 | AZ77: 0 | BA77: 0 | BB77: 0 | BC77: 29 | BD77: 75 | BE77: TRUE
A78: 0 | B78: W30X99 | C78: W30X99 | D78: W | E78: F | F78: 99 | G78: 29 | H78: 29.7 | I78: 0 | J78: 0 | K78: 10.5 | L78: 0 | M78: 0 | N78: 0.52 | O78: 0.67 | P78: 0 | Q78: 0 | R78: 0 | S78: 1.32 | T78: 1.5625 | U78: 1.0625 | V78: 0 | W78: 0 | X78: 0 | Y78: 0 | Z78: 0 | AA78: 7.8 | AB78: 0 | AC78: 51.9 | AD78: 0 | AE78: 0 | AI78: 3990 | AJ78: 312 | AK78: 269 | AL78: 11.7 | AM78: 128 | AN78: 38.6 | AO78: 24.5 | AP78: 2.1 | AQ78: 0 | AR78: 3.77 | AS78: 26800 | AT78: 0 | AU78: 76.2 | AV78: 134 | AW78: 48.5 | AX78: 154 | AY78: 0 | AZ78: 0 | BA78: 0 | BB78: 0 | BC78: 29 | BD78: 76 | BE78: TRUE
A79: 0 | B79: W30X90 | C79: W30X90 | D79: W | E79: F | F79: 90 | G79: 26.3 | H79: 29.5 | I79: 0 | J79: 0 | K79: 10.4 | L79: 0 | M79: 0 | N79: 0.47 | O79: 0.61 | P79: 0 | Q79: 0 | R79: 0 | S79: 1.26 | T79: 1.5 | U79: 1.0625 | V79: 0 | W79: 0 | X79: 0 | Y79: 0 | Z79: 0 | AA79: 8.52 | AB79: 0 | AC79: 57.5 | AD79: 0 | AE79: 0 | AI79: 3610 | AJ79: 283 | AK79: 245 | AL79: 11.7 | AM79: 115 | AN79: 34.7 | AO79: 22.1 | AP79: 2.09 | AQ79: 0 | AR79: 2.84 | AS79: 24000 | AT79: 0 | AU79: 75.1 | AV79: 119 | AW79: 43.7 | AX79: 139 | AY79: 0 | AZ79: 0 | BA79: 0 | BB79: 0 | BC79: 28.9 | BD79: 77 | BE79: TRUE
A80: 0 | B80: W27X539 | C80: W27X539 | D80: W | E80: T | F80: 539 | G80: 159 | H80: 32.5 | I80: 0 | J80: 0 | K80: 15.3 | L80: 0 | M80: 0 | N80: 1.97 | O80: 3.54 | P80: 0 | Q80: 0 | R80: 0 | S80: 4.33 | T80: 4.4375 | U80: 1.8125 | V80: 0 | W80: 0 | X80: 0 | Y80: 0 | Z80: 0 | AA80: 2.15 | AB80: 0 | AC80: 12.1 | AD80: 0 | AE80: 0 | AI80: 25600 | AJ80: 1890 | AK80: 1570 | AL80: 12.7 | AM80: 2110 | AN80: 437 | AO80: 277 | AP80: 3.65 | AQ80: 0 | AR80: 496 | AS80: 443000 | AT80: 0 | AU80: 111 | AV80: 1500 | AW80: 342 | AX80: 943 | AY80: 0 | AZ80: 0 | BA80: 0 | BB80: 0 | BC80: 29 | BD80: 78 | BE80: TRUE
A81: 0 | B81: W27X368 | C81: W27X368 | D81: W | E81: T | F81: 368 | G81: 109 | H81: 30.4 | I81: 0 | J81: 0 | K81: 14.7 | L81: 0 | M81: 0 | N81: 1.38 | O81: 2.48 | P81: 0 | Q81: 0 | R81: 0 | S81: 3.27 | T81: 3.375 | U81: 1.5 | V81: 0 | W81: 0 | X81: 0 | Y81: 0 | Z81: 0 | AA81: 2.96 | AB81: 0 | AC81: 17.3 | AD81: 0 | AE81: 0 | AI81: 16200 | AJ81: 1240 | AK81: 1060 | AL81: 12.2 | AM81: 1310 | AN81: 279 | AO81: 179 | AP81: 3.48 | AQ81: 0 | AR81: 170 | AS81: 255000 | AT81: 0 | AU81: 103 | AV81: 935 | AW81: 231 | AX81: 621 | AY81: 0 | AZ81: 0 | BA81: 0 | BB81: 0 | BC81: 27.9 | BD81: 79 | BE81: TRUE
A82: 0 | B82: W27X336 | C82: W27X336 | D82: W | E82: T | F82: 336 | G82: 99.2 | H82: 30 | I82: 0 | J82: 0 | K82: 14.6 | L82: 0 | M82: 0 | N82: 1.26 | O82: 2.28 | P82: 0 | Q82: 0 | R82: 0 | S82: 3.07 | T82: 3.1875 | U82: 1.4375 | V82: 0 | W82: 0 | X82: 0 | Y82: 0 | Z82: 0 | AA82: 3.19 | AB82: 0 | AC82: 18.9 | AD82: 0 | AE82: 0 | AI82: 14600 | AJ82: 1130 | AK82: 972 | AL82: 12.1 | AM82: 1180 | AN82: 252 | AO82: 162 | AP82: 3.45 | AQ82: 0 | AR82: 131 | AS82: 226000 | AT82: 0 | AU82: 101 | AV82: 842 | AW82: 211 | AX82: 563 | AY82: 0 | AZ82: 0 | BA82: 0 | BB82: 0 | BC82: 27.7 | BD82: 80 | BE82: TRUE
A83: 0 | B83: W27X307 | C83: W27X307 | D83: W | E83: T | F83: 307 | G83: 90.2 | H83: 29.6 | I83: 0 | J83: 0 | K83: 14.4 | L83: 0 | M83: 0 | N83: 1.16 | O83: 2.09 | P83: 0 | Q83: 0 | R83: 0 | S83: 2.88 | T83: 3 | U83: 1.4375 | V83: 0 | W83: 0 | X83: 0 | Y83: 0 | Z83: 0 | AA83: 3.46 | AB83: 0 | AC83: 20.6 | AD83: 0 | AE83: 0 | AI83: 13100 | AJ83: 1030 | AK83: 887 | AL83: 12 | AM83: 1050 | AN83: 227 | AO83: 146 | AP83: 3.41 | AQ83: 0 | AR83: 101 | AS83: 199000 | AT83: 0 | AU83: 99 | AV83: 745 | AW83: 190 | AX83: 508 | AY83: 0 | AZ83: 0 | BA83: 0 | BB83: 0 | BC83: 27.5 | BD83: 81 | BE83: TRUE
A84: 0 | B84: W27X281 | C84: W27X281 | D84: W | E84: F | F84: 281 | G84: 83.1 | H84: 29.3 | I84: 0 | J84: 0 | K84: 14.4 | L84: 0 | M84: 0 | N84: 1.06 | O84: 1.93 | P84: 0 | Q84: 0 | R84: 0 | S84: 2.72 | T84: 2.8125 | U84: 1.375 | V84: 0 | W84: 0 | X84: 0 | Y84: 0 | Z84: 0 | AA84: 3.72 | AB84: 0 | AC84: 22.5 | AD84: 0 | AE84: 0 | AI84: 11900 | AJ84: 936 | AK84: 814 | AL84: 12 | AM84: 953 | AN84: 206 | AO84: 133 | AP84: 3.39 | AQ84: 0 | AR84: 79.5 | AS84: 178000 | AT84: 0 | AU84: 98.5 | AV84: 685 | AW84: 176 | AX84: 466 | AY84: 0 | AZ84: 0 | BA84: 0 | BB84: 0 | BC84: 27.4 | BD84: 82 | BE84: TRUE
A85: 0 | B85: W27X258 | C85: W27X258 | D85: W | E85: F | F85: 258 | G85: 76.1 | H85: 29 | I85: 0 | J85: 0 | K85: 14.3 | L85: 0 | M85: 0 | N85: 0.98 | O85: 1.77 | P85: 0 | Q85: 0 | R85: 0 | S85: 2.56 | T85: 2.6875 | U85: 1.3125 | V85: 0 | W85: 0 | X85: 0 | Y85: 0 | Z85: 0 | AA85: 4.03 | AB85: 0 | AC85: 24.4 | AD85: 0 | AE85: 0 | AI85: 10800 | AJ85: 852 | AK85: 745 | AL85: 11.9 | AM85: 859 | AN85: 187 | AO85: 120 | AP85: 3.36 | AQ85: 0 | AR85: 61.6 | AS85: 159000 | AT85: 0 | AU85: 97.3 | AV85: 616 | AW85: 160 | AX85: 424 | AY85: 0 | AZ85: 0 | BA85: 0 | BB85: 0 | BC85: 27.2 | BD85: 83 | BE85: TRUE
A86: 0 | B86: W27X235 | C86: W27X235 | D86: W | E86: F | F86: 235 | G86: 69.4 | H86: 28.7 | I86: 0 | J86: 0 | K86: 14.2 | L86: 0 | M86: 0 | N86: 0.91 | O86: 1.61 | P86: 0 | Q86: 0 | R86: 0 | S86: 2.4 | T86: 2.5 | U86: 1.3125 | V86: 0 | W86: 0 | X86: 0 | Y86: 0 | Z86: 0 | AA86: 4.41 | AB86: 0 | AC86: 26.2 | AD86: 0 | AE86: 0 | AI86: 9700 | AJ86: 772 | AK86: 677 | AL86: 11.8 | AM86: 769 | AN86: 168 | AO86: 108 | AP86: 3.33 | AQ86: 0 | AR86: 47 | AS86: 141000 | AT86: 0 | AU86: 96.2 | AV86: 550 | AW86: 145 | AX86: 384 | AY86: 0 | AZ86: 0 | BA86: 0 | BB86: 0 | BC86: 27.1 | BD86: 84 | BE86: TRUE
A87: 0 | B87: W27X217 | C87: W27X217 | D87: W | E87: F | F87: 217 | G87: 63.9 | H87: 28.4 | I87: 0 | J87: 0 | K87: 14.1 | L87: 0 | M87: 0 | N87: 0.83 | O87: 1.5 | P87: 0 | Q87: 0 | R87: 0 | S87: 2.29 | T87: 2.375 | U87: 1.25 | V87: 0 | W87: 0 | X87: 0 | Y87: 0 | Z87: 0 | AA87: 4.71 | AB87: 0 | AC87: 28.7 | AD87: 0 | AE87: 0 | AI87: 8910 | AJ87: 711 | AK87: 627 | AL87: 11.8 | AM87: 704 | AN87: 154 | AO87: 100 | AP87: 3.32 | AQ87: 0 | AR87: 37.6 | AS87: 128000 | AT87: 0 | AU87: 94.8 | AV87: 501 | AW87: 134 | AX87: 351 | AY87: 0 | AZ87: 0 | BA87: 0 | BB87: 0 | BC87: 26.9 | BD87: 85 | BE87: TRUE
A88: 0 | B88: W27X194 | C88: W27X194 | D88: W | E88: F | F88: 194 | G88: 57.1 | H88: 28.1 | I88: 0 | J88: 0 | K88: 14 | L88: 0 | M88: 0 | N88: 0.75 | O88: 1.34 | P88: 0 | Q88: 0 | R88: 0 | S88: 2.13 | T88: 2.25 | U88: 1.1875 | V88: 0 | W88: 0 | X88: 0 | Y88: 0 | Z88: 0 | AA88: 5.24 | AB88: 0 | AC88: 31.8 | AD88: 0 | AE88: 0 | AI88: 7860 | AJ88: 631 | AK88: 559 | AL88: 11.7 | AM88: 619 | AN88: 136 | AO88: 88.1 | AP88: 3.29 | AQ88: 0 | AR88: 27.1 | AS88: 111000 | AT88: 0 | AU88: 93.7 | AV88: 439 | AW88: 119 | AX88: 312 | AY88: 0 | AZ88: 0 | BA88: 0 | BB88: 0 | BC88: 26.8 | BD88: 86 | BE88: TRUE
A89: 0 | B89: W27X178 | C89: W27X178 | D89: W | E89: F | F89: 178 | G89: 52.5 | H89: 27.8 | I89: 0 | J89: 0 | K89: 14.1 | L89: 0 | M89: 0 | N89: 0.725 | O89: 1.19 | P89: 0 | Q89: 0 | R89: 0 | S89: 1.98 | T89: 2.0625 | U89: 1.1875 | V89: 0 | W89: 0 | X89: 0 | Y89: 0 | Z89: 0 | AA89: 5.92 | AB89: 0 | AC89: 32.9 | AD89: 0 | AE89: 0 | AI89: 7020 | AJ89: 570 | AK89: 505 | AL89: 11.6 | AM89: 555 | AN89: 122 | AO89: 78.8 | AP89: 3.25 | AQ89: 0 | AR89: 20.1 | AS89: 98400 | AT89: 0 | AU89: 93.8 | AV89: 393 | AW89: 106 | AX89: 282 | AY89: 0 | AZ89: 0 | BA89: 0 | BB89: 0 | BC89: 26.6 | BD89: 87 | BE89: TRUE
A90: 0 | B90: W27X161 | C90: W27X161 | D90: W | E90: F | F90: 161 | G90: 47.6 | H90: 27.6 | I90: 0 | J90: 0 | K90: 14 | L90: 0 | M90: 0 | N90: 0.66 | O90: 1.08 | P90: 0 | Q90: 0 | R90: 0 | S90: 1.87 | T90: 2 | U90: 1.1875 | V90: 0 | W90: 0 | X90: 0 | Y90: 0 | Z90: 0 | AA90: 6.49 | AB90: 0 | AC90: 36.1 | AD90: 0 | AE90: 0 | AI90: 6310 | AJ90: 515 | AK90: 458 | AL90: 11.5 | AM90: 497 | AN90: 109 | AO90: 70.9 | AP90: 3.23 | AQ90: 0 | AR90: 15.1 | AS90: 87300 | AT90: 0 | AU90: 92.8 | AV90: 351 | AW90: 95.5 | AX90: 254 | AY90: 0 | AZ90: 0 | BA90: 0 | BB90: 0 | BC90: 26.5 | BD90: 88 | BE90: TRUE
A91: 0 | B91: W27X146 | C91: W27X146 | D91: W | E91: F | F91: 146 | G91: 43.2 | H91: 27.4 | I91: 0 | J91: 0 | K91: 14 | L91: 0 | M91: 0 | N91: 0.605 | O91: 0.975 | P91: 0 | Q91: 0 | R91: 0 | S91: 1.76 | T91: 1.875 | U91: 1.125 | V91: 0 | W91: 0 | X91: 0 | Y91: 0 | Z91: 0 | AA91: 7.16 | AB91: 0 | AC91: 39.4 | AD91: 0 | AE91: 0 | AI91: 5660 | AJ91: 464 | AK91: 414 | AL91: 11.5 | AM91: 443 | AN91: 97.7 | AO91: 63.5 | AP91: 3.2 | AQ91: 0 | AR91: 11.3 | AS91: 77200 | AT91: 0 | AU91: 92.5 | AV91: 316 | AW91: 86.3 | AX91: 229 | AY91: 0 | AZ91: 0 | BA91: 0 | BB91: 0 | BC91: 26.4 | BD91: 89 | BE91: TRUE
A92: 0 | B92: W27X129 | C92: W27X129 | D92: W | E92: F | F92: 129 | G92: 37.8 | H92: 27.6 | I92: 0 | J92: 0 | K92: 10 | L92: 0 | M92: 0 | N92: 0.61 | O92: 1.1 | P92: 0 | Q92: 0 | R92: 0 | S92: 1.7 | T92: 2 | U92: 1.125 | V92: 0 | W92: 0 | X92: 0 | Y92: 0 | Z92: 0 | AA92: 4.55 | AB92: 0 | AC92: 39.7 | AD92: 0 | AE92: 0 | AI92: 4760 | AJ92: 395 | AK92: 345 | AL92: 11.2 | AM92: 184 | AN92: 57.6 | AO92: 36.8 | AP92: 2.21 | AQ92: 0 | AR92: 11.1 | AS92: 32500 | AT92: 0 | AU92: 66.3 | AV92: 182 | AW92: 68.4 | AX92: 195 | AY92: 0 | AZ92: 0 | BA92: 0 | BB92: 0 | BC92: 26.5 | BD92: 90 | BE92: TRUE
A93: 0 | B93: W27X114 | C93: W27X114 | D93: W | E93: F | F93: 114 | G93: 33.6 | H93: 27.3 | I93: 0 | J93: 0 | K93: 10.1 | L93: 0 | M93: 0 | N93: 0.57 | O93: 0.93 | P93: 0 | Q93: 0 | R93: 0 | S93: 1.53 | T93: 1.8125 | U93: 1.125 | V93: 0 | W93: 0 | X93: 0 | Y93: 0 | Z93: 0 | AA93: 5.41 | AB93: 0 | AC93: 42.5 | AD93: 0 | AE93: 0 | AI93: 4080 | AJ93: 343 | AK93: 299 | AL93: 11 | AM93: 159 | AN93: 49.3 | AO93: 31.5 | AP93: 2.18 | AQ93: 0 | AR93: 7.33 | AS93: 27600 | AT93: 0 | AU93: 66.6 | AV93: 156 | AW93: 58.4 | AX93: 170 | AY93: 0 | AZ93: 0 | BA93: 0 | BB93: 0 | BC93: 26.4 | BD93: 91 | BE93: TRUE
A94: 0 | B94: W27X102 | C94: W27X102 | D94: W | E94: F | F94: 102 | G94: 30 | H94: 27.1 | I94: 0 | J94: 0 | K94: 10 | L94: 0 | M94: 0 | N94: 0.515 | O94: 0.83 | P94: 0 | Q94: 0 | R94: 0 | S94: 1.43 | T94: 1.75 | U94: 1.0625 | V94: 0 | W94: 0 | X94: 0 | Y94: 0 | Z94: 0 | AA94: 6.03 | AB94: 0 | AC94: 47.1 | AD94: 0 | AE94: 0 | AI94: 3620 | AJ94: 305 | AK94: 267 | AL94: 11 | AM94: 139 | AN94: 43.4 | AO94: 27.8 | AP94: 2.15 | AQ94: 0 | AR94: 5.28 | AS94: 24000 | AT94: 0 | AU94: 65.7 | AV94: 136 | AW94: 51.7 | AX94: 151 | AY94: 0 | AZ94: 0 | BA94: 0 | BB94: 0 | BC94: 26.3 | BD94: 92 | BE94: TRUE
A95: 0 | B95: W27X94 | C95: W27X94 | D95: W | E95: F | F95: 94 | G95: 27.6 | H95: 26.9 | I95: 0 | J95: 0 | K95: 10 | L95: 0 | M95: 0 | N95: 0.49 | O95: 0.745 | P95: 0 | Q95: 0 | R95: 0 | S95: 1.34 | T95: 1.625 | U95: 1.0625 | V95: 0 | W95: 0 | X95: 0 | Y95: 0 | Z95: 0 | AA95: 6.7 | AB95: 0 | AC95: 49.5 | AD95: 0 | AE95: 0 | AI95: 3270 | AJ95: 278 | AK95: 243 | AL95: 10.9 | AM95: 124 | AN95: 38.8 | AO95: 24.8 | AP95: 2.12 | AQ95: 0 | AR95: 4.03 | AS95: 21300 | AT95: 0 | AU95: 65.4 | AV95: 122 | AW95: 46.3 | AX95: 137 | AY95: 0 | AZ95: 0 | BA95: 0 | BB95: 0 | BC95: 26.2 | BD95: 93 | BE95: TRUE
A96: 0 | B96: W27X84 | C96: W27X84 | D96: W | E96: F | F96: 84 | G96: 24.7 | H96: 26.7 | I96: 0 | J96: 0 | K96: 10 | L96: 0 | M96: 0 | N96: 0.46 | O96: 0.64 | P96: 0 | Q96: 0 | R96: 0 | S96: 1.24 | T96: 1.5625 | U96: 1.0625 | V96: 0 | W96: 0 | X96: 0 | Y96: 0 | Z96: 0 | AA96: 7.78 | AB96: 0 | AC96: 52.7 | AD96: 0 | AE96: 0 | AI96: 2850 | AJ96: 244 | AK96: 213 | AL96: 10.7 | AM96: 106 | AN96: 33.2 | AO96: 21.2 | AP96: 2.07 | AQ96: 0 | AR96: 2.81 | AS96: 17900 | AT96: 0 | AU96: 65.2 | AV96: 104 | AW96: 39.8 | AX96: 121 | AY96: 0 | AZ96: 0 | BA96: 0 | BB96: 0 | BC96: 26.1 | BD96: 94 | BE96: TRUE
A97: 0 | B97: W24X370 | C97: W24X370 | D97: W | E97: T | F97: 370 | G97: 109 | H97: 28 | I97: 0 | J97: 0 | K97: 13.7 | L97: 0 | M97: 0 | N97: 1.52 | O97: 2.72 | P97: 0 | Q97: 0 | R97: 0 | S97: 3.22 | T97: 3.625 | U97: 1.5625 | V97: 0 | W97: 0 | X97: 0 | Y97: 0 | Z97: 0 | AA97: 2.51 | AB97: 0 | AC97: 14.2 | AD97: 0 | AE97: 0 | AI97: 13400 | AJ97: 1130 | AK97: 957 | AL97: 11.1 | AM97: 1160 | AN97: 267 | AO97: 170 | AP97: 3.27 | AQ97: 0 | AR97: 201 | AS97: 186000 | AT97: 0 | AU97: 86.6 | AV97: 807 | AW97: 209 | AX97: 568 | AY97: 0 | AZ97: 0 | BA97: 0 | BB97: 0 | BC97: 25.3 | BD97: 95 | BE97: TRUE
A98: 0 | B98: W24X335 | C98: W24X335 | D98: W | E98: T | F98: 335 | G98: 98.3 | H98: 27.5 | I98: 0 | J98: 0 | K98: 13.5 | L98: 0 | M98: 0 | N98: 1.38 | O98: 2.48 | P98: 0 | Q98: 0 | R98: 0 | S98: 2.98 | T98: 3.375 | U98: 1.5 | V98: 0 | W98: 0 | X98: 0 | Y98: 0 | Z98: 0 | AA98: 2.73 | AB98: 0 | AC98: 15.6 | AD98: 0 | AE98: 0 | AI98: 11900 | AJ98: 1020 | AK98: 864 | AL98: 11 | AM98: 1030 | AN98: 238 | AO98: 152 | AP98: 3.23 | AQ98: 0 | AR98: 152 | AS98: 161000 | AT98: 0 | AU98: 84.4 | AV98: 707 | AW98: 188 | AX98: 506 | AY98: 0 | AZ98: 0 | BA98: 0 | BB98: 0 | BC98: 25 | BD98: 96 | BE98: TRUE
A99: 0 | B99: W24X306 | C99: W24X306 | D99: W | E99: T | F99: 306 | G99: 89.7 | H99: 27.1 | I99: 0 | J99: 0 | K99: 13.4 | L99: 0 | M99: 0 | N99: 1.26 | O99: 2.28 | P99: 0 | Q99: 0 | R99: 0 | S99: 2.78 | T99: 3.1875 | U99: 1.4375 | V99: 0 | W99: 0 | X99: 0 | Y99: 0 | Z99: 0 | AA99: 2.94 | AB99: 0 | AC99: 17.1 | AD99: 0 | AE99: 0 | AI99: 10700 | AJ99: 922 | AK99: 789 | AL99: 10.9 | AM99: 919 | AN99: 214 | AO99: 137 | AP99: 3.2 | AQ99: 0 | AR99: 117 | AS99: 142000 | AT99: 0 | AU99: 83.1 | AV99: 635 | AW99: 172 | AX99: 459 | AY99: 0 | AZ99: 0 | BA99: 0 | BB99: 0 | BC99: 24.8 | BD99: 97 | BE99: TRUE
A100: 0 | B100: W24X279 | C100: W24X279 | D100: W | E100: T | F100: 279 | G100: 81.9 | H100: 26.7 | I100: 0 | J100: 0 | K100: 13.3 | L100: 0 | M100: 0 | N100: 1.16 | O100: 2.09 | P100: 0 | Q100: 0 | R100: 0 | S100: 2.59 | T100: 3 | U100: 1.4375 | V100: 0 | W100: 0 | X100: 0 | Y100: 0 | Z100: 0 | AA100: 3.18 | AB100: 0 | AC100: 18.6 | AD100: 0 | AE100: 0 | AI100: 9600 | AJ100: 835 | AK100: 718 | AL100: 10.8 | AM100: 823 | AN100: 193 | AO100: 124 | AP100: 3.17 | AQ100: 0 | AR100: 90.5 | AS100: 125000 | AT100: 0 | AU100: 81.8 | AV100: 569 | AW100: 156 | AX100: 416 | AY100: 0 | AZ100: 0 | BA100: 0 | BB100: 0 | BC100: 24.6 | BD100: 98 | BE100: TRUE
A101: 0 | B101: W24X250 | C101: W24X250 | D101: W | E101: F | F101: 250 | G101: 73.5 | H101: 26.3 | I101: 0 | J101: 0 | K101: 13.2 | L101: 0 | M101: 0 | N101: 1.04 | O101: 1.89 | P101: 0 | Q101: 0 | R101: 0 | S101: 2.39 | T101: 2.8125 | U101: 1.375 | V101: 0 | W101: 0 | X101: 0 | Y101: 0 | Z101: 0 | AA101: 3.49 | AB101: 0 | AC101: 20.7 | AD101: 0 | AE101: 0 | AI101: 8490 | AJ101: 744 | AK101: 644 | AL101: 10.7 | AM101: 724 | AN101: 171 | AO101: 110 | AP101: 3.14 | AQ101: 0 | AR101: 66.6 | AS101: 108000 | AT101: 0 | AU101: 80.6 | AV101: 502 | AW101: 140 | AX101: 370 | AY101: 0 | AZ101: 0 | BA101: 0 | BB101: 0 | BC101: 24.4 | BD101: 99 | BE101: TRUE
A102: 0 | B102: W24X229 | C102: W24X229 | D102: W | E102: F | F102: 229 | G102: 67.2 | H102: 26 | I102: 0 | J102: 0 | K102: 13.1 | L102: 0 | M102: 0 | N102: 0.96 | O102: 1.73 | P102: 0 | Q102: 0 | R102: 0 | S102: 2.23 | T102: 2.625 | U102: 1.3125 | V102: 0 | W102: 0 | X102: 0 | Y102: 0 | Z102: 0 | AA102: 3.79 | AB102: 0 | AC102: 22.5 | AD102: 0 | AE102: 0 | AI102: 7650 | AJ102: 675 | AK102: 588 | AL102: 10.7 | AM102: 651 | AN102: 154 | AO102: 99.4 | AP102: 3.11 | AQ102: 0 | AR102: 51.3 | AS102: 96100 | AT102: 0 | AU102: 79.5 | AV102: 450 | AW102: 127 | AX102: 336 | AY102: 0 | AZ102: 0 | BA102: 0 | BB102: 0 | BC102: 24.3 | BD102: 100 | BE102: TRUE
A103: 0 | B103: W24X207 | C103: W24X207 | D103: W | E103: F | F103: 207 | G103: 60.7 | H103: 25.7 | I103: 0 | J103: 0 | K103: 13 | L103: 0 | M103: 0 | N103: 0.87 | O103: 1.57 | P103: 0 | Q103: 0 | R103: 0 | S103: 2.07 | T103: 2.5 | U103: 1.25 | V103: 0 | W103: 0 | X103: 0 | Y103: 0 | Z103: 0 | AA103: 4.14 | AB103: 0 | AC103: 24.8 | AD103: 0 | AE103: 0 | AI103: 6820 | AJ103: 606 | AK103: 531 | AL103: 10.6 | AM103: 578 | AN103: 137 | AO103: 88.8 | AP103: 3.08 | AQ103: 0 | AR103: 38.3 | AS103: 84100 | AT103: 0 | AU103: 78.4 | AV103: 400 | AW103: 115 | AX103: 302 | AY103: 0 | AZ103: 0 | BA103: 0 | BB103: 0 | BC103: 24.1 | BD103: 101 | BE103: TRUE
A104: 0 | B104: W24X192 | C104: W24X192 | D104: W | E104: F | F104: 192 | G104: 56.5 | H104: 25.5 | I104: 0 | J104: 0 | K104: 13 | L104: 0 | M104: 0 | N104: 0.81 | O104: 1.46 | P104: 0 | Q104: 0 | R104: 0 | S104: 1.96 | T104: 2.375 | U104: 1.25 | V104: 0 | W104: 0 | X104: 0 | Y104: 0 | Z104: 0 | AA104: 4.43 | AB104: 0 | AC104: 26.6 | AD104: 0 | AE104: 0 | AI104: 6260 | AJ104: 559 | AK104: 491 | AL104: 10.5 | AM104: 530 | AN104: 126 | AO104: 81.8 | AP104: 3.07 | AQ104: 0 | AR104: 30.8 | AS104: 76300 | AT104: 0 | AU104: 78.1 | AV104: 371 | AW104: 107 | AX104: 280 | AY104: 0 | AZ104: 0 | BA104: 0 | BB104: 0 | BC104: 24 | BD104: 102 | BE104: TRUE
A105: 0 | B105: W24X176 | C105: W24X176 | D105: W | E105: F | F105: 176 | G105: 51.7 | H105: 25.2 | I105: 0 | J105: 0 | K105: 12.9 | L105: 0 | M105: 0 | N105: 0.75 | O105: 1.34 | P105: 0 | Q105: 0 | R105: 0 | S105: 1.84 | T105: 2.25 | U105: 1.1875 | V105: 0 | W105: 0 | X105: 0 | Y105: 0 | Z105: 0 | AA105: 4.81 | AB105: 0 | AC105: 28.7 | AD105: 0 | AE105: 0 | AI105: 5680 | AJ105: 511 | AK105: 450 | AL105: 10.5 | AM105: 479 | AN105: 115 | AO105: 74.3 | AP105: 3.04 | AQ105: 0 | AR105: 23.9 | AS105: 68400 | AT105: 0 | AU105: 76.9 | AV105: 333 | AW105: 97.1 | AX105: 254 | AY105: 0 | AZ105: 0 | BA105: 0 | BB105: 0 | BC105: 23.9 | BD105: 103 | BE105: TRUE
A106: 0 | B106: W24X162 | C106: W24X162 | D106: W | E106: F | F106: 162 | G106: 47.8 | H106: 25 | I106: 0 | J106: 0 | K106: 13 | L106: 0 | M106: 0 | N106: 0.705 | O106: 1.22 | P106: 0 | Q106: 0 | R106: 0 | S106: 1.72 | T106: 2.125 | U106: 1.1875 | V106: 0 | W106: 0 | X106: 0 | Y106: 0 | Z106: 0 | AA106: 5.31 | AB106: 0 | AC106: 30.6 | AD106: 0 | AE106: 0 | AI106: 5170 | AJ106: 468 | AK106: 414 | AL106: 10.4 | AM106: 443 | AN106: 105 | AO106: 68.4 | AP106: 3.05 | AQ106: 0 | AR106: 18.5 | AS106: 62600 | AT106: 0 | AU106: 77.3 | AV106: 306 | AW106: 89.2 | AX106: 233 | AY106: 0 | AZ106: 0 | BA106: 0 | BB106: 0 | BC106: 23.8 | BD106: 104 | BE106: TRUE
A107: 0 | B107: W24X146 | C107: W24X146 | D107: W | E107: F | F107: 146 | G107: 43 | H107: 24.7 | I107: 0 | J107: 0 | K107: 12.9 | L107: 0 | M107: 0 | N107: 0.65 | O107: 1.09 | P107: 0 | Q107: 0 | R107: 0 | S107: 1.59 | T107: 2 | U107: 1.125 | V107: 0 | W107: 0 | X107: 0 | Y107: 0 | Z107: 0 | AA107: 5.92 | AB107: 0 | AC107: 33.2 | AD107: 0 | AE107: 0 | AI107: 4580 | AJ107: 418 | AK107: 371 | AL107: 10.3 | AM107: 391 | AN107: 93.2 | AO107: 60.5 | AP107: 3.01 | AQ107: 0 | AR107: 13.4 | AS107: 54600 | AT107: 0 | AU107: 76.1 | AV107: 268 | AW107: 78.8 | AX107: 207 | AY107: 0 | AZ107: 0 | BA107: 0 | BB107: 0 | BC107: 23.6 | BD107: 105 | BE107: TRUE
A108: 0 | B108: W24X131 | C108: W24X131 | D108: W | E108: F | F108: 131 | G108: 38.6 | H108: 24.5 | I108: 0 | J108: 0 | K108: 12.9 | L108: 0 | M108: 0 | N108: 0.605 | O108: 0.96 | P108: 0 | Q108: 0 | R108: 0 | S108: 1.46 | T108: 1.875 | U108: 1.125 | V108: 0 | W108: 0 | X108: 0 | Y108: 0 | Z108: 0 | AA108: 6.7 | AB108: 0 | AC108: 35.6 | AD108: 0 | AE108: 0 | AI108: 4020 | AJ108: 370 | AK108: 329 | AL108: 10.2 | AM108: 340 | AN108: 81.5 | AO108: 53 | AP108: 2.97 | AQ108: 0 | AR108: 9.5 | AS108: 47100 | AT108: 0 | AU108: 75.9 | AV108: 235 | AW108: 69.5 | AX108: 184 | AY108: 0 | AZ108: 0 | BA108: 0 | BB108: 0 | BC108: 23.5 | BD108: 106 | BE108: TRUE
A109: 0 | B109: W24X117 | C109: W24X117 | D109: W | E109: F | F109: 117 | G109: 34.4 | H109: 24.3 | I109: 0 | J109: 0 | K109: 12.8 | L109: 0 | M109: 0 | N109: 0.55 | O109: 0.85 | P109: 0 | Q109: 0 | R109: 0 | S109: 1.35 | T109: 1.75 | U109: 1.125 | V109: 0 | W109: 0 | X109: 0 | Y109: 0 | Z109: 0 | AA109: 7.53 | AB109: 0 | AC109: 39.2 | AD109: 0 | AE109: 0 | AI109: 3540 | AJ109: 327 | AK109: 291 | AL109: 10.1 | AM109: 297 | AN109: 71.4 | AO109: 46.5 | AP109: 2.94 | AQ109: 0 | AR109: 6.72 | AS109: 40800 | AT109: 0 | AU109: 75 | AV109: 204 | AW109: 61 | AX109: 163 | AY109: 0 | AZ109: 0 | BA109: 0 | BB109: 0 | BC109: 23.5 | BD109: 107 | BE109: TRUE
A110: 0 | B110: W24X104 | C110: W24X104 | D110: W | E110: F | F110: 104 | G110: 30.7 | H110: 24.1 | I110: 0 | J110: 0 | K110: 12.8 | L110: 0 | M110: 0 | N110: 0.5 | O110: 0.75 | P110: 0 | Q110: 0 | R110: 0 | S110: 1.25 | T110: 1.625 | U110: 1.0625 | V110: 0 | W110: 0 | X110: 0 | Y110: 0 | Z110: 0 | AA110: 8.5 | AB110: 0 | AC110: 43.1 | AD110: 0 | AE110: 0 | AI110: 3100 | AJ110: 289 | AK110: 258 | AL110: 10.1 | AM110: 259 | AN110: 62.4 | AO110: 40.7 | AP110: 2.91 | AQ110: 0 | AR110: 4.72 | AS110: 35200 | AT110: 0 | AU110: 74.7 | AV110: 179 | AW110: 53.9 | AX110: 144 | AY110: 0 | AZ110: 0 | BA110: 0 | BB110: 0 | BC110: 23.4 | BD110: 108 | BE110: TRUE
A111: 0 | B111: W24X103 | C111: W24X103 | D111: W | E111: F | F111: 103 | G111: 30.3 | H111: 24.5 | I111: 0 | J111: 0 | K111: 9 | L111: 0 | M111: 0 | N111: 0.55 | O111: 0.98 | P111: 0 | Q111: 0 | R111: 0 | S111: 1.48 | T111: 1.875 | U111: 1.125 | V111: 0 | W111: 0 | X111: 0 | Y111: 0 | Z111: 0 | AA111: 4.59 | AB111: 0 | AC111: 39.2 | AD111: 0 | AE111: 0 | AI111: 3000 | AJ111: 280 | AK111: 245 | AL111: 10 | AM111: 119 | AN111: 41.5 | AO111: 26.5 | AP111: 1.99 | AQ111: 0 | AR111: 7.07 | AS111: 16600 | AT111: 0 | AU111: 52.9 | AV111: 117 | AW111: 48.7 | AX111: 139 | AY111: 0 | AZ111: 0 | BA111: 0 | BB111: 0 | BC111: 23.5 | BD111: 109 | BE111: TRUE
A112: 0 | B112: W24X94 | C112: W24X94 | D112: W | E112: F | F112: 94 | G112: 27.7 | H112: 24.3 | I112: 0 | J112: 0 | K112: 9.07 | L112: 0 | M112: 0 | N112: 0.515 | O112: 0.875 | P112: 0 | Q112: 0 | R112: 0 | S112: 1.38 | T112: 1.75 | U112: 1.0625 | V112: 0 | W112: 0 | X112: 0 | Y112: 0 | Z112: 0 | AA112: 5.18 | AB112: 0 | AC112: 41.9 | AD112: 0 | AE112: 0 | AI112: 2700 | AJ112: 254 | AK112: 222 | AL112: 9.87 | AM112: 109 | AN112: 37.5 | AO112: 24 | AP112: 1.98 | AQ112: 0 | AR112: 5.26 | AS112: 15000 | AT112: 0 | AU112: 53.1 | AV112: 105 | AW112: 43.8 | AX112: 126 | AY112: 0 | AZ112: 0 | BA112: 0 | BB112: 0 | BC112: 23.4 | BD112: 110 | BE112: TRUE
A113: 0 | B113: W24X84 | C113: W24X84 | D113: W | E113: F | F113: 84 | G113: 24.7 | H113: 24.1 | I113: 0 | J113: 0 | K113: 9.02 | L113: 0 | M113: 0 | N113: 0.47 | O113: 0.77 | P113: 0 | Q113: 0 | R113: 0 | S113: 1.27 | T113: 1.6875 | U113: 1.0625 | V113: 0 | W113: 0 | X113: 0 | Y113: 0 | Z113: 0 | AA113: 5.86 | AB113: 0 | AC113: 45.9 | AD113: 0 | AE113: 0 | AI113: 2370 | AJ113: 224 | AK113: 196 | AL113: 9.79 | AM113: 94.4 | AN113: 32.6 | AO113: 20.9 | AP113: 1.95 | AQ113: 0 | AR113: 3.7 | AS113: 12800 | AT113: 0 | AU113: 52.6 | AV113: 91.3 | AW113: 38.4 | AX113: 111 | AY113: 0 | AZ113: 0 | BA113: 0 | BB113: 0 | BC113: 23.3 | BD113: 111 | BE113: TRUE
A114: 0 | B114: W24X76 | C114: W24X76 | D114: W | E114: F | F114: 76 | G114: 22.4 | H114: 23.9 | I114: 0 | J114: 0 | K114: 8.99 | L114: 0 | M114: 0 | N114: 0.44 | O114: 0.68 | P114: 0 | Q114: 0 | R114: 0 | S114: 1.18 | T114: 1.5625 | U114: 1.0625 | V114: 0 | W114: 0 | X114: 0 | Y114: 0 | Z114: 0 | AA114: 6.61 | AB114: 0 | AC114: 49 | AD114: 0 | AE114: 0 | AI114: 2100 | AJ114: 200 | AK114: 176 | AL114: 9.69 | AM114: 82.5 | AN114: 28.6 | AO114: 18.4 | AP114: 1.92 | AQ114: 0 | AR114: 2.68 | AS114: 11100 | AT114: 0 | AU114: 52.2 | AV114: 79.8 | AW114: 33.8 | AX114: 98.9 | AY114: 0 | AZ114: 0 | BA114: 0 | BB114: 0 | BC114: 23.2 | BD114: 112 | BE114: TRUE
A115: 0 | B115: W24X68 | C115: W24X68 | D115: W | E115: F | F115: 68 | G115: 20.1 | H115: 23.7 | I115: 0 | J115: 0 | K115: 8.97 | L115: 0 | M115: 0 | N115: 0.415 | O115: 0.585 | P115: 0 | Q115: 0 | R115: 0 | S115: 1.09 | T115: 1.5 | U115: 1.0625 | V115: 0 | W115: 0 | X115: 0 | Y115: 0 | Z115: 0 | AA115: 7.66 | AB115: 0 | AC115: 52 | AD115: 0 | AE115: 0 | AI115: 1830 | AJ115: 177 | AK115: 154 | AL115: 9.55 | AM115: 70.4 | AN115: 24.5 | AO115: 15.7 | AP115: 1.87 | AQ115: 0 | AR115: 1.87 | AS115: 9430 | AT115: 0 | AU115: 51.8 | AV115: 68 | AW115: 28.9 | AX115: 87 | AY115: 0 | AZ115: 0 | BA115: 0 | BB115: 0 | BC115: 23.1 | BD115: 113 | BE115: TRUE
A116: 0 | B116: W24X62 | C116: W24X62 | D116: W | E116: F | F116: 62 | G116: 18.2 | H116: 23.7 | I116: 0 | J116: 0 | K116: 7.04 | L116: 0 | M116: 0 | N116: 0.43 | O116: 0.59 | P116: 0 | Q116: 0 | R116: 0 | S116: 1.09 | T116: 1.5 | U116: 1.0625 | V116: 0 | W116: 0 | X116: 0 | Y116: 0 | Z116: 0 | AA116: 5.97 | AB116: 0 | AC116: 50.1 | AD116: 0 | AE116: 0 | AI116: 1550 | AJ116: 153 | AK116: 131 | AL116: 9.23 | AM116: 34.5 | AN116: 15.7 | AO116: 9.8 | AP116: 1.38 | AQ116: 0 | AR116: 1.71 | AS116: 4620 | AT116: 0 | AU116: 40.7 | AV116: 42.2 | AW116: 22.5 | AX116: 75.3 | AY116: 0 | AZ116: 0 | BA116: 0 | BB116: 0 | BC116: 23.1 | BD116: 114 | BE116: TRUE
A117: 0 | B117: W24X55 | C117: W24X55 | D117: W | E117: F | F117: 55 | G117: 16.2 | H117: 23.6 | I117: 0 | J117: 0 | K117: 7.01 | L117: 0 | M117: 0 | N117: 0.395 | O117: 0.505 | P117: 0 | Q117: 0 | R117: 0 | S117: 1.01 | T117: 1.4375 | U117: 1 | V117: 0 | W117: 0 | X117: 0 | Y117: 0 | Z117: 0 | AA117: 6.94 | AB117: 0 | AC117: 54.6 | AD117: 0 | AE117: 0 | AI117: 1350 | AJ117: 134 | AK117: 114 | AL117: 9.11 | AM117: 29.1 | AN117: 13.3 | AO117: 8.3 | AP117: 1.34 | AQ117: 0 | AR117: 1.18 | AS117: 3870 | AT117: 0 | AU117: 40.5 | AV117: 35.8 | AW117: 19.3 | AX117: 66.1 | AY117: 0 | AZ117: 0 | BA117: 0 | BB117: 0 | BC117: 23.1 | BD117: 115 | BE117: TRUE
A118: 0 | B118: W21X201 | C118: W21X201 | D118: W | E118: F | F118: 201 | G118: 59.3 | H118: 23 | I118: 0 | J118: 0 | K118: 12.6 | L118: 0 | M118: 0 | N118: 0.91 | O118: 1.63 | P118: 0 | Q118: 0 | R118: 0 | S118: 2.13 | T118: 2.5 | U118: 1.3125 | V118: 0 | W118: 0 | X118: 0 | Y118: 0 | Z118: 0 | AA118: 3.86 | AB118: 0 | AC118: 20.6 | AD118: 0 | AE118: 0 | AI118: 5310 | AJ118: 530 | AK118: 461 | AL118: 9.47 | AM118: 542 | AN118: 133 | AO118: 86.1 | AP118: 3.02 | AQ118: 0 | AR118: 40.9 | AS118: 62000 | AT118: 0 | AU118: 67.3 | AV118: 346 | AW118: 102 | AX118: 264 | AY118: 0 | AZ118: 0 | BA118: 0 | BB118: 0 | BC118: 21.4 | BD118: 116 | BE118: TRUE
A119: 0 | B119: W21X182 | C119: W21X182 | D119: W | E119: F | F119: 182 | G119: 53.6 | H119: 22.7 | I119: 0 | J119: 0 | K119: 12.5 | L119: 0 | M119: 0 | N119: 0.83 | O119: 1.48 | P119: 0 | Q119: 0 | R119: 0 | S119: 1.98 | T119: 2.375 | U119: 1.25 | V119: 0 | W119: 0 | X119: 0 | Y119: 0 | Z119: 0 | AA119: 4.22 | AB119: 0 | AC119: 22.6 | AD119: 0 | AE119: 0 | AI119: 4730 | AJ119: 476 | AK119: 417 | AL119: 9.4 | AM119: 483 | AN119: 119 | AO119: 77.2 | AP119: 3 | AQ119: 0 | AR119: 30.7 | AS119: 54400 | AT119: 0 | AU119: 66.3 | AV119: 307 | AW119: 91.6 | AX119: 237 | AY119: 0 | AZ119: 0 | BA119: 0 | BB119: 0 | BC119: 21.2 | BD119: 117 | BE119: TRUE
A120: 0 | B120: W21X166 | C120: W21X166 | D120: W | E120: F | F120: 166 | G120: 48.8 | H120: 22.5 | I120: 0 | J120: 0 | K120: 12.4 | L120: 0 | M120: 0 | N120: 0.75 | O120: 1.36 | P120: 0 | Q120: 0 | R120: 0 | S120: 1.86 | T120: 2.25 | U120: 1.1875 | V120: 0 | W120: 0 | X120: 0 | Y120: 0 | Z120: 0 | AA120: 4.57 | AB120: 0 | AC120: 25 | AD120: 0 | AE120: 0 | AI120: 4280 | AJ120: 432 | AK120: 380 | AL120: 9.36 | AM120: 435 | AN120: 108 | AO120: 70 | AP120: 2.99 | AQ120: 0 | AR120: 23.6 | AS120: 48500 | AT120: 0 | AU120: 65.5 | AV120: 276 | AW120: 83.7 | AX120: 215 | AY120: 0 | AZ120: 0 | BA120: 0 | BB120: 0 | BC120: 21.1 | BD120: 118 | BE120: TRUE
A121: 0 | B121: W21X147 | C121: W21X147 | D121: W | E121: F | F121: 147 | G121: 43.2 | H121: 22.1 | I121: 0 | J121: 0 | K121: 12.5 | L121: 0 | M121: 0 | N121: 0.72 | O121: 1.15 | P121: 0 | Q121: 0 | R121: 0 | S121: 1.65 | T121: 2 | U121: 1.1875 | V121: 0 | W121: 0 | X121: 0 | Y121: 0 | Z121: 0 | AA121: 5.44 | AB121: 0 | AC121: 26.1 | AD121: 0 | AE121: 0 | AI121: 3630 | AJ121: 373 | AK121: 329 | AL121: 9.17 | AM121: 376 | AN121: 92.6 | AO121: 60.1 | AP121: 2.95 | AQ121: 0 | AR121: 15.4 | AS121: 41100 | AT121: 0 | AU121: 65.5 | AV121: 235 | AW121: 71 | AX121: 186 | AY121: 0 | AZ121: 0 | BA121: 0 | BB121: 0 | BC121: 21 | BD121: 119 | BE121: TRUE
A122: 0 | B122: W21X132 | C122: W21X132 | D122: W | E122: F | F122: 132 | G122: 38.8 | H122: 21.8 | I122: 0 | J122: 0 | K122: 12.4 | L122: 0 | M122: 0 | N122: 0.65 | O122: 1.04 | P122: 0 | Q122: 0 | R122: 0 | S122: 1.54 | T122: 1.9375 | U122: 1.125 | V122: 0 | W122: 0 | X122: 0 | Y122: 0 | Z122: 0 | AA122: 6.01 | AB122: 0 | AC122: 28.9 | AD122: 0 | AE122: 0 | AI122: 3220 | AJ122: 333 | AK122: 295 | AL122: 9.12 | AM122: 333 | AN122: 82.3 | AO122: 53.5 | AP122: 2.93 | AQ122: 0 | AR122: 11.3 | AS122: 36000 | AT122: 0 | AU122: 64.4 | AV122: 206 | AW122: 62.8 | AX122: 164 | AY122: 0 | AZ122: 0 | BA122: 0 | BB122: 0 | BC122: 20.8 | BD122: 120 | BE122: TRUE
A123: 0 | B123: W21X122 | C123: W21X122 | D123: W | E123: F | F123: 122 | G123: 35.9 | H123: 21.7 | I123: 0 | J123: 0 | K123: 12.4 | L123: 0 | M123: 0 | N123: 0.6 | O123: 0.96 | P123: 0 | Q123: 0 | R123: 0 | S123: 1.46 | T123: 1.8125 | U123: 1.125 | V123: 0 | W123: 0 | X123: 0 | Y123: 0 | Z123: 0 | AA123: 6.45 | AB123: 0 | AC123: 31.3 | AD123: 0 | AE123: 0 | AI123: 2960 | AJ123: 307 | AK123: 273 | AL123: 9.09 | AM123: 305 | AN123: 75.6 | AO123: 49.2 | AP123: 2.92 | AQ123: 0 | AR123: 8.98 | AS123: 32700 | AT123: 0 | AU123: 64.3 | AV123: 191 | AW123: 58.7 | AX123: 153 | AY123: 0 | AZ123: 0 | BA123: 0 | BB123: 0 | BC123: 20.7 | BD123: 121 | BE123: TRUE
A124: 0 | B124: W21X111 | C124: W21X111 | D124: W | E124: F | F124: 111 | G124: 32.6 | H124: 21.5 | I124: 0 | J124: 0 | K124: 12.3 | L124: 0 | M124: 0 | N124: 0.55 | O124: 0.875 | P124: 0 | Q124: 0 | R124: 0 | S124: 1.38 | T124: 1.75 | U124: 1.125 | V124: 0 | W124: 0 | X124: 0 | Y124: 0 | Z124: 0 | AA124: 7.05 | AB124: 0 | AC124: 34.1 | AD124: 0 | AE124: 0 | AI124: 2670 | AJ124: 279 | AK124: 249 | AL124: 9.05 | AM124: 274 | AN124: 68.2 | AO124: 44.5 | AP124: 2.9 | AQ124: 0 | AR124: 6.83 | AS124: 29200 | AT124: 0 | AU124: 63.4 | AV124: 171 | AW124: 53 | AX124: 138 | AY124: 0 | AZ124: 0 | BA124: 0 | BB124: 0 | BC124: 20.6 | BD124: 122 | BE124: TRUE
A125: 0 | B125: W21X101 | C125: W21X101 | D125: W | E125: F | F125: 101 | G125: 29.8 | H125: 21.4 | I125: 0 | J125: 0 | K125: 12.3 | L125: 0 | M125: 0 | N125: 0.5 | O125: 0.8 | P125: 0 | Q125: 0 | R125: 0 | S125: 1.3 | T125: 1.6875 | U125: 1.0625 | V125: 0 | W125: 0 | X125: 0 | Y125: 0 | Z125: 0 | AA125: 7.68 | AB125: 0 | AC125: 37.5 | AD125: 0 | AE125: 0 | AI125: 2420 | AJ125: 253 | AK125: 227 | AL125: 9.02 | AM125: 248 | AN125: 61.7 | AO125: 40.3 | AP125: 2.89 | AQ125: 0 | AR125: 5.21 | AS125: 26200 | AT125: 0 | AU125: 63.3 | AV125: 156 | AW125: 48.6 | AX125: 126 | AY125: 0 | AZ125: 0 | BA125: 0 | BB125: 0 | BC125: 20.6 | BD125: 123 | BE125: TRUE
A126: 0 | B126: W21X93 | C126: W21X93 | D126: W | E126: F | F126: 93 | G126: 27.3 | H126: 21.6 | I126: 0 | J126: 0 | K126: 8.42 | L126: 0 | M126: 0 | N126: 0.58 | O126: 0.93 | P126: 0 | Q126: 0 | R126: 0 | S126: 1.43 | T126: 1.625 | U126: 0.9375 | V126: 0 | W126: 0 | X126: 0 | Y126: 0 | Z126: 0 | AA126: 4.53 | AB126: 0 | AC126: 32.3 | AD126: 0 | AE126: 0 | AI126: 2070 | AJ126: 221 | AK126: 192 | AL126: 8.7 | AM126: 92.9 | AN126: 34.7 | AO126: 22.1 | AP126: 1.84 | AQ126: 0 | AR126: 6.03 | AS126: 9940 | AT126: 0 | AU126: 43.5 | AV126: 85.2 | AW126: 37.7 | AX126: 109 | AY126: 0 | AZ126: 0 | BA126: 0 | BB126: 0 | BC126: 20.7 | BD126: 124 | BE126: TRUE
A127: 0 | B127: W21X83 | C127: W21X83 | D127: W | E127: F | F127: 83 | G127: 24.4 | H127: 21.4 | I127: 0 | J127: 0 | K127: 8.36 | L127: 0 | M127: 0 | N127: 0.515 | O127: 0.835 | P127: 0 | Q127: 0 | R127: 0 | S127: 1.34 | T127: 1.5 | U127: 0.875 | V127: 0 | W127: 0 | X127: 0 | Y127: 0 | Z127: 0 | AA127: 5 | AB127: 0 | AC127: 36.4 | AD127: 0 | AE127: 0 | AI127: 1830 | AJ127: 196 | AK127: 171 | AL127: 8.67 | AM127: 81.4 | AN127: 30.5 | AO127: 19.5 | AP127: 1.83 | AQ127: 0 | AR127: 4.34 | AS127: 8630 | AT127: 0 | AU127: 43 | AV127: 75 | AW127: 33.7 | AX127: 96.8 | AY127: 0 | AZ127: 0 | BA127: 0 | BB127: 0 | BC127: 20.6 | BD127: 125 | BE127: TRUE
A128: 0 | B128: W21X73 | C128: W21X73 | D128: W | E128: F | F128: 73 | G128: 21.5 | H128: 21.2 | I128: 0 | J128: 0 | K128: 8.3 | L128: 0 | M128: 0 | N128: 0.455 | O128: 0.74 | P128: 0 | Q128: 0 | R128: 0 | S128: 1.24 | T128: 1.4375 | U128: 0.875 | V128: 0 | W128: 0 | X128: 0 | Y128: 0 | Z128: 0 | AA128: 5.6 | AB128: 0 | AC128: 41.2 | AD128: 0 | AE128: 0 | AI128: 1600 | AJ128: 172 | AK128: 151 | AL128: 8.64 | AM128: 70.6 | AN128: 26.6 | AO128: 17 | AP128: 1.81 | AQ128: 0 | AR128: 3.02 | AS128: 7410 | AT128: 0 | AU128: 42.5 | AV128: 65.2 | AW128: 29.7 | AX128: 85 | AY128: 0 | AZ128: 0 | BA128: 0 | BB128: 0 | BC128: 20.5 | BD128: 126 | BE128: TRUE
A129: 0 | B129: W21X68 | C129: W21X68 | D129: W | E129: F | F129: 68 | G129: 20 | H129: 21.1 | I129: 0 | J129: 0 | K129: 8.27 | L129: 0 | M129: 0 | N129: 0.43 | O129: 0.685 | P129: 0 | Q129: 0 | R129: 0 | S129: 1.19 | T129: 1.375 | U129: 0.875 | V129: 0 | W129: 0 | X129: 0 | Y129: 0 | Z129: 0 | AA129: 6.04 | AB129: 0 | AC129: 43.6 | AD129: 0 | AE129: 0 | AI129: 1480 | AJ129: 160 | AK129: 140 | AL129: 8.6 | AM129: 64.7 | AN129: 24.4 | AO129: 15.7 | AP129: 1.8 | AQ129: 0 | AR129: 2.45 | AS129: 6760 | AT129: 0 | AU129: 42.2 | AV129: 59.8 | AW129: 27.4 | AX129: 78.7 | AY129: 0 | AZ129: 0 | BA129: 0 | BB129: 0 | BC129: 20.4 | BD129: 127 | BE129: TRUE
A130: 0 | B130: W21X62 | C130: W21X62 | D130: W | E130: F | F130: 62 | G130: 18.3 | H130: 21 | I130: 0 | J130: 0 | K130: 8.24 | L130: 0 | M130: 0 | N130: 0.4 | O130: 0.615 | P130: 0 | Q130: 0 | R130: 0 | S130: 1.12 | T130: 1.3125 | U130: 0.8125 | V130: 0 | W130: 0 | X130: 0 | Y130: 0 | Z130: 0 | AA130: 6.7 | AB130: 0 | AC130: 46.9 | AD130: 0 | AE130: 0 | AI130: 1330 | AJ130: 144 | AK130: 127 | AL130: 8.54 | AM130: 57.5 | AN130: 21.7 | AO130: 14 | AP130: 1.77 | AQ130: 0 | AR130: 1.83 | AS130: 5960 | AT130: 0 | AU130: 42 | AV130: 53.2 | AW130: 24.6 | AX130: 71.2 | AY130: 0 | AZ130: 0 | BA130: 0 | BB130: 0 | BC130: 20.4 | BD130: 128 | BE130: TRUE
A131: 0 | B131: W21X55 | C131: W21X55 | D131: W | E131: F | F131: 55 | G131: 16.2 | H131: 20.8 | I131: 0 | J131: 0 | K131: 8.22 | L131: 0 | M131: 0 | N131: 0.375 | O131: 0.522 | P131: 0 | Q131: 0 | R131: 0 | S131: 1.02 | T131: 1.1875 | U131: 0.8125 | V131: 0 | W131: 0 | X131: 0 | Y131: 0 | Z131: 0 | AA131: 7.87 | AB131: 0 | AC131: 50 | AD131: 0 | AE131: 0 | AI131: 1140 | AJ131: 126 | AK131: 110 | AL131: 8.4 | AM131: 48.4 | AN131: 18.4 | AO131: 11.8 | AP131: 1.73 | AQ131: 0 | AR131: 1.24 | AS131: 4980 | AT131: 0 | AU131: 41.7 | AV131: 44.7 | AW131: 20.8 | AX131: 61.8 | AY131: 0 | AZ131: 0 | BA131: 0 | BB131: 0 | BC131: 20.28 | BD131: 129 | BE131: TRUE
A132: 0 | B132: W21X48 | C132: W21X48 | D132: W | E132: F | F132: 48 | G132: 14.1 | H132: 20.6 | I132: 0 | J132: 0 | K132: 8.14 | L132: 0 | M132: 0 | N132: 0.35 | O132: 0.43 | P132: 0 | Q132: 0 | R132: 0 | S132: 0.93 | T132: 1.125 | U132: 0.8125 | V132: 0 | W132: 0 | X132: 0 | Y132: 0 | Z132: 0 | AA132: 9.47 | AB132: 0 | AC132: 53.6 | AD132: 0 | AE132: 0 | AI132: 959 | AJ132: 107 | AK132: 93 | AL132: 8.24 | AM132: 38.7 | AN132: 14.9 | AO132: 9.52 | AP132: 1.66 | AQ132: 0 | AR132: 0.803 | AS132: 3950 | AT132: 0 | AU132: 41 | AV132: 35.9 | AW132: 16.9 | AX132: 52.3 | AY132: 0 | AZ132: 0 | BA132: 0 | BB132: 0 | BC132: 20.2 | BD132: 130 | BE132: TRUE
A133: 0 | B133: W21X57 | C133: W21X57 | D133: W | E133: F | F133: 57 | G133: 16.7 | H133: 21.1 | I133: 0 | J133: 0 | K133: 6.56 | L133: 0 | M133: 0 | N133: 0.405 | O133: 0.65 | P133: 0 | Q133: 0 | R133: 0 | S133: 1.15 | T133: 1.3125 | U133: 0.8125 | V133: 0 | W133: 0 | X133: 0 | Y133: 0 | Z133: 0 | AA133: 5.04 | AB133: 0 | AC133: 46.3 | AD133: 0 | AE133: 0 | AI133: 1170 | AJ133: 129 | AK133: 111 | AL133: 8.36 | AM133: 30.6 | AN133: 14.8 | AO133: 9.35 | AP133: 1.35 | AQ133: 0 | AR133: 1.77 | AS133: 3190 | AT133: 0 | AU133: 33.5 | AV133: 35.8 | AW133: 20.5 | AX133: 63.4 | AY133: 0 | AZ133: 0 | BA133: 0 | BB133: 0 | BC133: 20.5 | BD133: 131 | BE133: TRUE
A134: 0 | B134: W21X50 | C134: W21X50 | D134: W | E134: F | F134: 50 | G134: 14.7 | H134: 20.8 | I134: 0 | J134: 0 | K134: 6.53 | L134: 0 | M134: 0 | N134: 0.38 | O134: 0.535 | P134: 0 | Q134: 0 | R134: 0 | S134: 1.04 | T134: 1.25 | U134: 0.8125 | V134: 0 | W134: 0 | X134: 0 | Y134: 0 | Z134: 0 | AA134: 6.1 | AB134: 0 | AC134: 49.4 | AD134: 0 | AE134: 0 | AI134: 984 | AJ134: 110 | AK134: 94.5 | AL134: 8.18 | AM134: 24.9 | AN134: 12.2 | AO134: 7.64 | AP134: 1.3 | AQ134: 0 | AR134: 1.14 | AS134: 2570 | AT134: 0 | AU134: 33.1 | AV134: 28.9 | AW134: 16.7 | AX134: 53.9 | AY134: 0 | AZ134: 0 | BA134: 0 | BB134: 0 | BC134: 20.3 | BD134: 132 | BE134: TRUE
A135: 0 | B135: W21X44 | C135: W21X44 | D135: W | E135: F | F135: 44 | G135: 13 | H135: 20.7 | I135: 0 | J135: 0 | K135: 6.5 | L135: 0 | M135: 0 | N135: 0.35 | O135: 0.45 | P135: 0 | Q135: 0 | R135: 0 | S135: 0.95 | T135: 1.125 | U135: 0.8125 | V135: 0 | W135: 0 | X135: 0 | Y135: 0 | Z135: 0 | AA135: 7.22 | AB135: 0 | AC135: 53.6 | AD135: 0 | AE135: 0 | AI135: 843 | AJ135: 95.4 | AK135: 81.6 | AL135: 8.06 | AM135: 20.7 | AN135: 10.2 | AO135: 6.37 | AP135: 1.26 | AQ135: 0 | AR135: 0.77 | AS135: 2110 | AT135: 0 | AU135: 32.9 | AV135: 24.1 | AW135: 14 | AX135: 46.8 | AY135: 0 | AZ135: 0 | BA135: 0 | BB135: 0 | BC135: 20.3 | BD135: 133 | BE135: TRUE
A136: 0 | B136: W18X311 | C136: W18X311 | D136: W | E136: T | F136: 311 | G136: 91.6 | H136: 22.3 | I136: 0 | J136: 0 | K136: 12 | L136: 0 | M136: 0 | N136: 1.52 | O136: 2.74 | P136: 0 | Q136: 0 | R136: 0 | S136: 3.24 | T136: 3.4375 | U136: 1.375 | V136: 0 | W136: 0 | X136: 0 | Y136: 0 | Z136: 0 | AA136: 2.19 | AB136: 0 | AC136: 10.4 | AD136: 0 | AE136: 0 | AI136: 6970 | AJ136: 754 | AK136: 624 | AL136: 8.72 | AM136: 795 | AN136: 207 | AO136: 132 | AP136: 2.95 | AQ136: 0 | AR136: 176 | AS136: 76200 | AT136: 0 | AU136: 58.7 | AV136: 482 | AW136: 140 | AX136: 375 | AY136: 0 | AZ136: 0 | BA136: 0 | BB136: 0 | BC136: 19.6 | BD136: 134 | BE136: TRUE
A137: 0 | B137: W18X283 | C137: W18X283 | D137: W | E137: T | F137: 283 | G137: 83.3 | H137: 21.9 | I137: 0 | J137: 0 | K137: 11.9 | L137: 0 | M137: 0 | N137: 1.4 | O137: 2.5 | P137: 0 | Q137: 0 | R137: 0 | S137: 3 | T137: 3.1875 | U137: 1.3125 | V137: 0 | W137: 0 | X137: 0 | Y137: 0 | Z137: 0 | AA137: 2.38 | AB137: 0 | AC137: 11.3 | AD137: 0 | AE137: 0 | AI137: 6170 | AJ137: 676 | AK137: 565 | AL137: 8.61 | AM137: 704 | AN137: 185 | AO137: 118 | AP137: 2.91 | AQ137: 0 | AR137: 134 | AS137: 65900 | AT137: 0 | AU137: 57.7 | AV137: 429 | AW137: 127 | AX137: 339 | AY137: 0 | AZ137: 0 | BA137: 0 | BB137: 0 | BC137: 19.4 | BD137: 135 | BE137: TRUE
A138: 0 | B138: W18X258 | C138: W18X258 | D138: W | E138: T | F138: 258 | G138: 76 | H138: 21.5 | I138: 0 | J138: 0 | K138: 11.8 | L138: 0 | M138: 0 | N138: 1.28 | O138: 2.3 | P138: 0 | Q138: 0 | R138: 0 | S138: 2.7 | T138: 3 | U138: 1.25 | V138: 0 | W138: 0 | X138: 0 | Y138: 0 | Z138: 0 | AA138: 2.56 | AB138: 0 | AC138: 12.5 | AD138: 0 | AE138: 0 | AI138: 5510 | AJ138: 611 | AK138: 514 | AL138: 8.53 | AM138: 628 | AN138: 166 | AO138: 107 | AP138: 2.88 | AQ138: 0 | AR138: 103 | AS138: 57600 | AT138: 0 | AU138: 56.6 | AV138: 384 | AW138: 116 | AX138: 306 | AY138: 0 | AZ138: 0 | BA138: 0 | BB138: 0 | BC138: 19.2 | BD138: 136 | BE138: TRUE
A139: 0 | B139: W18X234 | C139: W18X234 | D139: W | E139: T | F139: 234 | G139: 68.6 | H139: 21.1 | I139: 0 | J139: 0 | K139: 11.7 | L139: 0 | M139: 0 | N139: 1.16 | O139: 2.11 | P139: 0 | Q139: 0 | R139: 0 | S139: 2.51 | T139: 2.75 | U139: 1.1875 | V139: 0 | W139: 0 | X139: 0 | Y139: 0 | Z139: 0 | AA139: 2.76 | AB139: 0 | AC139: 13.8 | AD139: 0 | AE139: 0 | AI139: 4900 | AJ139: 549 | AK139: 466 | AL139: 8.44 | AM139: 558 | AN139: 149 | AO139: 95.8 | AP139: 2.85 | AQ139: 0 | AR139: 78.7 | AS139: 50100 | AT139: 0 | AU139: 55.5 | AV139: 343 | AW139: 106 | AX139: 276 | AY139: 0 | AZ139: 0 | BA139: 0 | BB139: 0 | BC139: 19 | BD139: 137 | BE139: TRUE
A140: 0 | B140: W18X211 | C140: W18X211 | D140: W | E140: F | F140: 211 | G140: 62.3 | H140: 20.7 | I140: 0 | J140: 0 | K140: 11.6 | L140: 0 | M140: 0 | N140: 1.06 | O140: 1.91 | P140: 0 | Q140: 0 | R140: 0 | S140: 2.31 | T140: 2.5625 | U140: 1.1875 | V140: 0 | W140: 0 | X140: 0 | Y140: 0 | Z140: 0 | AA140: 3.02 | AB140: 0 | AC140: 15.1 | AD140: 0 | AE140: 0 | AI140: 4330 | AJ140: 490 | AK140: 419 | AL140: 8.35 | AM140: 493 | AN140: 132 | AO140: 85.3 | AP140: 2.82 | AQ140: 0 | AR140: 58.6 | AS140: 43400 | AT140: 0 | AU140: 54.5 | AV140: 302 | AW140: 94.6 | AX140: 246 | AY140: 0 | AZ140: 0 | BA140: 0 | BB140: 0 | BC140: 18.8 | BD140: 138 | BE140: TRUE
A141: 0 | B141: W18X192 | C141: W18X192 | D141: W | E141: F | F141: 192 | G141: 56.2 | H141: 20.4 | I141: 0 | J141: 0 | K141: 11.5 | L141: 0 | M141: 0 | N141: 0.96 | O141: 1.75 | P141: 0 | Q141: 0 | R141: 0 | S141: 2.15 | T141: 2.4375 | U141: 1.125 | V141: 0 | W141: 0 | X141: 0 | Y141: 0 | Z141: 0 | AA141: 3.27 | AB141: 0 | AC141: 16.7 | AD141: 0 | AE141: 0 | AI141: 3870 | AJ141: 442 | AK141: 380 | AL141: 8.28 | AM141: 440 | AN141: 119 | AO141: 76.8 | AP141: 2.79 | AQ141: 0 | AR141: 44.7 | AS141: 38000 | AT141: 0 | AU141: 53.6 | AV141: 270 | AW141: 86 | AX141: 222 | AY141: 0 | AZ141: 0 | BA141: 0 | BB141: 0 | BC141: 18.7 | BD141: 139 | BE141: TRUE
A142: 0 | B142: W18X175 | C142: W18X175 | D142: W | E142: F | F142: 175 | G142: 51.4 | H142: 20 | I142: 0 | J142: 0 | K142: 11.4 | L142: 0 | M142: 0 | N142: 0.89 | O142: 1.59 | P142: 0 | Q142: 0 | R142: 0 | S142: 1.99 | T142: 2.4375 | U142: 1.25 | V142: 0 | W142: 0 | X142: 0 | Y142: 0 | Z142: 0 | AA142: 3.58 | AB142: 0 | AC142: 18 | AD142: 0 | AE142: 0 | AI142: 3450 | AJ142: 398 | AK142: 344 | AL142: 8.2 | AM142: 391 | AN142: 106 | AO142: 68.8 | AP142: 2.76 | AQ142: 0 | AR142: 33.8 | AS142: 33300 | AT142: 0 | AU142: 52.5 | AV142: 238 | AW142: 76.9 | AX142: 198 | AY142: 0 | AZ142: 0 | BA142: 0 | BB142: 0 | BC142: 18.4 | BD142: 140 | BE142: TRUE
A143: 0 | B143: W18X158 | C143: W18X158 | D143: W | E143: F | F143: 158 | G143: 46.3 | H143: 19.7 | I143: 0 | J143: 0 | K143: 11.3 | L143: 0 | M143: 0 | N143: 0.81 | O143: 1.44 | P143: 0 | Q143: 0 | R143: 0 | S143: 1.84 | T143: 2.375 | U143: 1.25 | V143: 0 | W143: 0 | X143: 0 | Y143: 0 | Z143: 0 | AA143: 3.92 | AB143: 0 | AC143: 19.8 | AD143: 0 | AE143: 0 | AI143: 3060 | AJ143: 356 | AK143: 310 | AL143: 8.12 | AM143: 347 | AN143: 94.8 | AO143: 61.4 | AP143: 2.74 | AQ143: 0 | AR143: 25.2 | AS143: 29000 | AT143: 0 | AU143: 51.6 | AV143: 210 | AW143: 69 | AX143: 177 | AY143: 0 | AZ143: 0 | BA143: 0 | BB143: 0 | BC143: 18.3 | BD143: 141 | BE143: TRUE
A144: 0 | B144: W18X143 | C144: W18X143 | D144: W | E144: F | F144: 143 | G144: 42 | H144: 19.5 | I144: 0 | J144: 0 | K144: 11.2 | L144: 0 | M144: 0 | N144: 0.73 | O144: 1.32 | P144: 0 | Q144: 0 | R144: 0 | S144: 1.72 | T144: 2.1875 | U144: 1.1875 | V144: 0 | W144: 0 | X144: 0 | Y144: 0 | Z144: 0 | AA144: 4.25 | AB144: 0 | AC144: 22 | AD144: 0 | AE144: 0 | AI144: 2750 | AJ144: 322 | AK144: 282 | AL144: 8.09 | AM144: 311 | AN144: 85.4 | AO144: 55.5 | AP144: 2.72 | AQ144: 0 | AR144: 19.2 | AS144: 25700 | AT144: 0 | AU144: 50.9 | AV144: 188 | AW144: 62.8 | AX144: 160 | AY144: 0 | AZ144: 0 | BA144: 0 | BB144: 0 | BC144: 18.2 | BD144: 142 | BE144: TRUE
A145: 0 | B145: W18X130 | C145: W18X130 | D145: W | E145: F | F145: 130 | G145: 38.3 | H145: 19.3 | I145: 0 | J145: 0 | K145: 11.2 | L145: 0 | M145: 0 | N145: 0.67 | O145: 1.2 | P145: 0 | Q145: 0 | R145: 0 | S145: 1.6 | T145: 2.0625 | U145: 1.1875 | V145: 0 | W145: 0 | X145: 0 | Y145: 0 | Z145: 0 | AA145: 4.65 | AB145: 0 | AC145: 23.9 | AD145: 0 | AE145: 0 | AI145: 2460 | AJ145: 290 | AK145: 256 | AL145: 8.03 | AM145: 278 | AN145: 76.7 | AO145: 49.9 | AP145: 2.7 | AQ145: 0 | AR145: 14.5 | AS145: 22700 | AT145: 0 | AU145: 50.7 | AV145: 170 | AW145: 57.2 | AX145: 146 | AY145: 0 | AZ145: 0 | BA145: 0 | BB145: 0 | BC145: 18.1 | BD145: 143 | BE145: TRUE
A146: 0 | B146: W18X119 | C146: W18X119 | D146: W | E146: F | F146: 119 | G146: 35.1 | H146: 19 | I146: 0 | J146: 0 | K146: 11.3 | L146: 0 | M146: 0 | N146: 0.655 | O146: 1.06 | P146: 0 | Q146: 0 | R146: 0 | S146: 1.46 | T146: 1.9375 | U146: 1.1875 | V146: 0 | W146: 0 | X146: 0 | Y146: 0 | Z146: 0 | AA146: 5.31 | AB146: 0 | AC146: 24.5 | AD146: 0 | AE146: 0 | AI146: 2190 | AJ146: 262 | AK146: 231 | AL146: 7.9 | AM146: 253 | AN146: 69.1 | AO146: 44.9 | AP146: 2.69 | AQ146: 0 | AR146: 10.6 | AS146: 20300 | AT146: 0 | AU146: 50.7 | AV146: 152 | AW146: 50.6 | AX146: 131 | AY146: 0 | AZ146: 0 | BA146: 0 | BB146: 0 | BC146: 17.9 | BD146: 144 | BE146: TRUE
A147: 0 | B147: W18X106 | C147: W18X106 | D147: W | E147: F | F147: 106 | G147: 31.1 | H147: 18.7 | I147: 0 | J147: 0 | K147: 11.2 | L147: 0 | M147: 0 | N147: 0.59 | O147: 0.94 | P147: 0 | Q147: 0 | R147: 0 | S147: 1.34 | T147: 1.8125 | U147: 1.125 | V147: 0 | W147: 0 | X147: 0 | Y147: 0 | Z147: 0 | AA147: 5.96 | AB147: 0 | AC147: 27.2 | AD147: 0 | AE147: 0 | AI147: 1910 | AJ147: 230 | AK147: 204 | AL147: 7.84 | AM147: 220 | AN147: 60.5 | AO147: 39.4 | AP147: 2.66 | AQ147: 0 | AR147: 7.48 | AS147: 17400 | AT147: 0 | AU147: 49.7 | AV147: 131 | AW147: 44.3 | AX147: 114 | AY147: 0 | AZ147: 0 | BA147: 0 | BB147: 0 | BC147: 17.8 | BD147: 145 | BE147: TRUE
A148: 0 | B148: W18X97 | C148: W18X97 | D148: W | E148: F | F148: 97 | G148: 28.5 | H148: 18.6 | I148: 0 | J148: 0 | K148: 11.1 | L148: 0 | M148: 0 | N148: 0.535 | O148: 0.87 | P148: 0 | Q148: 0 | R148: 0 | S148: 1.27 | T148: 1.75 | U148: 1.125 | V148: 0 | W148: 0 | X148: 0 | Y148: 0 | Z148: 0 | AA148: 6.41 | AB148: 0 | AC148: 30 | AD148: 0 | AE148: 0 | AI148: 1750 | AJ148: 211 | AK148: 188 | AL148: 7.82 | AM148: 201 | AN148: 55.3 | AO148: 36.1 | AP148: 2.65 | AQ148: 0 | AR148: 5.86 | AS148: 15800 | AT148: 0 | AU148: 49.2 | AV148: 119 | AW148: 40.7 | AX148: 105 | AY148: 0 | AZ148: 0 | BA148: 0 | BB148: 0 | BC148: 17.7 | BD148: 146 | BE148: TRUE
A149: 0 | B149: W18X86 | C149: W18X86 | D149: W | E149: F | F149: 86 | G149: 25.3 | H149: 18.4 | I149: 0 | J149: 0 | K149: 11.1 | L149: 0 | M149: 0 | N149: 0.48 | O149: 0.77 | P149: 0 | Q149: 0 | R149: 0 | S149: 1.17 | T149: 1.625 | U149: 1.0625 | V149: 0 | W149: 0 | X149: 0 | Y149: 0 | Z149: 0 | AA149: 7.2 | AB149: 0 | AC149: 33.4 | AD149: 0 | AE149: 0 | AI149: 1530 | AJ149: 186 | AK149: 166 | AL149: 7.77 | AM149: 175 | AN149: 48.4 | AO149: 31.6 | AP149: 2.63 | AQ149: 0 | AR149: 4.1 | AS149: 13600 | AT149: 0 | AU149: 48.9 | AV149: 105 | AW149: 36 | AX149: 92.4 | AY149: 0 | AZ149: 0 | BA149: 0 | BB149: 0 | BC149: 17.6 | BD149: 147 | BE149: TRUE
A150: 0 | B150: W18X76 | C150: W18X76 | D150: W | E150: F | F150: 76 | G150: 22.3 | H150: 18.2 | I150: 0 | J150: 0 | K150: 11 | L150: 0 | M150: 0 | N150: 0.425 | O150: 0.68 | P150: 0 | Q150: 0 | R150: 0 | S150: 1.08 | T150: 1.5625 | U150: 1.0625 | V150: 0 | W150: 0 | X150: 0 | Y150: 0 | Z150: 0 | AA150: 8.11 | AB150: 0 | AC150: 37.8 | AD150: 0 | AE150: 0 | AI150: 1330 | AJ150: 163 | AK150: 146 | AL150: 7.73 | AM150: 152 | AN150: 42.2 | AO150: 27.6 | AP150: 2.61 | AQ150: 0 | AR150: 2.83 | AS150: 11700 | AT150: 0 | AU150: 48.2 | AV150: 90.1 | AW150: 31.5 | AX150: 80.6 | AY150: 0 | AZ150: 0 | BA150: 0 | BB150: 0 | BC150: 17.5 | BD150: 148 | BE150: TRUE
A151: 0 | B151: W18X71 | C151: W18X71 | D151: W | E151: F | F151: 71 | G151: 20.9 | H151: 18.5 | I151: 0 | J151: 0 | K151: 7.64 | L151: 0 | M151: 0 | N151: 0.495 | O151: 0.81 | P151: 0 | Q151: 0 | R151: 0 | S151: 1.21 | T151: 1.5 | U151: 0.875 | V151: 0 | W151: 0 | X151: 0 | Y151: 0 | Z151: 0 | AA151: 4.71 | AB151: 0 | AC151: 32.4 | AD151: 0 | AE151: 0 | AI151: 1170 | AJ151: 146 | AK151: 127 | AL151: 7.5 | AM151: 60.3 | AN151: 24.7 | AO151: 15.8 | AP151: 1.7 | AQ151: 0 | AR151: 3.49 | AS151: 4700 | AT151: 0 | AU151: 33.8 | AV151: 52.3 | AW151: 25.6 | AX151: 72.4 | AY151: 0 | AZ151: 0 | BA151: 0 | BB151: 0 | BC151: 17.7 | BD151: 149 | BE151: TRUE
A152: 0 | B152: W18X65 | C152: W18X65 | D152: W | E152: F | F152: 65 | G152: 19.1 | H152: 18.4 | I152: 0 | J152: 0 | K152: 7.59 | L152: 0 | M152: 0 | N152: 0.45 | O152: 0.75 | P152: 0 | Q152: 0 | R152: 0 | S152: 1.15 | T152: 1.4375 | U152: 0.875 | V152: 0 | W152: 0 | X152: 0 | Y152: 0 | Z152: 0 | AA152: 5.06 | AB152: 0 | AC152: 35.7 | AD152: 0 | AE152: 0 | AI152: 1070 | AJ152: 133 | AK152: 117 | AL152: 7.49 | AM152: 54.8 | AN152: 22.5 | AO152: 14.4 | AP152: 1.69 | AQ152: 0 | AR152: 2.73 | AS152: 4240 | AT152: 0 | AU152: 33.5 | AV152: 47.7 | AW152: 23.6 | AX152: 66.3 | AY152: 0 | AZ152: 0 | BA152: 0 | BB152: 0 | BC152: 17.7 | BD152: 150 | BE152: TRUE
A153: 0 | B153: W18X60 | C153: W18X60 | D153: W | E153: F | F153: 60 | G153: 17.6 | H153: 18.2 | I153: 0 | J153: 0 | K153: 7.56 | L153: 0 | M153: 0 | N153: 0.415 | O153: 0.695 | P153: 0 | Q153: 0 | R153: 0 | S153: 1.1 | T153: 1.375 | U153: 0.8125 | V153: 0 | W153: 0 | X153: 0 | Y153: 0 | Z153: 0 | AA153: 5.44 | AB153: 0 | AC153: 38.7 | AD153: 0 | AE153: 0 | AI153: 984 | AJ153: 123 | AK153: 108 | AL153: 7.47 | AM153: 50.1 | AN153: 20.6 | AO153: 13.3 | AP153: 1.68 | AQ153: 0 | AR153: 2.17 | AS153: 3850 | AT153: 0 | AU153: 33.1 | AV153: 43.5 | AW153: 21.7 | AX153: 60.6 | AY153: 0 | AZ153: 0 | BA153: 0 | BB153: 0 | BC153: 17.5 | BD153: 151 | BE153: TRUE
A154: 0 | B154: W18X55 | C154: W18X55 | D154: W | E154: F | F154: 55 | G154: 16.2 | H154: 18.1 | I154: 0 | J154: 0 | K154: 7.53 | L154: 0 | M154: 0 | N154: 0.39 | O154: 0.63 | P154: 0 | Q154: 0 | R154: 0 | S154: 1.03 | T154: 1.3125 | U154: 0.8125 | V154: 0 | W154: 0 | X154: 0 | Y154: 0 | Z154: 0 | AA154: 5.98 | AB154: 0 | AC154: 41.1 | AD154: 0 | AE154: 0 | AI154: 890 | AJ154: 112 | AK154: 98.3 | AL154: 7.41 | AM154: 44.9 | AN154: 18.5 | AO154: 11.9 | AP154: 1.67 | AQ154: 0 | AR154: 1.66 | AS154: 3430 | AT154: 0 | AU154: 32.9 | AV154: 39 | AW154: 19.6 | AX154: 55.3 | AY154: 0 | AZ154: 0 | BA154: 0 | BB154: 0 | BC154: 17.5 | BD154: 152 | BE154: TRUE
A155: 0 | B155: W18X50 | C155: W18X50 | D155: W | E155: F | F155: 50 | G155: 14.7 | H155: 18 | I155: 0 | J155: 0 | K155: 7.5 | L155: 0 | M155: 0 | N155: 0.355 | O155: 0.57 | P155: 0 | Q155: 0 | R155: 0 | S155: 0.972 | T155: 1.25 | U155: 0.8125 | V155: 0 | W155: 0 | X155: 0 | Y155: 0 | Z155: 0 | AA155: 6.57 | AB155: 0 | AC155: 45.2 | AD155: 0 | AE155: 0 | AI155: 800 | AJ155: 101 | AK155: 88.9 | AL155: 7.38 | AM155: 40.1 | AN155: 16.6 | AO155: 10.7 | AP155: 1.65 | AQ155: 0 | AR155: 1.24 | AS155: 3040 | AT155: 0 | AU155: 32.7 | AV155: 34.9 | AW155: 17.7 | AX155: 49.9 | AY155: 0 | AZ155: 0 | BA155: 0 | BB155: 0 | BC155: 17.4 | BD155: 153 | BE155: TRUE
A156: 0 | B156: W18X46 | C156: W18X46 | D156: W | E156: F | F156: 46 | G156: 13.5 | H156: 18.1 | I156: 0 | J156: 0 | K156: 6.06 | L156: 0 | M156: 0 | N156: 0.36 | O156: 0.605 | P156: 0 | Q156: 0 | R156: 0 | S156: 1.01 | T156: 1.25 | U156: 0.8125 | V156: 0 | W156: 0 | X156: 0 | Y156: 0 | Z156: 0 | AA156: 5.01 | AB156: 0 | AC156: 44.6 | AD156: 0 | AE156: 0 | AI156: 712 | AJ156: 90.7 | AK156: 78.8 | AL156: 7.25 | AM156: 22.5 | AN156: 11.7 | AO156: 7.43 | AP156: 1.29 | AQ156: 0 | AR156: 1.22 | AS156: 1720 | AT156: 0 | AU156: 26.5 | AV156: 24.3 | AW156: 15.1 | AX156: 44.9 | AY156: 0 | AZ156: 0 | BA156: 0 | BB156: 0 | BC156: 17.5 | BD156: 154 | BE156: TRUE
A157: 0 | B157: W18X40 | C157: W18X40 | D157: W | E157: F | F157: 40 | G157: 11.8 | H157: 17.9 | I157: 0 | J157: 0 | K157: 6.02 | L157: 0 | M157: 0 | N157: 0.315 | O157: 0.525 | P157: 0 | Q157: 0 | R157: 0 | S157: 0.927 | T157: 1.1875 | U157: 0.8125 | V157: 0 | W157: 0 | X157: 0 | Y157: 0 | Z157: 0 | AA157: 5.73 | AB157: 0 | AC157: 50.9 | AD157: 0 | AE157: 0 | AI157: 612 | AJ157: 78.4 | AK157: 68.4 | AL157: 7.21 | AM157: 19.1 | AN157: 10 | AO157: 6.35 | AP157: 1.27 | AQ157: 0 | AR157: 0.81 | AS157: 1440 | AT157: 0 | AU157: 26.1 | AV157: 20.7 | AW157: 13 | AX157: 38.6 | AY157: 0 | AZ157: 0 | BA157: 0 | BB157: 0 | BC157: 17.4 | BD157: 155 | BE157: TRUE
A158: 0 | B158: W18X35 | C158: W18X35 | D158: W | E158: F | F158: 35 | G158: 10.3 | H158: 17.7 | I158: 0 | J158: 0 | K158: 6 | L158: 0 | M158: 0 | N158: 0.3 | O158: 0.425 | P158: 0 | Q158: 0 | R158: 0 | S158: 0.827 | T158: 1.125 | U158: 0.75 | V158: 0 | W158: 0 | X158: 0 | Y158: 0 | Z158: 0 | AA158: 7.06 | AB158: 0 | AC158: 53.5 | AD158: 0 | AE158: 0 | AI158: 510 | AJ158: 66.5 | AK158: 57.6 | AL158: 7.04 | AM158: 15.3 | AN158: 8.06 | AO158: 5.12 | AP158: 1.22 | AQ158: 0 | AR158: 0.506 | AS158: 1140 | AT158: 0 | AU158: 25.9 | AV158: 16.5 | AW158: 10.5 | AX158: 32.7 | AY158: 0 | AZ158: 0 | BA158: 0 | BB158: 0 | BC158: 17.3 | BD158: 156 | BE158: TRUE
A159: 0 | B159: W16X100 | C159: W16X100 | D159: W | E159: F | F159: 100 | G159: 29.4 | H159: 17 | I159: 0 | J159: 0 | K159: 10.4 | L159: 0 | M159: 0 | N159: 0.585 | O159: 0.985 | P159: 0 | Q159: 0 | R159: 0 | S159: 1.39 | T159: 1.875 | U159: 1.125 | V159: 0 | W159: 0 | X159: 0 | Y159: 0 | Z159: 0 | AA159: 5.29 | AB159: 0 | AC159: 24.3 | AD159: 0 | AE159: 0 | AI159: 1490 | AJ159: 198 | AK159: 175 | AL159: 7.1 | AM159: 186 | AN159: 54.9 | AO159: 35.7 | AP159: 2.51 | AQ159: 0 | AR159: 7.73 | AS159: 11900 | AT159: 0 | AU159: 41.6 | AV159: 107 | AW159: 38.7 | AX159: 98.5 | AY159: 0 | AZ159: 0 | BA159: 0 | BB159: 0 | BC159: 16 | BD159: 157 | BE159: TRUE
A160: 0 | B160: W16X89 | C160: W16X89 | D160: W | E160: F | F160: 89 | G160: 26.2 | H160: 16.8 | I160: 0 | J160: 0 | K160: 10.4 | L160: 0 | M160: 0 | N160: 0.525 | O160: 0.875 | P160: 0 | Q160: 0 | R160: 0 | S160: 1.28 | T160: 1.75 | U160: 1.0625 | V160: 0 | W160: 0 | X160: 0 | Y160: 0 | Z160: 0 | AA160: 5.92 | AB160: 0 | AC160: 27 | AD160: 0 | AE160: 0 | AI160: 1300 | AJ160: 175 | AK160: 155 | AL160: 7.05 | AM160: 163 | AN160: 48.1 | AO160: 31.4 | AP160: 2.49 | AQ160: 0 | AR160: 5.45 | AS160: 10200 | AT160: 0 | AU160: 41.4 | AV160: 94.2 | AW160: 34.4 | AX160: 87.3 | AY160: 0 | AZ160: 0 | BA160: 0 | BB160: 0 | BC160: 15.9 | BD160: 158 | BE160: TRUE
A161: 0 | B161: W16X77 | C161: W16X77 | D161: W | E161: F | F161: 77 | G161: 22.6 | H161: 16.5 | I161: 0 | J161: 0 | K161: 10.3 | L161: 0 | M161: 0 | N161: 0.455 | O161: 0.76 | P161: 0 | Q161: 0 | R161: 0 | S161: 1.16 | T161: 1.625 | U161: 1.0625 | V161: 0 | W161: 0 | X161: 0 | Y161: 0 | Z161: 0 | AA161: 6.77 | AB161: 0 | AC161: 31.2 | AD161: 0 | AE161: 0 | AI161: 1110 | AJ161: 150 | AK161: 134 | AL161: 7 | AM161: 138 | AN161: 41.1 | AO161: 26.9 | AP161: 2.47 | AQ161: 0 | AR161: 3.57 | AS161: 8590 | AT161: 0 | AU161: 40.5 | AV161: 79.3 | AW161: 29.4 | AX161: 74.4 | AY161: 0 | AZ161: 0 | BA161: 0 | BB161: 0 | BC161: 15.7 | BD161: 159 | BE161: TRUE
A162: 0 | B162: W16X67 | C162: W16X67 | D162: W | E162: F | F162: 67 | G162: 19.6 | H162: 16.3 | I162: 0 | J162: 0 | K162: 10.2 | L162: 0 | M162: 0 | N162: 0.395 | O162: 0.665 | P162: 0 | Q162: 0 | R162: 0 | S162: 1.07 | T162: 1.5625 | U162: 1 | V162: 0 | W162: 0 | X162: 0 | Y162: 0 | Z162: 0 | AA162: 7.7 | AB162: 0 | AC162: 35.9 | AD162: 0 | AE162: 0 | AI162: 954 | AJ162: 130 | AK162: 117 | AL162: 6.96 | AM162: 119 | AN162: 35.5 | AO162: 23.2 | AP162: 2.46 | AQ162: 0 | AR162: 2.39 | AS162: 7300 | AT162: 0 | AU162: 39.9 | AV162: 67.6 | AW162: 25.5 | AX162: 64.1 | AY162: 0 | AZ162: 0 | BA162: 0 | BB162: 0 | BC162: 15.6 | BD162: 160 | BE162: TRUE
A163: 0 | B163: W16X57 | C163: W16X57 | D163: W | E163: F | F163: 57 | G163: 16.8 | H163: 16.4 | I163: 0 | J163: 0 | K163: 7.12 | L163: 0 | M163: 0 | N163: 0.43 | O163: 0.715 | P163: 0 | Q163: 0 | R163: 0 | S163: 1.12 | T163: 1.375 | U163: 0.875 | V163: 0 | W163: 0 | X163: 0 | Y163: 0 | Z163: 0 | AA163: 4.98 | AB163: 0 | AC163: 33 | AD163: 0 | AE163: 0 | AI163: 758 | AJ163: 105 | AK163: 92.2 | AL163: 6.72 | AM163: 43.1 | AN163: 18.9 | AO163: 12.1 | AP163: 1.6 | AQ163: 0 | AR163: 2.22 | AS163: 2660 | AT163: 0 | AU163: 27.9 | AV163: 35.5 | AW163: 18.8 | AX163: 52 | AY163: 0 | AZ163: 0 | BA163: 0 | BB163: 0 | BC163: 15.7 | BD163: 161 | BE163: TRUE
A164: 0 | B164: W16X50 | C164: W16X50 | D164: W | E164: F | F164: 50 | G164: 14.7 | H164: 16.3 | I164: 0 | J164: 0 | K164: 7.07 | L164: 0 | M164: 0 | N164: 0.38 | O164: 0.63 | P164: 0 | Q164: 0 | R164: 0 | S164: 1.03 | T164: 1.3125 | U164: 0.8125 | V164: 0 | W164: 0 | X164: 0 | Y164: 0 | Z164: 0 | AA164: 5.61 | AB164: 0 | AC164: 37.4 | AD164: 0 | AE164: 0 | AI164: 659 | AJ164: 92 | AK164: 81 | AL164: 6.68 | AM164: 37.2 | AN164: 16.3 | AO164: 10.5 | AP164: 1.59 | AQ164: 0 | AR164: 1.52 | AS164: 2270 | AT164: 0 | AU164: 27.7 | AV164: 30.8 | AW164: 16.5 | AX164: 45.6 | AY164: 0 | AZ164: 0 | BA164: 0 | BB164: 0 | BC164: 15.7 | BD164: 162 | BE164: TRUE
A165: 0 | B165: W16X45 | C165: W16X45 | D165: W | E165: F | F165: 45 | G165: 13.3 | H165: 16.1 | I165: 0 | J165: 0 | K165: 7.04 | L165: 0 | M165: 0 | N165: 0.345 | O165: 0.565 | P165: 0 | Q165: 0 | R165: 0 | S165: 0.967 | T165: 1.25 | U165: 0.8125 | V165: 0 | W165: 0 | X165: 0 | Y165: 0 | Z165: 0 | AA165: 6.23 | AB165: 0 | AC165: 41.1 | AD165: 0 | AE165: 0 | AI165: 586 | AJ165: 82.3 | AK165: 72.7 | AL165: 6.65 | AM165: 32.8 | AN165: 14.5 | AO165: 9.34 | AP165: 1.57 | AQ165: 0 | AR165: 1.11 | AS165: 1990 | AT165: 0 | AU165: 27.3 | AV165: 27.2 | AW165: 14.7 | AX165: 40.6 | AY165: 0 | AZ165: 0 | BA165: 0 | BB165: 0 | BC165: 15.5 | BD165: 163 | BE165: TRUE
A166: 0 | B166: W16X40 | C166: W16X40 | D166: W | E166: F | F166: 40 | G166: 11.8 | H166: 16 | I166: 0 | J166: 0 | K166: 7 | L166: 0 | M166: 0 | N166: 0.305 | O166: 0.505 | P166: 0 | Q166: 0 | R166: 0 | S166: 0.907 | T166: 1.1875 | U166: 0.8125 | V166: 0 | W166: 0 | X166: 0 | Y166: 0 | Z166: 0 | AA166: 6.93 | AB166: 0 | AC166: 46.5 | AD166: 0 | AE166: 0 | AI166: 518 | AJ166: 73 | AK166: 64.7 | AL166: 6.63 | AM166: 28.9 | AN166: 12.7 | AO166: 8.25 | AP166: 1.57 | AQ166: 0 | AR166: 0.794 | AS166: 1730 | AT166: 0 | AU166: 27.1 | AV166: 24 | AW166: 13.1 | AX166: 36 | AY166: 0 | AZ166: 0 | BA166: 0 | BB166: 0 | BC166: 15.5 | BD166: 164 | BE166: TRUE
A167: 0 | B167: W16X36 | C167: W16X36 | D167: W | E167: F | F167: 36 | G167: 10.6 | H167: 15.9 | I167: 0 | J167: 0 | K167: 6.99 | L167: 0 | M167: 0 | N167: 0.295 | O167: 0.43 | P167: 0 | Q167: 0 | R167: 0 | S167: 0.832 | T167: 1.125 | U167: 0.75 | V167: 0 | W167: 0 | X167: 0 | Y167: 0 | Z167: 0 | AA167: 8.12 | AB167: 0 | AC167: 48.1 | AD167: 0 | AE167: 0 | AI167: 448 | AJ167: 64 | AK167: 56.5 | AL167: 6.51 | AM167: 24.5 | AN167: 10.8 | AO167: 7 | AP167: 1.52 | AQ167: 0 | AR167: 0.545 | AS167: 1460 | AT167: 0 | AU167: 27 | AV167: 20.3 | AW167: 11.1 | AX167: 31.6 | AY167: 0 | AZ167: 0 | BA167: 0 | BB167: 0 | BC167: 15.5 | BD167: 165 | BE167: TRUE
A168: 0 | B168: W16X31 | C168: W16X31 | D168: W | E168: F | F168: 31 | G168: 9.13 | H168: 15.9 | I168: 0 | J168: 0 | K168: 5.53 | L168: 0 | M168: 0 | N168: 0.275 | O168: 0.44 | P168: 0 | Q168: 0 | R168: 0 | S168: 0.842 | T168: 1.125 | U168: 0.75 | V168: 0 | W168: 0 | X168: 0 | Y168: 0 | Z168: 0 | AA168: 6.28 | AB168: 0 | AC168: 51.6 | AD168: 0 | AE168: 0 | AI168: 375 | AJ168: 54 | AK168: 47.2 | AL168: 6.41 | AM168: 12.4 | AN168: 7.03 | AO168: 4.49 | AP168: 1.17 | AQ168: 0 | AR168: 0.461 | AS168: 739 | AT168: 0 | AU168: 21.4 | AV168: 13 | AW168: 8.94 | AX168: 26.6 | AY168: 0 | AZ168: 0 | BA168: 0 | BB168: 0 | BC168: 15.5 | BD168: 166 | BE168: TRUE
A169: 0 | B169: W16X26 | C169: W16X26 | D169: W | E169: F | F169: 26 | G169: 7.68 | H169: 15.7 | I169: 0 | J169: 0 | K169: 5.5 | L169: 0 | M169: 0 | N169: 0.25 | O169: 0.345 | P169: 0 | Q169: 0 | R169: 0 | S169: 0.747 | T169: 1.0625 | U169: 0.75 | V169: 0 | W169: 0 | X169: 0 | Y169: 0 | Z169: 0 | AA169: 7.97 | AB169: 0 | AC169: 56.8 | AD169: 0 | AE169: 0 | AI169: 301 | AJ169: 44.2 | AK169: 38.4 | AL169: 6.26 | AM169: 9.59 | AN169: 5.48 | AO169: 3.49 | AP169: 1.12 | AQ169: 0 | AR169: 0.262 | AS169: 565 | AT169: 0 | AU169: 21.1 | AV169: 10 | AW169: 6.95 | AX169: 21.6 | AY169: 0 | AZ169: 0 | BA169: 0 | BB169: 0 | BC169: 15.4 | BD169: 167 | BE169: TRUE
A170: 0 | B170: W14X730 | C170: W14X730 | D170: W | E170: T | F170: 730 | G170: 215 | H170: 22.4 | I170: 0 | J170: 0 | K170: 17.9 | L170: 0 | M170: 0 | N170: 3.07 | O170: 4.91 | P170: 0 | Q170: 0 | R170: 0 | S170: 5.51 | T170: 6.1875 | U170: 2.75 | V170: 0 | W170: 0 | X170: 0 | Y170: 0 | Z170: 0 | AA170: 1.82 | AB170: 0 | AC170: 3.71 | AD170: 0 | AE170: 0 | AI170: 14300 | AJ170: 1660 | AK170: 1280 | AL170: 8.17 | AM170: 4720 | AN170: 816 | AO170: 527 | AP170: 4.69 | AQ170: 0 | AR170: 1450 | AS170: 362000 | AT170: 0 | AU170: 78.3 | AV170: 1720 | AW170: 318 | AX170: 829 | AY170: 0 | AZ170: 0 | BA170: 0 | BB170: 0 | BC170: 17.5 | BD170: 168 | BE170: TRUE
A171: 0 | B171: W14X665 | C171: W14X665 | D171: W | E171: T | F171: 665 | G171: 196 | H171: 21.6 | I171: 0 | J171: 0 | K171: 17.7 | L171: 0 | M171: 0 | N171: 2.83 | O171: 4.52 | P171: 0 | Q171: 0 | R171: 0 | S171: 5.12 | T171: 5.8125 | U171: 2.625 | V171: 0 | W171: 0 | X171: 0 | Y171: 0 | Z171: 0 | AA171: 1.95 | AB171: 0 | AC171: 4.03 | AD171: 0 | AE171: 0 | AI171: 12400 | AJ171: 1480 | AK171: 1150 | AL171: 7.98 | AM171: 4170 | AN171: 730 | AO171: 472 | AP171: 4.62 | AQ171: 0 | AR171: 1120 | AS171: 305000 | AT171: 0 | AU171: 75.6 | AV171: 1510 | AW171: 287 | AX171: 739 | AY171: 0 | AZ171: 0 | BA171: 0 | BB171: 0 | BC171: 17.1 | BD171: 169 | BE171: TRUE
A172: 0 | B172: W14X605 | C172: W14X605 | D172: W | E172: T | F172: 605 | G172: 178 | H172: 20.9 | I172: 0 | J172: 0 | K172: 17.4 | L172: 0 | M172: 0 | N172: 2.6 | O172: 4.16 | P172: 0 | Q172: 0 | R172: 0 | S172: 4.76 | T172: 5.4375 | U172: 2.5 | V172: 0 | W172: 0 | X172: 0 | Y172: 0 | Z172: 0 | AA172: 2.09 | AB172: 0 | AC172: 4.39 | AD172: 0 | AE172: 0 | AI172: 10800 | AJ172: 1320 | AK172: 1040 | AL172: 7.8 | AM172: 3680 | AN172: 652 | AO172: 423 | AP172: 4.55 | AQ172: 0 | AR172: 869 | AS172: 258000 | AT172: 0 | AU172: 72.8 | AV172: 1320 | AW172: 258 | AX172: 657 | AY172: 0 | AZ172: 0 | BA172: 0 | BB172: 0 | BC172: 16.7 | BD172: 170 | BE172: TRUE
A173: 0 | B173: W14X550 | C173: W14X550 | D173: W | E173: T | F173: 550 | G173: 162 | H173: 20.2 | I173: 0 | J173: 0 | K173: 17.2 | L173: 0 | M173: 0 | N173: 2.38 | O173: 3.82 | P173: 0 | Q173: 0 | R173: 0 | S173: 4.42 | T173: 5.125 | U173: 2.375 | V173: 0 | W173: 0 | X173: 0 | Y173: 0 | Z173: 0 | AA173: 2.25 | AB173: 0 | AC173: 4.79 | AD173: 0 | AE173: 0 | AI173: 9430 | AJ173: 1180 | AK173: 931 | AL173: 7.63 | AM173: 3250 | AN173: 583 | AO173: 378 | AP173: 4.49 | AQ173: 0 | AR173: 669 | AS173: 219000 | AT173: 0 | AU173: 70.4 | AV173: 1160 | AW173: 232 | AX173: 585 | AY173: 0 | AZ173: 0 | BA173: 0 | BB173: 0 | BC173: 16.4 | BD173: 171 | BE173: TRUE
A174: 0 | B174: W14X500 | C174: W14X500 | D174: W | E174: T | F174: 500 | G174: 147 | H174: 19.6 | I174: 0 | J174: 0 | K174: 17 | L174: 0 | M174: 0 | N174: 2.19 | O174: 3.5 | P174: 0 | Q174: 0 | R174: 0 | S174: 4.1 | T174: 4.8125 | U174: 2.3125 | V174: 0 | W174: 0 | X174: 0 | Y174: 0 | Z174: 0 | AA174: 2.43 | AB174: 0 | AC174: 5.21 | AD174: 0 | AE174: 0 | AI174: 8210 | AJ174: 1050 | AK174: 838 | AL174: 7.48 | AM174: 2880 | AN174: 522 | AO174: 339 | AP174: 4.43 | AQ174: 0 | AR174: 514 | AS174: 187000 | AT174: 0 | AU174: 68.4 | AV174: 1020 | AW174: 209 | AX174: 522 | AY174: 0 | AZ174: 0 | BA174: 0 | BB174: 0 | BC174: 16.1 | BD174: 172 | BE174: TRUE
A175: 0 | B175: W14X455 | C175: W14X455 | D175: W | E175: T | F175: 455 | G175: 134 | H175: 19 | I175: 0 | J175: 0 | K175: 16.8 | L175: 0 | M175: 0 | N175: 2.02 | O175: 3.21 | P175: 0 | Q175: 0 | R175: 0 | S175: 3.81 | T175: 4.5 | U175: 2.25 | V175: 0 | W175: 0 | X175: 0 | Y175: 0 | Z175: 0 | AA175: 2.62 | AB175: 0 | AC175: 5.66 | AD175: 0 | AE175: 0 | AI175: 7190 | AJ175: 936 | AK175: 756 | AL175: 7.33 | AM175: 2560 | AN175: 468 | AO175: 304 | AP175: 4.38 | AQ175: 0 | AR175: 395 | AS175: 160000 | AT175: 0 | AU175: 66.3 | AV175: 894 | AW175: 187 | AX175: 466 | AY175: 0 | AZ175: 0 | BA175: 0 | BB175: 0 | BC175: 15.8 | BD175: 173 | BE175: TRUE
A176: 0 | B176: W14X426 | C176: W14X426 | D176: W | E176: T | F176: 426 | G176: 125 | H176: 18.7 | I176: 0 | J176: 0 | K176: 16.7 | L176: 0 | M176: 0 | N176: 1.88 | O176: 3.04 | P176: 0 | Q176: 0 | R176: 0 | S176: 3.63 | T176: 4.3125 | U176: 2.125 | V176: 0 | W176: 0 | X176: 0 | Y176: 0 | Z176: 0 | AA176: 2.75 | AB176: 0 | AC176: 6.08 | AD176: 0 | AE176: 0 | AI176: 6600 | AJ176: 869 | AK176: 706 | AL176: 7.26 | AM176: 2360 | AN176: 434 | AO176: 283 | AP176: 4.34 | AQ176: 0 | AR176: 331 | AS176: 144000 | AT176: 0 | AU176: 65.4 | AV176: 830 | AW176: 176 | AX176: 435 | AY176: 0 | AZ176: 0 | BA176: 0 | BB176: 0 | BC176: 15.7 | BD176: 174 | BE176: TRUE
A177: 0 | B177: W14X398 | C177: W14X398 | D177: W | E177: T | F177: 398 | G177: 117 | H177: 18.3 | I177: 0 | J177: 0 | K177: 16.6 | L177: 0 | M177: 0 | N177: 1.77 | O177: 2.85 | P177: 0 | Q177: 0 | R177: 0 | S177: 3.44 | T177: 4.125 | U177: 2.125 | V177: 0 | W177: 0 | X177: 0 | Y177: 0 | Z177: 0 | AA177: 2.92 | AB177: 0 | AC177: 6.44 | AD177: 0 | AE177: 0 | AI177: 6000 | AJ177: 801 | AK177: 656 | AL177: 7.16 | AM177: 2170 | AN177: 402 | AO177: 262 | AP177: 4.31 | AQ177: 0 | AR177: 273 | AS177: 129000 | AT177: 0 | AU177: 64.1 | AV177: 758 | AW177: 163 | AX177: 401 | AY177: 0 | AZ177: 0 | BA177: 0 | BB177: 0 | BC177: 15.5 | BD177: 175 | BE177: TRUE
A178: 0 | B178: W14X370 | C178: W14X370 | D178: W | E178: T | F178: 370 | G178: 109 | H178: 17.9 | I178: 0 | J178: 0 | K178: 16.5 | L178: 0 | M178: 0 | N178: 1.66 | O178: 2.66 | P178: 0 | Q178: 0 | R178: 0 | S178: 3.26 | T178: 3.9375 | U178: 2.0625 | V178: 0 | W178: 0 | X178: 0 | Y178: 0 | Z178: 0 | AA178: 3.1 | AB178: 0 | AC178: 6.89 | AD178: 0 | AE178: 0 | AI178: 5440 | AJ178: 736 | AK178: 607 | AL178: 7.07 | AM178: 1990 | AN178: 370 | AO178: 241 | AP178: 4.27 | AQ178: 0 | AR178: 222 | AS178: 116000 | AT178: 0 | AU178: 62.9 | AV178: 690 | AW178: 150 | AX178: 367 | AY178: 0 | AZ178: 0 | BA178: 0 | BB178: 0 | BC178: 15.2 | BD178: 176 | BE178: TRUE
A179: 0 | B179: W14X342 | C179: W14X342 | D179: W | E179: T | F179: 342 | G179: 101 | H179: 17.5 | I179: 0 | J179: 0 | K179: 16.4 | L179: 0 | M179: 0 | N179: 1.54 | O179: 2.47 | P179: 0 | Q179: 0 | R179: 0 | S179: 3.07 | T179: 3.75 | U179: 2 | V179: 0 | W179: 0 | X179: 0 | Y179: 0 | Z179: 0 | AA179: 3.31 | AB179: 0 | AC179: 7.41 | AD179: 0 | AE179: 0 | AI179: 4900 | AJ179: 672 | AK179: 558 | AL179: 6.98 | AM179: 1810 | AN179: 338 | AO179: 221 | AP179: 4.24 | AQ179: 0 | AR179: 178 | AS179: 103000 | AT179: 0 | AU179: 61.6 | AV179: 624 | AW179: 138 | AX179: 335 | AY179: 0 | AZ179: 0 | BA179: 0 | BB179: 0 | BC179: 15 | BD179: 177 | BE179: TRUE
A180: 0 | B180: W14X311 | C180: W14X311 | D180: W | E180: T | F180: 311 | G180: 91.4 | H180: 17.1 | I180: 0 | J180: 0 | K180: 16.2 | L180: 0 | M180: 0 | N180: 1.41 | O180: 2.26 | P180: 0 | Q180: 0 | R180: 0 | S180: 2.86 | T180: 3.5625 | U180: 1.9375 | V180: 0 | W180: 0 | X180: 0 | Y180: 0 | Z180: 0 | AA180: 3.59 | AB180: 0 | AC180: 8.09 | AD180: 0 | AE180: 0 | AI180: 4330 | AJ180: 603 | AK180: 506 | AL180: 6.88 | AM180: 1610 | AN180: 304 | AO180: 199 | AP180: 4.2 | AQ180: 0 | AR180: 136 | AS180: 89100 | AT180: 0 | AU180: 60.1 | AV180: 550 | AW180: 124 | AX180: 300 | AY180: 0 | AZ180: 0 | BA180: 0 | BB180: 0 | BC180: 14.8 | BD180: 178 | BE180: TRUE
A181: 0 | B181: W14X283 | C181: W14X283 | D181: W | E181: T | F181: 283 | G181: 83.3 | H181: 16.7 | I181: 0 | J181: 0 | K181: 16.1 | L181: 0 | M181: 0 | N181: 1.29 | O181: 2.07 | P181: 0 | Q181: 0 | R181: 0 | S181: 2.67 | T181: 3.375 | U181: 1.875 | V181: 0 | W181: 0 | X181: 0 | Y181: 0 | Z181: 0 | AA181: 3.89 | AB181: 0 | AC181: 8.84 | AD181: 0 | AE181: 0 | AI181: 3840 | AJ181: 542 | AK181: 459 | AL181: 6.79 | AM181: 1440 | AN181: 274 | AO181: 179 | AP181: 4.17 | AQ181: 0 | AR181: 104 | AS181: 77700 | AT181: 0 | AU181: 58.9 | AV181: 491 | AW181: 112 | AX181: 269 | AY181: 0 | AZ181: 0 | BA181: 0 | BB181: 0 | BC181: 14.6 | BD181: 179 | BE181: TRUE
A182: 0 | B182: W14X257 | C182: W14X257 | D182: W | E182: F | F182: 257 | G182: 75.6 | H182: 16.4 | I182: 0 | J182: 0 | K182: 16 | L182: 0 | M182: 0 | N182: 1.18 | O182: 1.89 | P182: 0 | Q182: 0 | R182: 0 | S182: 2.49 | T182: 3.1875 | U182: 1.8125 | V182: 0 | W182: 0 | X182: 0 | Y182: 0 | Z182: 0 | AA182: 4.23 | AB182: 0 | AC182: 9.71 | AD182: 0 | AE182: 0 | AI182: 3400 | AJ182: 487 | AK182: 415 | AL182: 6.71 | AM182: 1290 | AN182: 246 | AO182: 161 | AP182: 4.13 | AQ182: 0 | AR182: 79.1 | AS182: 67800 | AT182: 0 | AU182: 58 | AV182: 439 | AW182: 102 | AX182: 243 | AY182: 0 | AZ182: 0 | BA182: 0 | BB182: 0 | BC182: 14.5 | BD182: 180 | BE182: TRUE
A183: 0 | B183: W14X233 | C183: W14X233 | D183: W | E183: F | F183: 233 | G183: 68.5 | H183: 16 | I183: 0 | J183: 0 | K183: 15.9 | L183: 0 | M183: 0 | N183: 1.07 | O183: 1.72 | P183: 0 | Q183: 0 | R183: 0 | S183: 2.32 | T183: 3 | U183: 1.75 | V183: 0 | W183: 0 | X183: 0 | Y183: 0 | Z183: 0 | AA183: 4.62 | AB183: 0 | AC183: 10.7 | AD183: 0 | AE183: 0 | AI183: 3010 | AJ183: 436 | AK183: 375 | AL183: 6.63 | AM183: 1150 | AN183: 221 | AO183: 145 | AP183: 4.1 | AQ183: 0 | AR183: 59.5 | AS183: 59000 | AT183: 0 | AU183: 56.8 | AV183: 388 | AW183: 91.1 | AX183: 216 | AY183: 0 | AZ183: 0 | BA183: 0 | BB183: 0 | BC183: 14.3 | BD183: 181 | BE183: TRUE
A184: 0 | B184: W14X211 | C184: W14X211 | D184: W | E184: F | F184: 211 | G184: 62 | H184: 15.7 | I184: 0 | J184: 0 | K184: 15.8 | L184: 0 | M184: 0 | N184: 0.98 | O184: 1.56 | P184: 0 | Q184: 0 | R184: 0 | S184: 2.16 | T184: 2.875 | U184: 1.6875 | V184: 0 | W184: 0 | X184: 0 | Y184: 0 | Z184: 0 | AA184: 5.06 | AB184: 0 | AC184: 11.6 | AD184: 0 | AE184: 0 | AI184: 2660 | AJ184: 390 | AK184: 338 | AL184: 6.55 | AM184: 1030 | AN184: 198 | AO184: 130 | AP184: 4.07 | AQ184: 0 | AR184: 44.6 | AS184: 51500 | AT184: 0 | AU184: 55.9 | AV184: 344 | AW184: 81.7 | AX184: 194 | AY184: 0 | AZ184: 0 | BA184: 0 | BB184: 0 | BC184: 14.1 | BD184: 182 | BE184: TRUE
A185: 0 | B185: W14X193 | C185: W14X193 | D185: W | E185: F | F185: 193 | G185: 56.8 | H185: 15.5 | I185: 0 | J185: 0 | K185: 15.7 | L185: 0 | M185: 0 | N185: 0.89 | O185: 1.44 | P185: 0 | Q185: 0 | R185: 0 | S185: 2.04 | T185: 2.75 | U185: 1.6875 | V185: 0 | W185: 0 | X185: 0 | Y185: 0 | Z185: 0 | AA185: 5.45 | AB185: 0 | AC185: 12.8 | AD185: 0 | AE185: 0 | AI185: 2400 | AJ185: 355 | AK185: 310 | AL185: 6.5 | AM185: 931 | AN185: 180 | AO185: 119 | AP185: 4.05 | AQ185: 0 | AR185: 34.8 | AS185: 45900 | AT185: 0 | AU185: 55.2 | AV185: 312 | AW185: 75 | AX185: 177 | AY185: 0 | AZ185: 0 | BA185: 0 | BB185: 0 | BC185: 14.1 | BD185: 183 | BE185: TRUE
A186: 0 | B186: W14X176 | C186: W14X176 | D186: W | E186: F | F186: 176 | G186: 51.8 | H186: 15.2 | I186: 0 | J186: 0 | K186: 15.7 | L186: 0 | M186: 0 | N186: 0.83 | O186: 1.31 | P186: 0 | Q186: 0 | R186: 0 | S186: 1.91 | T186: 2.625 | U186: 1.625 | V186: 0 | W186: 0 | X186: 0 | Y186: 0 | Z186: 0 | AA186: 5.97 | AB186: 0 | AC186: 13.7 | AD186: 0 | AE186: 0 | AI186: 2140 | AJ186: 320 | AK186: 281 | AL186: 6.43 | AM186: 838 | AN186: 163 | AO186: 107 | AP186: 4.02 | AQ186: 0 | AR186: 26.5 | AS186: 40500 | AT186: 0 | AU186: 54.5 | AV186: 280 | AW186: 67.6 | AX186: 159 | AY186: 0 | AZ186: 0 | BA186: 0 | BB186: 0 | BC186: 13.9 | BD186: 184 | BE186: TRUE
A187: 0 | B187: W14X159 | C187: W14X159 | D187: W | E187: F | F187: 159 | G187: 46.7 | H187: 15 | I187: 0 | J187: 0 | K187: 15.6 | L187: 0 | M187: 0 | N187: 0.745 | O187: 1.19 | P187: 0 | Q187: 0 | R187: 0 | S187: 1.79 | T187: 2.5 | U187: 1.5625 | V187: 0 | W187: 0 | X187: 0 | Y187: 0 | Z187: 0 | AA187: 6.54 | AB187: 0 | AC187: 15.3 | AD187: 0 | AE187: 0 | AI187: 1900 | AJ187: 287 | AK187: 254 | AL187: 6.38 | AM187: 748 | AN187: 146 | AO187: 96.2 | AP187: 4 | AQ187: 0 | AR187: 19.7 | AS187: 35600 | AT187: 0 | AU187: 53.9 | AV187: 250 | AW187: 61 | AX187: 143 | AY187: 0 | AZ187: 0 | BA187: 0 | BB187: 0 | BC187: 13.8 | BD187: 185 | BE187: TRUE
A188: 0 | B188: W14X145 | C188: W14X145 | D188: W | E188: F | F188: 145 | G188: 42.7 | H188: 14.8 | I188: 0 | J188: 0 | K188: 15.5 | L188: 0 | M188: 0 | N188: 0.68 | O188: 1.09 | P188: 0 | Q188: 0 | R188: 0 | S188: 1.69 | T188: 2.375 | U188: 1.5625 | V188: 0 | W188: 0 | X188: 0 | Y188: 0 | Z188: 0 | AA188: 7.11 | AB188: 0 | AC188: 16.8 | AD188: 0 | AE188: 0 | AI188: 1710 | AJ188: 260 | AK188: 232 | AL188: 6.33 | AM188: 677 | AN188: 133 | AO188: 87.3 | AP188: 3.98 | AQ188: 0 | AR188: 15.2 | AS188: 31700 | AT188: 0 | AU188: 53.1 | AV188: 224 | AW188: 55.4 | AX188: 129 | AY188: 0 | AZ188: 0 | BA188: 0 | BB188: 0 | BC188: 13.7 | BD188: 186 | BE188: TRUE
A189: 0 | B189: W14X132 | C189: W14X132 | D189: W | E189: F | F189: 132 | G189: 38.8 | H189: 14.7 | I189: 0 | J189: 0 | K189: 14.7 | L189: 0 | M189: 0 | N189: 0.645 | O189: 1.03 | P189: 0 | Q189: 0 | R189: 0 | S189: 1.63 | T189: 2.3125 | U189: 1.5625 | V189: 0 | W189: 0 | X189: 0 | Y189: 0 | Z189: 0 | AA189: 7.15 | AB189: 0 | AC189: 17.7 | AD189: 0 | AE189: 0 | AI189: 1530 | AJ189: 234 | AK189: 209 | AL189: 6.28 | AM189: 548 | AN189: 113 | AO189: 74.5 | AP189: 3.76 | AQ189: 0 | AR189: 12.3 | AS189: 25500 | AT189: 0 | AU189: 50.2 | AV189: 190 | AW189: 49.5 | AX189: 116 | AY189: 0 | AZ189: 0 | BA189: 0 | BB189: 0 | BC189: 13.7 | BD189: 187 | BE189: TRUE
A190: 0 | B190: W14X120 | C190: W14X120 | D190: W | E190: F | F190: 120 | G190: 35.3 | H190: 14.5 | I190: 0 | J190: 0 | K190: 14.7 | L190: 0 | M190: 0 | N190: 0.59 | O190: 0.94 | P190: 0 | Q190: 0 | R190: 0 | S190: 1.54 | T190: 2.25 | U190: 1.5 | V190: 0 | W190: 0 | X190: 0 | Y190: 0 | Z190: 0 | AA190: 7.8 | AB190: 0 | AC190: 19.3 | AD190: 0 | AE190: 0 | AI190: 1380 | AJ190: 212 | AK190: 190 | AL190: 6.24 | AM190: 495 | AN190: 102 | AO190: 67.5 | AP190: 3.74 | AQ190: 0 | AR190: 9.37 | AS190: 22700 | AT190: 0 | AU190: 49.8 | AV190: 172 | AW190: 45 | AX190: 105 | AY190: 0 | AZ190: 0 | BA190: 0 | BB190: 0 | BC190: 13.6 | BD190: 188 | BE190: TRUE
A191: 0 | B191: W14X109 | C191: W14X109 | D191: W | E191: F | F191: 109 | G191: 32 | H191: 14.3 | I191: 0 | J191: 0 | K191: 14.6 | L191: 0 | M191: 0 | N191: 0.525 | O191: 0.86 | P191: 0 | Q191: 0 | R191: 0 | S191: 1.46 | T191: 2.1875 | U191: 1.5 | V191: 0 | W191: 0 | X191: 0 | Y191: 0 | Z191: 0 | AA191: 8.49 | AB191: 0 | AC191: 21.7 | AD191: 0 | AE191: 0 | AI191: 1240 | AJ191: 192 | AK191: 173 | AL191: 6.22 | AM191: 447 | AN191: 92.7 | AO191: 61.2 | AP191: 3.73 | AQ191: 0 | AR191: 7.12 | AS191: 20200 | AT191: 0 | AU191: 49.1 | AV191: 154 | AW191: 40.7 | AX191: 94.8 | AY191: 0 | AZ191: 0 | BA191: 0 | BB191: 0 | BC191: 13.4 | BD191: 189 | BE191: TRUE
A192: 0 | B192: W14X99 | C192: W14X99 | D192: W | E192: F | F192: 99 | G192: 29.1 | H192: 14.2 | I192: 0 | J192: 0 | K192: 14.6 | L192: 0 | M192: 0 | N192: 0.485 | O192: 0.78 | P192: 0 | Q192: 0 | R192: 0 | S192: 1.38 | T192: 2.0625 | U192: 1.4375 | V192: 0 | W192: 0 | X192: 0 | Y192: 0 | Z192: 0 | AA192: 9.34 | AB192: 0 | AC192: 23.5 | AD192: 0 | AE192: 0 | AI192: 1110 | AJ192: 173 | AK192: 157 | AL192: 6.17 | AM192: 402 | AN192: 83.6 | AO192: 55.2 | AP192: 3.71 | AQ192: 0 | AR192: 5.37 | AS192: 18000 | AT192: 0 | AU192: 49 | AV192: 139 | AW192: 36.9 | AX192: 86.1 | AY192: 0 | AZ192: 0 | BA192: 0 | BB192: 0 | BC192: 13.4 | BD192: 190 | BE192: TRUE
A193: 0 | B193: W14X90 | C193: W14X90 | D193: W | E193: F | F193: 90 | G193: 26.5 | H193: 14 | I193: 0 | J193: 0 | K193: 14.5 | L193: 0 | M193: 0 | N193: 0.44 | O193: 0.71 | P193: 0 | Q193: 0 | R193: 0 | S193: 1.31 | T193: 2 | U193: 1.4375 | V193: 0 | W193: 0 | X193: 0 | Y193: 0 | Z193: 0 | AA193: 10.2 | AB193: 0 | AC193: 25.9 | AD193: 0 | AE193: 0 | AI193: 999 | AJ193: 157 | AK193: 143 | AL193: 6.14 | AM193: 362 | AN193: 75.6 | AO193: 49.9 | AP193: 3.7 | AQ193: 0 | AR193: 4.06 | AS193: 16000 | AT193: 0 | AU193: 48.2 | AV193: 124 | AW193: 33.2 | AX193: 77.1 | AY193: 0 | AZ193: 0 | BA193: 0 | BB193: 0 | BC193: 13.3 | BD193: 191 | BE193: TRUE
A194: 0 | B194: W14X82 | C194: W14X82 | D194: W | E194: F | F194: 82 | G194: 24 | H194: 14.3 | I194: 0 | J194: 0 | K194: 10.1 | L194: 0 | M194: 0 | N194: 0.51 | O194: 0.855 | P194: 0 | Q194: 0 | R194: 0 | S194: 1.45 | T194: 1.6875 | U194: 1.0625 | V194: 0 | W194: 0 | X194: 0 | Y194: 0 | Z194: 0 | AA194: 5.92 | AB194: 0 | AC194: 22.4 | AD194: 0 | AE194: 0 | AI194: 881 | AJ194: 139 | AK194: 123 | AL194: 6.05 | AM194: 148 | AN194: 44.8 | AO194: 29.3 | AP194: 2.48 | AQ194: 0 | AR194: 5.07 | AS194: 6710 | AT194: 0 | AU194: 33.9 | AV194: 73.3 | AW194: 27.6 | AX194: 68.2 | AY194: 0 | AZ194: 0 | BA194: 0 | BB194: 0 | BC194: 13.4 | BD194: 192 | BE194: TRUE
A195: 0 | B195: W14X74 | C195: W14X74 | D195: W | E195: F | F195: 74 | G195: 21.8 | H195: 14.2 | I195: 0 | J195: 0 | K195: 10.1 | L195: 0 | M195: 0 | N195: 0.45 | O195: 0.785 | P195: 0 | Q195: 0 | R195: 0 | S195: 1.38 | T195: 1.625 | U195: 1.0625 | V195: 0 | W195: 0 | X195: 0 | Y195: 0 | Z195: 0 | AA195: 6.41 | AB195: 0 | AC195: 25.4 | AD195: 0 | AE195: 0 | AI195: 795 | AJ195: 126 | AK195: 112 | AL195: 6.04 | AM195: 134 | AN195: 40.5 | AO195: 26.6 | AP195: 2.48 | AQ195: 0 | AR195: 3.87 | AS195: 5990 | AT195: 0 | AU195: 33.9 | AV195: 67.1 | AW195: 25.4 | AX195: 62.2 | AY195: 0 | AZ195: 0 | BA195: 0 | BB195: 0 | BC195: 13.4 | BD195: 193 | BE195: TRUE
A196: 0 | B196: W14X68 | C196: W14X68 | D196: W | E196: F | F196: 68 | G196: 20 | H196: 14 | I196: 0 | J196: 0 | K196: 10 | L196: 0 | M196: 0 | N196: 0.415 | O196: 0.72 | P196: 0 | Q196: 0 | R196: 0 | S196: 1.31 | T196: 1.5625 | U196: 1.0625 | V196: 0 | W196: 0 | X196: 0 | Y196: 0 | Z196: 0 | AA196: 6.97 | AB196: 0 | AC196: 27.5 | AD196: 0 | AE196: 0 | AI196: 722 | AJ196: 115 | AK196: 103 | AL196: 6.01 | AM196: 121 | AN196: 36.9 | AO196: 24.2 | AP196: 2.46 | AQ196: 0 | AR196: 3.01 | AS196: 5380 | AT196: 0 | AU196: 33.2 | AV196: 59.8 | AW196: 22.9 | AX196: 56 | AY196: 0 | AZ196: 0 | BA196: 0 | BB196: 0 | BC196: 13.3 | BD196: 194 | BE196: TRUE
A197: 0 | B197: W14X61 | C197: W14X61 | D197: W | E197: F | F197: 61 | G197: 17.9 | H197: 13.9 | I197: 0 | J197: 0 | K197: 10 | L197: 0 | M197: 0 | N197: 0.375 | O197: 0.645 | P197: 0 | Q197: 0 | R197: 0 | S197: 1.24 | T197: 1.5 | U197: 1 | V197: 0 | W197: 0 | X197: 0 | Y197: 0 | Z197: 0 | AA197: 7.75 | AB197: 0 | AC197: 30.4 | AD197: 0 | AE197: 0 | AI197: 640 | AJ197: 102 | AK197: 92.1 | AL197: 5.98 | AM197: 107 | AN197: 32.8 | AO197: 21.5 | AP197: 2.45 | AQ197: 0 | AR197: 2.19 | AS197: 4710 | AT197: 0 | AU197: 33.1 | AV197: 53.4 | AW197: 20.6 | AX197: 50.2 | AY197: 0 | AZ197: 0 | BA197: 0 | BB197: 0 | BC197: 13.3 | BD197: 195 | BE197: TRUE
A198: 0 | B198: W14X53 | C198: W14X53 | D198: W | E198: F | F198: 53 | G198: 15.6 | H198: 13.9 | I198: 0 | J198: 0 | K198: 8.06 | L198: 0 | M198: 0 | N198: 0.37 | O198: 0.66 | P198: 0 | Q198: 0 | R198: 0 | S198: 1.25 | T198: 1.5 | U198: 1 | V198: 0 | W198: 0 | X198: 0 | Y198: 0 | Z198: 0 | AA198: 6.11 | AB198: 0 | AC198: 30.9 | AD198: 0 | AE198: 0 | AI198: 541 | AJ198: 87.1 | AK198: 77.8 | AL198: 5.89 | AM198: 57.7 | AN198: 22 | AO198: 14.3 | AP198: 1.92 | AQ198: 0 | AR198: 1.94 | AS198: 2540 | AT198: 0 | AU198: 26.7 | AV198: 35.5 | AW198: 16.8 | AX198: 42.5 | AY198: 0 | AZ198: 0 | BA198: 0 | BB198: 0 | BC198: 13.2 | BD198: 196 | BE198: TRUE
A199: 0 | B199: W14X48 | C199: W14X48 | D199: W | E199: F | F199: 48 | G199: 14.1 | H199: 13.8 | I199: 0 | J199: 0 | K199: 8.03 | L199: 0 | M199: 0 | N199: 0.34 | O199: 0.595 | P199: 0 | Q199: 0 | R199: 0 | S199: 1.19 | T199: 1.4375 | U199: 1 | V199: 0 | W199: 0 | X199: 0 | Y199: 0 | Z199: 0 | AA199: 6.75 | AB199: 0 | AC199: 33.6 | AD199: 0 | AE199: 0 | AI199: 484 | AJ199: 78.4 | AK199: 70.2 | AL199: 5.85 | AM199: 51.4 | AN199: 19.6 | AO199: 12.8 | AP199: 1.91 | AQ199: 0 | AR199: 1.45 | AS199: 2240 | AT199: 0 | AU199: 26.5 | AV199: 31.7 | AW199: 15.1 | AX199: 38.3 | AY199: 0 | AZ199: 0 | BA199: 0 | BB199: 0 | BC199: 13.2 | BD199: 197 | BE199: TRUE
A200: 0 | B200: W14X43 | C200: W14X43 | D200: W | E200: F | F200: 43 | G200: 12.6 | H200: 13.7 | I200: 0 | J200: 0 | K200: 8 | L200: 0 | M200: 0 | N200: 0.305 | O200: 0.53 | P200: 0 | Q200: 0 | R200: 0 | S200: 1.12 | T200: 1.375 | U200: 1 | V200: 0 | W200: 0 | X200: 0 | Y200: 0 | Z200: 0 | AA200: 7.54 | AB200: 0 | AC200: 37.4 | AD200: 0 | AE200: 0 | AI200: 428 | AJ200: 69.6 | AK200: 62.6 | AL200: 5.82 | AM200: 45.2 | AN200: 17.3 | AO200: 11.3 | AP200: 1.89 | AQ200: 0 | AR200: 1.05 | AS200: 1950 | AT200: 0 | AU200: 26.3 | AV200: 27.9 | AW200: 13.4 | AX200: 34 | AY200: 0 | AZ200: 0 | BA200: 0 | BB200: 0 | BC200: 13.2 | BD200: 198 | BE200: TRUE
... 214 more rows

Sheet Data 2004 (hidden)
A1: 1 | B1: =A1+1 -> 2 | C1: 3 | D1: 4 | E1: 5 | F1: 6 | G1: 7 | H1: 8 | I1: 9 | J1: 10 | K1: 11 | L1: 12 | M1: 13 | N1: 14 | O1: 15 | P1: 16 | Q1: 17 | R1: 18 | S1: 19 | T1: 20 | U1: 21 | V1: 22 | W1: 23 | X1: 24 | Y1: 25 | Z1: 26 | AA1: 27 | AB1: 28 | AC1: 29 | AD1: 30 | AE1: 31 | AF1: 32 | AG1: 33 | AH1: =AG1+1 -> 34 | AI1: 35 | AJ1: 36 | AK1: 37 | AL1: 38 | AM1: 39 | AN1: 40 | AO1: 41 | AP1: 42 | AQ1: 43 | AR1: 44 | AS1: 45 | AT1: 46 | AU1: 47 | AV1: 48 | AW1: 49 | AX1: 50 | AY1: 51 | AZ1: 52 | BA1: 53 | BB1: 54 | BC1: 55 | BD1: 56
A2: 372 | B2: EDI_STD_NOMENCLATURE | C2: AISC_MANUAL_LABEL | D2: Shape | E2: T_F | F2: W | G2: A | H2: D | I2: HT | J2: OD | K2: BF | L2: B | M2: ID | N2: TW | O2: TF | P2: T | Q2: TNOM | R2: TDES | S2: KDES | T2: KDET | U2: K1 | V2: X | W2: Y | X2: E0 | Y2: XP | Z2: YP | AA2: BF_2TF | AB2: B_T | AC2: H_TW | AD2: H_T | AE2: D_T | AF2: FY3P | AG2: X1 | AH2: X2 | AI2: IX | AJ2: ZX | AK2: SX | AL2: RX | AM2: IY | AN2: ZY | AO2: SY | AP2: RY | AQ2: RZ | AR2: J | AS2: CW | AT2: C | AU2: WNO | AV2: SW | AW2: QF | AX2: QW | AY2: RO | AZ2: H | BA2: TAN_ALPHA | BB2: QS | BC2: h_o | BD2: position
A3: W | B3: W44X335 | C3: W44X335 | D3: W44x335 | E3: F | F3: 335 | G3: 98.3 | H3: 44 | I3: 0 | J3: 0 | K3: 16 | L3: 0 | M3: 0 | N3: 1.02 | O3: 1.77 | P3: 0 | Q3: 0 | R3: 0 | S3: 2.56 | T3: 2.625 | U3: 1.3125 | V3: 0 | W3: 0 | X3: 0 | Y3: 0 | Z3: 0 | AA3: 4.51 | AB3: 0 | AC3: 38.1 | AD3: 0 | AE3: 0 | AF3: 44.3 | AG3: 2430 | AH3: 5110 | AI3: 31100 | AJ3: 1620 | AK3: 1410 | AL3: 17.8 | AM3: 1200 | AN3: 236 | AO3: 151 | AP3: 3.5 | AQ3: 0 | AR3: 74.4 | AS3: 536000 | AT3: 0 | AU3: 168 | AV3: 1190 | AW3: 279 | AX3: 805 | AY3: 0 | AZ3: 0 | BA3: 0 | BB3: 0 | BC3: =H3-O3 -> 42.23 | BD3: 1
A4: W | B4: W44X290 | C4: W44X290 | D4: W44x290 | E4: F | F4: 290 | G4: 85.8 | H4: 43.6 | I4: 0 | J4: 0 | K4: 15.8 | L4: 0 | M4: 0 | N4: 0.87 | O4: 1.58 | P4: 0 | Q4: 0 | R4: 0 | S4: 2.37 | T4: 2.4375 | U4: 1.25 | V4: 0 | W4: 0 | X4: 0 | Y4: 0 | Z4: 0 | AA4: 5.01 | AB4: 0 | AC4: 44.7 | AD4: 0 | AE4: 0 | AF4: 32.2 | AG4: 2150 | AH4: 8170 | AI4: 27100 | AJ4: 1420 | AK4: 1240 | AL4: 17.8 | AM4: 1050 | AN4: 206 | AO4: 132 | AP4: 3.49 | AQ4: 0 | AR4: 51.5 | AS4: 464000 | AT4: 0 | AU4: 166 | AV4: 1040 | AW4: 248 | AX4: 704 | AY4: 0 | AZ4: 0 | BA4: 0 | BB4: 0 | BC4: 42.02 | BD4: 2
A5: W | B5: W44X262 | C5: W44X262 | D5: W44x262 | E5: F | F5: 262 | G5: 77.2 | H5: 43.3 | I5: 0 | J5: 0 | K5: 15.8 | L5: 0 | M5: 0 | N5: 0.79 | O5: 1.42 | P5: 0 | Q5: 0 | R5: 0 | S5: 2.21 | T5: 2.25 | U5: 1.1875 | V5: 0 | W5: 0 | X5: 0 | Y5: 0 | Z5: 0 | AA5: 5.55 | AB5: 0 | AC5: 49.2 | AD5: 0 | AE5: 0 | AF5: 26.6 | AG5: 1930 | AH5: 12300 | AI5: 24200 | AJ5: 1270 | AK5: 1120 | AL5: 17.7 | AM5: 927 | AN5: 183 | AO5: 118 | AP5: 3.46 | AQ5: 0 | AR5: 37.7 | AS5: 407000 | AT5: 0 | AU5: 165 | AV5: 922 | AW5: 222 | AX5: 630 | AY5: 0 | AZ5: 0 | BA5: 0 | BB5: 0 | BC5: 41.88 | BD5: 3
A6: W | B6: W44X230 | C6: W44X230 | D6: W44x230 | E6: F | F6: 230 | G6: 67.7 | H6: 42.9 | I6: 0 | J6: 0 | K6: 15.8 | L6: 0 | M6: 0 | N6: 0.71 | O6: 1.22 | P6: 0 | Q6: 0 | R6: 0 | S6: 2.01 | T6: 2.0625 | U6: 1.1875 | V6: 0 | W6: 0 | X6: 0 | Y6: 0 | Z6: 0 | AA6: 6.45 | AB6: 0 | AC6: 54.8 | AD6: 0 | AE6: 0 | AF6: 21.5 | AG6: 1690 | AH6: 21100 | AI6: 20800 | AJ6: 1100 | AK6: 971 | AL6: 17.5 | AM6: 796 | AN6: 157 | AO6: 101 | AP6: 3.43 | AQ6: 0 | AR6: 24.9 | AS6: 346000 | AT6: 0 | AU6: 164 | AV6: 789 | AW6: 191 | AX6: 546 | AY6: 0 | AZ6: 0 | BA6: 0 | BB6: 0 | BC6: 41.68 | BD6: 4
A7: W | B7: W40X593 | C7: W40X593 | D7: W40x593 | E7: T | F7: 593 | G7: 174 | H7: 43 | I7: 0 | J7: 0 | K7: 16.7 | L7: 0 | M7: 0 | N7: 1.79 | O7: 3.23 | P7: 0 | Q7: 0 | R7: 0 | S7: 4.41 | T7: 4.5 | U7: 2.125 | V7: 0 | W7: 0 | X7: 0 | Y7: 0 | Z7: 0 | AA7: 2.58 | AB7: 0 | AC7: 19.1 | AD7: 0 | AE7: 0 | AF7: 0 | AG7: 4760 | AH7: 348 | AI7: 50400 | AJ7: 2760 | AK7: 2340 | AL7: 17 | AM7: 2520 | AN7: 481 | AO7: 302 | AP7: 3.8 | AQ7: 0 | AR7: 445 | AS7: 996000 | AT7: 0 | AU7: 166 | AV7: 2240 | AW7: 478 | AX7: 1370 | AY7: 0 | AZ7: 0 | BA7: 0 | BB7: 0 | BC7: 39.77 | BD7: 5
A8: W | B8: W40X503 | C8: W40X503 | D8: W40x503 | E8: T | F8: 503 | G8: 148 | H8: 42.1 | I8: 0 | J8: 0 | K8: 16.4 | L8: 0 | M8: 0 | N8: 1.54 | O8: 2.76 | P8: 0 | Q8: 0 | R8: 0 | S8: 3.94 | T8: 4 | U8: 2 | V8: 0 | W8: 0 | X8: 0 | Y8: 0 | Z8: 0 | AA8: 2.97 | AB8: 0 | AC8: 22.2 | AD8: 0 | AE8: 0 | AF8: 0 | AG8: 4110 | AH8: 620 | AI8: 41700 | AJ8: 2320 | AK8: 1980 | AL8: 16.8 | AM8: 2050 | AN8: 395 | AO8: 250 | AP8: 3.72 | AQ8: 0 | AR8: 279 | AS8: 791000 | AT8: 0 | AU8: 161 | AV8: 1830 | AW8: 403 | AX8: 1150 | AY8: 0 | AZ8: 0 | BA8: 0 | BB8: 0 | BC8: 39.34 | BD8: 6
A9: W | B9: W40X431 | C9: W40X431 | D9: W40x431 | E9: T | F9: 431 | G9: 127 | H9: 41.3 | I9: 0 | J9: 0 | K9: 16.2 | L9: 0 | M9: 0 | N9: 1.34 | O9: 2.36 | P9: 0 | Q9: 0 | R9: 0 | S9: 3.54 | T9: 3.625 | U9: 1.875 | V9: 0 | W9: 0 | X9: 0 | Y9: 0 | Z9: 0 | AA9: 3.44 | AB9: 0 | AC9: 25.5 | AD9: 0 | AE9: 0 | AF9: 0 | AG9: 3550 | AH9: 1100 | AI9: 34800 | AJ9: 1960 | AK9: 1690 | AL9: 16.6 | AM9: 1690 | AN9: 328 | AO9: 208 | AP9: 3.65 | AQ9: 0 | AR9: 177 | AS9: 639000 | AT9: 0 | AU9: 158 | AV9: 1510 | AW9: 342 | AX9: 968 | AY9: 0 | AZ9: 0 | BA9: 0 | BB9: 0 | BC9: 38.94 | BD9: 7
A10: W | B10: W40X397 | C10: W40X397 | D10: W40x397 | E10: T | F10: 397 | G10: 117 | H10: 41 | I10: 0 | J10: 0 | K10: 16.1 | L10: 0 | M10: 0 | N10: 1.22 | O10: 2.2 | P10: 0 | Q10: 0 | R10: 0 | S10: 3.38 | T10: 3.5 | U10: 1.8125 | V10: 0 | W10: 0 | X10: 0 | Y10: 0 | Z10: 0 | AA10: 3.66 | AB10: 0 | AC10: 28 | AD10: 0 | AE10: 0 | AF10: 0 | AG10: 3310 | AH10: 1440 | AI10: 32000 | AJ10: 1800 | AK10: 1560 | AL10: 16.6 | AM10: 1540 | AN10: 300 | AO10: 191 | AP10: 3.64 | AQ10: 0 | AR10: 142 | AS10: 578000 | AT10: 0 | AU10: 156 | AV10: 1380 | AW10: 318 | AX10: 891 | AY10: 0 | AZ10: 0 | BA10: 0 | BB10: 0 | BC10: 38.8 | BD10: 8
A11: W | B11: W40X372 | C11: W40X372 | D11: W40x372 | E11: T | F11: 372 | G11: 109 | H11: 40.6 | I11: 0 | J11: 0 | K11: 16.1 | L11: 0 | M11: 0 | N11: 1.16 | O11: 2.05 | P11: 0 | Q11: 0 | R11: 0 | S11: 3.23 | T11: 3.3125 | U11: 1.8125 | V11: 0 | W11: 0 | X11: 0 | Y11: 0 | Z11: 0 | AA11: 3.92 | AB11: 0 | AC11: 29.5 | AD11: 0 | AE11: 0 | AF11: 0 | AG11: 3080 | AH11: 1880 | AI11: 29600 | AJ11: 1680 | AK11: 1460 | AL11: 16.5 | AM11: 1420 | AN11: 278 | AO11: 177 | AP11: 3.6 | AQ11: 0 | AR11: 116 | AS11: 528000 | AT11: 0 | AU11: 155 | AV11: 1270 | AW11: 295 | AX11: 829 | AY11: 0 | AZ11: 0 | BA11: 0 | BB11: 0 | BC11: 38.55 | BD11: 9
A12: W | B12: W40X362 | C12: W40X362 | D12: W40x362 | E12: T | F12: 362 | G12: 107 | H12: 40.6 | I12: 0 | J12: 0 | K12: 16 | L12: 0 | M12: 0 | N12: 1.12 | O12: 2.01 | P12: 0 | Q12: 0 | R12: 0 | S12: 3.19 | T12: 3.25 | U12: 1.75 | V12: 0 | W12: 0 | X12: 0 | Y12: 0 | Z12: 0 | AA12: 3.99 | AB12: 0 | AC12: 30.5 | AD12: 0 | AE12: 0 | AF12: 0 | AG12: 3040 | AH12: 2010 | AI12: 28900 | AJ12: 1640 | AK12: 1420 | AL12: 16.5 | AM12: 1380 | AN12: 270 | AO12: 173 | AP12: 3.6 | AQ12: 0 | AR12: 109 | AS12: 512000 | AT12: 0 | AU12: 154 | AV12: 1240 | AW12: 289 | AX12: 807 | AY12: 0 | AZ12: 0 | BA12: 0 | BB12: 0 | BC12: 38.59 | BD12: 10
A13: W | B13: W40X324 | C13: W40X324 | D13: W40x324 | E13: F | F13: 324 | G13: 95.3 | H13: 40.2 | I13: 0 | J13: 0 | K13: 15.9 | L13: 0 | M13: 0 | N13: 1 | O13: 1.81 | P13: 0 | Q13: 0 | R13: 0 | S13: 2.99 | T13: 3.0625 | U13: 1.6875 | V13: 0 | W13: 0 | X13: 0 | Y13: 0 | Z13: 0 | AA13: 4.4 | AB13: 0 | AC13: 34.2 | AD13: 0 | AE13: 0 | AF13: 55.1 | AG13: 2720 | AH13: 3050 | AI13: 25600 | AJ13: 1460 | AK13: 1280 | AL13: 16.4 | AM13: 1220 | AN13: 239 | AO13: 153 | AP13: 3.58 | AQ13: 0 | AR13: 79.4 | AS13: 449000 | AT13: 0 | AU13: 153 | AV13: 1100 | AW13: 259 | AX13: 719 | AY13: 0 | AZ13: 0 | BA13: 0 | BB13: 0 | BC13: 38.39 | BD13: 11
A14: W | B14: W40X297 | C14: W40X297 | D14: W40x297 | E14: F | F14: 297 | G14: 87.4 | H14: 39.8 | I14: 0 | J14: 0 | K14: 15.8 | L14: 0 | M14: 0 | N14: 0.93 | O14: 1.65 | P14: 0 | Q14: 0 | R14: 0 | S14: 2.83 | T14: 2.9375 | U14: 1.6875 | V14: 0 | W14: 0 | X14: 0 | Y14: 0 | Z14: 0 | AA14: 4.8 | AB14: 0 | AC14: 36.8 | AD14: 0 | AE14: 0 | AF14: 47.7 | AG14: 2500 | AH14: 4250 | AI14: 23200 | AJ14: 1330 | AK14: 1170 | AL14: 16.3 | AM14: 1090 | AN14: 215 | AO14: 138 | AP14: 3.54 | AQ14: 0 | AR14: 61.2 | AS14: 397000 | AT14: 0 | AU14: 151 | AV14: 986 | AW14: 235 | AX14: 654 | AY14: 0 | AZ14: 0 | BA14: 0 | BB14: 0 | BC14: 38.15 | BD14: 12
A15: W | B15: W40X277 | C15: W40X277 | D15: W40x277 | E15: F | F15: 277 | G15: 81.4 | H15: 39.7 | I15: 0 | J15: 0 | K15: 15.8 | L15: 0 | M15: 0 | N15: 0.83 | O15: 1.58 | P15: 0 | Q15: 0 | R15: 0 | S15: 2.76 | T15: 2.875 | U15: 1.625 | V15: 0 | W15: 0 | X15: 0 | Y15: 0 | Z15: 0 | AA15: 5.03 | AB15: 0 | AC15: 41.2 | AD15: 0 | AE15: 0 | AF15: 38 | AG15: 2360 | AH15: 5280 | AI15: 21900 | AJ15: 1250 | AK15: 1100 | AL15: 16.4 | AM15: 1040 | AN15: 204 | AO15: 132 | AP15: 3.58 | AQ15: 0 | AR15: 51.5 | AS15: 378000 | AT15: 0 | AU15: 151 | AV15: 940 | AW15: 225 | AX15: 614 | AY15: 0 | AZ15: 0 | BA15: 0 | BB15: 0 | BC15: 38.12 | BD15: 13
A16: W | B16: W40X249 | C16: W40X249 | D16: W40x249 | E16: F | F16: 249 | G16: 73.3 | H16: 39.4 | I16: 0 | J16: 0 | K16: 15.8 | L16: 0 | M16: 0 | N16: 0.75 | O16: 1.42 | P16: 0 | Q16: 0 | R16: 0 | S16: 2.6 | T16: 2.6875 | U16: 1.5625 | V16: 0 | W16: 0 | X16: 0 | Y16: 0 | Z16: 0 | AA16: 5.55 | AB16: 0 | AC16: 45.6 | AD16: 0 | AE16: 0 | AF16: 31 | AG16: 2130 | AH16: 7800 | AI16: 19600 | AJ16: 1120 | AK16: 993 | AL16: 16.3 | AM16: 926 | AN16: 182 | AO16: 118 | AP16: 3.55 | AQ16: 0 | AR16: 38.1 | AS16: 334000 | AT16: 0 | AU16: 149 | AV16: 836 | AW16: 202 | AX16: 550 | AY16: 0 | AZ16: 0 | BA16: 0 | BB16: 0 | BC16: 37.98 | BD16: 14
A17: W | B17: W40X215 | C17: W40X215 | D17: W40x215 | E17: F | F17: 215 | G17: 63.4 | H17: 39 | I17: 0 | J17: 0 | K17: 15.8 | L17: 0 | M17: 0 | N17: 0.65 | O17: 1.22 | P17: 0 | Q17: 0 | R17: 0 | S17: 2.4 | T17: 2.5 | U17: 1.5625 | V17: 0 | W17: 0 | X17: 0 | Y17: 0 | Z17: 0 | AA17: 6.45 | AB17: 0 | AC17: 52.6 | AD17: 0 | AE17: 0 | AF17: 23.3 | AG17: 1850 | AH17: 13600 | AI17: 16700 | AJ17: 964 | AK17: 859 | AL17: 16.2 | AM17: 796 | AN17: 156 | AO17: 101 | AP17: 3.54 | AQ17: 0 | AR17: 24.8 | AS17: 284000 | AT17: 0 | AU17: 149 | AV17: 714 | AW17: 174 | AX17: 471 | AY17: 0 | AZ17: 0 | BA17: 0 | BB17: 0 | BC17: 37.78 | BD17: 15
A18: W | B18: W40X199 | C18: W40X199 | D18: W40x199 | E18: F | F18: 199 | G18: 58.5 | H18: 38.7 | I18: 0 | J18: 0 | K18: 15.8 | L18: 0 | M18: 0 | N18: 0.65 | O18: 1.07 | P18: 0 | Q18: 0 | R18: 0 | S18: 2.25 | T18: 2.3125 | U18: 1.5625 | V18: 0 | W18: 0 | X18: 0 | Y18: 0 | Z18: 0 | AA18: 7.39 | AB18: 0 | AC18: 52.6 | AD18: 0 | AE18: 0 | AF18: 23.3 | AG18: 1700 | AH18: 20000 | AI18: 14900 | AJ18: 869 | AK18: 770 | AL18: 16 | AM18: 695 | AN18: 137 | AO18: 88.2 | AP18: 3.45 | AQ18: 0 | AR18: 18.3 | AS18: 246000 | AT18: 0 | AU18: 148 | AV18: 621 | AW18: 151 | AX18: 424 | AY18: 0 | AZ18: 0 | BA18: 0 | BB18: 0 | BC18: 37.63 | BD18: 16
A19: W | B19: W40X392 | C19: W40X392 | D19: W40x392 | E19: T | F19: 392 | G19: 115 | H19: 41.6 | I19: 0 | J19: 0 | K19: 12.4 | L19: 0 | M19: 0 | N19: 1.42 | O19: 2.52 | P19: 0 | Q19: 0 | R19: 0 | S19: 3.7 | T19: 3.8125 | U19: 1.9375 | V19: 0 | W19: 0 | X19: 0 | Y19: 0 | Z19: 0 | AA19: 2.45 | AB19: 0 | AC19: 24.1 | AD19: 0 | AE19: 0 | AF19: 0 | AG19: 3910 | AH19: 852 | AI19: 29900 | AJ19: 1710 | AK19: 1440 | AL19: 16.1 | AM19: 803 | AN19: 212 | AO19: 130 | AP19: 2.64 | AQ19: 0 | AR19: 172 | AS19: 306000 | AT19: 0 | AU19: 121 | AV19: 940 | AW19: 269 | AX19: 845 | AY19: 0 | AZ19: 0 | BA19: 0 | BB19: 0 | BC19: 39.08 | BD19: 17
A20: W | B20: W40X331 | C20: W40X331 | D20: W40x331 | E20: F | F20: 331 | G20: 97.5 | H20: 40.8 | I20: 0 | J20: 0 | K20: 12.2 | L20: 0 | M20: 0 | N20: 1.22 | O20: 2.13 | P20: 0 | Q20: 0 | R20: 0 | S20: 3.31 | T20: 3.375 | U20: 1.8125 | V20: 0 | W20: 0 | X20: 0 | Y20: 0 | Z20: 0 | AA20: 2.86 | AB20: 0 | AC20: 28 | AD20: 0 | AE20: 0 | AF20: 0 | AG20: 3360 | AH20: 1550 | AI20: 24700 | AJ20: 1430 | AK20: 1210 | AL20: 15.9 | AM20: 644 | AN20: 172 | AO20: 106 | AP20: 2.57 | AQ20: 0 | AR20: 106 | AS20: 241000 | AT20: 0 | AU20: 118 | AV20: 760 | AW20: 225 | AX20: 704 | AY20: 0 | AZ20: 0 | BA20: 0 | BB20: 0 | BC20: 38.67 | BD20: 18
A21: W | B21: W40X327 | C21: W40X327 | D21: W40x327 | E21: F | F21: 327 | G21: 96 | H21: 40.8 | I21: 0 | J21: 0 | K21: 12.1 | L21: 0 | M21: 0 | N21: 1.18 | O21: 2.13 | P21: 0 | Q21: 0 | R21: 0 | S21: 3.31 | T21: 3.375 | U21: 1.8125 | V21: 0 | W21: 0 | X21: 0 | Y21: 0 | Z21: 0 | AA21: 2.85 | AB21: 0 | AC21: 29 | AD21: 0 | AE21: 0 | AF21: 0 | AG21: 3320 | AH21: 1620 | AI21: 24500 | AJ21: 1410 | AK21: 1200 | AL21: 16 | AM21: 640 | AN21: 170 | AO21: 105 | AP21: 2.58 | AQ21: 0 | AR21: 103 | AS21: 239000 | AT21: 0 | AU21: 117 | AV21: 757 | AW21: 225 | AX21: 696 | AY21: 0 | AZ21: 0 | BA21: 0 | BB21: 0 | BC21: 38.67 | BD21: 19
A22: W | B22: W40X278 | C22: W40X278 | D22: W40x278 | E22: F | F22: 278 | G22: 81.8 | H22: 40.2 | I22: 0 | J22: 0 | K22: 12 | L22: 0 | M22: 0 | N22: 1.02 | O22: 1.81 | P22: 0 | Q22: 0 | R22: 0 | S22: 2.99 | T22: 3.0625 | U22: 1.75 | V22: 0 | W22: 0 | X22: 0 | Y22: 0 | Z22: 0 | AA22: 3.31 | AB22: 0 | AC22: 33.5 | AD22: 0 | AE22: 0 | AF22: 57.3 | AG22: 2860 | AH22: 2910 | AI22: 20500 | AJ22: 1190 | AK22: 1020 | AL22: 15.8 | AM22: 521 | AN22: 140 | AO22: 87.1 | AP22: 2.52 | AQ22: 0 | AR22: 64.7 | AS22: 192000 | AT22: 0 | AU22: 115 | AV22: 622 | AW22: 190 | AX22: 586 | AY22: 0 | AZ22: 0 | BA22: 0 | BB22: 0 | BC22: 38.39 | BD22: 20
A23: W | B23: W40X264 | C23: W40X264 | D23: W40x264 | E23: F | F23: 264 | G23: 77.6 | H23: 40 | I23: 0 | J23: 0 | K23: 11.9 | L23: 0 | M23: 0 | N23: 0.96 | O23: 1.73 | P23: 0 | Q23: 0 | R23: 0 | S23: 2.91 | T23: 3 | U23: 1.6875 | V23: 0 | W23: 0 | X23: 0 | Y23: 0 | Z23: 0 | AA23: 3.45 | AB23: 0 | AC23: 35.6 | AD23: 0 | AE23: 0 | AF23: 50.8 | AG23: 2720 | AH23: 3500 | AI23: 19400 | AJ23: 1130 | AK23: 971 | AL23: 15.8 | AM23: 493 | AN23: 132 | AO23: 82.6 | AP23: 2.52 | AQ23: 0 | AR23: 56.1 | AS23: 181000 | AT23: 0 | AU23: 114 | AV23: 589 | AW23: 182 | AX23: 555 | AY23: 0 | AZ23: 0 | BA23: 0 | BB23: 0 | BC23: 38.27 | BD23: 21
A24: W | B24: W40X235 | C24: W40X235 | D24: W40x235 | E24: F | F24: 235 | G24: 69 | H24: 39.7 | I24: 0 | J24: 0 | K24: 11.9 | L24: 0 | M24: 0 | N24: 0.83 | O24: 1.58 | P24: 0 | Q24: 0 | R24: 0 | S24: 2.76 | T24: 2.875 | U24: 1.625 | V24: 0 | W24: 0 | X24: 0 | Y24: 0 | Z24: 0 | AA24: 3.77 | AB24: 0 | AC24: 41.2 | AD24: 0 | AE24: 0 | AF24: 38 | AG24: 2440 | AH24: 5200 | AI24: 17400 | AJ24: 1010 | AK24: 875 | AL24: 15.9 | AM24: 444 | AN24: 118 | AO24: 74.6 | AP24: 2.54 | AQ24: 0 | AR24: 41.3 | AS24: 161000 | AT24: 0 | AU24: 113 | AV24: 530 | AW24: 166 | AX24: 495 | AY24: 0 | AZ24: 0 | BA24: 0 | BB24: 0 | BC24: 38.12 | BD24: 22
A25: W | B25: W40X211 | C25: W40X211 | D25: W40x211 | E25: F | F25: 211 | G25: 62 | H25: 39.4 | I25: 0 | J25: 0 | K25: 11.8 | L25: 0 | M25: 0 | N25: 0.75 | O25: 1.42 | P25: 0 | Q25: 0 | R25: 0 | S25: 2.6 | T25: 2.6875 | U25: 1.5625 | V25: 0 | W25: 0 | X25: 0 | Y25: 0 | Z25: 0 | AA25: 4.17 | AB25: 0 | AC25: 45.6 | AD25: 0 | AE25: 0 | AF25: 31 | AG25: 2210 | AH25: 7680 | AI25: 15500 | AJ25: 906 | AK25: 786 | AL25: 15.8 | AM25: 390 | AN25: 105 | AO25: 66.1 | AP25: 2.51 | AQ25: 0 | AR25: 30.4 | AS25: 140000 | AT25: 0 | AU25: 112 | AV25: 468 | AW25: 148 | AX25: 442 | AY25: 0 | AZ25: 0 | BA25: 0 | BB25: 0 | BC25: 37.98 | BD25: 23
A26: W | B26: W40X183 | C26: W40X183 | D26: W40x183 | E26: F | F26: 183 | G26: 53.8 | H26: 39 | I26: 0 | J26: 0 | K26: 11.8 | L26: 0 | M26: 0 | N26: 0.65 | O26: 1.22 | P26: 0 | Q26: 0 | R26: 0 | S26: 2.4 | T26: 2.5 | U26: 1.5625 | V26: 0 | W26: 0 | X26: 0 | Y26: 0 | Z26: 0 | AA26: 4.84 | AB26: 0 | AC26: 52.6 | AD26: 0 | AE26: 0 | AF26: 23.3 | AG26: 1920 | AH26: 13300 | AI26: 13300 | AJ26: 783 | AK26: 683 | AL26: 15.7 | AM26: 336 | AN26: 89.6 | AO26: 56.9 | AP26: 2.5 | AQ26: 0 | AR26: 20 | AS26: 120000 | AT26: 0 | AU26: 111 | AV26: 402 | AW26: 129 | AX26: 381 | AY26: 0 | AZ26: 0 | BA26: 0 | BB26: 0 | BC26: 37.78 | BD26: 24
A27: W | B27: W40X167 | C27: W40X167 | D27: W40x167 | E27: F | F27: 167 | G27: 49.2 | H27: 38.6 | I27: 0 | J27: 0 | K27: 11.8 | L27: 0 | M27: 0 | N27: 0.65 | O27: 1.02 | P27: 0 | Q27: 0 | R27: 0 | S27: 2.21 | T27: 2.3125 | U27: 1.5625 | V27: 0 | W27: 0 | X27: 0 | Y27: 0 | Z27: 0 | AA27: 5.76 | AB27: 0 | AC27: 52.6 | AD27: 0 | AE27: 0 | AF27: 23.3 | AG27: 1750 | AH27: 20700 | AI27: 11600 | AJ27: 693 | AK27: 600 | AL27: 15.3 | AM27: 283 | AN27: 76 | AO27: 47.9 | AP27: 2.4 | AQ27: 0 | AR27: 14 | AS27: 99800 | AT27: 0 | AU27: 111 | AV27: 336 | AW27: 107 | AX27: 336 | AY27: 0 | AZ27: 0 | BA27: 0 | BB27: 0 | BC27: 37.58 | BD27: 25
A28: W | B28: W40X149 | C28: W40X149 | D28: W40x149 | E28: F | F28: 149 | G28: 43.8 | H28: 38.2 | I28: 0 | J28: 0 | K28: 11.8 | L28: 0 | M28: 0 | N28: 0.63 | O28: 0.83 | P28: 0 | Q28: 0 | R28: 0 | S28: 2.01 | T28: 2.125 | U28: 1.5 | V28: 0 | W28: 0 | X28: 0 | Y28: 0 | Z28: 0 | AA28: 7.11 | AB28: 0 | AC28: 54.3 | AD28: 0 | AE28: 0 | AF28: 21.9 | AG28: 1580 | AH28: 33400 | AI28: 9800 | AJ28: 598 | AK28: 513 | AL28: 15 | AM28: 229 | AN28: 62.2 | AO28: 38.8 | AP28: 2.29 | AQ28: 0 | AR28: 9.36 | AS28: 80000 | AT28: 0 | AU28: 110 | AV28: 270 | AW28: 86.7 | AX28: 288 | AY28: 0 | AZ28: 0 | BA28: 0 | BB28: 0 | BC28: 37.37 | BD28: 26
A29: W | B29: W36X798 | C29: W36X798 | D29: W36x798 | E29: T | F29: 798 | G29: 235 | H29: 42 | I29: 0 | J29: 0 | K29: 18 | L29: 0 | M29: 0 | N29: 2.38 | O29: 4.29 | P29: 0 | Q29: 0 | R29: 0 | S29: 5.24 | T29: 5.5625 | U29: 2.375 | V29: 0 | W29: 0 | X29: 0 | Y29: 0 | Z29: 0 | AA29: 2.1 | AB29: 0 | AC29: 13.2 | AD29: 0 | AE29: 0 | AF29: 0 | AG29: 6670 | AH29: 91.2 | AI29: 62600 | AJ29: 3580 | AK29: 2980 | AL29: 16.3 | AM29: 4200 | AN29: 743 | AO29: 467 | AP29: 4.23 | AQ29: 0 | AR29: 1050 | AS29: 1490000 | AT29: 0 | AU29: 169 | AV29: 3270 | AW29: 631 | AX29: 1790 | AY29: 0 | AZ29: 0 | BA29: 0 | BB29: 0 | BC29: 37.71 | BD29: 27
A30: W | B30: W36X650 | C30: W36X650 | D30: W36x650 | E30: T | F30: 650 | G30: 191 | H30: 40.5 | I30: 0 | J30: 0 | K30: 17.6 | L30: 0 | M30: 0 | N30: 1.97 | O30: 3.54 | P30: 0 | Q30: 0 | R30: 0 | S30: 4.49 | T30: 4.8125 | U30: 2.1875 | V30: 0 | W30: 0 | X30: 0 | Y30: 0 | Z30: 0 | AA30: 2.48 | AB30: 0 | AC30: 16 | AD30: 0 | AE30: 0 | AF30: 0 | AG30: 5560 | AH30: 182 | AI30: 48900 | AJ30: 2860 | AK30: 2420 | AL30: 16 | AM30: 3230 | AN30: 580 | AO30: 367 | AP30: 4.11 | AQ30: 0 | AR30: 591 | AS30: 1100000 | AT30: 0 | AU30: 162 | AV30: 2520 | AW30: 510 | AX30: 1420 | AY30: 0 | AZ30: 0 | BA30: 0 | BB30: 0 | BC30: 36.96 | BD30: 28
A31: W | B31: W36X527 | C31: W36X527 | D31: W36x527 | E31: T | F31: 527 | G31: 155 | H31: 39.2 | I31: 0 | J31: 0 | K31: 17.2 | L31: 0 | M31: 0 | N31: 1.61 | O31: 2.91 | P31: 0 | Q31: 0 | R31: 0 | S31: 3.86 | T31: 4.1875 | U31: 2 | V31: 0 | W31: 0 | X31: 0 | Y31: 0 | Z31: 0 | AA31: 2.96 | AB31: 0 | AC31: 19.6 | AD31: 0 | AE31: 0 | AF31: 0 | AG31: 4620 | AH31: 374 | AI31: 38300 | AJ31: 2280 | AK31: 1950 | AL31: 15.7 | AM31: 2490 | AN31: 454 | AO31: 289 | AP31: 4.01 | AQ31: 0 | AR31: 327 | AS31: 820000 | AT31: 0 | AU31: 156 | AV31: 1960 | AW31: 412 | AX31: 1130 | AY31: 0 | AZ31: 0 | BA31: 0 | BB31: 0 | BC31: 36.29 | BD31: 29
A32: W | B32: W36X439 | C32: W36X439 | D32: W36x439 | E32: T | F32: 439 | G32: 129 | H32: 38.3 | I32: 0 | J32: 0 | K32: 17 | L32: 0 | M32: 0 | N32: 1.36 | O32: 2.44 | P32: 0 | Q32: 0 | R32: 0 | S32: 3.39 | T32: 3.6875 | U32: 1.875 | V32: 0 | W32: 0 | X32: 0 | Y32: 0 | Z32: 0 | AA32: 3.48 | AB32: 0 | AC32: 23.1 | AD32: 0 | AE32: 0 | AF32: 0 | AG32: 3900 | AH32: 721 | AI32: 31000 | AJ32: 1870 | AK32: 1620 | AL32: 15.5 | AM32: 1990 | AN32: 367 | AO32: 235 | AP32: 3.93 | AQ32: 0 | AR32: 193 | AS32: 638000 | AT32: 0 | AU32: 152 | AV32: 1570 | AW32: 341 | AX32: 931 | AY32: 0 | AZ32: 0 | BA32: 0 | BB32: 0 | BC32: 35.86 | BD32: 30
A33: W | B33: W36X393 | C33: W36X393 | D33: W36x393 | E33: T | F33: 393 | G33: 116 | H33: 37.8 | I33: 0 | J33: 0 | K33: 16.8 | L33: 0 | M33: 0 | N33: 1.22 | O33: 2.2 | P33: 0 | Q33: 0 | R33: 0 | S33: 3.15 | T33: 3.4375 | U33: 1.8125 | V33: 0 | W33: 0 | X33: 0 | Y33: 0 | Z33: 0 | AA33: 3.82 | AB33: 0 | AC33: 25.8 | AD33: 0 | AE33: 0 | AF33: 0 | AG33: 3530 | AH33: 1070 | AI33: 27500 | AJ33: 1670 | AK33: 1450 | AL33: 15.4 | AM33: 1750 | AN33: 325 | AO33: 208 | AP33: 3.9 | AQ33: 0 | AR33: 141 | AS33: 554000 | AT33: 0 | AU33: 150 | AV33: 1390 | AW33: 306 | AX33: 829 | AY33: 0 | AZ33: 0 | BA33: 0 | BB33: 0 | BC33: 35.6 | BD33: 31
A34: W | B34: W36X359 | C34: W36X359 | D34: W36x359 | E34: T | F34: 359 | G34: 105 | H34: 37.4 | I34: 0 | J34: 0 | K34: 16.7 | L34: 0 | M34: 0 | N34: 1.12 | O34: 2.01 | P34: 0 | Q34: 0 | R34: 0 | S34: 2.96 | T34: 3.25 | U34: 1.75 | V34: 0 | W34: 0 | X34: 0 | Y34: 0 | Z34: 0 | AA34: 4.16 | AB34: 0 | AC34: 28.1 | AD34: 0 | AE34: 0 | AF34: 0 | AG34: 3230 | AH34: 1490 | AI34: 24800 | AJ34: 1510 | AK34: 1320 | AL34: 15.3 | AM34: 1570 | AN34: 292 | AO34: 188 | AP34: 3.86 | AQ34: 0 | AR34: 108 | AS34: 492000 | AT34: 0 | AU34: 148 | AV34: 1240 | AW34: 278 | AX34: 751 | AY34: 0 | AZ34: 0 | BA34: 0 | BB34: 0 | BC34: 35.39 | BD34: 32
A35: W | B35: W36X328 | C35: W36X328 | D35: W36x328 | E35: T | F35: 328 | G35: 96.4 | H35: 37.1 | I35: 0 | J35: 0 | K35: 16.6 | L35: 0 | M35: 0 | N35: 1.02 | O35: 1.85 | P35: 0 | Q35: 0 | R35: 0 | S35: 2.8 | T35: 3.125 | U35: 1.75 | V35: 0 | W35: 0 | X35: 0 | Y35: 0 | Z35: 0 | AA35: 4.49 | AB35: 0 | AC35: 30.9 | AD35: 0 | AE35: 0 | AF35: 0 | AG35: 2980 | AH35: 2050 | AI35: 22500 | AJ35: 1380 | AK35: 1210 | AL35: 15.3 | AM35: 1420 | AN35: 265 | AO35: 171 | AP35: 3.84 | AQ35: 0 | AR35: 84.1 | AS35: 441000 | AT35: 0 | AU35: 147 | AV35: 1130 | AW35: 254 | AX35: 684 | AY35: 0 | AZ35: 0 | BA35: 0 | BB35: 0 | BC35: 35.25 | BD35: 33
A36: W | B36: W36X300 | C36: W36X300 | D36: W36x300 | E36: F | F36: 300 | G36: 88.3 | H36: 36.7 | I36: 0 | J36: 0 | K36: 16.7 | L36: 0 | M36: 0 | N36: 0.945 | O36: 1.68 | P36: 0 | Q36: 0 | R36: 0 | S36: 2.63 | T36: 2.9375 | U36: 1.6875 | V36: 0 | W36: 0 | X36: 0 | Y36: 0 | Z36: 0 | AA36: 4.96 | AB36: 0 | AC36: 33.3 | AD36: 0 | AE36: 0 | AF36: 58 | AG36: 2720 | AH36: 2930 | AI36: 20300 | AJ36: 1260 | AK36: 1110 | AL36: 15.2 | AM36: 1300 | AN36: 241 | AO36: 156 | AP36: 3.83 | AQ36: 0 | AR36: 64.2 | AS36: 399000 | AT36: 0 | AU36: 146 | AV36: 1020 | AW36: 231 | AX36: 622 | AY36: 0 | AZ36: 0 | BA36: 0 | BB36: 0 | BC36: 35.02 | BD36: 34
A37: W | B37: W36X280 | C37: W36X280 | D37: W36x280 | E37: F | F37: 280 | G37: 82.4 | H37: 36.5 | I37: 0 | J37: 0 | K37: 16.6 | L37: 0 | M37: 0 | N37: 0.885 | O37: 1.57 | P37: 0 | Q37: 0 | R37: 0 | S37: 2.52 | T37: 2.8125 | U37: 1.625 | V37: 0 | W37: 0 | X37: 0 | Y37: 0 | Z37: 0 | AA37: 5.29 | AB37: 0 | AC37: 35.6 | AD37: 0 | AE37: 0 | AF37: 50.9 | AG37: 2560 | AH37: 3730 | AI37: 18900 | AJ37: 1170 | AK37: 1030 | AL37: 15.1 | AM37: 1200 | AN37: 223 | AO37: 144 | AP37: 3.81 | AQ37: 0 | AR37: 52.6 | AS37: 366000 | AT37: 0 | AU37: 145 | AV37: 944 | AW37: 216 | AX37: 579 | AY37: 0 | AZ37: 0 | BA37: 0 | BB37: 0 | BC37: 34.93 | BD37: 35
A38: W | B38: W36X260 | C38: W36X260 | D38: W36x260 | E38: F | F38: 260 | G38: 76.5 | H38: 36.3 | I38: 0 | J38: 0 | K38: 16.6 | L38: 0 | M38: 0 | N38: 0.84 | O38: 1.44 | P38: 0 | Q38: 0 | R38: 0 | S38: 2.39 | T38: 2.6875 | U38: 1.625 | V38: 0 | W38: 0 | X38: 0 | Y38: 0 | Z38: 0 | AA38: 5.75 | AB38: 0 | AC38: 37.5 | AD38: 0 | AE38: 0 | AF38: 45.8 | AG38: 2370 | AH38: 5100 | AI38: 17300 | AJ38: 1080 | AK38: 953 | AL38: 15 | AM38: 1090 | AN38: 204 | AO38: 132 | AP38: 3.78 | AQ38: 0 | AR38: 41.5 | AS38: 330000 | AT38: 0 | AU38: 144 | AV38: 858 | AW38: 197 | AX38: 532 | AY38: 0 | AZ38: 0 | BA38: 0 | BB38: 0 | BC38: 34.86 | BD38: 36
A39: W | B39: W36X245 | C39: W36X245 | D39: W36x245 | E39: F | F39: 245 | G39: 72.1 | H39: 36.1 | I39: 0 | J39: 0 | K39: 16.5 | L39: 0 | M39: 0 | N39: 0.8 | O39: 1.35 | P39: 0 | Q39: 0 | R39: 0 | S39: 2.3 | T39: 2.625 | U39: 1.625 | V39: 0 | W39: 0 | X39: 0 | Y39: 0 | Z39: 0 | AA39: 6.11 | AB39: 0 | AC39: 39.4 | AD39: 0 | AE39: 0 | AF39: 41.6 | AG39: 2230 | AH39: 6430 | AI39: 16100 | AJ39: 1010 | AK39: 895 | AL39: 15 | AM39: 1010 | AN39: 190 | AO39: 123 | AP39: 3.75 | AQ39: 0 | AR39: 34.6 | AS39: 305000 | AT39: 0 | AU39: 143 | AV39: 799 | AW39: 184 | AX39: 498 | AY39: 0 | AZ39: 0 | BA39: 0 | BB39: 0 | BC39: 34.75 | BD39: 37
A40: W | B40: W36X230 | C40: W36X230 | D40: W36x230 | E40: F | F40: 230 | G40: 67.6 | H40: 35.9 | I40: 0 | J40: 0 | K40: 16.5 | L40: 0 | M40: 0 | N40: 0.76 | O40: 1.26 | P40: 0 | Q40: 0 | R40: 0 | S40: 2.21 | T40: 2.5 | U40: 1.5625 | V40: 0 | W40: 0 | X40: 0 | Y40: 0 | Z40: 0 | AA40: 6.54 | AB40: 0 | AC40: 41.4 | AD40: 0 | AE40: 0 | AF40: 37.5 | AG40: 2100 | AH40: 8190 | AI40: 15000 | AJ40: 943 | AK40: 837 | AL40: 14.9 | AM40: 940 | AN40: 176 | AO40: 114 | AP40: 3.73 | AQ40: 0 | AR40: 28.6 | AS40: 282000 | AT40: 0 | AU40: 143 | AV40: 740 | AW40: 171 | AX40: 465 | AY40: 0 | AZ40: 0 | BA40: 0 | BB40: 0 | BC40: 34.64 | BD40: 38
A41: W | B41: W36X256 | C41: W36X256 | D41: W36x256 | E41: F | F41: 256 | G41: 75.4 | H41: 37.4 | I41: 0 | J41: 0 | K41: 12.2 | L41: 0 | M41: 0 | N41: 0.96 | O41: 1.73 | P41: 0 | Q41: 0 | R41: 0 | S41: 2.48 | T41: 2.625 | U41: 1.3125 | V41: 0 | W41: 0 | X41: 0 | Y41: 0 | Z41: 0 | AA41: 3.53 | AB41: 0 | AC41: 33.8 | AD41: 0 | AE41: 0 | AF41: 56.3 | AG41: 2830 | AH41: 2910 | AI41: 16800 | AJ41: 1040 | AK41: 895 | AL41: 14.9 | AM41: 528 | AN41: 137 | AO41: 86.5 | AP41: 2.65 | AQ41: 0 | AR41: 52.9 | AS41: 168000 | AT41: 0 | AU41: 109 | AV41: 576 | AW41: 174 | AX41: 516 | AY41: 0 | AZ41: 0 | BA41: 0 | BB41: 0 | BC41: 35.67 | BD41: 39
A42: W | B42: W36X232 | C42: W36X232 | D42: W36x232 | E42: F | F42: 232 | G42: 68.1 | H42: 37.1 | I42: 0 | J42: 0 | K42: 12.1 | L42: 0 | M42: 0 | N42: 0.87 | O42: 1.57 | P42: 0 | Q42: 0 | R42: 0 | S42: 2.32 | T42: 2.4375 | U42: 1.25 | V42: 0 | W42: 0 | X42: 0 | Y42: 0 | Z42: 0 | AA42: 3.86 | AB42: 0 | AC42: 37.3 | AD42: 0 | AE42: 0 | AF42: 46.2 | AG42: 2570 | AH42: 4200 | AI42: 15000 | AJ42: 936 | AK42: 809 | AL42: 14.8 | AM42: 468 | AN42: 122 | AO42: 77.2 | AP42: 2.62 | AQ42: 0 | AR42: 39.6 | AS42: 148000 | AT42: 0 | AU42: 108 | AV42: 512 | AW42: 157 | AX42: 464 | AY42: 0 | AZ42: 0 | BA42: 0 | BB42: 0 | BC42: 35.53 | BD42: 40
A43: W | B43: W36X210 | C43: W36X210 | D43: W36x210 | E43: F | F43: 210 | G43: 61.8 | H43: 36.7 | I43: 0 | J43: 0 | K43: 12.2 | L43: 0 | M43: 0 | N43: 0.83 | O43: 1.36 | P43: 0 | Q43: 0 | R43: 0 | S43: 2.11 | T43: 2.3125 | U43: 1.25 | V43: 0 | W43: 0 | X43: 0 | Y43: 0 | Z43: 0 | AA43: 4.48 | AB43: 0 | AC43: 39.1 | AD43: 0 | AE43: 0 | AF43: 42.1 | AG43: 2320 | AH43: 6560 | AI43: 13200 | AJ43: 833 | AK43: 719 | AL43: 14.6 | AM43: 411 | AN43: 107 | AO43: 67.5 | AP43: 2.58 | AQ43: 0 | AR43: 28 | AS43: 128000 | AT43: 0 | AU43: 108 | AV43: 446 | AW43: 136 | AX43: 412 | AY43: 0 | AZ43: 0 | BA43: 0 | BB43: 0 | BC43: 35.34 | BD43: 41
A44: W | B44: W36X194 | C44: W36X194 | D44: W36x194 | E44: F | F44: 194 | G44: 57 | H44: 36.5 | I44: 0 | J44: 0 | K44: 12.1 | L44: 0 | M44: 0 | N44: 0.765 | O44: 1.26 | P44: 0 | Q44: 0 | R44: 0 | S44: 2.01 | T44: 2.1875 | U44: 1.1875 | V44: 0 | W44: 0 | X44: 0 | Y44: 0 | Z44: 0 | AA44: 4.81 | AB44: 0 | AC44: 42.4 | AD44: 0 | AE44: 0 | AF44: 35.7 | AG44: 2140 | AH44: 8850 | AI44: 12100 | AJ44: 767 | AK44: 664 | AL44: 14.6 | AM44: 375 | AN44: 97.7 | AO44: 61.9 | AP44: 2.56 | AQ44: 0 | AR44: 22.2 | AS44: 116000 | AT44: 0 | AU44: 107 | AV44: 407 | AW44: 126 | AX44: 379 | AY44: 0 | AZ44: 0 | BA44: 0 | BB44: 0 | BC44: 35.24 | BD44: 42
A45: W | B45: W36X182 | C45: W36X182 | D45: W36x182 | E45: F | F45: 182 | G45: 53.6 | H45: 36.3 | I45: 0 | J45: 0 | K45: 12.1 | L45: 0 | M45: 0 | N45: 0.725 | O45: 1.18 | P45: 0 | Q45: 0 | R45: 0 | S45: 1.93 | T45: 2.125 | U45: 1.1875 | V45: 0 | W45: 0 | X45: 0 | Y45: 0 | Z45: 0 | AA45: 5.12 | AB45: 0 | AC45: 44.8 | AD45: 0 | AE45: 0 | AF45: 32.1 | AG45: 2020 | AH45: 11200 | AI45: 11300 | AJ45: 718 | AK45: 623 | AL45: 14.5 | AM45: 347 | AN45: 90.7 | AO45: 57.6 | AP45: 2.55 | AQ45: 0 | AR45: 18.5 | AS45: 107000 | AT45: 0 | AU45: 106 | AV45: 378 | AW45: 118 | AX45: 355 | AY45: 0 | AZ45: 0 | BA45: 0 | BB45: 0 | BC45: 35.12 | BD45: 43
A46: W | B46: W36X170 | C46: W36X170 | D46: W36x170 | E46: F | F46: 170 | G46: 50.1 | H46: 36.2 | I46: 0 | J46: 0 | K46: 12 | L46: 0 | M46: 0 | N46: 0.68 | O46: 1.1 | P46: 0 | Q46: 0 | R46: 0 | S46: 1.85 | T46: 2 | U46: 1.1875 | V46: 0 | W46: 0 | X46: 0 | Y46: 0 | Z46: 0 | AA46: 5.47 | AB46: 0 | AC46: 47.7 | AD46: 0 | AE46: 0 | AF46: 28.2 | AG46: 1900 | AH46: 14500 | AI46: 10500 | AJ46: 668 | AK46: 581 | AL46: 14.5 | AM46: 320 | AN46: 83.8 | AO46: 53.2 | AP46: 2.53 | AQ46: 0 | AR46: 15.1 | AS46: 98400 | AT46: 0 | AU46: 105 | AV46: 349 | AW46: 109 | AX46: 330 | AY46: 0 | AZ46: 0 | BA46: 0 | BB46: 0 | BC46: 35.1 | BD46: 44
A47: W | B47: W36X160 | C47: W36X160 | D47: W36x160 | E47: F | F47: 160 | G47: 47 | H47: 36 | I47: 0 | J47: 0 | K47: 12 | L47: 0 | M47: 0 | N47: 0.65 | O47: 1.02 | P47: 0 | Q47: 0 | R47: 0 | S47: 1.77 | T47: 1.9375 | U47: 1.125 | V47: 0 | W47: 0 | X47: 0 | Y47: 0 | Z47: 0 | AA47: 5.88 | AB47: 0 | AC47: 49.9 | AD47: 0 | AE47: 0 | AF47: 25.8 | AG47: 1780 | AH47: 18600 | AI47: 9760 | AJ47: 624 | AK47: 542 | AL47: 14.4 | AM47: 295 | AN47: 77.3 | AO47: 49.1 | AP47: 2.5 | AQ47: 0 | AR47: 12.4 | AS47: 90300 | AT47: 0 | AU47: 105 | AV47: 321 | AW47: 101 | AX47: 308 | AY47: 0 | AZ47: 0 | BA47: 0 | BB47: 0 | BC47: 34.98 | BD47: 45
A48: W | B48: W36X150 | C48: W36X150 | D48: W36x150 | E48: F | F48: 150 | G48: 44.2 | H48: 35.9 | I48: 0 | J48: 0 | K48: 12 | L48: 0 | M48: 0 | N48: 0.625 | O48: 0.94 | P48: 0 | Q48: 0 | R48: 0 | S48: 1.69 | T48: 1.875 | U48: 1.125 | V48: 0 | W48: 0 | X48: 0 | Y48: 0 | Z48: 0 | AA48: 6.37 | AB48: 0 | AC48: 51.9 | AD48: 0 | AE48: 0 | AF48: 23.9 | AG48: 1680 | AH48: 24200 | AI48: 9040 | AJ48: 581 | AK48: 504 | AL48: 14.3 | AM48: 270 | AN48: 70.9 | AO48: 45.1 | AP48: 2.47 | AQ48: 0 | AR48: 10.1 | AS48: 82300 | AT48: 0 | AU48: 105 | AV48: 294 | AW48: 93.1 | AX48: 287 | AY48: 0 | AZ48: 0 | BA48: 0 | BB48: 0 | BC48: 34.96 | BD48: 46
A49: W | B49: W36X135 | C49: W36X135 | D49: W36x135 | E49: F | F49: 135 | G49: 39.7 | H49: 35.6 | I49: 0 | J49: 0 | K49: 12 | L49: 0 | M49: 0 | N49: 0.6 | O49: 0.79 | P49: 0 | Q49: 0 | R49: 0 | S49: 1.54 | T49: 1.6875 | U49: 1.125 | V49: 0 | W49: 0 | X49: 0 | Y49: 0 | Z49: 0 | AA49: 7.56 | AB49: 0 | AC49: 54.1 | AD49: 0 | AE49: 0 | AF49: 22 | AG49: 1520 | AH49: 37900 | AI49: 7800 | AJ49: 509 | AK49: 439 | AL49: 14 | AM49: 225 | AN49: 59.7 | AO49: 37.7 | AP49: 2.38 | AQ49: 0 | AR49: 7 | AS49: 68000 | AT49: 0 | AU49: 104 | AV49: 245 | AW49: 77.9 | AX49: 251 | AY49: 0 | AZ49: 0 | BA49: 0 | BB49: 0 | BC49: 34.81 | BD49: 47
A50: W | B50: W33X387 | C50: W33X387 | D50: W33x387 | E50: T | F50: 387 | G50: 114 | H50: 36 | I50: 0 | J50: 0 | K50: 16.2 | L50: 0 | M50: 0 | N50: 1.26 | O50: 2.28 | P50: 0 | Q50: 0 | R50: 0 | S50: 3.07 | T50: 3.1875 | U50: 1.4375 | V50: 0 | W50: 0 | X50: 0 | Y50: 0 | Z50: 0 | AA50: 3.55 | AB50: 0 | AC50: 23.7 | AD50: 0 | AE50: 0 | AF50: 0 | AG50: 3850 | AH50: 752 | AI50: 24300 | AJ50: 1560 | AK50: 1350 | AL50: 14.6 | AM50: 1620 | AN50: 312 | AO50: 200 | AP50: 3.77 | AQ50: 0 | AR50: 148 | AS50: 459000 | AT50: 0 | AU50: 136 | AV50: 1260 | AW50: 287 | AX50: 777 | AY50: 0 | AZ50: 0 | BA50: 0 | BB50: 0 | BC50: 33.72 | BD50: 48
A51: W | B51: W33X354 | C51: W33X354 | D51: W33x354 | E51: T | F51: 354 | G51: 104 | H51: 35.6 | I51: 0 | J51: 0 | K51: 16.1 | L51: 0 | M51: 0 | N51: 1.16 | O51: 2.09 | P51: 0 | Q51: 0 | R51: 0 | S51: 2.88 | T51: 2.9375 | U51: 1.375 | V51: 0 | W51: 0 | X51: 0 | Y51: 0 | Z51: 0 | AA51: 3.85 | AB51: 0 | AC51: 25.7 | AD51: 0 | AE51: 0 | AF51: 0 | AG51: 3530 | AH51: 1040 | AI51: 22000 | AJ51: 1420 | AK51: 1240 | AL51: 14.5 | AM51: 1460 | AN51: 282 | AO51: 181 | AP51: 3.74 | AQ51: 0 | AR51: 115 | AS51: 409000 | AT51: 0 | AU51: 135 | AV51: 1130 | AW51: 261 | AX51: 706 | AY51: 0 | AZ51: 0 | BA51: 0 | BB51: 0 | BC51: 33.51 | BD51: 49
A52: W | B52: W33X318 | C52: W33X318 | D52: W33x318 | E52: T | F52: 318 | G52: 93.6 | H52: 35.2 | I52: 0 | J52: 0 | K52: 16 | L52: 0 | M52: 0 | N52: 1.04 | O52: 1.89 | P52: 0 | Q52: 0 | R52: 0 | S52: 2.68 | T52: 2.75 | U52: 1.3125 | V52: 0 | W52: 0 | X52: 0 | Y52: 0 | Z52: 0 | AA52: 4.23 | AB52: 0 | AC52: 28.7 | AD52: 0 | AE52: 0 | AF52: 0 | AG52: 3210 | AH52: 1530 | AI52: 19500 | AJ52: 1270 | AK52: 1110 | AL52: 14.5 | AM52: 1290 | AN52: 250 | AO52: 161 | AP52: 3.71 | AQ52: 0 | AR52: 84.4 | AS52: 357000 | AT52: 0 | AU52: 133 | AV52: 1000 | AW52: 235 | AX52: 631 | AY52: 0 | AZ52: 0 | BA52: 0 | BB52: 0 | BC52: 33.31 | BD52: 50
A53: W | B53: W33X291 | C53: W33X291 | D53: W33x291 | E53: F | F53: 291 | G53: 85.7 | H53: 34.8 | I53: 0 | J53: 0 | K53: 15.9 | L53: 0 | M53: 0 | N53: 0.96 | O53: 1.73 | P53: 0 | Q53: 0 | R53: 0 | S53: 2.52 | T53: 2.625 | U53: 1.3125 | V53: 0 | W53: 0 | X53: 0 | Y53: 0 | Z53: 0 | AA53: 4.6 | AB53: 0 | AC53: 31 | AD53: 0 | AE53: 0 | AF53: 0 | AG53: 2930 | AH53: 2150 | AI53: 17700 | AJ53: 1160 | AK53: 1020 | AL53: 14.4 | AM53: 1160 | AN53: 226 | AO53: 146 | AP53: 3.68 | AQ53: 0 | AR53: 65.1 | AS53: 318000 | AT53: 0 | AU53: 132 | AV53: 906 | AW53: 214 | AX53: 574 | AY53: 0 | AZ53: 0 | BA53: 0 | BB53: 0 | BC53: 33.07 | BD53: 51
A54: W | B54: W33X263 | C54: W33X263 | D54: W33x263 | E54: F | F54: 263 | G54: 77.5 | H54: 34.5 | I54: 0 | J54: 0 | K54: 15.8 | L54: 0 | M54: 0 | N54: 0.87 | O54: 1.57 | P54: 0 | Q54: 0 | R54: 0 | S54: 2.36 | T54: 2.4375 | U54: 1.25 | V54: 0 | W54: 0 | X54: 0 | Y54: 0 | Z54: 0 | AA54: 5.03 | AB54: 0 | AC54: 34.3 | AD54: 0 | AE54: 0 | AF54: 54.8 | AG54: 2680 | AH54: 3080 | AI54: 15900 | AJ54: 1040 | AK54: 919 | AL54: 14.3 | AM54: 1040 | AN54: 202 | AO54: 131 | AP54: 3.66 | AQ54: 0 | AR54: 48.7 | AS54: 282000 | AT54: 0 | AU54: 130 | AV54: 808 | AW54: 193 | AX54: 516 | AY54: 0 | AZ54: 0 | BA54: 0 | BB54: 0 | BC54: 32.93 | BD54: 52
A55: W | B55: W33X241 | C55: W33X241 | D55: W33x241 | E55: F | F55: 241 | G55: 71 | H55: 34.2 | I55: 0 | J55: 0 | K55: 15.9 | L55: 0 | M55: 0 | N55: 0.83 | O55: 1.4 | P55: 0 | Q55: 0 | R55: 0 | S55: 2.19 | T55: 2.25 | U55: 1.25 | V55: 0 | W55: 0 | X55: 0 | Y55: 0 | Z55: 0 | AA55: 5.66 | AB55: 0 | AC55: 35.9 | AD55: 0 | AE55: 0 | AF55: 49.9 | AG55: 2440 | AH55: 4510 | AI55: 14200 | AJ55: 940 | AK55: 831 | AL55: 14.1 | AM55: 933 | AN55: 182 | AO55: 118 | AP55: 3.62 | AQ55: 0 | AR55: 36.2 | AS55: 251000 | AT55: 0 | AU55: 130 | AV55: 721 | AW55: 172 | AX55: 466 | AY55: 0 | AZ55: 0 | BA55: 0 | BB55: 0 | BC55: 32.8 | BD55: 53
A56: W | B56: W33X221 | C56: W33X221 | D56: W33x221 | E56: F | F56: 221 | G56: 65.2 | H56: 33.9 | I56: 0 | J56: 0 | K56: 15.8 | L56: 0 | M56: 0 | N56: 0.775 | O56: 1.27 | P56: 0 | Q56: 0 | R56: 0 | S56: 2.06 | T56: 2.125 | U56: 1.1875 | V56: 0 | W56: 0 | X56: 0 | Y56: 0 | Z56: 0 | AA56: 6.2 | AB56: 0 | AC56: 38.5 | AD56: 0 | AE56: 0 | AF56: 43.5 | AG56: 2250 | AH56: 6340 | AI56: 12900 | AJ56: 857 | AK56: 759 | AL56: 14.1 | AM56: 840 | AN56: 164 | AO56: 106 | AP56: 3.59 | AQ56: 0 | AR56: 27.8 | AS56: 224000 | AT56: 0 | AU56: 129 | AV56: 650 | AW56: 156 | AX56: 424 | AY56: 0 | AZ56: 0 | BA56: 0 | BB56: 0 | BC56: 32.63 | BD56: 54
A57: W | B57: W33X201 | C57: W33X201 | D57: W33x201 | E57: F | F57: 201 | G57: 59.2 | H57: 33.7 | I57: 0 | J57: 0 | K57: 15.7 | L57: 0 | M57: 0 | N57: 0.715 | O57: 1.15 | P57: 0 | Q57: 0 | R57: 0 | S57: 1.94 | T57: 2 | U57: 1.1875 | V57: 0 | W57: 0 | X57: 0 | Y57: 0 | Z57: 0 | AA57: 6.85 | AB57: 0 | AC57: 41.7 | AD57: 0 | AE57: 0 | AF57: 37 | AG57: 2050 | AH57: 9180 | AI57: 11600 | AJ57: 773 | AK57: 686 | AL57: 14 | AM57: 749 | AN57: 147 | AO57: 95.2 | AP57: 3.56 | AQ57: 0 | AR57: 20.8 | AS57: 198000 | AT57: 0 | AU57: 128 | AV57: 580 | AW57: 141 | AX57: 383 | AY57: 0 | AZ57: 0 | BA57: 0 | BB57: 0 | BC57: 32.55 | BD57: 55
A58: W | B58: W33X169 | C58: W33X169 | D58: W33x169 | E58: F | F58: 169 | G58: 49.5 | H58: 33.8 | I58: 0 | J58: 0 | K58: 11.5 | L58: 0 | M58: 0 | N58: 0.67 | O58: 1.22 | P58: 0 | Q58: 0 | R58: 0 | S58: 1.92 | T58: 2.125 | U58: 1.1875 | V58: 0 | W58: 0 | X58: 0 | Y58: 0 | Z58: 0 | AA58: 4.71 | AB58: 0 | AC58: 44.7 | AD58: 0 | AE58: 0 | AF58: 32.2 | AG58: 2160 | AH58: 8150 | AI58: 9290 | AJ58: 629 | AK58: 549 | AL58: 13.7 | AM58: 310 | AN58: 84.4 | AO58: 53.9 | AP58: 2.5 | AQ58: 0 | AR58: 17.7 | AS58: 82400 | AT58: 0 | AU58: 93.7 | AV58: 329 | AW58: 108 | AX58: 311 | AY58: 0 | AZ58: 0 | BA58: 0 | BB58: 0 | BC58: 32.58 | BD58: 56
A59: W | B59: W33X152 | C59: W33X152 | D59: W33x152 | E59: F | F59: 152 | G59: 44.8 | H59: 33.5 | I59: 0 | J59: 0 | K59: 11.6 | L59: 0 | M59: 0 | N59: 0.635 | O59: 1.06 | P59: 0 | Q59: 0 | R59: 0 | S59: 1.76 | T59: 1.9375 | U59: 1.125 | V59: 0 | W59: 0 | X59: 0 | Y59: 0 | Z59: 0 | AA59: 5.48 | AB59: 0 | AC59: 47.2 | AD59: 0 | AE59: 0 | AF59: 28.9 | AG59: 1940 | AH59: 12900 | AI59: 8160 | AJ59: 559 | AK59: 487 | AL59: 13.5 | AM59: 273 | AN59: 73.9 | AO59: 47.2 | AP59: 2.47 | AQ59: 0 | AR59: 12.4 | AS59: 71800 | AT59: 0 | AU59: 93.8 | AV59: 286 | AW59: 93.5 | AX59: 276 | AY59: 0 | AZ59: 0 | BA59: 0 | BB59: 0 | BC59: 32.44 | BD59: 57
A60: W | B60: W33X141 | C60: W33X141 | D60: W33x141 | E60: F | F60: 141 | G60: 41.6 | H60: 33.3 | I60: 0 | J60: 0 | K60: 11.5 | L60: 0 | M60: 0 | N60: 0.605 | O60: 0.96 | P60: 0 | Q60: 0 | R60: 0 | S60: 1.66 | T60: 1.8125 | U60: 1.125 | V60: 0 | W60: 0 | X60: 0 | Y60: 0 | Z60: 0 | AA60: 6.01 | AB60: 0 | AC60: 49.6 | AD60: 0 | AE60: 0 | AF60: 26.2 | AG60: 1800 | AH60: 17800 | AI60: 7450 | AJ60: 514 | AK60: 448 | AL60: 13.4 | AM60: 246 | AN60: 66.9 | AO60: 42.7 | AP60: 2.43 | AQ60: 0 | AR60: 9.7 | AS60: 64300 | AT60: 0 | AU60: 93.3 | AV60: 258 | AW60: 84.8 | AX60: 254 | AY60: 0 | AZ60: 0 | BA60: 0 | BB60: 0 | BC60: 32.34 | BD60: 58
A61: W | B61: W33X130 | C61: W33X130 | D61: W33x130 | E61: F | F61: 130 | G61: 38.3 | H61: 33.1 | I61: 0 | J61: 0 | K61: 11.5 | L61: 0 | M61: 0 | N61: 0.58 | O61: 0.855 | P61: 0 | Q61: 0 | R61: 0 | S61: 1.56 | T61: 1.75 | U61: 1.125 | V61: 0 | W61: 0 | X61: 0 | Y61: 0 | Z61: 0 | AA61: 6.73 | AB61: 0 | AC61: 51.7 | AD61: 0 | AE61: 0 | AF61: 24.1 | AG61: 1660 | AH61: 25100 | AI61: 6710 | AJ61: 467 | AK61: 406 | AL61: 13.2 | AM61: 218 | AN61: 59.5 | AO61: 37.9 | AP61: 2.39 | AQ61: 0 | AR61: 7.37 | AS61: 56600 | AT61: 0 | AU61: 92.8 | AV61: 228 | AW61: 75.3 | AX61: 230 | AY61: 0 | AZ61: 0 | BA61: 0 | BB61: 0 | BC61: 32.245 | BD61: 59
A62: W | B62: W33X118 | C62: W33X118 | D62: W33x118 | E62: F | F62: 118 | G62: 34.7 | H62: 32.9 | I62: 0 | J62: 0 | K62: 11.5 | L62: 0 | M62: 0 | N62: 0.55 | O62: 0.74 | P62: 0 | Q62: 0 | R62: 0 | S62: 1.44 | T62: 1.625 | U62: 1.125 | V62: 0 | W62: 0 | X62: 0 | Y62: 0 | Z62: 0 | AA62: 7.76 | AB62: 0 | AC62: 54.5 | AD62: 0 | AE62: 0 | AF62: 21.7 | AG62: 1510 | AH62: 37700 | AI62: 5900 | AJ62: 415 | AK62: 359 | AL62: 13 | AM62: 187 | AN62: 51.3 | AO62: 32.6 | AP62: 2.32 | AQ62: 0 | AR62: 5.3 | AS62: 48200 | AT62: 0 | AU62: 92.2 | AV62: 196 | AW62: 64.9 | AX62: 204 | AY62: 0 | AZ62: 0 | BA62: 0 | BB62: 0 | BC62: 32.16 | BD62: 60
A63: W | B63: W30X391 | C63: W30X391 | D63: W30x391 | E63: T | F63: 391 | G63: 115 | H63: 33.2 | I63: 0 | J63: 0 | K63: 15.6 | L63: 0 | M63: 0 | N63: 1.36 | O63: 2.44 | P63: 0 | Q63: 0 | R63: 0 | S63: 3.23 | T63: 3.375 | U63: 1.5 | V63: 0 | W63: 0 | X63: 0 | Y63: 0 | Z63: 0 | AA63: 3.19 | AB63: 0 | AC63: 19.7 | AD63: 0 | AE63: 0 | AF63: 0 | AG63: 4520 | AH63: 394 | AI63: 20700 | AJ63: 1450 | AK63: 1250 | AL63: 13.4 | AM63: 1550 | AN63: 310 | AO63: 198 | AP63: 3.67 | AQ63: 0 | AR63: 173 | AS63: 366000 | AT63: 0 | AU63: 120 | AV63: 1140 | AW63: 267 | AX63: 721 | AY63: 0 | AZ63: 0 | BA63: 0 | BB63: 0 | BC63: 30.76 | BD63: 61
A64: W | B64: W30X357 | C64: W30X357 | D64: W30x357 | E64: T | F64: 357 | G64: 105 | H64: 32.8 | I64: 0 | J64: 0 | K64: 15.5 | L64: 0 | M64: 0 | N64: 1.24 | O64: 2.24 | P64: 0 | Q64: 0 | R64: 0 | S64: 3.03 | T64: 3.125 | U64: 1.4375 | V64: 0 | W64: 0 | X64: 0 | Y64: 0 | Z64: 0 | AA64: 3.45 | AB64: 0 | AC64: 21.6 | AD64: 0 | AE64: 0 | AF64: 0 | AG64: 4170 | AH64: 539 | AI64: 18700 | AJ64: 1320 | AK64: 1140 | AL64: 13.3 | AM64: 1390 | AN64: 279 | AO64: 179 | AP64: 3.64 | AQ64: 0 | AR64: 134 | AS64: 325000 | AT64: 0 | AU64: 118 | AV64: 1020 | AW64: 244 | AX64: 654 | AY64: 0 | AZ64: 0 | BA64: 0 | BB64: 0 | BC64: 30.56 | BD64: 62
A65: W | B65: W30X326 | C65: W30X326 | D65: W30x326 | E65: T | F65: 326 | G65: 95.8 | H65: 32.4 | I65: 0 | J65: 0 | K65: 15.4 | L65: 0 | M65: 0 | N65: 1.14 | O65: 2.05 | P65: 0 | Q65: 0 | R65: 0 | S65: 2.84 | T65: 2.9375 | U65: 1.375 | V65: 0 | W65: 0 | X65: 0 | Y65: 0 | Z65: 0 | AA65: 3.75 | AB65: 0 | AC65: 23.4 | AD65: 0 | AE65: 0 | AF65: 0 | AG65: 3820 | AH65: 749 | AI65: 16800 | AJ65: 1190 | AK65: 1040 | AL65: 13.2 | AM65: 1240 | AN65: 252 | AO65: 162 | AP65: 3.6 | AQ65: 0 | AR65: 103 | AS65: 286000 | AT65: 0 | AU65: 117 | AV65: 919 | AW65: 221 | AX65: 592 | AY65: 0 | AZ65: 0 | BA65: 0 | BB65: 0 | BC65: 30.35 | BD65: 63
A66: W | B66: W30X292 | C66: W30X292 | D66: W30x292 | E66: T | F66: 292 | G66: 85.9 | H66: 32 | I66: 0 | J66: 0 | K66: 15.3 | L66: 0 | M66: 0 | N66: 1.02 | O66: 1.85 | P66: 0 | Q66: 0 | R66: 0 | S66: 2.64 | T66: 2.75 | U66: 1.3125 | V66: 0 | W66: 0 | X66: 0 | Y66: 0 | Z66: 0 | AA66: 4.12 | AB66: 0 | AC66: 26.2 | AD66: 0 | AE66: 0 | AF66: 0 | AG66: 3460 | AH66: 1110 | AI66: 14900 | AJ66: 1060 | AK66: 930 | AL66: 13.2 | AM66: 1100 | AN66: 223 | AO66: 144 | AP66: 3.58 | AQ66: 0 | AR66: 75.2 | AS66: 250000 | AT66: 0 | AU66: 115 | AV66: 812 | AW66: 199 | AX66: 528 | AY66: 0 | AZ66: 0 | BA66: 0 | BB66: 0 | BC66: 30.15 | BD66: 64
A67: W | B67: W30X261 | C67: W30X261 | D67: W30x261 | E67: F | F67: 261 | G67: 76.9 | H67: 31.6 | I67: 0 | J67: 0 | K67: 15.2 | L67: 0 | M67: 0 | N67: 0.93 | O67: 1.65 | P67: 0 | Q67: 0 | R67: 0 | S67: 2.44 | T67: 2.5625 | U67: 1.3125 | V67: 0 | W67: 0 | X67: 0 | Y67: 0 | Z67: 0 | AA67: 4.59 | AB67: 0 | AC67: 28.7 | AD67: 0 | AE67: 0 | AF67: 0 | AG67: 3110 | AH67: 1680 | AI67: 13100 | AJ67: 943 | AK67: 829 | AL67: 13.1 | AM67: 959 | AN67: 196 | AO67: 127 | AP67: 3.53 | AQ67: 0 | AR67: 54.1 | AS67: 215000 | AT67: 0 | AU67: 114 | AV67: 710 | AW67: 176 | AX67: 468 | AY67: 0 | AZ67: 0 | BA67: 0 | BB67: 0 | BC67: =H67-O67 -> 29.95 | BD67: 65
A68: W | B68: W30X235 | C68: W30X235 | D68: W30x235 | E68: F | F68: 235 | G68: 69.2 | H68: 31.3 | I68: 0 | J68: 0 | K68: 15.1 | L68: 0 | M68: 0 | N68: 0.83 | O68: 1.5 | P68: 0 | Q68: 0 | R68: 0 | S68: 2.29 | T68: 2.375 | U68: 1.25 | V68: 0 | W68: 0 | X68: 0 | Y68: 0 | Z68: 0 | AA68: 5.02 | AB68: 0 | AC68: 32.2 | AD68: 0 | AE68: 0 | AF68: 62.1 | AG68: 2830 | AH68: 2440 | AI68: 11700 | AJ68: 847 | AK68: 748 | AL68: 13 | AM68: 855 | AN68: 175 | AO68: 114 | AP68: 3.51 | AQ68: 0 | AR68: 40.3 | AS68: 190000 | AT68: 0 | AU68: 112 | AV68: 633 | AW68: 159 | AX68: 420 | AY68: 0 | AZ68: 0 | BA68: 0 | BB68: 0 | BC68: 29.8 | BD68: 66
A69: W | B69: W30X211 | C69: W30X211 | D69: W30x211 | E69: F | F69: 211 | G69: 62.2 | H69: 30.9 | I69: 0 | J69: 0 | K69: 15.1 | L69: 0 | M69: 0 | N69: 0.775 | O69: 1.32 | P69: 0 | Q69: 0 | R69: 0 | S69: 2.1 | T69: 2.25 | U69: 1.1875 | V69: 0 | W69: 0 | X69: 0 | Y69: 0 | Z69: 0 | AA69: 5.74 | AB69: 0 | AC69: 34.5 | AD69: 0 | AE69: 0 | AF69: 54.1 | AG69: 2530 | AH69: 3840 | AI69: 10300 | AJ69: 751 | AK69: 665 | AL69: 12.9 | AM69: 757 | AN69: 155 | AO69: 100 | AP69: 3.49 | AQ69: 0 | AR69: 28.4 | AS69: 166000 | AT69: 0 | AU69: 112 | AV69: 556 | AW69: 140 | AX69: 372 | AY69: 0 | AZ69: 0 | BA69: 0 | BB69: 0 | BC69: 29.58 | BD69: 67
A70: W | B70: W30X191 | C70: W30X191 | D70: W30x191 | E70: F | F70: 191 | G70: 56.3 | H70: 30.7 | I70: 0 | J70: 0 | K70: 15 | L70: 0 | M70: 0 | N70: 0.71 | O70: 1.19 | P70: 0 | Q70: 0 | R70: 0 | S70: 1.97 | T70: 2.0625 | U70: 1.1875 | V70: 0 | W70: 0 | X70: 0 | Y70: 0 | Z70: 0 | AA70: 6.35 | AB70: 0 | AC70: 37.7 | AD70: 0 | AE70: 0 | AF70: 45.4 | AG70: 2290 | AH70: 5660 | AI70: 9200 | AJ70: 675 | AK70: 600 | AL70: 12.8 | AM70: 673 | AN70: 138 | AO70: 89.5 | AP70: 3.46 | AQ70: 0 | AR70: 21 | AS70: 146000 | AT70: 0 | AU70: 111 | AV70: 494 | AW70: 125 | AX70: 334 | AY70: 0 | AZ70: 0 | BA70: 0 | BB70: 0 | BC70: 29.51 | BD70: 68
A71: W | B71: W30X173 | C71: W30X173 | D71: W30x173 | E71: F | F71: 173 | G71: 51 | H71: 30.4 | I71: 0 | J71: 0 | K71: 15 | L71: 0 | M71: 0 | N71: 0.655 | O71: 1.07 | P71: 0 | Q71: 0 | R71: 0 | S71: 1.85 | T71: 2 | U71: 1.125 | V71: 0 | W71: 0 | X71: 0 | Y71: 0 | Z71: 0 | AA71: 7.04 | AB71: 0 | AC71: 40.8 | AD71: 0 | AE71: 0 | AF71: 38.6 | AG71: 2090 | AH71: 8270 | AI71: 8230 | AJ71: 607 | AK71: 541 | AL71: 12.7 | AM71: 598 | AN71: 123 | AO71: 79.8 | AP71: 3.42 | AQ71: 0 | AR71: 15.6 | AS71: 129000 | AT71: 0 | AU71: 110 | AV71: 439 | AW71: 112 | AX71: 300 | AY71: 0 | AZ71: 0 | BA71: 0 | BB71: 0 | BC71: 29.33 | BD71: 69
A72: W | B72: W30X148 | C72: W30X148 | D72: W30x148 | E72: F | F72: 148 | G72: 43.5 | H72: 30.7 | I72: 0 | J72: 0 | K72: 10.5 | L72: 0 | M72: 0 | N72: 0.65 | O72: 1.18 | P72: 0 | Q72: 0 | R72: 0 | S72: 1.83 | T72: 2.0625 | U72: 1.125 | V72: 0 | W72: 0 | X72: 0 | Y72: 0 | Z72: 0 | AA72: 4.44 | AB72: 0 | AC72: 41.6 | AD72: 0 | AE72: 0 | AF72: 37.3 | AG72: 2310 | AH72: 6270 | AI72: 6680 | AJ72: 500 | AK72: 436 | AL72: 12.4 | AM72: 227 | AN72: 68 | AO72: 43.3 | AP72: 2.28 | AQ72: 0 | AR72: 14.5 | AS72: 49400 | AT72: 0 | AU72: 77.3 | AV72: 239 | AW72: 85.5 | AX72: 247 | AY72: 0 | AZ72: 0 | BA72: 0 | BB72: 0 | BC72: 29.52 | BD72: 70
A73: W | B73: W30X132 | C73: W30X132 | D73: W30x132 | E73: F | F73: 132 | G73: 38.9 | H73: 30.3 | I73: 0 | J73: 0 | K73: 10.5 | L73: 0 | M73: 0 | N73: 0.615 | O73: 1 | P73: 0 | Q73: 0 | R73: 0 | S73: 1.65 | T73: 1.875 | U73: 1.125 | V73: 0 | W73: 0 | X73: 0 | Y73: 0 | Z73: 0 | AA73: 5.27 | AB73: 0 | AC73: 43.9 | AD73: 0 | AE73: 0 | AF73: 33.4 | AG73: 2050 | AH73: 10500 | AI73: 5770 | AJ73: 437 | AK73: 380 | AL73: 12.2 | AM73: 196 | AN73: 58.4 | AO73: 37.2 | AP73: 2.25 | AQ73: 0 | AR73: 9.72 | AS73: 42100 | AT73: 0 | AU73: 77.3 | AV73: 204 | AW73: 72.8 | AX73: 216 | AY73: 0 | AZ73: 0 | BA73: 0 | BB73: 0 | BC73: 29.3 | BD73: 71
A74: W | B74: W30X124 | C74: W30X124 | D74: W30x124 | E74: F | F74: 124 | G74: 36.5 | H74: 30.2 | I74: 0 | J74: 0 | K74: 10.5 | L74: 0 | M74: 0 | N74: 0.585 | O74: 0.93 | P74: 0 | Q74: 0 | R74: 0 | S74: 1.58 | T74: 1.8125 | U74: 1.125 | V74: 0 | W74: 0 | X74: 0 | Y74: 0 | Z74: 0 | AA74: 5.65 | AB74: 0 | AC74: 46.2 | AD74: 0 | AE74: 0 | AF74: 30.2 | AG74: 1930 | AH74: 13500 | AI74: 5360 | AJ74: 408 | AK74: 355 | AL74: 12.1 | AM74: 181 | AN74: 54 | AO74: 34.4 | AP74: 2.23 | AQ74: 0 | AR74: 7.99 | AS74: 38700 | AT74: 0 | AU74: 76.9 | AV74: 188 | AW74: 67.5 | AX74: 202 | AY74: 0 | AZ74: 0 | BA74: 0 | BB74: 0 | BC74: 29.27 | BD74: 72
A75: W | B75: W30X116 | C75: W30X116 | D75: W30x116 | E75: F | F75: 116 | G75: 34.2 | H75: 30 | I75: 0 | J75: 0 | K75: 10.5 | L75: 0 | M75: 0 | N75: 0.565 | O75: 0.85 | P75: 0 | Q75: 0 | R75: 0 | S75: 1.5 | T75: 1.75 | U75: 1.125 | V75: 0 | W75: 0 | X75: 0 | Y75: 0 | Z75: 0 | AA75: 6.17 | AB75: 0 | AC75: 47.8 | AD75: 0 | AE75: 0 | AF75: 28.2 | AG75: 1800 | AH75: 17700 | AI75: 4930 | AJ75: 378 | AK75: 329 | AL75: 12 | AM75: 164 | AN75: 49.2 | AO75: 31.3 | AP75: 2.19 | AQ75: 0 | AR75: 6.43 | AS75: 34900 | AT75: 0 | AU75: 76.5 | AV75: 171 | AW75: 61.5 | AX75: 187 | AY75: 0 | AZ75: 0 | BA75: 0 | BB75: 0 | BC75: 29.15 | BD75: 73
A76: W | B76: W30X108 | C76: W30X108 | D76: W30x108 | E76: F | F76: 108 | G76: 31.7 | H76: 29.8 | I76: 0 | J76: 0 | K76: 10.5 | L76: 0 | M76: 0 | N76: 0.545 | O76: 0.76 | P76: 0 | Q76: 0 | R76: 0 | S76: 1.41 | T76: 1.6875 | U76: 1.125 | V76: 0 | W76: 0 | X76: 0 | Y76: 0 | Z76: 0 | AA76: 6.89 | AB76: 0 | AC76: 49.6 | AD76: 0 | AE76: 0 | AF76: 26.2 | AG76: 1680 | AH76: 24200 | AI76: 4470 | AJ76: 346 | AK76: 299 | AL76: 11.9 | AM76: 146 | AN76: 43.9 | AO76: 27.9 | AP76: 2.15 | AQ76: 0 | AR76: 4.99 | AS76: 30800 | AT76: 0 | AU76: 76.1 | AV76: 152 | AW76: 54.8 | AX76: 170 | AY76: 0 | AZ76: 0 | BA76: 0 | BB76: 0 | BC76: 29.04 | BD76: 74
A77: W | B77: W30X99 | C77: W30X99 | D77: W30x99 | E77: F | F77: 99 | G77: 29.1 | H77: 29.7 | I77: 0 | J77: 0 | K77: 10.5 | L77: 0 | M77: 0 | N77: 0.52 | O77: 0.67 | P77: 0 | Q77: 0 | R77: 0 | S77: 1.32 | T77: 1.5625 | U77: 1.0625 | V77: 0 | W77: 0 | X77: 0 | Y77: 0 | Z77: 0 | AA77: 7.8 | AB77: 0 | AC77: 51.9 | AD77: 0 | AE77: 0 | AF77: 23.9 | AG77: 1560 | AH77: 34100 | AI77: 3990 | AJ77: 312 | AK77: 269 | AL77: 11.7 | AM77: 128 | AN77: 38.6 | AO77: 24.5 | AP77: 2.1 | AQ77: 0 | AR77: 3.77 | AS77: 26900 | AT77: 0 | AU77: 75.7 | AV77: 133 | AW77: 48.2 | AX77: 154 | AY77: 0 | AZ77: 0 | BA77: 0 | BB77: 0 | BC77: 29.03 | BD77: 75
A78: W | B78: W30X90 | C78: W30X90 | D78: W30x90 | E78: F | F78: 90 | G78: 26.4 | H78: 29.5 | I78: 0 | J78: 0 | K78: 10.4 | L78: 0 | M78: 0 | N78: 0.47 | O78: 0.61 | P78: 0 | Q78: 0 | R78: 0 | S78: 1.26 | T78: 1.5 | U78: 1.0625 | V78: 0 | W78: 0 | X78: 0 | Y78: 0 | Z78: 0 | AA78: 8.52 | AB78: 0 | AC78: 57.5 | AD78: 0 | AE78: 0 | AF78: 19.5 | AG78: 1410 | AH78: 49600 | AI78: 3610 | AJ78: 283 | AK78: 245 | AL78: 11.7 | AM78: 115 | AN78: 34.7 | AO78: 22.1 | AP78: 2.09 | AQ78: 0 | AR78: 2.84 | AS78: 24000 | AT78: 0 | AU78: 75.2 | AV78: 119 | AW78: 43.8 | AX78: 139 | AY78: 0 | AZ78: 0 | BA78: 0 | BB78: 0 | BC78: 28.89 | BD78: 76
A79: W | B79: W27X539 | C79: W27X539 | D79: W27x539 | E79: T | F79: 539 | G79: 159 | H79: 32.5 | I79: 0 | J79: 0 | K79: 15.3 | L79: 0 | M79: 0 | N79: 1.97 | O79: 3.54 | P79: 0 | Q79: 0 | R79: 0 | S79: 4.33 | T79: 4.4375 | U79: 1.8125 | V79: 0 | W79: 0 | X79: 0 | Y79: 0 | Z79: 0 | AA79: 2.15 | AB79: 0 | AC79: 12.1 | AD79: 0 | AE79: 0 | AF79: 0 | AG79: 7160 | AH79: 67.1 | AI79: 25600 | AJ79: 1890 | AK79: 1570 | AL79: 12.7 | AM79: 2110 | AN79: 437 | AO79: 277 | AP79: 3.65 | AQ79: 0 | AR79: 496 | AS79: 443000 | AT79: 0 | AU79: 111 | AV79: 1490 | AW79: 341 | AX79: 942 | AY79: 0 | AZ79: 0 | BA79: 0 | BB79: 0 | BC79: 28.96 | BD79: 77
A80: W | B80: W27X368 | C80: W27X368 | D80: W27x368 | E80: T | F80: 368 | G80: 108 | H80: 30.4 | I80: 0 | J80: 0 | K80: 14.7 | L80: 0 | M80: 0 | N80: 1.38 | O80: 2.48 | P80: 0 | Q80: 0 | R80: 0 | S80: 3.27 | T80: 3.375 | U80: 1.5 | V80: 0 | W80: 0 | X80: 0 | Y80: 0 | Z80: 0 | AA80: 2.96 | AB80: 0 | AC80: 17.3 | AD80: 0 | AE80: 0 | AF80: 0 | AG80: 5120 | AH80: 241 | AI80: 16200 | AJ80: 1240 | AK80: 1060 | AL80: 12.2 | AM80: 1310 | AN80: 279 | AO80: 179 | AP80: 3.48 | AQ80: 0 | AR80: 170 | AS80: 255000 | AT80: 0 | AU80: 102 | AV80: 930 | AW80: 230 | AX80: 619 | AY80: 0 | AZ80: 0 | BA80: 0 | BB80: 0 | BC80: 27.92 | BD80: 78
A81: W | B81: W27X336 | C81: W27X336 | D81: W27x336 | E81: T | F81: 336 | G81: 98.9 | H81: 30 | I81: 0 | J81: 0 | K81: 14.6 | L81: 0 | M81: 0 | N81: 1.26 | O81: 2.28 | P81: 0 | Q81: 0 | R81: 0 | S81: 3.07 | T81: 3.1875 | U81: 1.4375 | V81: 0 | W81: 0 | X81: 0 | Y81: 0 | Z81: 0 | AA81: 3.19 | AB81: 0 | AC81: 18.9 | AD81: 0 | AE81: 0 | AF81: 0 | AG81: 4690 | AH81: 337 | AI81: 14600 | AJ81: 1130 | AK81: 972 | AL81: 12.1 | AM81: 1180 | AN81: 252 | AO81: 162 | AP81: 3.45 | AQ81: 0 | AR81: 131 | AS81: 227000 | AT81: 0 | AU81: 101 | AV81: 836 | AW81: 210 | AX81: 562 | AY81: 0 | AZ81: 0 | BA81: 0 | BB81: 0 | BC81: 27.72 | BD81: 79
A82: W | B82: W27X307 | C82: W27X307 | D82: W27x307 | E82: T | F82: 307 | G82: 90.4 | H82: 29.6 | I82: 0 | J82: 0 | K82: 14.4 | L82: 0 | M82: 0 | N82: 1.16 | O82: 2.09 | P82: 0 | Q82: 0 | R82: 0 | S82: 2.88 | T82: 3 | U82: 1.4375 | V82: 0 | W82: 0 | X82: 0 | Y82: 0 | Z82: 0 | AA82: 3.46 | AB82: 0 | AC82: 20.6 | AD82: 0 | AE82: 0 | AF82: 0 | AG82: 4310 | AH82: 466 | AI82: 13100 | AJ82: 1030 | AK82: 887 | AL82: 12 | AM82: 1050 | AN82: 227 | AO82: 146 | AP82: 3.41 | AQ82: 0 | AR82: 101 | AS82: 199000 | AT82: 0 | AU82: 99.4 | AV82: 750 | AW82: 191 | AX82: 509 | AY82: 0 | AZ82: 0 | BA82: 0 | BB82: 0 | BC82: 27.51 | BD82: 80
A83: W | B83: W27X281 | C83: W27X281 | D83: W27x281 | E83: T | F83: 281 | G83: 82.9 | H83: 29.3 | I83: 0 | J83: 0 | K83: 14.4 | L83: 0 | M83: 0 | N83: 1.06 | O83: 1.93 | P83: 0 | Q83: 0 | R83: 0 | S83: 2.72 | T83: 2.8125 | U83: 1.375 | V83: 0 | W83: 0 | X83: 0 | Y83: 0 | Z83: 0 | AA83: 3.72 | AB83: 0 | AC83: 22.5 | AD83: 0 | AE83: 0 | AF83: 0 | AG83: 3990 | AH83: 626 | AI83: 11900 | AJ83: 936 | AK83: 814 | AL83: 12 | AM83: 953 | AN83: 206 | AO83: 133 | AP83: 3.39 | AQ83: 0 | AR83: 79.5 | AS83: 178000 | AT83: 0 | AU83: 98.2 | AV83: 680 | AW83: 175 | AX83: 465 | AY83: 0 | AZ83: 0 | BA83: 0 | BB83: 0 | BC83: 27.37 | BD83: 81
A84: W | B84: W27X258 | C84: W27X258 | D84: W27x258 | E84: F | F84: 258 | G84: 76 | H84: 29 | I84: 0 | J84: 0 | K84: 14.3 | L84: 0 | M84: 0 | N84: 0.98 | O84: 1.77 | P84: 0 | Q84: 0 | R84: 0 | S84: 2.56 | T84: 2.6875 | U84: 1.3125 | V84: 0 | W84: 0 | X84: 0 | Y84: 0 | Z84: 0 | AA84: 4.03 | AB84: 0 | AC84: 24.4 | AD84: 0 | AE84: 0 | AF84: 0 | AG84: 3680 | AH84: 863 | AI84: 10800 | AJ84: 852 | AK84: 745 | AL84: 11.9 | AM84: 859 | AN84: 187 | AO84: 120 | AP84: 3.36 | AQ84: 0 | AR84: 61.6 | AS84: 159000 | AT84: 0 | AU84: 97.1 | AV84: 613 | AW84: 160 | AX84: 423 | AY84: 0 | AZ84: 0 | BA84: 0 | BB84: 0 | BC84: 27.23 | BD84: 82
A85: W | B85: W27X235 | C85: W27X235 | D85: W27x235 | E85: F | F85: 235 | G85: 69.4 | H85: 28.7 | I85: 0 | J85: 0 | K85: 14.2 | L85: 0 | M85: 0 | N85: 0.91 | O85: 1.61 | P85: 0 | Q85: 0 | R85: 0 | S85: 2.4 | T85: 2.5 | U85: 1.3125 | V85: 0 | W85: 0 | X85: 0 | Y85: 0 | Z85: 0 | AA85: 4.41 | AB85: 0 | AC85: 26.2 | AD85: 0 | AE85: 0 | AF85: 0 | AG85: 3380 | AH85: 1210 | AI85: 9700 | AJ85: 772 | AK85: 677 | AL85: 11.8 | AM85: 769 | AN85: 168 | AO85: 108 | AP85: 3.33 | AQ85: 0 | AR85: 47 | AS85: 141000 | AT85: 0 | AU85: 96 | AV85: 548 | AW85: 145 | AX85: 383 | AY85: 0 | AZ85: 0 | BA85: 0 | BB85: 0 | BC85: 27.09 | BD85: 83
A86: W | B86: W27X217 | C86: W27X217 | D86: W27x217 | E86: F | F86: 217 | G86: 64 | H86: 28.4 | I86: 0 | J86: 0 | K86: 14.1 | L86: 0 | M86: 0 | N86: 0.83 | O86: 1.5 | P86: 0 | Q86: 0 | R86: 0 | S86: 2.29 | T86: 2.375 | U86: 1.25 | V86: 0 | W86: 0 | X86: 0 | Y86: 0 | Z86: 0 | AA86: 4.71 | AB86: 0 | AC86: 28.7 | AD86: 0 | AE86: 0 | AF86: 0 | AG86: 3130 | AH86: 1610 | AI86: 8910 | AJ86: 711 | AK86: 627 | AL86: 11.8 | AM86: 704 | AN86: 154 | AO86: 99.8 | AP86: 3.32 | AQ86: 0 | AR86: 37.6 | AS86: 128000 | AT86: 0 | AU86: 95 | AV86: 503 | AW86: 134 | AX86: 352 | AY86: 0 | AZ86: 0 | BA86: 0 | BB86: 0 | BC86: 26.9 | BD86: 84
A87: W | B87: W27X194 | C87: W27X194 | D87: W27x194 | E87: F | F87: 194 | G87: 57.2 | H87: 28.1 | I87: 0 | J87: 0 | K87: 14 | L87: 0 | M87: 0 | N87: 0.75 | O87: 1.34 | P87: 0 | Q87: 0 | R87: 0 | S87: 2.13 | T87: 2.25 | U87: 1.1875 | V87: 0 | W87: 0 | X87: 0 | Y87: 0 | Z87: 0 | AA87: 5.24 | AB87: 0 | AC87: 31.8 | AD87: 0 | AE87: 0 | AF87: 63.6 | AG87: 2820 | AH87: 2430 | AI87: 7860 | AJ87: 631 | AK87: 559 | AL87: 11.7 | AM87: 619 | AN87: 136 | AO87: 88.1 | AP87: 3.29 | AQ87: 0 | AR87: 27.1 | AS87: 111000 | AT87: 0 | AU87: 93.9 | AV87: 442 | AW87: 119 | AX87: 312 | AY87: 0 | AZ87: 0 | BA87: 0 | BB87: 0 | BC87: 26.76 | BD87: 85
A88: W | B88: W27X178 | C88: W27X178 | D88: W27x178 | E88: F | F88: 178 | G88: 52.5 | H88: 27.8 | I88: 0 | J88: 0 | K88: 14.1 | L88: 0 | M88: 0 | N88: 0.725 | O88: 1.19 | P88: 0 | Q88: 0 | R88: 0 | S88: 1.98 | T88: 2.0625 | U88: 1.1875 | V88: 0 | W88: 0 | X88: 0 | Y88: 0 | Z88: 0 | AA88: 5.92 | AB88: 0 | AC88: 32.9 | AD88: 0 | AE88: 0 | AF88: 59.5 | AG88: 2580 | AH88: 3570 | AI88: 7020 | AJ88: 570 | AK88: 505 | AL88: 11.6 | AM88: 555 | AN88: 122 | AO88: 78.8 | AP88: 3.25 | AQ88: 0 | AR88: 20.1 | AS88: 98300 | AT88: 0 | AU88: 93.7 | AV88: 393 | AW88: 106 | AX88: 282 | AY88: 0 | AZ88: 0 | BA88: 0 | BB88: 0 | BC88: 26.61 | BD88: 86
A89: W | B89: W27X161 | C89: W27X161 | D89: W27x161 | E89: F | F89: 161 | G89: 47.6 | H89: 27.6 | I89: 0 | J89: 0 | K89: 14 | L89: 0 | M89: 0 | N89: 0.66 | O89: 1.08 | P89: 0 | Q89: 0 | R89: 0 | S89: 1.87 | T89: 2 | U89: 1.1875 | V89: 0 | W89: 0 | X89: 0 | Y89: 0 | Z89: 0 | AA89: 6.49 | AB89: 0 | AC89: 36.1 | AD89: 0 | AE89: 0 | AF89: 49.3 | AG89: 2340 | AH89: 5150 | AI89: 6310 | AJ89: 515 | AK89: 458 | AL89: 11.5 | AM89: 497 | AN89: 109 | AO89: 70.9 | AP89: 3.23 | AQ89: 0 | AR89: 15.1 | AS89: 87300 | AT89: 0 | AU89: 92.9 | AV89: 352 | AW89: 95.6 | AX89: 254 | AY89: 0 | AZ89: 0 | BA89: 0 | BB89: 0 | BC89: 26.52 | BD89: 87
A90: W | B90: W27X146 | C90: W27X146 | D90: W27x146 | E90: F | F90: 146 | G90: 43.1 | H90: 27.4 | I90: 0 | J90: 0 | K90: 14 | L90: 0 | M90: 0 | N90: 0.605 | O90: 0.975 | P90: 0 | Q90: 0 | R90: 0 | S90: 1.76 | T90: 1.875 | U90: 1.125 | V90: 0 | W90: 0 | X90: 0 | Y90: 0 | Z90: 0 | AA90: 7.16 | AB90: 0 | AC90: 39.4 | AD90: 0 | AE90: 0 | AF90: 41.4 | AG90: 2130 | AH90: 7460 | AI90: 5660 | AJ90: 464 | AK90: 414 | AL90: 11.5 | AM90: 443 | AN90: 97.7 | AO90: 63.5 | AP90: 3.2 | AQ90: 0 | AR90: 11.3 | AS90: 77200 | AT90: 0 | AU90: 92.2 | AV90: 314 | AW90: 86 | AX90: 229 | AY90: 0 | AZ90: 0 | BA90: 0 | BB90: 0 | BC90: 26.425 | BD90: 88
A91: W | B91: W27X129 | C91: W27X129 | D91: W27x129 | E91: F | F91: 129 | G91: 37.8 | H91: 27.6 | I91: 0 | J91: 0 | K91: 10 | L91: 0 | M91: 0 | N91: 0.61 | O91: 1.1 | P91: 0 | Q91: 0 | R91: 0 | S91: 1.7 | T91: 2 | U91: 1.125 | V91: 0 | W91: 0 | X91: 0 | Y91: 0 | Z91: 0 | AA91: 4.55 | AB91: 0 | AC91: 39.7 | AD91: 0 | AE91: 0 | AF91: 40.8 | AG91: 2380 | AH91: 5420 | AI91: 4760 | AJ91: 395 | AK91: 345 | AL91: 11.2 | AM91: 184 | AN91: 57.6 | AO91: 36.8 | AP91: 2.21 | AQ91: 0 | AR91: 11.1 | AS91: 32400 | AT91: 0 | AU91: 66.4 | AV91: 183 | AW91: 68.6 | AX91: 195 | AY91: 0 | AZ91: 0 | BA91: 0 | BB91: 0 | BC91: 26.5 | BD91: 89
A92: W | B92: W27X114 | C92: W27X114 | D92: W27x114 | E92: F | F92: 114 | G92: 33.5 | H92: 27.3 | I92: 0 | J92: 0 | K92: 10.1 | L92: 0 | M92: 0 | N92: 0.57 | O92: 0.93 | P92: 0 | Q92: 0 | R92: 0 | S92: 1.53 | T92: 1.8125 | U92: 1.125 | V92: 0 | W92: 0 | X92: 0 | Y92: 0 | Z92: 0 | AA92: 5.41 | AB92: 0 | AC92: 42.5 | AD92: 0 | AE92: 0 | AF92: 35.6 | AG92: 2100 | AH92: 9220 | AI92: 4080 | AJ92: 343 | AK92: 299 | AL92: 11 | AM92: 159 | AN92: 49.3 | AO92: 31.5 | AP92: 2.18 | AQ92: 0 | AR92: 7.33 | AS92: 27600 | AT92: 0 | AU92: 66.4 | AV92: 155 | AW92: 58.2 | AX92: 170 | AY92: 0 | AZ92: 0 | BA92: 0 | BB92: 0 | BC92: 26.37 | BD92: 90
A93: W | B93: W27X102 | C93: W27X102 | D93: W27x102 | E93: F | F93: 102 | G93: 30 | H93: 27.1 | I93: 0 | J93: 0 | K93: 10 | L93: 0 | M93: 0 | N93: 0.515 | O93: 0.83 | P93: 0 | Q93: 0 | R93: 0 | S93: 1.43 | T93: 1.75 | U93: 1.0625 | V93: 0 | W93: 0 | X93: 0 | Y93: 0 | Z93: 0 | AA93: 6.03 | AB93: 0 | AC93: 47.1 | AD93: 0 | AE93: 0 | AF93: 29.1 | AG93: 1890 | AH93: 14100 | AI93: 3620 | AJ93: 305 | AK93: 267 | AL93: 11 | AM93: 139 | AN93: 43.4 | AO93: 27.8 | AP93: 2.15 | AQ93: 0 | AR93: 5.28 | AS93: 24000 | AT93: 0 | AU93: 65.7 | AV93: 137 | AW93: 51.8 | AX93: 151 | AY93: 0 | AZ93: 0 | BA93: 0 | BB93: 0 | BC93: 26.27 | BD93: 91
A94: W | B94: W27X94 | C94: W27X94 | D94: W27x94 | E94: F | F94: 94 | G94: 27.7 | H94: 26.9 | I94: 0 | J94: 0 | K94: 9.99 | L94: 0 | M94: 0 | N94: 0.49 | O94: 0.745 | P94: 0 | Q94: 0 | R94: 0 | S94: 1.34 | T94: 1.625 | U94: 1.0625 | V94: 0 | W94: 0 | X94: 0 | Y94: 0 | Z94: 0 | AA94: 6.7 | AB94: 0 | AC94: 49.5 | AD94: 0 | AE94: 0 | AF94: 26.3 | AG94: 1740 | AH94: 19900 | AI94: 3270 | AJ94: 278 | AK94: 243 | AL94: 10.9 | AM94: 124 | AN94: 38.8 | AO94: 24.8 | AP94: 2.12 | AQ94: 0 | AR94: 4.03 | AS94: 21200 | AT94: 0 | AU94: 65.4 | AV94: 122 | AW94: 46.3 | AX94: 137 | AY94: 0 | AZ94: 0 | BA94: 0 | BB94: 0 | BC94: 26.155 | BD94: 92
A95: W | B95: W27X84 | C95: W27X84 | D95: W27x84 | E95: F | F95: 84 | G95: 24.8 | H95: 26.7 | I95: 0 | J95: 0 | K95: 9.96 | L95: 0 | M95: 0 | N95: 0.46 | O95: 0.64 | P95: 0 | Q95: 0 | R95: 0 | S95: 1.24 | T95: 1.5625 | U95: 1.0625 | V95: 0 | W95: 0 | X95: 0 | Y95: 0 | Z95: 0 | AA95: 7.78 | AB95: 0 | AC95: 52.7 | AD95: 0 | AE95: 0 | AF95: 23.2 | AG95: 1570 | AH95: 31100 | AI95: 2850 | AJ95: 244 | AK95: 213 | AL95: 10.7 | AM95: 106 | AN95: 33.2 | AO95: 21.2 | AP95: 2.07 | AQ95: 0 | AR95: 2.81 | AS95: 18000 | AT95: 0 | AU95: 64.9 | AV95: 103 | AW95: 39.6 | AX95: 120 | AY95: 0 | AZ95: 0 | BA95: 0 | BB95: 0 | BC95: 26.06 | BD95: 93
A96: W | B96: W24X370 | C96: W24X370 | D96: W24x370 | E96: T | F96: 370 | G96: 109 | H96: 28 | I96: 0 | J96: 0 | K96: 13.7 | L96: 0 | M96: 0 | N96: 1.52 | O96: 2.72 | P96: 0 | Q96: 0 | R96: 0 | S96: 3.22 | T96: 3.625 | U96: 1.5625 | V96: 0 | W96: 0 | X96: 0 | Y96: 0 | Z96: 0 | AA96: 2.51 | AB96: 0 | AC96: 14.2 | AD96: 0 | AE96: 0 | AF96: 0 | AG96: 6190 | AH96: 115 | AI96: 13400 | AJ96: 1130 | AK96: 957 | AL96: 11.1 | AM96: 1160 | AN96: 267 | AO96: 170 | AP96: 3.27 | AQ96: 0 | AR96: 201 | AS96: 185000 | AT96: 0 | AU96: 86.3 | AV96: 802 | AW96: 209 | AX96: 566 | AY96: 0 | AZ96: 0 | BA96: 0 | BB96: 0 | BC96: 25.28 | BD96: 94
A97: W | B97: W24X335 | C97: W24X335 | D97: W24x335 | E97: T | F97: 335 | G97: 98.4 | H97: 27.5 | I97: 0 | J97: 0 | K97: 13.5 | L97: 0 | M97: 0 | N97: 1.38 | O97: 2.48 | P97: 0 | Q97: 0 | R97: 0 | S97: 2.98 | T97: 3.375 | U97: 1.5 | V97: 0 | W97: 0 | X97: 0 | Y97: 0 | Z97: 0 | AA97: 2.73 | AB97: 0 | AC97: 15.6 | AD97: 0 | AE97: 0 | AF97: 0 | AG97: 5670 | AH97: 162 | AI97: 11900 | AJ97: 1020 | AK97: 864 | AL97: 11 | AM97: 1030 | AN97: 238 | AO97: 152 | AP97: 3.23 | AQ97: 0 | AR97: 152 | AS97: 161000 | AT97: 0 | AU97: 84.6 | AV97: 709 | AW97: 188 | AX97: 508 | AY97: 0 | AZ97: 0 | BA97: 0 | BB97: 0 | BC97: 25.02 | BD97: 95
A98: W | B98: W24X306 | C98: W24X306 | D98: W24x306 | E98: T | F98: 306 | G98: 89.8 | H98: 27.1 | I98: 0 | J98: 0 | K98: 13.4 | L98: 0 | M98: 0 | N98: 1.26 | O98: 2.28 | P98: 0 | Q98: 0 | R98: 0 | S98: 2.78 | T98: 3.1875 | U98: 1.4375 | V98: 0 | W98: 0 | X98: 0 | Y98: 0 | Z98: 0 | AA98: 2.94 | AB98: 0 | AC98: 17.1 | AD98: 0 | AE98: 0 | AF98: 0 | AG98: 5200 | AH98: 224 | AI98: 10700 | AJ98: 922 | AK98: 789 | AL98: 10.9 | AM98: 919 | AN98: 214 | AO98: 137 | AP98: 3.2 | AQ98: 0 | AR98: 117 | AS98: 142000 | AT98: 0 | AU98: 83.3 | AV98: 636 | AW98: 172 | AX98: 460 | AY98: 0 | AZ98: 0 | BA98: 0 | BB98: 0 | BC98: 24.82 | BD98: 96
A99: W | B99: W24X279 | C99: W24X279 | D99: W24x279 | E99: T | F99: 279 | G99: 82 | H99: 26.7 | I99: 0 | J99: 0 | K99: 13.3 | L99: 0 | M99: 0 | N99: 1.16 | O99: 2.09 | P99: 0 | Q99: 0 | R99: 0 | S99: 2.59 | T99: 3 | U99: 1.4375 | V99: 0 | W99: 0 | X99: 0 | Y99: 0 | Z99: 0 | AA99: 3.18 | AB99: 0 | AC99: 18.6 | AD99: 0 | AE99: 0 | AF99: 0 | AG99: 4800 | AH99: 305 | AI99: 9600 | AJ99: 835 | AK99: 718 | AL99: 10.8 | AM99: 823 | AN99: 193 | AO99: 124 | AP99: 3.17 | AQ99: 0 | AR99: 90.5 | AS99: 125000 | AT99: 0 | AU99: 82 | AV99: 570 | AW99: 156 | AX99: 416 | AY99: 0 | AZ99: 0 | BA99: 0 | BB99: 0 | BC99: 24.61 | BD99: 97
A100: W | B100: W24X250 | C100: W24X250 | D100: W24x250 | E100: T | F100: 250 | G100: 73.5 | H100: 26.3 | I100: 0 | J100: 0 | K100: 13.2 | L100: 0 | M100: 0 | N100: 1.04 | O100: 1.89 | P100: 0 | Q100: 0 | R100: 0 | S100: 2.39 | T100: 2.8125 | U100: 1.375 | V100: 0 | W100: 0 | X100: 0 | Y100: 0 | Z100: 0 | AA100: 3.49 | AB100: 0 | AC100: 20.7 | AD100: 0 | AE100: 0 | AF100: 0 | AG100: 4350 | AH100: 446 | AI100: 8490 | AJ100: 744 | AK100: 644 | AL100: 10.7 | AM100: 724 | AN100: 171 | AO100: 110 | AP100: 3.14 | AQ100: 0 | AR100: 66.6 | AS100: 108000 | AT100: 0 | AU100: 80.6 | AV100: 502 | AW100: 140 | AX100: 371 | AY100: 0 | AZ100: 0 | BA100: 0 | BB100: 0 | BC100: 24.41 | BD100: 98
A101: W | B101: W24X229 | C101: W24X229 | D101: W24x229 | E101: F | F101: 229 | G101: 67.2 | H101: 26 | I101: 0 | J101: 0 | K101: 13.1 | L101: 0 | M101: 0 | N101: 0.96 | O101: 1.73 | P101: 0 | Q101: 0 | R101: 0 | S101: 2.23 | T101: 2.625 | U101: 1.3125 | V101: 0 | W101: 0 | X101: 0 | Y101: 0 | Z101: 0 | AA101: 3.79 | AB101: 0 | AC101: 22.5 | AD101: 0 | AE101: 0 | AF101: 0 | AG101: 4000 | AH101: 618 | AI101: 7650 | AJ101: 675 | AK101: 588 | AL101: 10.7 | AM101: 651 | AN101: 154 | AO101: 99.4 | AP101: 3.11 | AQ101: 0 | AR101: 51.3 | AS101: 96000 | AT101: 0 | AU101: 79.6 | AV101: 451 | AW101: 128 | AX101: 337 | AY101: 0 | AZ101: 0 | BA101: 0 | BB101: 0 | BC101: 24.27 | BD101: 99
A102: W | B102: W24X207 | C102: W24X207 | D102: W24x207 | E102: F | F102: 207 | G102: 60.7 | H102: 25.7 | I102: 0 | J102: 0 | K102: 13 | L102: 0 | M102: 0 | N102: 0.87 | O102: 1.57 | P102: 0 | Q102: 0 | R102: 0 | S102: 2.07 | T102: 2.5 | U102: 1.25 | V102: 0 | W102: 0 | X102: 0 | Y102: 0 | Z102: 0 | AA102: 4.14 | AB102: 0 | AC102: 24.8 | AD102: 0 | AE102: 0 | AF102: 0 | AG102: 3640 | AH102: 893 | AI102: 6820 | AJ102: 606 | AK102: 531 | AL102: 10.6 | AM102: 578 | AN102: 137 | AO102: 88.8 | AP102: 3.08 | AQ102: 0 | AR102: 38.3 | AS102: 84200 | AT102: 0 | AU102: 78.5 | AV102: 401 | AW102: 115 | AX102: 302 | AY102: 0 | AZ102: 0 | BA102: 0 | BB102: 0 | BC102: 24.13 | BD102: 100
A103: W | B103: W24X192 | C103: W24X192 | D103: W24x192 | E103: F | F103: 192 | G103: 56.3 | H103: 25.5 | I103: 0 | J103: 0 | K103: 13 | L103: 0 | M103: 0 | N103: 0.81 | O103: 1.46 | P103: 0 | Q103: 0 | R103: 0 | S103: 1.96 | T103: 2.375 | U103: 1.25 | V103: 0 | W103: 0 | X103: 0 | Y103: 0 | Z103: 0 | AA103: 4.43 | AB103: 0 | AC103: 26.6 | AD103: 0 | AE103: 0 | AF103: 0 | AG103: 3400 | AH103: 1170 | AI103: 6260 | AJ103: 559 | AK103: 491 | AL103: 10.5 | AM103: 530 | AN103: 126 | AO103: 81.8 | AP103: 3.07 | AQ103: 0 | AR103: 30.8 | AS103: 76400 | AT103: 0 | AU103: 77.7 | AV103: 367 | AW103: 106 | AX103: 278 | AY103: 0 | AZ103: 0 | BA103: 0 | BB103: 0 | BC103: 24.04 | BD103: 101
A104: W | B104: W24X176 | C104: W24X176 | D104: W24x176 | E104: F | F104: 176 | G104: 51.7 | H104: 25.2 | I104: 0 | J104: 0 | K104: 12.9 | L104: 0 | M104: 0 | N104: 0.75 | O104: 1.34 | P104: 0 | Q104: 0 | R104: 0 | S104: 1.84 | T104: 2.25 | U104: 1.1875 | V104: 0 | W104: 0 | X104: 0 | Y104: 0 | Z104: 0 | AA104: 4.81 | AB104: 0 | AC104: 28.7 | AD104: 0 | AE104: 0 | AF104: 0 | AG104: 3130 | AH104: 1610 | AI104: 5680 | AJ104: 511 | AK104: 450 | AL104: 10.5 | AM104: 479 | AN104: 115 | AO104: 74.3 | AP104: 3.04 | AQ104: 0 | AR104: 23.9 | AS104: 68400 | AT104: 0 | AU104: 77 | AV104: 333 | AW104: 97.2 | AX104: 254 | AY104: 0 | AZ104: 0 | BA104: 0 | BB104: 0 | BC104: 23.86 | BD104: 102
A105: W | B105: W24X162 | C105: W24X162 | D105: W24x162 | E105: F | F105: 162 | G105: 47.7 | H105: 25 | I105: 0 | J105: 0 | K105: 13 | L105: 0 | M105: 0 | N105: 0.705 | O105: 1.22 | P105: 0 | Q105: 0 | R105: 0 | S105: 1.72 | T105: 2.125 | U105: 1.1875 | V105: 0 | W105: 0 | X105: 0 | Y105: 0 | Z105: 0 | AA105: 5.31 | AB105: 0 | AC105: 30.6 | AD105: 0 | AE105: 0 | AF105: 0 | AG105: 2870 | AH105: 2260 | AI105: 5170 | AJ105: 468 | AK105: 414 | AL105: 10.4 | AM105: 443 | AN105: 105 | AO105: 68.4 | AP105: 3.05 | AQ105: 0 | AR105: 18.5 | AS105: 62600 | AT105: 0 | AU105: 77 | AV105: 304 | AW105: 88.8 | AX105: 233 | AY105: 0 | AZ105: 0 | BA105: 0 | BB105: 0 | BC105: 23.78 | BD105: 103
A106: W | B106: W24X146 | C106: W24X146 | D106: W24x146 | E106: F | F106: 146 | G106: 43 | H106: 24.7 | I106: 0 | J106: 0 | K106: 12.9 | L106: 0 | M106: 0 | N106: 0.65 | O106: 1.09 | P106: 0 | Q106: 0 | R106: 0 | S106: 1.59 | T106: 2 | U106: 1.125 | V106: 0 | W106: 0 | X106: 0 | Y106: 0 | Z106: 0 | AA106: 5.92 | AB106: 0 | AC106: 33.2 | AD106: 0 | AE106: 0 | AF106: 58.5 | AG106: 2590 | AH106: 3420 | AI106: 4580 | AJ106: 418 | AK106: 371 | AL106: 10.3 | AM106: 391 | AN106: 93.2 | AO106: 60.5 | AP106: 3.01 | AQ106: 0 | AR106: 13.4 | AS106: 54700 | AT106: 0 | AU106: 76.3 | AV106: 268 | AW106: 78.9 | AX106: 208 | AY106: 0 | AZ106: 0 | BA106: 0 | BB106: 0 | BC106: 23.61 | BD106: 104
A107: W | B107: W24X131 | C107: W24X131 | D107: W24x131 | E107: F | F107: 131 | G107: 38.5 | H107: 24.5 | I107: 0 | J107: 0 | K107: 12.9 | L107: 0 | M107: 0 | N107: 0.605 | O107: 0.96 | P107: 0 | Q107: 0 | R107: 0 | S107: 1.46 | T107: 1.875 | U107: 1.125 | V107: 0 | W107: 0 | X107: 0 | Y107: 0 | Z107: 0 | AA107: 6.7 | AB107: 0 | AC107: 35.6 | AD107: 0 | AE107: 0 | AF107: 50.7 | AG107: 2330 | AH107: 5290 | AI107: 4020 | AJ107: 370 | AK107: 329 | AL107: 10.2 | AM107: 340 | AN107: 81.5 | AO107: 53 | AP107: 2.97 | AQ107: 0 | AR107: 9.5 | AS107: 47000 | AT107: 0 | AU107: 75.6 | AV107: 233 | AW107: 69.1 | AX107: 184 | AY107: 0 | AZ107: 0 | BA107: 0 | BB107: 0 | BC107: 23.54 | BD107: 105
A108: W | B108: W24X117 | C108: W24X117 | D108: W24x117 | E108: F | F108: 117 | G108: 34.4 | H108: 24.3 | I108: 0 | J108: 0 | K108: 12.8 | L108: 0 | M108: 0 | N108: 0.55 | O108: 0.85 | P108: 0 | Q108: 0 | R108: 0 | S108: 1.35 | T108: 1.75 | U108: 1.125 | V108: 0 | W108: 0 | X108: 0 | Y108: 0 | Z108: 0 | AA108: 7.53 | AB108: 0 | AC108: 39.2 | AD108: 0 | AE108: 0 | AF108: 41.9 | AG108: 2090 | AH108: 8190 | AI108: 3540 | AJ108: 327 | AK108: 291 | AL108: 10.1 | AM108: 297 | AN108: 71.4 | AO108: 46.5 | AP108: 2.94 | AQ108: 0 | AR108: 6.72 | AS108: 40700 | AT108: 0 | AU108: 74.9 | AV108: 204 | AW108: 60.9 | AX108: 162 | AY108: 0 | AZ108: 0 | BA108: 0 | BB108: 0 | BC108: 23.45 | BD108: 106
A109: W | B109: W24X104 | C109: W24X104 | D109: W24x104 | E109: F | F109: 104 | G109: 30.6 | H109: 24.1 | I109: 0 | J109: 0 | K109: 12.8 | L109: 0 | M109: 0 | N109: 0.5 | O109: 0.75 | P109: 0 | Q109: 0 | R109: 0 | S109: 1.25 | T109: 1.625 | U109: 1.0625 | V109: 0 | W109: 0 | X109: 0 | Y109: 0 | Z109: 0 | AA109: 8.5 | AB109: 0 | AC109: 43.1 | AD109: 0 | AE109: 0 | AF109: 34.6 | AG109: 1860 | AH109: 12900 | AI109: 3100 | AJ109: 289 | AK109: 258 | AL109: 10.1 | AM109: 259 | AN109: 62.4 | AO109: 40.7 | AP109: 2.91 | AQ109: 0 | AR109: 4.72 | AS109: 35200 | AT109: 0 | AU109: 74.3 | AV109: 178 | AW109: 53.5 | AX109: 143 | AY109: 0 | AZ109: 0 | BA109: 0 | BB109: 0 | BC109: 23.35 | BD109: 107
A110: W | B110: W24X103 | C110: W24X103 | D110: W24x103 | E110: F | F110: 103 | G110: 30.3 | H110: 24.5 | I110: 0 | J110: 0 | K110: 9 | L110: 0 | M110: 0 | N110: 0.55 | O110: 0.98 | P110: 0 | Q110: 0 | R110: 0 | S110: 1.48 | T110: 1.875 | U110: 1.125 | V110: 0 | W110: 0 | X110: 0 | Y110: 0 | Z110: 0 | AA110: 4.59 | AB110: 0 | AC110: 39.2 | AD110: 0 | AE110: 0 | AF110: 41.9 | AG110: 2390 | AH110: 5310 | AI110: 3000 | AJ110: 280 | AK110: 245 | AL110: 9.96 | AM110: 119 | AN110: 41.5 | AO110: 26.5 | AP110: 1.99 | AQ110: 0 | AR110: 7.07 | AS110: 16500 | AT110: 0 | AU110: 53 | AV110: 117 | AW110: 48.8 | AX110: 139 | AY110: 0 | AZ110: 0 | BA110: 0 | BB110: 0 | BC110: 23.52 | BD110: 108
A111: W | B111: W24X94 | C111: W24X94 | D111: W24x94 | E111: F | F111: 94 | G111: 27.7 | H111: 24.3 | I111: 0 | J111: 0 | K111: 9.07 | L111: 0 | M111: 0 | N111: 0.515 | O111: 0.875 | P111: 0 | Q111: 0 | R111: 0 | S111: 1.38 | T111: 1.75 | U111: 1.0625 | V111: 0 | W111: 0 | X111: 0 | Y111: 0 | Z111: 0 | AA111: 5.18 | AB111: 0 | AC111: 41.9 | AD111: 0 | AE111: 0 | AF111: 36.7 | AG111: 2180 | AH111: 7800 | AI111: 2700 | AJ111: 254 | AK111: 222 | AL111: 9.87 | AM111: 109 | AN111: 37.5 | AO111: 24 | AP111: 1.98 | AQ111: 0 | AR111: 5.26 | AS111: 15000 | AT111: 0 | AU111: 53.1 | AV111: 105 | AW111: 43.8 | AX111: 126 | AY111: 0 | AZ111: 0 | BA111: 0 | BB111: 0 | BC111: 23.425 | BD111: 109
A112: W | B112: W24X84 | C112: W24X84 | D112: W24x84 | E112: F | F112: 84 | G112: 24.7 | H112: 24.1 | I112: 0 | J112: 0 | K112: 9.02 | L112: 0 | M112: 0 | N112: 0.47 | O112: 0.77 | P112: 0 | Q112: 0 | R112: 0 | S112: 1.27 | T112: 1.6875 | U112: 1.0625 | V112: 0 | W112: 0 | X112: 0 | Y112: 0 | Z112: 0 | AA112: 5.86 | AB112: 0 | AC112: 45.9 | AD112: 0 | AE112: 0 | AF112: 30.6 | AG112: 1950 | AH112: 12200 | AI112: 2370 | AJ112: 224 | AK112: 196 | AL112: 9.79 | AM112: 94.4 | AN112: 32.6 | AO112: 20.9 | AP112: 1.95 | AQ112: 0 | AR112: 3.7 | AS112: 12800 | AT112: 0 | AU112: 52.6 | AV112: 91.3 | AW112: 38.4 | AX112: 111 | AY112: 0 | AZ112: 0 | BA112: 0 | BB112: 0 | BC112: 23.33 | BD112: 110
A113: W | B113: W24X76 | C113: W24X76 | D113: W24x76 | E113: F | F113: 76 | G113: 22.4 | H113: 23.9 | I113: 0 | J113: 0 | K113: 8.99 | L113: 0 | M113: 0 | N113: 0.44 | O113: 0.68 | P113: 0 | Q113: 0 | R113: 0 | S113: 1.18 | T113: 1.5625 | U113: 1.0625 | V113: 0 | W113: 0 | X113: 0 | Y113: 0 | Z113: 0 | AA113: 6.61 | AB113: 0 | AC113: 49 | AD113: 0 | AE113: 0 | AF113: 26.8 | AG113: 1760 | AH113: 18600 | AI113: 2100 | AJ113: 200 | AK113: 176 | AL113: 9.69 | AM113: 82.5 | AN113: 28.6 | AO113: 18.4 | AP113: 1.92 | AQ113: 0 | AR113: 2.68 | AS113: 11100 | AT113: 0 | AU113: 52.2 | AV113: 79.8 | AW113: 33.8 | AX113: 99 | AY113: 0 | AZ113: 0 | BA113: 0 | BB113: 0 | BC113: 23.22 | BD113: 111
A114: W | B114: W24X68 | C114: W24X68 | D114: W24x68 | E114: F | F114: 68 | G114: 20.1 | H114: 23.7 | I114: 0 | J114: 0 | K114: 8.97 | L114: 0 | M114: 0 | N114: 0.415 | O114: 0.585 | P114: 0 | Q114: 0 | R114: 0 | S114: 1.09 | T114: 1.5 | U114: 1.0625 | V114: 0 | W114: 0 | X114: 0 | Y114: 0 | Z114: 0 | AA114: 7.66 | AB114: 0 | AC114: 52 | AD114: 0 | AE114: 0 | AF114: 23.9 | AG114: 1590 | AH114: 29000 | AI114: 1830 | AJ114: 177 | AK114: 154 | AL114: 9.55 | AM114: 70.4 | AN114: 24.5 | AO114: 15.7 | AP114: 1.87 | AQ114: 0 | AR114: 1.87 | AS114: 9430 | AT114: 0 | AU114: 51.9 | AV114: 68 | AW114: 28.9 | AX114: 87.1 | AY114: 0 | AZ114: 0 | BA114: 0 | BB114: 0 | BC114: 23.115 | BD114: 112
A115: W | B115: W24X62 | C115: W24X62 | D115: W24x62 | E115: F | F115: 62 | G115: 18.3 | H115: 23.7 | I115: 0 | J115: 0 | K115: 7.04 | L115: 0 | M115: 0 | N115: 0.43 | O115: 0.59 | P115: 0 | Q115: 0 | R115: 0 | S115: 1.19 | T115: 1.5 | U115: 1.0625 | V115: 0 | W115: 0 | X115: 0 | Y115: 0 | Z115: 0 | AA115: 5.97 | AB115: 0 | AC115: 49.7 | AD115: 0 | AE115: 0 | AF115: 26.1 | AG115: 1730 | AH115: 23800 | AI115: 1560 | AJ115: 154 | AK115: 132 | AL115: 9.24 | AM115: 34.5 | AN115: 15.8 | AO115: 9.8 | AP115: 1.37 | AQ115: 0 | AR115: 1.77 | AS115: 4620 | AT115: 0 | AU115: 40.7 | AV115: 42.3 | AW115: 22.6 | AX115: 75.4 | AY115: 0 | AZ115: 0 | BA115: 0 | BB115: 0 | BC115: 23.11 | BD115: 113
A116: W | B116: W24X55 | C116: W24X55 | D116: W24x55 | E116: F | F116: 55 | G116: 16.3 | H116: 23.6 | I116: 0 | J116: 0 | K116: 7.01 | L116: 0 | M116: 0 | N116: 0.395 | O116: 0.505 | P116: 0 | Q116: 0 | R116: 0 | S116: 1.11 | T116: 1.4375 | U116: 1 | V116: 0 | W116: 0 | X116: 0 | Y116: 0 | Z116: 0 | AA116: 6.94 | AB116: 0 | AC116: 54.1 | AD116: 0 | AE116: 0 | AF116: 22 | AG116: 1570 | AH116: 36500 | AI116: 1360 | AJ116: 135 | AK116: 115 | AL116: 9.13 | AM116: 29.1 | AN116: 13.4 | AO116: 8.3 | AP116: 1.34 | AQ116: 0 | AR116: 1.24 | AS116: 3870 | AT116: 0 | AU116: 40.4 | AV116: 35.7 | AW116: 19.2 | AX116: 65.9 | AY116: 0 | AZ116: 0 | BA116: 0 | BB116: 0 | BC116: 23.095 | BD116: 114
A117: W | B117: W21X201 | C117: W21X201 | D117: W21x201 | E117: F | F117: 201 | G117: 59.2 | H117: 23 | I117: 0 | J117: 0 | K117: 12.6 | L117: 0 | M117: 0 | N117: 0.91 | O117: 1.63 | P117: 0 | Q117: 0 | R117: 0 | S117: 2.13 | T117: 2.5 | U117: 1.3125 | V117: 0 | W117: 0 | X117: 0 | Y117: 0 | Z117: 0 | AA117: 3.86 | AB117: 0 | AC117: 20.6 | AD117: 0 | AE117: 0 | AF117: 0 | AG117: 4270 | AH117: 464 | AI117: 5310 | AJ117: 530 | AK117: 461 | AL117: 9.47 | AM117: 542 | AN117: 133 | AO117: 86.1 | AP117: 3.02 | AQ117: 0 | AR117: 40.9 | AS117: 62100 | AT117: 0 | AU117: 67.3 | AV117: 345 | AW117: 102 | AX117: 264 | AY117: 0 | AZ117: 0 | BA117: 0 | BB117: 0 | BC117: 21.37 | BD117: 115
A118: W | B118: W21X182 | C118: W21X182 | D118: W21x182 | E118: F | F118: 182 | G118: 53.6 | H118: 22.7 | I118: 0 | J118: 0 | K118: 12.5 | L118: 0 | M118: 0 | N118: 0.83 | O118: 1.48 | P118: 0 | Q118: 0 | R118: 0 | S118: 1.98 | T118: 2.375 | U118: 1.25 | V118: 0 | W118: 0 | X118: 0 | Y118: 0 | Z118: 0 | AA118: 4.22 | AB118: 0 | AC118: 22.6 | AD118: 0 | AE118: 0 | AF118: 0 | AG118: 3890 | AH118: 664 | AI118: 4730 | AJ118: 476 | AK118: 417 | AL118: 9.4 | AM118: 483 | AN118: 119 | AO118: 77.2 | AP118: 3 | AQ118: 0 | AR118: 30.7 | AS118: 54500 | AT118: 0 | AU118: 66.4 | AV118: 307 | AW118: 91.7 | AX118: 237 | AY118: 0 | AZ118: 0 | BA118: 0 | BB118: 0 | BC118: 21.22 | BD118: 116
A119: W | B119: W21X166 | C119: W21X166 | D119: W21x166 | E119: F | F119: 166 | G119: 48.8 | H119: 22.5 | I119: 0 | J119: 0 | K119: 12.4 | L119: 0 | M119: 0 | N119: 0.75 | O119: 1.36 | P119: 0 | Q119: 0 | R119: 0 | S119: 1.86 | T119: 2.25 | U119: 1.1875 | V119: 0 | W119: 0 | X119: 0 | Y119: 0 | Z119: 0 | AA119: 4.57 | AB119: 0 | AC119: 25 | AD119: 0 | AE119: 0 | AF119: 0 | AG119: 3580 | AH119: 922 | AI119: 4280 | AJ119: 432 | AK119: 380 | AL119: 9.36 | AM119: 435 | AN119: 108 | AO119: 70 | AP119: 2.99 | AQ119: 0 | AR119: 23.6 | AS119: 48500 | AT119: 0 | AU119: 65.6 | AV119: 277 | AW119: 83.8 | AX119: 215 | AY119: 0 | AZ119: 0 | BA119: 0 | BB119: 0 | BC119: 21.14 | BD119: 117
A120: W | B120: W21X147 | C120: W21X147 | D120: W21x147 | E120: F | F120: 147 | G120: 43.2 | H120: 22.1 | I120: 0 | J120: 0 | K120: 12.5 | L120: 0 | M120: 0 | N120: 0.72 | O120: 1.15 | P120: 0 | Q120: 0 | R120: 0 | S120: 1.65 | T120: 2 | U120: 1.1875 | V120: 0 | W120: 0 | X120: 0 | Y120: 0 | Z120: 0 | AA120: 5.44 | AB120: 0 | AC120: 26.1 | AD120: 0 | AE120: 0 | AF120: 0 | AG120: 3140 | AH120: 1590 | AI120: 3630 | AJ120: 373 | AK120: 329 | AL120: 9.17 | AM120: 376 | AN120: 92.6 | AO120: 60.1 | AP120: 2.95 | AQ120: 0 | AR120: 15.4 | AS120: 41100 | AT120: 0 | AU120: 65.4 | AV120: 235 | AW120: 70.9 | AX120: 186 | AY120: 0 | AZ120: 0 | BA120: 0 | BB120: 0 | BC120: 20.95 | BD120: 118
A121: W | B121: W21X132 | C121: W21X132 | D121: W21x132 | E121: F | F121: 132 | G121: 38.8 | H121: 21.8 | I121: 0 | J121: 0 | K121: 12.4 | L121: 0 | M121: 0 | N121: 0.65 | O121: 1.03 | P121: 0 | Q121: 0 | R121: 0 | S121: 1.54 | T121: 1.9375 | U121: 1.125 | V121: 0 | W121: 0 | X121: 0 | Y121: 0 | Z121: 0 | AA121: 6.01 | AB121: 0 | AC121: 28.9 | AD121: 0 | AE121: 0 | AF121: 0 | AG121: 2840 | AH121: 2350 | AI121: 3220 | AJ121: 333 | AK121: 295 | AL121: 9.12 | AM121: 333 | AN121: 82.3 | AO121: 53.5 | AP121: 2.93 | AQ121: 0 | AR121: 11.3 | AS121: 36000 | AT121: 0 | AU121: 64.7 | AV121: 208 | AW121: 63.4 | AX121: 166 | AY121: 0 | AZ121: 0 | BA121: 0 | BB121: 0 | BC121: 20.77 | BD121: 119
A122: W | B122: W21X122 | C122: W21X122 | D122: W21x122 | E122: F | F122: 122 | G122: 35.9 | H122: 21.7 | I122: 0 | J122: 0 | K122: 12.4 | L122: 0 | M122: 0 | N122: 0.6 | O122: 0.96 | P122: 0 | Q122: 0 | R122: 0 | S122: 1.46 | T122: 1.8125 | U122: 1.125 | V122: 0 | W122: 0 | X122: 0 | Y122: 0 | Z122: 0 | AA122: 6.45 | AB122: 0 | AC122: 31.3 | AD122: 0 | AE122: 0 | AF122: 0 | AG122: 2630 | AH122: 3160 | AI122: 2960 | AJ122: 307 | AK122: 273 | AL122: 9.09 | AM122: 305 | AN122: 75.6 | AO122: 49.2 | AP122: 2.92 | AQ122: 0 | AR122: 8.98 | AS122: 32700 | AT122: 0 | AU122: 64.2 | AV122: 191 | AW122: 58.6 | AX122: 153 | AY122: 0 | AZ122: 0 | BA122: 0 | BB122: 0 | BC122: 20.74 | BD122: 120
A123: W | B123: W21X111 | C123: W21X111 | D123: W21x111 | E123: F | F123: 111 | G123: 32.7 | H123: 21.5 | I123: 0 | J123: 0 | K123: 12.3 | L123: 0 | M123: 0 | N123: 0.55 | O123: 0.875 | P123: 0 | Q123: 0 | R123: 0 | S123: 1.38 | T123: 1.75 | U123: 1.125 | V123: 0 | W123: 0 | X123: 0 | Y123: 0 | Z123: 0 | AA123: 7.05 | AB123: 0 | AC123: 34.1 | AD123: 0 | AE123: 0 | AF123: 55.3 | AG123: 2400 | AH123: 4510 | AI123: 2670 | AJ123: 279 | AK123: 249 | AL123: 9.05 | AM123: 274 | AN123: 68.2 | AO123: 44.5 | AP123: 2.9 | AQ123: 0 | AR123: 6.83 | AS123: 29200 | AT123: 0 | AU123: 63.7 | AV123: 172 | AW123: 53.2 | AX123: 138 | AY123: 0 | AZ123: 0 | BA123: 0 | BB123: 0 | BC123: 20.625 | BD123: 121
A124: W | B124: W21X101 | C124: W21X101 | D124: W21x101 | E124: F | F124: 101 | G124: 29.8 | H124: 21.4 | I124: 0 | J124: 0 | K124: 12.3 | L124: 0 | M124: 0 | N124: 0.5 | O124: 0.8 | P124: 0 | Q124: 0 | R124: 0 | S124: 1.3 | T124: 1.6875 | U124: 1.0625 | V124: 0 | W124: 0 | X124: 0 | Y124: 0 | Z124: 0 | AA124: 7.68 | AB124: 0 | AC124: 37.5 | AD124: 0 | AE124: 0 | AF124: 45.7 | AG124: 2200 | AH124: 6400 | AI124: 2420 | AJ124: 253 | AK124: 227 | AL124: 9.02 | AM124: 248 | AN124: 61.7 | AO124: 40.3 | AP124: 2.89 | AQ124: 0 | AR124: 5.21 | AS124: 26200 | AT124: 0 | AU124: 63.2 | AV124: 155 | AW124: 48.5 | AX124: 125 | AY124: 0 | AZ124: 0 | BA124: 0 | BB124: 0 | BC124: 20.6 | BD124: 122
A125: W | B125: W21X93 | C125: W21X93 | D125: W21x93 | E125: F | F125: 93 | G125: 27.3 | H125: 21.6 | I125: 0 | J125: 0 | K125: 8.42 | L125: 0 | M125: 0 | N125: 0.58 | O125: 0.93 | P125: 0 | Q125: 0 | R125: 0 | S125: 1.43 | T125: 1.625 | U125: 0.9375 | V125: 0 | W125: 0 | X125: 0 | Y125: 0 | Z125: 0 | AA125: 4.53 | AB125: 0 | AC125: 32.3 | AD125: 0 | AE125: 0 | AF125: 61.5 | AG125: 2680 | AH125: 3460 | AI125: 2070 | AJ125: 221 | AK125: 192 | AL125: 8.7 | AM125: 92.9 | AN125: 34.7 | AO125: 22.1 | AP125: 1.84 | AQ125: 0 | AR125: 6.03 | AS125: 9940 | AT125: 0 | AU125: 43.6 | AV125: 85.3 | AW125: 37.7 | AX125: 109 | AY125: 0 | AZ125: 0 | BA125: 0 | BB125: 0 | BC125: 20.67 | BD125: 123
A126: W | B126: W21X83 | C126: W21X83 | D126: W21x83 | E126: F | F126: 83 | G126: 24.3 | H126: 21.4 | I126: 0 | J126: 0 | K126: 8.36 | L126: 0 | M126: 0 | N126: 0.515 | O126: 0.835 | P126: 0 | Q126: 0 | R126: 0 | S126: 1.34 | T126: 1.5 | U126: 0.875 | V126: 0 | W126: 0 | X126: 0 | Y126: 0 | Z126: 0 | AA126: 5 | AB126: 0 | AC126: 36.4 | AD126: 0 | AE126: 0 | AF126: 48.5 | AG126: 2400 | AH126: 5250 | AI126: 1830 | AJ126: 196 | AK126: 171 | AL126: 8.67 | AM126: 81.4 | AN126: 30.5 | AO126: 19.5 | AP126: 1.83 | AQ126: 0 | AR126: 4.34 | AS126: 8630 | AT126: 0 | AU126: 43 | AV126: 75 | AW126: 33.7 | AX126: 97 | AY126: 0 | AZ126: 0 | BA126: 0 | BB126: 0 | BC126: 20.565 | BD126: 124
A127: W | B127: W21X73 | C127: W21X73 | D127: W21x73 | E127: F | F127: 73 | G127: 21.5 | H127: 21.2 | I127: 0 | J127: 0 | K127: 8.3 | L127: 0 | M127: 0 | N127: 0.455 | O127: 0.74 | P127: 0 | Q127: 0 | R127: 0 | S127: 1.24 | T127: 1.4375 | U127: 0.875 | V127: 0 | W127: 0 | X127: 0 | Y127: 0 | Z127: 0 | AA127: 5.6 | AB127: 0 | AC127: 41.2 | AD127: 0 | AE127: 0 | AF127: 37.9 | AG127: 2140 | AH127: 8380 | AI127: 1600 | AJ127: 172 | AK127: 151 | AL127: 8.64 | AM127: 70.6 | AN127: 26.6 | AO127: 17 | AP127: 1.81 | AQ127: 0 | AR127: 3.02 | AS127: 7420 | AT127: 0 | AU127: 42.5 | AV127: 65.2 | AW127: 29.7 | AX127: 85.1 | AY127: 0 | AZ127: 0 | BA127: 0 | BB127: 0 | BC127: 20.46 | BD127: 125
A128: W | B128: W21X68 | C128: W21X68 | D128: W21x68 | E128: F | F128: 68 | G128: 20 | H128: 21.1 | I128: 0 | J128: 0 | K128: 8.27 | L128: 0 | M128: 0 | N128: 0.43 | O128: 0.685 | P128: 0 | Q128: 0 | R128: 0 | S128: 1.19 | T128: 1.375 | U128: 0.875 | V128: 0 | W128: 0 | X128: 0 | Y128: 0 | Z128: 0 | AA128: 6.04 | AB128: 0 | AC128: 43.6 | AD128: 0 | AE128: 0 | AF128: 33.8 | AG128: 2000 | AH128: 10900 | AI128: 1480 | AJ128: 160 | AK128: 140 | AL128: 8.6 | AM128: 64.7 | AN128: 24.4 | AO128: 15.7 | AP128: 1.8 | AQ128: 0 | AR128: 2.45 | AS128: 6760 | AT128: 0 | AU128: 42.3 | AV128: 59.9 | AW128: 27.4 | AX128: 78.9 | AY128: 0 | AZ128: 0 | BA128: 0 | BB128: 0 | BC128: 20.415 | BD128: 126
A129: W | B129: W21X62 | C129: W21X62 | D129: W21x62 | E129: F | F129: 62 | G129: 18.3 | H129: 21 | I129: 0 | J129: 0 | K129: 8.24 | L129: 0 | M129: 0 | N129: 0.4 | O129: 0.615 | P129: 0 | Q129: 0 | R129: 0 | S129: 1.12 | T129: 1.3125 | U129: 0.8125 | V129: 0 | W129: 0 | X129: 0 | Y129: 0 | Z129: 0 | AA129: 6.7 | AB129: 0 | AC129: 46.9 | AD129: 0 | AE129: 0 | AF129: 29.3 | AG129: 1820 | AH129: 15900 | AI129: 1330 | AJ129: 144 | AK129: 127 | AL129: 8.54 | AM129: 57.5 | AN129: 21.7 | AO129: 14 | AP129: 1.77 | AQ129: 0 | AR129: 1.83 | AS129: 5970 | AT129: 0 | AU129: 42 | AV129: 53.2 | AW129: 24.6 | AX129: 71.1 | AY129: 0 | AZ129: 0 | BA129: 0 | BB129: 0 | BC129: 20.385 | BD129: 127
A130: W | B130: W21X55 | C130: W21X55 | D130: W21x55 | E130: F | F130: 55 | G130: 16.2 | H130: 20.8 | I130: 0 | J130: 0 | K130: 8.22 | L130: 0 | M130: 0 | N130: 0.375 | O130: 0.522 | P130: 0 | Q130: 0 | R130: 0 | S130: 1.02 | T130: 1.1875 | U130: 0.8125 | V130: 0 | W130: 0 | X130: 0 | Y130: 0 | Z130: 0 | AA130: 7.87 | AB130: 0 | AC130: 50 | AD130: 0 | AE130: 0 | AF130: 25.7 | AG130: 1630 | AH130: 25800 | AI130: 1140 | AJ130: 126 | AK130: 110 | AL130: 8.4 | AM130: 48.4 | AN130: 18.4 | AO130: 11.8 | AP130: 1.73 | AQ130: 0 | AR130: 1.24 | AS130: 4980 | AT130: 0 | AU130: 41.7 | AV130: 44.7 | AW130: 20.8 | AX130: 61.8 | AY130: 0 | AZ130: 0 | BA130: 0 | BB130: 0 | BC130: 20.278 | BD130: 128
A131: W | B131: W21X48 | C131: W21X48 | D131: W21x48 | E131: F | F131: 48 | G131: 14.1 | H131: 20.6 | I131: 0 | J131: 0 | K131: 8.14 | L131: 0 | M131: 0 | N131: 0.35 | O131: 0.43 | P131: 0 | Q131: 0 | R131: 0 | S131: 0.93 | T131: 1.125 | U131: 0.8125 | V131: 0 | W131: 0 | X131: 0 | Y131: 0 | Z131: 0 | AA131: 9.47 | AB131: 0 | AC131: 53.6 | AD131: 0 | AE131: 0 | AF131: 22.4 | AG131: 1450 | AH131: 43600 | AI131: 959 | AJ131: 107 | AK131: 93 | AL131: 8.24 | AM131: 38.7 | AN131: 14.9 | AO131: 9.52 | AP131: 1.66 | AQ131: 0 | AR131: 0.803 | AS131: 3940 | AT131: 0 | AU131: 41.1 | AV131: 36 | AW131: 16.9 | AX131: 52.4 | AY131: 0 | AZ131: 0 | BA131: 0 | BB131: 0 | BC131: =H131-O131 -> 20.17 | BD131: 129
A132: W | B132: W21X57 | C132: W21X57 | D132: W21x57 | E132: F | F132: 57 | G132: 16.7 | H132: 21.1 | I132: 0 | J132: 0 | K132: 6.56 | L132: 0 | M132: 0 | N132: 0.405 | O132: 0.65 | P132: 0 | Q132: 0 | R132: 0 | S132: 1.15 | T132: 1.3125 | U132: 0.8125 | V132: 0 | W132: 0 | X132: 0 | Y132: 0 | Z132: 0 | AA132: 5.04 | AB132: 0 | AC132: 46.3 | AD132: 0 | AE132: 0 | AF132: 30 | AG132: 1960 | AH132: 13100 | AI132: 1170 | AJ132: 129 | AK132: 111 | AL132: 8.36 | AM132: 30.6 | AN132: 14.8 | AO132: 9.35 | AP132: 1.35 | AQ132: 0 | AR132: 1.77 | AS132: 3190 | AT132: 0 | AU132: 33.4 | AV132: 35.6 | AW132: 20.4 | AX132: 63.2 | AY132: 0 | AZ132: 0 | BA132: 0 | BB132: 0 | BC132: 20.45 | BD132: 130
A133: W | B133: W21X50 | C133: W21X50 | D133: W21x50 | E133: F | F133: 50 | G133: 14.7 | H133: 20.8 | I133: 0 | J133: 0 | K133: 6.53 | L133: 0 | M133: 0 | N133: 0.38 | O133: 0.535 | P133: 0 | Q133: 0 | R133: 0 | S133: 1.04 | T133: 1.25 | U133: 0.8125 | V133: 0 | W133: 0 | X133: 0 | Y133: 0 | Z133: 0 | AA133: 6.1 | AB133: 0 | AC133: 49.4 | AD133: 0 | AE133: 0 | AF133: 26.4 | AG133: 1730 | AH133: 22600 | AI133: 984 | AJ133: 110 | AK133: 94.5 | AL133: 8.18 | AM133: 24.9 | AN133: 12.2 | AO133: 7.64 | AP133: 1.3 | AQ133: 0 | AR133: 1.14 | AS133: 2560 | AT133: 0 | AU133: 33.1 | AV133: 28.9 | AW133: 16.7 | AX133: 54 | AY133: 0 | AZ133: 0 | BA133: 0 | BB133: 0 | BC133: 20.265 | BD133: 131
A134: W | B134: W21X44 | C134: W21X44 | D134: W21x44 | E134: F | F134: 44 | G134: 13 | H134: 20.7 | I134: 0 | J134: 0 | K134: 6.5 | L134: 0 | M134: 0 | N134: 0.35 | O134: 0.45 | P134: 0 | Q134: 0 | R134: 0 | S134: 0.95 | T134: 1.125 | U134: 0.8125 | V134: 0 | W134: 0 | X134: 0 | Y134: 0 | Z134: 0 | AA134: 7.22 | AB134: 0 | AC134: 53.6 | AD134: 0 | AE134: 0 | AF134: 22.4 | AG134: 1550 | AH134: 36600 | AI134: 843 | AJ134: 95.4 | AK134: 81.6 | AL134: 8.06 | AM134: 20.7 | AN134: 10.2 | AO134: 6.37 | AP134: 1.26 | AQ134: 0 | AR134: 0.77 | AS134: 2110 | AT134: 0 | AU134: 32.8 | AV134: 24 | AW134: 14 | AX134: 46.6 | AY134: 0 | AZ134: 0 | BA134: 0 | BB134: 0 | BC134: 20.25 | BD134: 132
A135: W | B135: W18X175 | C135: W18X175 | D135: W18x175 | E135: F | F135: 175 | G135: 51.3 | H135: 20 | I135: 0 | J135: 0 | K135: 11.4 | L135: 0 | M135: 0 | N135: 0.89 | O135: 1.59 | P135: 0 | Q135: 0 | R135: 0 | S135: 1.99 | T135: 2.4375 | U135: 1.25 | V135: 0 | W135: 0 | X135: 0 | Y135: 0 | Z135: 0 | AA135: 3.58 | AB135: 0 | AC135: 18 | AD135: 0 | AE135: 0 | AF135: 0 | AG135: 4850 | AH135: 281 | AI135: 3450 | AJ135: 398 | AK135: 344 | AL135: 8.2 | AM135: 391 | AN135: 106 | AO135: 68.8 | AP135: 2.76 | AQ135: 0 | AR135: 33.8 | AS135: 33300 | AT135: 0 | AU135: 52.5 | AV135: 237 | AW135: 76.9 | AX135: 198 | AY135: 0 | AZ135: 0 | BA135: 0 | BB135: 0 | BC135: 18.41 | BD135: 133
A136: W | B136: W18X158 | C136: W18X158 | D136: W18x158 | E136: F | F136: 158 | G136: 46.3 | H136: 19.7 | I136: 0 | J136: 0 | K136: 11.3 | L136: 0 | M136: 0 | N136: 0.81 | O136: 1.44 | P136: 0 | Q136: 0 | R136: 0 | S136: 1.84 | T136: 2.375 | U136: 1.25 | V136: 0 | W136: 0 | X136: 0 | Y136: 0 | Z136: 0 | AA136: 3.92 | AB136: 0 | AC136: 19.8 | AD136: 0 | AE136: 0 | AF136: 0 | AG136: 4410 | AH136: 403 | AI136: 3060 | AJ136: 356 | AK136: 310 | AL136: 8.12 | AM136: 347 | AN136: 94.8 | AO136: 61.4 | AP136: 2.74 | AQ136: 0 | AR136: 25.2 | AS136: 29000 | AT136: 0 | AU136: 51.6 | AV136: 210 | AW136: 69 | AX136: 177 | AY136: 0 | AZ136: 0 | BA136: 0 | BB136: 0 | BC136: 18.26 | BD136: 134
A137: W | B137: W18X143 | C137: W18X143 | D137: W18x143 | E137: F | F137: 143 | G137: 42.1 | H137: 19.5 | I137: 0 | J137: 0 | K137: 11.2 | L137: 0 | M137: 0 | N137: 0.73 | O137: 1.32 | P137: 0 | Q137: 0 | R137: 0 | S137: 1.72 | T137: 2.1875 | U137: 1.1875 | V137: 0 | W137: 0 | X137: 0 | Y137: 0 | Z137: 0 | AA137: 4.25 | AB137: 0 | AC137: 22 | AD137: 0 | AE137: 0 | AF137: 0 | AG137: 4040 | AH137: 568 | AI137: 2750 | AJ137: 322 | AK137: 282 | AL137: 8.09 | AM137: 311 | AN137: 85.4 | AO137: 55.5 | AP137: 2.72 | AQ137: 0 | AR137: 19.2 | AS137: 25700 | AT137: 0 | AU137: 51 | AV137: 189 | AW137: 62.9 | AX137: 160 | AY137: 0 | AZ137: 0 | BA137: 0 | BB137: 0 | BC137: 18.18 | BD137: 135
A138: W | B138: W18X130 | C138: W18X130 | D138: W18x130 | E138: F | F138: 130 | G138: 38.2 | H138: 19.3 | I138: 0 | J138: 0 | K138: 11.2 | L138: 0 | M138: 0 | N138: 0.67 | O138: 1.2 | P138: 0 | Q138: 0 | R138: 0 | S138: 1.6 | T138: 2.0625 | U138: 1.1875 | V138: 0 | W138: 0 | X138: 0 | Y138: 0 | Z138: 0 | AA138: 4.65 | AB138: 0 | AC138: 23.9 | AD138: 0 | AE138: 0 | AF138: 0 | AG138: 3680 | AH138: 810 | AI138: 2460 | AJ138: 290 | AK138: 256 | AL138: 8.03 | AM138: 278 | AN138: 76.7 | AO138: 49.9 | AP138: 2.7 | AQ138: 0 | AR138: 14.5 | AS138: 22600 | AT138: 0 | AU138: 50.4 | AV138: 169 | AW138: 56.8 | AX138: 145 | AY138: 0 | AZ138: 0 | BA138: 0 | BB138: 0 | BC138: 18.1 | BD138: 136
A139: W | B139: W18X119 | C139: W18X119 | D139: W18x119 | E139: F | F139: 119 | G139: 35.1 | H139: 19 | I139: 0 | J139: 0 | K139: 11.3 | L139: 0 | M139: 0 | N139: 0.655 | O139: 1.06 | P139: 0 | Q139: 0 | R139: 0 | S139: 1.46 | T139: 1.9375 | U139: 1.1875 | V139: 0 | W139: 0 | X139: 0 | Y139: 0 | Z139: 0 | AA139: 5.31 | AB139: 0 | AC139: 24.5 | AD139: 0 | AE139: 0 | AF139: 0 | AG139: 3340 | AH139: 1210 | AI139: 2190 | AJ139: 262 | AK139: 231 | AL139: 7.9 | AM139: 253 | AN139: 69.1 | AO139: 44.9 | AP139: 2.69 | AQ139: 0 | AR139: 10.6 | AS139: 20300 | AT139: 0 | AU139: 50.4 | AV139: 151 | AW139: 50.4 | AX139: 130 | AY139: 0 | AZ139: 0 | BA139: 0 | BB139: 0 | BC139: 17.94 | BD139: 137
